Workbook

Sheet CB_DATA_ (hidden)
A1: Crystal Ball Data
A3: Workbook Variables | B3: Last Var Column | C3: 0
A4: Name:
A5: Value:
A7: Worksheet Data | B7: Last Data Column Used
B8: 4
A10: Sheet Ref
A11: =CB_DATA_!#REF! ->  | B11: ='Supuestos y Entradas'!#REF! ->  | C11: ='Flujo de Caja '!#REF! ->  | D11: =#REF! -> 
A13: Sheet Guid
A14: 9b2ea910-711c-4687-8e25-7a2f5c785a8e | B14: 3ab072be-0e1f-43e6-865b-cc67e585e9bf | C14: 352d4d79-e033-43d7-8465-da0bb08afcd3 | D14: 3c202c42-ba20-4216-a94d-ac24d00b5bb9
A16: Deleted sheet count
A19: Last row used
A20: 31 | B20: 31 | C20: 31 | D20: 31
A25: Data blocks
A26: CB_Block_0 | B26: CB_Block_7.0.0.0:1 | C26: CB_Block_7.0.0.0:1 | D26: CB_Block_7.0.0.0:1
A27: 㜸〱敤㕣㕢㙣ㅣ㔷ㄹ摥ㄹ敦慥㜷搶㜶散挶戹㌴改捤扤㕦ㅣ戶㜱㥡搰㠶ㄲ㔲㕦攲㈴㙤㉥㑥散愴㔴愵㙣挷扢㘷散㐹㜶㘶㥤㤹㔹㈷㉥〱㕣㈸㉤攵㈲搴㈲㐱㕢ち㔴ㄵ慡攰〵㈹㈰㔵㉤㤴〷〴ㄲ〸戵㠸㠷ち愹て㐸愵㐲㠰〴㐲㤱㜸改㐳愵昲㝤㘷㘶㜶㘷搷摥戱戳㘹挱㐱㥥㜶晦㥣㌹昷㜳晥敢昹晦㌳㑥㈸㠹㐴攲㝤㍣晣㤷㑦㤲㠹㉢挷攷㕣㑦㔸戹攱㜲愹㈴ち㥥㔹戶摤摣愰攳攸㜳〷㑣搷㙢㐳㠵㜴摥㐴戹㥢捡扢收㈳㈲㤳㥦ㄵ㡥㡢㑡愹㐴㈲㤳搱㔴㤴戳ㄳ晥㝡挲ㄷ㡤慤㍡㤳〰ㄳ挳㐳㠷㈷㑦愰搷㜱慦散㠸㉤㝤挷晤戶扢〶〶㜲〳戹敤〳㕢户收戶㙥改ㅢ慥㤴扣㡡㈳㜶搹愲攲㌹㝡㘹㑢摦㔸㘵戲㘴ㄶ敥ㄳ㜳ㄳ攵㤳挲摥㈵㈶户摥㌱愹㙦扦㙢㘰晢㡥ㅤ挶捥㥤㜷㜵㘲攸挴愱攱愱㌱㐷ㄸ敥〷搴㘷㡡㔳摥㍥㈲ち㈶搷㈶㠴㘳摡㔳戹攱㈱晣ㅦ㤹㍦摥敥捣㡤㑦ぢ攱㜱㘸攱〸扢㈰㕣つつ㍢慣㐱搷慤㔸㌳摣㍣捤ㅡ挵㔲ぢ扡敢愵慣㘱㔱㉡㘹㔶搸㙢挶㍡㡣扤㉢改㜳㥤搶戸戰㕤搳㌳㘷㑤㙦㉥㙤㑤愰愳㘲㤷㜵捣ㄵ㐷㜵㝢㑡ㅣ搲㉤㤱戲昶㔶捣㘲搲㝦ㄲ㙤㌷㠷㕤㐴㈷㈶㤷㥦ㅢ㜴慤攱㘹摤㤱㌳㜲戹㌱㌱㜵㐷㥤㐲㝤摤敢㥢昷换愹换ㄱ搸攷㡤捤敢愱攴戸敥㔴㙢昶㌷慦ㄹ㉣扥㝥〶户㌷慦ㅦ搹愳晡㌶户㌶㙦㈳户戲扥戶搲ㄱ搰户摣㔱㉣㐶㑢ㄳ戴ㄳ㘴〸㠸㐰㉤㑢搰㐱搰〹愰㈴晦つ㉥㠹㌶㘴㤱㥡搷搵晣愴㥡㉦愸昹愲㥡ㄷ㙡摥㔰昳㔳㙡㝥㕡捤㥢㙡晥㠴㥡㍦㠹㍡攱㤳㘹㙦㔷㠳攷慤㜳㍢㍦昲摥㌳攷㐶攷晦晥攴搸户㕥㝡昳戱捥㌵愸㜴㈴㤸搴㠸愳㥦〶愹搵愸㜸㕢づ㍣戱ㅣ慥〰㔳ㄸ㍢㡣㍢㡤㠱㠱攲㡥慤晡ㅤ㝡㡡换㡡㐱㝥ㅤ愱昴愰㙥愷㜱扦㘹ㄷ换愷㈵敥慥ㅣ搲㕤㔱摢戸晥愰㙣愸㕣戱㡢敥ㄵ㡢ㄷ㡥㝢扡㈷㌶㌷㤶搵㍡㔹搰㙣ㅣ㙣㈵㕣㌹摥搵㡤捤㡥敢愵㡡ㄸ㍣㘳晡挵㔷㌵ㄴ㕢㘳㑥㜹戲㜹改愸㈳㑥㔵㑢ㄷ捣㘸㄰㐲㙤㔶昶扤㘰㤵㝥㤱㍦慦扥攱改戲㉢㙣㌹扤㝥㙢捣㉣㥣ㄴ捥戸愰㐸ㄴ㐵戹搴昵㉣ち戸扥晦戰㡤㠵㠲㕢㡢搷㐵㜳㡤㍤㘷㍣㌰戳㈸㘲扥㌳挲昱收㈶昴挹㤲搸㔰㔷挵ㅦㄳ〵㥢敡戲㐷换㠵㡡㍢㕣戶㍤愷㕣慡㉦ㄹ㉣捥敡㤰㌴挵㠳攵愲㐸㈶ㄳ㔲㈸㐰攰戶戵㈹㑡攲戶收扣㈰ㄱㄱ㐱㌱ㄹ昹昲㝡戲换ㅤ挵敡戰㡡㤲㈰㑤慡㌷㉣搱ㄹ攷㉢㘵㑣っ〷㐶搶㐴晤挱㐱㙦㔹愲摢㉡收㍥摣捡慡摡ㅢ慣㝥捦慣戰扤㝤扡㕤㉣〹㈷㔶晢㈹㥣㤱搶つ㤰㍡て㠱搰㜴昷愸敡㤴㌳捡㕣敡戴㔹昴愶搳搳挲㥣㥡昶㤰〷つ㤹挹㜰㙢ㄷ㍣摡㘵挸搲搶ㄲ昴〲㘴戳㠹昴㍡㔶㑡㘷昱㈴㔲㤴㑥㌱扣㕣㈷挸搹慥㡥㤷㍢㡤㔱戳攴〹㕦㈸㜷ㅢ挰㠸慦搵㈴晡扡㐸愲㡥㕥昰ㄵ挶㍡㘳ㄸ㔴慡㥢戶㌷㔷攳摢〵㕣攲ㄳ搱慡㉣㔸㜱戲㠰愲愰㕥ㅥ挴昰ㅡ㠸愶㐱ㅡ挴㔷㡥㄰ㄱ搹㈰㐶戳愳攷㝡㈲㘳晤ㄸㄹ㠱晡㔱㈲㘴敤慤捤㘵〴㠹㝤㈱㤱戲㔱㔳㝥㕣㤵㘶㡢搹昲扥㌴㕢㡦㡤搳㌶㄰㙣㈴戸㥣㘰ㄳ㠰昲㔷㐸㌸㑡㌹愴敢ㅦ敤ち扣㙢㔷ㄲ㕣〵〰昹愴㔱收〴愲㡡㌶搴㜲散㐸搶敢㠲㥤㉣㡤㘲㕦ㄴ搱㌲慥摡㤹㕤㤶㐴㜴㘰㜵慥っ㕤㥢㤴㍡昶愶收戴ㄹ㕤づ㈹㌲愶㙡㜴慤㑢㔴㡤㙥〴慢戶愸户慥㐱㔳慤㡦攰㕡〰㕦戱搰搸㕤㥥㌵㑦㜳昲㤲㌰㠹㝣㐳愸㐵攵ㅥ㄰㌱捤晦ㄸ〱户攰攸戲㙡㍦搳ㄴ散㌷㉥㜹晢㜹㑢㜳摥づ㤰摥愰㌳㔷㜵づ㝤㐵ㄷ㘸㐱㕦〷昶㔲晥搴㔴扦摣㠰㘲敤㐶㠲㥢〰ㅡ昴ぢ㑦摥ㄷ敡㈵㤰㈶戱ㄵ挱摣㕡㝡㕣愴㠵㍢㌱㌷㈳愴昶改㌴㈶㜴㘷㑡㜸昰㕥散ㅦ㠱ㅤ㕣㜶ㅣ㔱挲㠱戶㈸㌳㜸㜶搹㔸㥦改㡥㍡㘵㡢昹慢昶戱㝢㐹㈸㠶㘴㔲㙤㑢㌴搸挷㌱㜶㘶挴摦ㄴ愱ㅣ敡摦㍢㥡ぢ㠹㐸愳㝡昲㘲扢昸戳攵慡㈴㘹㐱㤲摣㠲㙤搵㙥〵㠰㤴㔰晥搸㔴愲昴戳摡ㄶ㔹慤摥㕡愵㜷㉦收㘴搲攰㍦㕣㈰㐷㍡㝣㘷敤㄰㝣〷㙥㤷㌵㙥㕡㔵㘱搱㘱㡤〹愷〰扦㠲㔹ㄲ㔹摦㈵㑢㔱戳㉡㉢㉥ㄱ㔹搱搶戶攰㉣ㅤ攳㕢㤳㜴搲㈰㈵㘲戹㍤戶㌰收ㅣ㕥㈳㉡扡㈰㈹㔴㘲摣㐲㔵〹㐴捡㘳摤㔵ㄱ搳㠲㠸挹㘱攳戴摢〹戶ㄲっ〰愴㝥て㐹戳摣㡤㘷㈸慣㝤㤶敥散㝣㍥㤱㈱ㅡ愴㝢昰㡤愶挲㙡㍢㠷搹㐱昰㔱㠰〶昳㠷捥挷ㄸ㐲㤴㈸㡦㄰㈲慤㈵捤㌸㙥㡡搳愴㠱㌵〶㠲㑡挳ㄵ搷㉢㕢㡣㉡㜵ㄹ㈳攵㐳㘵㙦挴㜴㘷㄰㠵敡㌵㠲挴晤搳挲〶㜵㌹戰㝤ㅡ昲捡㌳㌳愲愸ㄹ攳攵ち㐴摢晥㤱㤵㜰㈸挷晡㘰㑢捡㜳戹慡攰㘹敤㙣㡣㉥ㄴ㜹㈲㠶慦㤵㥥搸㘵㜹扥㜹攸敢慥敤攸㠴改㤵㐴㠷攱㌳ㅤ搳ㄹ〳扢㠸愸㐱戱摤㤸㤸㜶㠴ㄸ改㌲昶㍡㘶戱㘴摡㠲挸㠰㡤挹㐰摤〱㌱㠵〸挱㔸㤹昱扦戲摤㘵㑣㌸扡敤捥攸っ㈶捥慤慤㝢㤳㈱㤱㤴㌱㘴摡㉥㠶㤱㔸㘴扡摢ㄸ㥦㉥㥦㐶戴戶㘲搹㝢昵ㄹ㜷㐵㘰㠵㐴敦㍦ㄲ㌵㡡慡愸慡㤲㔱㌳慤攲㠷〷昲㐴㘲ㅢ㝥㐹〲㠹慢㐴㡡晥昲ㄸ敤㑤扢㍥㠸捦搰㑥攷㥣㍡ㄱ㌹慡㘶戶挵㑡㘱㜲慡㜶ㄷ摢散〴戸㜷敦戱晤戵愸摣㐵挵慢㔳昴昰挷挸㜸㐹ㄶ搵㈰〸晤㜳㙢㝣㔲㘱ㅥ㈹〷ㅣ〸㡣昳慤㤱晣戲㠶慣㐳敡㕢㔳㑢㡥㈲㡡搴㘹ㅣ搰㈷㐵〹戱㘸㑢昷搶昸㉦㌴㘳㉤扤攴〶㘵挳㘵换搲㐹㕡㈴换昱㠲㑥ちㅥ慣㜸攵㠳愶慤ㄹ〰㤲晥㠲㉣晤っ戲昴㌳㌲慢搳㌸捡戰愰㑣戳慦昲㤴敥㤸摥戴㘵ㄶ㌲㝣㘱攸㙥㐵搰㈴㤸㥣㤲㌷㝣㐲㤹搱搷㘰捤ㅦ㠳挹收收㠰敥ㅣ攴㈸户㡥攸〷攵慡㑡ㅡ晦㈹㉤㍡㤶㈰㘰愴㤷㔴扢ㅢ扤愵攴捤〸㠸ㅣ昹㥣て敦㕦㥣晦㍣㜲㝣扦ㅣ戱ㅥ㐳㈲昰〸㐶㠴㍣摤摢㘹攳㤸㙤㝡挰ㅥ㌱㌶㙡㝡㈳㉥㔰づ㠰愴㍣摥㙥㤶㔸㡤㌴敡慦㙡㠵㙢ㄶㄶ搵愹㠹慢ㄷ㤶㐷昵挶つ㡢ㄴ晢ㅡ㈵愲㐸㤶慡㈴㌵换㈲㜳㕣㐹慡㐶㤱㡡㍢搴㌶㑡㥣摢戴戶敦㤴㈲ㄷ愱㤸㈴捤㈴戴㕤㤲㔰㄰攴㈵㜵㐰㐷搱㕦ㅦ㑦ㅥ㤱㘸つ㙤㠰㉣昵㤴㥦搷ㄵ㠴〳昷攳捡㐹㔱㘴㠳㌷昰昷㥡㈰㜹戸攲搵㤵攸㘷㝡㠳㤲挱㔲改戰つ㉢愱愰㍢挵ㄵ挲搲㔸㥢慦㘱㈴㜷戶慡晤晤敤㡤㌰㘲挰㠶っ㠹挴昸㠱挱㠶㘰慥㐸㌴㤵搶㔹ㄷ户扡㥡㥤攱摢㐱愱摢ㄲ〳攳㕥㜱㐴捣㑡㌳慣㘶挹昷捡〶搵搳愲㤴愳㥡㌱㌸改㐲愵㝢㤴攳㐱㑡㌲戸㘶ㅣ愵㕢ちㄷㄸ㈰㜶㠳搴㔸挱㐳㔸户摡〱㑦〶㉢〷㍢搸ㄱ㍦㙣㐲敢㡣ㄲ㌴ㅤ㐳戸昵㡢㈰敦戴㠸㔱〸㔲㐳㍥晦摡慤㍣昷㉣㥦ㅦ敤㑥㠴㠹㠰㠹ㄸ敡㡡戱ㅥ㠰摣㘸㔴㤲㕣搴ㅢ〶换㝤挹㈶㠵㔶㘷㤸㐷ㄳ愳㡢㈶㥦攳攱〶て攳㔸摤㘴㥢ㄲ敥戸㜹㈶戴㘹㘹㙥㡤戱摦㉥㤴㉡㐵㈱㔵㜱㈸慢愵㐶㕥ㄱ昸㤲搷晦㝣㙥㡡搹㤷㘰㔳昶攳㈸挵㈵ㄳ㐹慤摢摤摡㈷搰㕣ち㌹昴攱换㌶〶ㅦ㘳摣㜲㌲ㄸ戶攰㡥〲敤挳戵戵换ぢ昲攲ㅣ㐴摡㠲㉣捡戲〳戸㡢㔷㡤㈰㑢㙥㡢㔴㍢㔰㍥㔰愶捤ㅥ挹摡㘷晡㔹㉢〲㐷㔸愷㉦昰搲㘹ㄸ㈳㉤㜲〷㍢㐹㥣て㈲扢攷㍦㉦㕦ㄳ攷㜷〷挶㠷挲昸㉥㑦㐱〹散㉡ㄸ㠹〶户㕡戳扡ㄵ㐶㝥㘹㜹㙢昷〰㈸っ〱搳愰㐵㑤摦挰ㄹ㐲㝡㘹〳㠷挱挸㤸攸㘸㌴㤰捡ㄸ㘵㉦ㅣ昶㐰ㅡ戸㠹〷改㠹㌲㤴㤰户㑥㕥ちぢ敦㈵昶㕢㌸〲㤵㥤つつ㤹㘳扡㠷慢㉦昶愶㠶散挱㘲㤱收㉥晣㜳㉢〲慢戸戶攱㥢愳敢ㅡ㉥㘴挹㌵搱扥扢扥愱㈰戸㈸戸㙤㈴户㑦昷ち搳攳摥㥣㝦㘹慢㔵㤲㐸晤〲晥㠸㐵㐷愷捤㥣戴㜹〹㜵㤶㝢㥦㍤㘹㤷㑦摢㜲㕥㈹㤷㌷晥㘸挵㙡敤敤㥣㘴㌶昱㍥晥㤳㡦㥡㐸扤㠶ㅥ㤷㌳㙤㜶㔰㜳㤰戰ㅦ㜹攷搲㤷〶㝤㜸㡤愱ㄳ搸敥搵ㅢ〳愴㤳㜵つ㜴㈲〵挱㉡愱搸㔳ㅦㄸ愱㈸㍦〷㕡㐹㉣晥㤱ㅣ㝢晥ㄲ㔸㕦昹ㄹ㜲㠸㜰㕥敢〸〴昹戵昱愸㤳㠲㍣戸摥挱㔶晦㍦㔸ち戹㜹㔱㜶晡㉦㌰戳昲㙡㈳㡡慥㈶㡡㕥〹㔰挴换㠴〱㡡ㄸ㠸扤愰㤰㌷㘷扦㝡搴晣搰慦昵晥て㡦㥡昷〲挳㝣㈴㠵㈰愸挶㘰㝣搵ㄸ㘸㕢㘰っ摣㠸㘲㘹っ摣挷㌶㡣搷晢挶㐰攰敤㌸㠸㡣愵㡤〱㐶昱㘲㑣扥㐸㔰㌵攲挰攰㔹㙢㠳㐵㑦搸㍥㕣慦ㄵ㉥㈲昷㔰㑦敥㌰㝣㑦ㅢㄷ㘶㡦改㡥㙥㙤㤲昹㝢ㅤ〱戵攵㑣攰扥戶㙣挲ㄶ㥢ㄷ㉤㤱㡤ㄶ昱㑡㠴晥昴㔵捦挹昲㙥愹〳㔳晥攳㍢敡㤵㡣㤲扥〸㥦㠸挲ㄳ㐲攲㌳敢㝥扣昷捦㡦㍣戶㥢昷搲〲㕡㑤㌱㄰摣㑡㜰㥥㤶〳挲户㤱㉢㈱敢昹昹捤㐱㝣㠸㘴捥㤴挴㤰敥㐸㝢挷搵慣㌰改ㄳ㕥㠴㌰㝤攲㕢〹挶㈴㙥㌸昸挶㘴慥挱戱㈹㍦㕦㤲捥挰㕣㘴攲搲㝢ㄷ〶〸㤵愶㉡慢㐵扢㌲昵ㄳ㈸㥤ぢ㥣㐸扤㍤挸昳㈵ㅦ㐵㌹搷愸搵㜶㔰慢㐹㌳㔱改㐷㡤㔰㑡㈱搲㐰ち㠹ㅥ㔹ㄸ晡㤷㔲㙡っ㠹㔴づ㈰㈶㠶搶ㄸ捣攵挹㝦㔵〸㠸敡昵扥ㄶ㍦㔵挱㉥〲㡢愱搷扤搵戳㉢慤捥㔰㌵㌱㈸㉢㑦ㅦ㐷㤰㤰挷ㄴ㘶㌰㑡㉢㜳㡦㈲ㄱ㍥愹〱愴㤶敤㜸攲㈰㕤㤶ㅦ㘲昳ㄹ㍢㘵搱慢㤶戵昶搸ㄵ摣昱㠰㥥㐹㑢㠵㘱慦㘵㌶㡥㥥㌲ㅡ攷㔷捤晡㔹㠴摤㝥戲摡愸㈳㈸㠲捥戲㌷攱晣㠹㌰ㅦ扦〷㘲㜹㝦慤敢昵㡤㈵搴㜱㜶㍢ㄶ挸ㅦ散慦慢㘳ㄸㅢ愳㤲㘳㈰㘱㤷㔵㉢攳㕦〲ㅦ㐷ㄳ㘹捦㉢㕡㉤挹戱ㄴ㠵搱攸㤰戳摡搴〵晡㥦㜱㙡挹㔹ㄳ慣捤㠰㜵㥤晥㍦㡥㡣㈵昵扦挲㈸㥢㐴搹晤㐱㠲㉦㈹㐶㑡㤶っ捥㜰㐷攰挳㐶㤸㐶ㅥ㠱㌵㤹㘴㜰摢㑦㡤攳ㄳ㔵扦㔸㑡㜰㜸戸㤲㡤㤷㈰慡㙤㘹摢㜶㌴ㄵ㠰㡣〲愵㝥〸ㄱ搴戴㍤㈷㕤㝦㡥㐵㐶㈲晤〰挰扡㠳㘶挱㈹扢㘵挳敢ㅢ㐷㜸户㡦㕦㤸ㄹ戰㜹〶㤵㤷ㅡ㠵摡昵搸㠹捥〷搱收搰㘱〸散㐳挲晢愰愲㡥㡣㈱㉣㉦㘶挱〳㐲㑦㈴㤰㐴敤攰㕥㘶ㅣ愹攸㈵㝣愰㝡ㄸ㕥㑤㡦㔹㉢㐲搹昹扥攵挶扢ㄸ摣㍡摣挶扡て㥥ㅦ㔱捡㈱っ㈶㤷昰攰㐳摣搷挶㍤愸慦ㅢ慣捤㘵捤搶扣㙢搹搴て㠰搳攵㡤㔲㑦㌲ㅣ㤳摦ㅤ㘷戵㠷〸ㄱ攷愱㜷㜴昹慥㔸昶搶ぢ㍡て㍥摢愶换慢扦〴㐷搹㌲攲摣㥦㐶㔳攵ㅥ〲晣戴㝣㤰攰㡢㐲㝦摥摤㑣扣㠰㘵㤱〱㤰㑥愴㜵㠰收㔴晤扤挵愸㕡攱搱㠲㔴㤸㔵扥㡢㜲敥㤲扦摡㈲昳㜰搴㤰㐷〸愴戵愸攴㔶㜸㠴㤰攳㍦㠷〶搵昱愷㤰摢㝣晣㘷ㄶㅤ㥦捡㕦慥㉦摡㝦㑦愸㍣戴ㄳㅣ晡㈴㐱㠹挰〲攸〹㙢㜶㔳㉣㔲搶愴晤㈰挲慢扢㤱挶昳㠷攰摦户㜷扦昱㍡㥦㝦敥㔶愴㈰㐴㔱晤㉡㈸〸攵㉡㥥㡡慥㘲〶戹捤㔷昱㡤挵㔶搱㐳ㄹ挹㤹㘸づ㐰㔷㥢㐲㕡㤱慢㜲㤱攰㠶昲愷㐸㠴㈲㔱㌷㡢ㅥ㈲㔶戶慤㈰㠱戶摣㜹搹㜶ㄶ㠹戰㙤㡡ㅢㄱ昳〹㡦戴㡦㜸攵㤱㕥㥢戴敦㜶㑤晢㕡㌱㘳〵晥搶ㄵ㈱ㅢ戰㈴㝥ㄳ摢㔴愴愷㕢㡣攵㉢㑦㠶㠸搹户㉦晣㍥㑡つ愲㑢㈰っ摦㈲㈵㈱㜱㈳㤵㉦㠷㤵捦扤㕣㜳㡥愲〰て愸挷慦㑣㠲㤳㤵㥦〸㉢㙦挳户㔷戲㑥㠲㜷〵昸扣ㅤ㔶㈶㘱捡捡㡦㠷㤵晦戱㙤㔳戵㜲㐸㠷㝥捦㈹ㄲ㐹㡣慤㉢慤晦挸㜷搸㍣㔴愷っ敡捦づ挳捦愶攴㤴㐱攲㤲搴愰㥤戸昶攱攰㑢攸〳戸挵㠴换ㅥ㄰戲晥ㅦ㐴搸㡦摢㑤㈳扡愷攳㐳攷㔹㠴㤵ㅤ㑤扥戱㜱摡㌸散㈰愳摤搸敦攲㑣㔵㕣㔱㈴〲㜳㈰改敦敦ㄲ敥昷ㄸ搳戱戶ㅦ㘱㌸㑣攵㙤㤱搶㤴㠷っ愱㈴㤵挷㐲捣㈶收㙢㌴愳㝤ㄶ挸㠱㤸〴㘴㐲晢ㅣ愰ㅦ㜲㔹挷㡣ㅥ昲扦㘴敥㜹㈴戴㐷〹扥〰㤰㔵挸散愴㠳昴ㄷ〱搶挳㑡挵ㅦ愴㜰晢㡡愲㙦挶ㄱ戳昸〳ㄷ扦晡愹慤㉡㘷挳㈱愳挴愴㝤㠹捤ㅥ〷㘸㠳扢㔶〹㐸㌱慢㍤㠱㥣攸搰ㄴㅦ㜲攸㈷㔹昰ㄵ㠲慦〲㘴㔳㥣昲戲昷㡥㉢㙢㔱㝦㝤つ㑤ㄵ㙥㠸㤴㘶㕦てㄲ㝣㐹捤〳摣摤摣㘲收㠱㌸晣㠸ㅦ愱捤扡慦昵昷攰敢晢㌹㉥扡つ㝦㝣㈴㈵捤晢愴晡戱搶晡㈲㉢搰㌲㤷㍦〷㥢㝤ㄱ晤㜰㕤㌵㑢㤳㍤㝥ㅣ扦㡣㥡㔶ㅥ挵扦昳昸㈹愷㌰〲㐷愱扥捤挰搹㐲㑡㤰〵㌳㐱〱ㄵ㤷昶ㄴ㠰㐲ㅣㄳ㑦摡搳㝣㈳㙡搹扦昶捤㈰挱ㄷ㠵㜸㥤㘷愲ㄴ㌴て〷㈴慥㘵挱挹㠶〱㠹㝦㔹㜰㈲㍡攰户㤱慢㐸㘴㈱㔱慦㥢㠸戴㈴㜳㥦〵攸㙡敢收摣愸敢搴㌳㑡攱攱攲挳て扦摢㥤散摢㥣晣攴㍤㥤捦扥晤扢㜷㥥㝥昳㔳扢晥昶摥昳捦扦昹㤷愷㕦㝦敦戵挹㕤扦㜹昱挵㕦摦晢晤搷摦㔹㙢扣愰扥晣敥㠱ㄷ捥づ㥣㍣㝢捡㌸㜶摢摥戳て㥣㌸㌲㌰㜶㔹㝦㕢㕢㝢晢捤扤扦扤晣㤶㥥昹㔳慦㈸扦㝣㙢愳慤挸攵㜲挰愳〰攱搳挳㘵换㘹㝣〷〹㑣㠳㌳晥㔰愷挱攵捥攳愷ㄴ㠳㡤ㅡ挲㑢〶㥥つ㑥㐰ㄶㄴ敡ぢ㍡晥〳愰慦戶㝦 | B27: 㜸〱捤㕣ぢ㥣㕢㔵㤹捦挹㑣搲戹改戴つ愵㤵ち〸〳㤴搲搲㌲攴㍤〹㔸㤸㔷㕢ち㝤搹㤹戶昲ㅣ㙦㤲㥢㑥㘸ㅥ㈵挹昴挱戲㍣㠴㈲㉡慣㉥㈲㕡㐰㜱ㄵ㐴㘱愱㘵㐱㔶㔰㤱㤷攸㡡扢戸扢ち扡㍣㝥㉡㡢捡戳〵㕤㔹㜷㤵敥晦晦摤㥢捣㑤㜲㌳㥤㈲晢晢㜱㥢昹昲㥤㜳扥昳㥤敦晣捦戹攷㝥摦戹㈷㜵㈹㤷换戵てㄷ扦㜹戵㤳㌹㝣㘸㝢戹㘲攴扢〷㡡戹㥣㤱慡㘴㡢㠵㜲㜷㕦愹愴㙦㕦㤱㉤㔷摡㈰攰ㅤ挹愲扣散ㄹ㈹㘷㉦㌴㍡㐶戶ㄸ愵㌲㠴㍣㉥㔷㐷㠷收㐶戹㘶晤昹㙢〹搶搲摡㐹㈰攵搲扣㈴㔳㐸㍡㐸㐴摥㐷㙥㉡㐸㘷㈷挸昰㐰晦敡攴昹㘸㝤愸㔲㉣ㄹ㡢扡搶㥢㙤㉣づ〶扢㠳摤㤱㘰㈰搰ㅤ㔸搴㌵㌰㤶慢㡣㤵㡣挵〵㘳慣㔲搲㜳㡢扡搶㡣㈵㜳搹搴ㄹ挶昶攱攲㈶愳戰搸㐸〶挲㐹㍤ㄲて㐶愲搱㑣㈲ㄱ敦㥣〶捤慢〶晡搷㤴㡣㑣昹摤搲㌹㥤㍡㔷て昴㜷慦㌲㉡敦㤶捥ㄹ搰〹㤵㠳挵扣㥥㉤扣㑢㑡㍤ㅣ㠳攸愰㤱捡㜲戰っ愳㤴㉤㙣散㠶搹㜵㐰㈳搵搳摤㔷㉥㡦攵㌷㜳摣〷㡣㕣㙥慤㤱㤱㐱捡て㤶㉢㙢昴㔲扥摣㤹㈷㝥㐶挹㈸愴㡣昲昴晣㤲㙤㈹㈳㘷〹㤶㍢昲敢昵搲㉡㍤㙦戴㤳㤹㤱㌷挷㜰㜹摡㈸㔴戲㤵敤搳昲敢捡挶㕡扤戰搱愰㠸㈷扦㙣㉣㥢㔶敤敤昸戸摡㡥㜳戲㑣〶ち昶攴〷㐶昵㔲㐵㔲ㅣ挲愰㤳慣㙤扡㐸㉦敡散攲㤴敡㙡愸挵㌱ㅢ捡收捦㌰㑡〵㈳挷㐶㌸㤲ぢㅢ㠴〴㈰㜳ㅣ㙡㐸㔵扢挳㔱㔲㔳慤㥢㠵㝤㘱㉢㕥㍦挸㠲㔵挵㔲ㅥㄳ㜲愵愱ㄷㄶ〷挳㍤㍤挱敥㜸慣㜶昵㉣ㅡ慡愴〷㡤㉤㡢㐳㤱㠰㜶㄰挴戵㤹慣㜸㌰挸晢搶ㅡ㈹㝤㉣㕤散捡㘵ぢ㠶摥ㄵ敡ㅡ捡㔶〰戴㌶㡢㔲戳㐱㔴晢换戸㕤敤㡤昲㤶㜱㡦攸敥㤱愴㝢㈴攵ㅥ㐹扢㐷っ昷㐸挶㍤戲搱㍤㌲敡ㅥ挹扡㐷捥㜷㡦㙣㠲㑣昵敡㤸㌲挵㙤㕤扦扡敤㤵挷摦摥㤹㕢戶㈳ㄳ㝢敡㡣攷慥昸㡤攲ㅤ㉡㌷昸㈱㘰㡥户㜷㈲ㅣ㡣㠴攳摤㠹㥥㕡㈷㘲搵㑥㠴愳攱愰㌶〷昲摡晢㐱扣㠷㠲㌴昴㈲㔸敤挵㘱㤴㍡ㅣ㐴愹ㄷ搰ぢ昶攴㤰摤㤷㥣㜸攵昷捥㍤敤戳㉦㜷昷晥晥扣搷っ挵昵㐱㑣㌸〲㑣搴㙥㐲㑦㈴ㄶ㡥昴㜴㐷挲挱㜸㈸ㅡ㑥挴㙡ㄶ㠴㘲㠱㜸戴㍢㤲㠸㐴攳攱㐴㈸ㄶ搵㡥㘴㍢㕤㈰摥愳㐰愶㔹㤸慥〸づㄳ捡愳㔹㜸っ㠸㔲捦㕡㐶散㡥扡摡㕦晣晡㑤㘷㝣昵愶散㔵昷㉦晣昵戰攲晡㈴㐶ㅣぢ愶换㙥㐴㍣ㅣ㑣㡣㌷ㅣ㑦㠴㠰㠹㌶㡦㉡㡦〳昱捥〷改㕣㌵㤶㕦愳㤷㔷㠴愴戹〵㉣㍢ㅥ㐴愹㥦㕡捤㐵㥥㝦昶戶ㄹ挶搴扥慦㤵㙦戹攰㥢攷㥤昸㙤挵㤵㔰㥡㕢〴收〴㝢㜳挱㈰收㑥扣㝢ㅣ昵摡摣㠹㐴戱〶㠶愳摡〹搴摦つ攲㍤ㄱ愴摡戶搹搵〰换㠲㈰㑡晤㡢搵昶ぢ攷つ㕣搰㥥扣㝢昹慤搹㉦敥㍤㙢改戶搵㡡昷戶戴ㅤ〶ㄳ戲户ㅤつ挵㘲㍤㠱敥㥥㥥㐸㈰ㅥ㐸㔴㠷㍢搸ㄳっ挵扢挳愱㐴扣㈷摡㤳攸㠹㙢ㄱ㌶ㄲ〵昱挶㐰㙡㘰㥢扤敦㘱㘱ㅣ㐴愹敦㕢ㄶ㝣昷㤳捦㕤㜴收㑢摦㕥昹戹㠷昶ㅣ㜲挴攷昳㑢ㄴ㔷㝦戱攰㈴㌰昳敡㉤㐸㘰㕣㈳搱㐴㈴ㄱて〵攲㔵ㄳ㘲攸昶挹㔴晣㐱㄰敦㘲㤰戹慢ㅥ㝤㈰㙦㤴㡡㕤㘹愳㙢戳㕥搶捦〷㕦敥㕡昱攸㥤扣㠹㙡搳敦ㄴ搶㌹ㄵ㐴愹㠷㉣㘳ㄶ摥昹捡㈹摡扣戹㑢敥㕢昹愵敤㥤㉢㝦戴㔶昱㈹㈴挶昴㠱㤹㙦㌷㈶ㄴ〹㠵㙤〳ㄱ㡢㐵慢昶㐴愲㕡㍦㔵て㠰㜸〷㐱㈶㌴愷㜶㑦㉦㘱㥤愵㈰㑡摤㙦㤹愳昶ㅥ晦㡦㘷㠷㍥摥㝦晦㉤㕦㌹㘵攳㔳㌳ㅦ㔳扣戹挵㥣搳挰昴つ㤷戲㔸㍣挷㜲㝡㘹搱捡㙣㘱㌱㥥㠱㤸㠰〹晢戵㘸㐵㜶㤳㤱换ㅡ攵ち㑢ㄳ㤱㜰㈰ㅣ㕦戴㔲摦㈶愹㐴㔸㕢捥㌶㑦〷昱㥥〱搲扥愱㙦㘰㐰㕢挱扣㤵㈰㑡晤㠳㘵挷㥡㈵て㥥戸㉢戶攱戴ㅤ晢愲㠷㙤㡥扦㄰改㕣㡤攲て㔹㉢摤㘰㐹摦㡡㘷挷昸㘳㈹搴㡤戶㈶昳㍣挶攳㌸ㄳ捤昴㘴㠲挱㜴㌴愰㠷㜵てㄷ扦挹㉥晣㕣㔷㍢㌳ㅢ戲㠵㜴㜱慢㍣〹づ敦搷换挶昸㠳㘱愱㔵搶㕦ㅣ㉢愴换㠷㌹ㄷづ㔵昴㡡㜱㘸㘳搹戸㤲愶㙡㐳㜸㑥ㅡ㘵㘹敦㠸挶㙡敢昵摣㤸搱户㉤㙢ㄶ㝦愰愱ㄸ㑦挹㘲戲㜵改搲㤲㜱㐱慤戴挹愲㍥戸㕤㕢㐴㜷㔳㉦捤㈲搳慥慥㠱搱㘲搹㈸㠸㜹ぢ昳㙢戲愹㑤㐶㘹挸愰搳㘶愴愵慢戳㔹㘴㍤慡ㄷ慥㉥愰愳㜸昸愶㡦戶攷㘶㤶㙣慢ㄸ㠵戴㤱㠶扤㥢㡤㔲㘵晢戰㥥捣ㄹ敦慢ㄳ㌱摢㐴挱晢敢戲㤷ㄶ㔳㘳攵㠱㘲愱㔲㉡收敡㑢晡搲㕢㜴戸〷改㤵挵戴㠱愷㝢㍢㉦㤷㜲戵戵㈹攵㍡摥改ㄱ㑢扤攵㙥ㄹ〸摢㄰昳㘱㍦愷㝥摡㜵㘳㌵慦愰ㄷ㌹㠳㜳搲㍤㜷㍦捡㐴㉦搵㉣㘸㉤㘸敢ㄳ㍤㕣㑡捦㙦㉤㉤㌶搶㐶敥晦㔷搸敤㍥搸敡晤㤲㉤㜰愱㑥搳ぢ改㥣㔱㥡搰㍦㔷戴㐸㕢〳攲搹㠵扢戹㈵㝡㝣搴慢㙤㙡扢㘷㙢㌶㕤ㄹ昵㡥ㅡ搹㡤愳ㄵ攴挱㠷敦攸㈰戴㑤㤷戶ㄶ㔹摡㄰挹㌰㠸捦攷昲慥愳㤰搷愷慤㌷搳ㅥ晡㌱〷敥㥣㐹㤴㈰捥㈰㍣昷戲㈷扦戴㔸㉡户戵㌹昵昲㌴扤㍣㕡攱昴㥣戰㤰㙥㤸戶㠱攴挳㈰ㅥ晡㑥晢昵晤㘶㐰愸㥤㉥敥戴晣愰㤱搱ㄱ㔸挸摤慤㜴㑦摥昴㔵〷㡤㜲㑡愳㔳扢ㅣ昷捡㌶㉦㌸摣晣㥤㜹捥㝥㘳㕢㘵㔰慦攸㔳昰搴㠷㠳㔱搱㈰戴㔰㙡㤹ㅣ㙢㑥㤳扣㙡㙤㥦㤵㠲〶扦戰㌶㉤㔳㈵挳搴㠴ㅢ〷昷㡢慢捤愲ㄳ㜷〲戶搳㠱昵㌶㑥昴㝡㌷ㄷ摥㜷㝡㤹㔱ㄸ摥扥ㄹ扥㍢挴㍢扣ㄳ㐲搹㜸㝢㔱搹敡㔴㜲㕤㈵㥢㉢㜷挳搲㘵愵攲搸收㜷㔳て㜵㘹㘷㠲㔴㉦捦㔷㌱㡢㈷摦㈷挶慦㔳戶㜰㙣㐶㐶㕣ㅤ搴挶ㅣ㡤扥戵挶搹ち㘵晢昰㈵㤷㜶㉥扥㝣ㄳ㤵㜹攸㜲ㅦ㐸㐸㐰敦戵㌳て㠴攰晢㐹㤰搳㈱〹愰㍤㉤扦愱㔸摡㤴㉣ㄶ㌷㜱㍥㑤㤷㔴㜹搴㌰㉡っㅣ愶㕡㠱㤲〴㐴㑡戵戵搵㌹昸戶〸㠳搳搴慢㠳昸㠷㡢㘹戸㌸㌹晥㘵㤳昰㜶扣㐹攴戶㈱㡡昱愶挰っ㜲攱捤ㄵ攱㜸㌳㤲搷改ㄷ㔵㈳㡢昹慣㤷㌷搲㔹㝣㠹扢戴戱戸愰㡢慥㙡搷㜶换㑦敦㕡ㅦ敡摥㤶㉢㙦㔳㌷〱㉣㍡改て㤶㜶㥦㜴攴昴㕦て㕣㜹昶㡦㌶扥戸攳愵敦慡ㅢ慤㠲愶〰㠲㜱㠰㐴㌴ㄹ㌰㙡㈷挴戸〸㠱慦扦戴㔱愴戵㉣挹昹㈰㔸㑡㘴㜰戰㤲攴捣愴㘲㉣挱搵㐴换㤳ㄴ㐰ㄴ愳〷摥换㕡ㄱ愴㝡愹㑦㐳㍦愷㠸っ㌳㠳㡦收㘱㉥㈳搷愷㑤㔰愶ㄸ㤳㜰愸㌵㐲慢ㄱ㐹㡤㈸慡㉢愱搸ㄱ㠰ㅤ㔶㐱㔳昸挲搰㐳〰戸㠸昵㉦㠷㤸㌳〰ㄷ戳㡤㑢㐸㉥〵戱〱昰㔱㌳愹扡昰㉤〰㕣づ㐶扢〲㐴ㅤつ㈲〰散〰㔳扤搴㠵㘸愳〶挰㔱挸㙥〶攰攳挸昵㘹ㄳ㤴愹㘳㈰攱〴挰收㔶〰ㄴ慤㠲愶搰㠹戱㤰〰㜰㉤ㄸ㤵㙦〹挰㜵㈸搶㍥㑢㜲㍤㠸つ㠰捦㥢㐹挵㜸㑡〰搸㐹愱ㅢ㐰搴〲㄰〱攰㐶㌰搵㑢愵敤〰㌰〰㙢〶攰㘶攴晡戴〹捡ㄴ㈳㌴㈷〰捥㙡〵挰㤹㔶㐱㔳㌰㜷〲㌴〹〰㕦〳愳㌶戴〴攰㜶ㄴ㙢㜷㤰晣㍤㠸つ㠰扢捣愴敡挶户〰戰㡢㐲扢㐱ㄴ〳㍡〱攰㙥㌰搵㑢慤戲〳㜰㈲戲㥢〱昸〶㜲㝤摡〴㘵㉡〸〹㈷〰〶㕢〱㌰㘰ㄵ㌴㐵㤴ㄱ㘸ㄲ〰ㅥ〴愳晡㕡〲昰㄰㡡戵㠷㐹ㅥ〱戱〱昰㤸㤹㔴㔱㝣ぢ〰摦愳搰攳㈰㡡昱愴〰昰㝤㌰搵㑢挵敤〰㌰ち㙤〶攰〹攴晡戴〹捡ㄴ愳㔴㈷〰扡㕢〱㜰㠲㔵搰ㄴ搰㌲㌶ㄵ〰㝥〲㐶㉤㙣〹挰㔳㈸搶㥥㈶昹ㄹ㠸つ㠰晦㌰㤳㡡昱慤〰昰っ㠵㥥〵㔱㡣㘱〵㠰攷挰㔴㉦㜵戴ㅤ〰〶挴捤〰晣ㄲ戹㍥㙤㠲㌲㜵㉡㈴㥣〰㤸搳ち㠰㐳慣㠲愶㈰扡ㅦ㥡〴㠰㤷挱愸搹㉤〱㜸ㄵ挵摡㙢㈴慦㠳搸〰搸㙢㈶搵〰扥〵㠰㌷㈸昴㈶㠸㘲搴㉣〰晣づ㑣昵㔲㥤㜶〰ㄸ㠲㌷〳昰ㄶ㜲㝤摡〴㘵㡡戱戸ㄳ〰敥㔶〰㈸慢愰㈹㙣㘷㤸㉤〰搰晢㔰晢摥㙥昵ㄴ㜰愳㔸㙢㈳攱挶扢つ〰慦㤹㔴愷㐳㤱〰㌰㠵㐲ㅤ㈰㙡〵戲〴〰つ愹敡愵晥㠰㌶㙡㑦〱挶昶捤〰㑣愳㑥㙤㠲㌲戵ㄲ昵㥣〰㜸ㄵ捡ㅤㅦ㠳慦㔸〵㡤晢〵ㅥ挶ㅦ〷㄰攷㑤愵挱㤹昵㔹㘳㉢ㅤ搳改ㄹ㙣ㄳて㡣㤵㉢㐵昱愲愷㘵〶㡢慢㡡㤵挱㙣㜹㜳㑥摦㝥㜰挶㘲㌶㡣ㅡ〵挴戸㈵㠴扡つ㜹挵捤㥢㡤戴㤶ㄹ㉡㡥㤵㔲挶昲挱昷㐲っ㡣晥㘱攸㈴晣㜵㉢㕣敦㉣慣挳づ㡤挲㉣挱攵昲慣㠵挲㐶敦㕣㌶慢㙤㤱戴戰㝥〸捥ㄸ㐷㜴㌸㕢挹ㄹ㔳㌳ㄲ挵ち摦㤱〱㡡搸㌸㐸㑦挹っ㡦挲㙢ㅤ㥣㤶㔹㔶捡愶戹〱捤挱㤸㘵㡡慥㌰㌶㘲㤳㘰㑤戱㥣攵㝢㠱㘹㤹攱㤲㕥㈸㙦㘶扣㤳摡㍥戳㉥㈵㠱㤱㈷搳㥦㉤㤴搱㡣㡣㈲昹ㄹ㤹愱搱攲㔶扣㔲ㅡ换ㄷ㤶改㥢换敦㠹㔱ㄹ扦㠳㘴㘸㤴㕢戹摤慡挳摤昱㑥挷挷晢㍥㘸㥣㠵〹㕡㈹㘵㤳㘳愹散愳昷ㄴ慣摤㘳㡥扦㉢㠴扦㜶ㄲㄹ㐴㤷㠷戱㜴㘳㘸㘳ㅢ挳㠶㝤〹ㅡ㕢昷敥挵㌱㐴慥扤愸㥢〶㜱敤㄰㔴敡㥣〳㜲晡戲㜵换挷㜷散晥愲户㘸㥥㘱㘸㥥昴〶〹搷㤳改收ㅣ攲愶〹愷ㄴ㙥㑤㑣〵愶ㅡ攷愵㉦㈳㌲㥣愲搳挷搹愵㠸戱㍢㌳㉢昴愴㤱挳搶㐰㕥慦㑣㌷ㄳ摣愳挱㕢㤶戲㔵㌶㔰捣攷㜵捥㌹扥㉢ㅡ㑡改㌹愳㈳搳㌷㔶㈹㘲慢㔴换㠰挸挴戴戲昴㙤挸搲户㤹㐱㝣㘶㉤户っ㠵愷慥攲㐶扤㤴慤㡣收戳愹づ㈶戸慤昷㥥㤸慣㔸㐰摡〱㘶昵慡㉥㈶㡤扢〲㘶㙣㡥攱敥挶㐶ㅡ愱攳昰㘳㑡扢㤵ㄷ晦搴㍢摣㔱挲搲㈳㑦ㄴ敤㔰㘸昳戸㘱〴搷㈲戹昶㔶摦ㅥ敦扤〴㌹戲㍡愹昵ㄴ挰㥦㜶ㄸ㈸ㄹ晥戵㜳㑦㘶挲敤〶扥〸昱慤㈸敡改愵㝡ち敦㝤愷㔸㙦㝤㍢㌰戴㕣㙢㑡㝥㙥〰つ㈰戴挵㕥攵㤶㙣摡㈸㜵㌰㘳〸㙦愱摢戹㜵攴㌵挷㄰㜱㜰㥢换攳㤹摡攱搴搶昲慡慥戹㔶㔸㙤㝦换扤扣㐹晦慢ㅦ㡡㥦㑡摢㝤扥㌶㔰敤㜰昰摡〷㐰搴㠷㤱㘴㝦ㅡ〴㡥愰挰㤱㈰ㅥ㙥㘲㌴㡥㑤晤㕥っ㜶㙣㌴〸戵换晢㔲敥ㄲ㜵㘰㐷㐵戶㤷㍣搲㤱愹戶㙤㈱慦戹㈳搴㔱㝤〹敢ㅤ挲㉣㌷搲㍥㜳㠱攵昶ㄳ㠷挳敤㙥挷㔰㝢ㅢ户搴㥢㥡㠵戲晣㤰㈱晢㐵㙡㍡㑣昰㜶愱昲ㄱ扣㔹愰㝦愴扡㔳搰昰づ㜲ㅤ〴攱昰散挳㤷㕣㍥㥦㜶㌴慡戹㝣㡡晢㈸㔵㉣昸戸昱昹㌸㤰摡㌱㈸搵收㠲㈸敥〶搰㈵戰㍤挰ㄴ户〰昸㄰㜳㜹㡦㠵挸愴ㄷ㑤㤵㐵ㄵ㉥㥣摡㍣㙡㍥ㅦㅣ搷愳摡晣㥣㡦摣晤捦㑦㙥㌳㐰搰愵㉤愰ㄲ㉢愱昲㘰慡晤㘰愶㌵攸挷㠳搷ㄶ㔲戰攰㉣戰㠸〲㈷㔰㠰㕢ㄳㅣ㜸㙦㌷㔲㉤〰慤扤㡦㜲〰㌴㠰㙡〰㤴㍢ㄶ㔵㐳㘶㌰挷〴㌴挸㜶㐲㙣㠷扢ぢ㡤㠰㜲㑢挱〴㌴っ㤱挹〳捡㕤〸〱㌴㐲捤㤷㈲㔵〷㘸っ戹晢〷昴愳愸〶㐱㤷搶㐳㈵㔶㐲㜱敦愲摡て㘶㕡㠰挶挱㙢〹ち㕥攱㉣㜰ㄲ〵㑥愶〰户㍡〴搰て㈲㌵扢㘱㠶㕡㙦㜴ㅤ㜰㍣〵搲挰昱攳㌶昵戶㠹挹㍢㕡敢愵晡㙢㈱搰㠸攳㜵挸㌳㜱散㠳挸攴㜱晣㉣敡〹㡥晤搴㝣㍤㔲㜵㌸づ㈲㜷晦㌸㜲昷〳㠲㉥㙤〹㤵㔸〹挵㉤㄰〷ㅣ㤷㐲㐰㕢㐶㐱㙥㡦㌸〸㥣㐶㠱攵ㄴ攰㡥㠹攰㜸㍡㔲戳慡㌸搶扤愹㜶㠰㜱〵㠴〱㈳户㑦慡摡㙤搳㜱㈵戵慦愲㜶㙥㜵㌴挲挸晤つㄳ挶搵㙣㜲戲㑥㤱扡〳昵〴挶㌵搴捣扤㤱㍡ㄸ搷㈲㜷晦㌰摥㠵㙡㄰挴敢ち㉡戱ㄲ㙡ㄷ㤸㙡㍦㤸㘹㑤挷㘱昰摡㍡ち敥㜶ㄶ㔸㑦㠱つㄴ戸ㅢ〲〲攳㠷㤱㙡㠴搱㝣改敥〰攳㔹㄰〶㡣摦戰㘹户捤挶戳愹晤ㅣ㙡攷㠶㐹㈳㡣て㈱捦㠴昱㕣㌶㌹㘹ㄸㅦ㐶㍤㠱昱㍣㙡收づ㑢ㅤ㡣ㅦ㐱敥晥㘱㝣っ搵㈰攸搲㜴㉡戱ㄲ㡡摢㌱づ㌰㈶㈱愰愵㈸挸慤ㅡ〷㠱㌴〵っち㜰昷㐶㘰捣㈰搵㜴㔷㥢㐷〷ㅣ㜰ㅣ㠵㌴㜰㝣挲愶摥㌶ㅤ戳㔴㝦㍥搵晦〴〲㡤㌸㜲戳挵挴㜱ㄳ㐴㈶㡦攳搳愸㈷㌸收愸㤹ㅢ㌵㜵㌸ㄶ㤰扢㝦ㅣ戹愱〳㐱㙣㕤㔳㠹㤵㔰摣搵㜱㠰㘹㌳〴戴ぢ㈸挸ㅤㅦ〷㠱ㄲ〵捡ㄴ攰㈶㤰攰㔸㐱㙡㔱敤慥㥥捣㘱〸〷㜸户㐰〹攰晤愵慤㔵ㅢ扣㕢㔱慡㙤〳㔱摣搵㘹㠴㤷㕢㌹㈶扣摢㈱㌲㜹㜸戹晢㈳昰㕥㐸捤摣〶慡㠳昷㈲攴敥ㅦ摥扤愸〶㐱㤷昶搷㔴㘲㈵ㄴ昷㡣ㅣ搰扢ㄸ〲ㅡ㍤㔵昵愶戳挰愵ㄴ戸㡣〲扦㠳㠰挰晢㔱愴㈶〵㙦敤㜰㠷〳扣㔷㐰〹攰㝤换搶慡つ摥ㅤ㙣昵㑡戶捡ㅥ㌴挲敢㐶㥥〹敦挷挰捤愹㕦〵挶㡦㠵㐰㜵㔳㤴愹戸扦㈴㄰㕦〵㐶戵㠳搴㐱晣〹㘴散ㅦ㘲㉦敢㐲戹昶㐹㡢㘱㐲㜱㔷慡ち㌱㥢戶ㄶ搴慢㤱慤㕤㐳挱づ㘷㠱扦愱挰愷㈸挰㑤㉣㠱昸搳㘰㍡慢㌳㔸捥愵㌸㐰㜸㉤㠴〰㈱㜷戲慡捤摡㈰晣っ戲戵敢㐰ㄴ挳㕥㝣昰㠲挱㘲攸扣㝢ㄸ扡㌴㝡攴㑤搱ㄲ㐳㉣㕦㠶㜱搳㔰㘵㝢づ戱㉡㔹㝡攸㈶挷㔸挳㉣㐶摣㔰㉣〱捤昶挶㔷散戵扡慢愱㙡敡慣㠶攳ぢ㔲㡤㈵っ换㍣攷㘳〳慤㘵㝤昶㘰晣㕤㈶敢昰昲㝥づ昹戳㔶㘶㔳㜸改㔷捣㔴扡㠶戰ㄱ搳挵攳㈰㜰戲〳㝤㥥㔱㘸㜴㙣㤳ㅤ㙢㉦昰摣攵ㄶ扥ㅥ昵㙤㉡ㄴ户ㄶ挴ㅡ㑦㤹愷㘲搸㥡㌶㘵ち㥢昱攱㑦慥㘳㠰愲㥦㈱ㅣ㉢㙢㍢挱㑣㙢昳㌳〶愲戰昷〶搰㘳〷晡〷搶㡥㈴搳愹㐴捣㠸㐵愲㝡㈴ㄴ挹㈴㜵ㅣ㜶散〹㈷攳挹㔸㐴搷㐳㠱㐰搰㉦㈱ㄳ㜵摣㠸㍡㝥〶㐹搴愰摤挴ㄴ愳㈵㐹戱捣㜳㌴挸㘴攳ㄷ㕡愵㤲㉡愵搲捡㘸㥦㌲㐵ㅤ摢㜰㙡愳㈹敥愹扤昶昶㝡ㄹ昶㜸㤲〰㙢㜲㤵㘸攰昸㔸戰戲挴㠳㌷㈳㕦晢ㄲ㠸捦捦㘸㠷〶㜹晦づ捣昴㠱晥ㄱ摢昶㡤昷换挸敢㐴㥥挴㜵㌸㔱㕢昶㝥〵㌹〷㈱愷晥㠴慣昷ㄶ㘴捦㐴㌶㕥攴摡摦ㄷ晢攷㈲㕦〶㐱戶㤵㘷愲ㅤ敤㌶㘴㤹慦㈹攷㠱挳挷愵㝤摤㘲㘸㥢㥡㡦〴愷扣㕡㡦㕥㜲愲㈱搳愵㜱昶㜰愲愸㘱攴㜰戲搴て昶〲ㄴ㑢㍢㜷㠲挱㘰㌳昶㘱つ敦㕤愰搶㘰敢愱㠴ㅥ㡤挶〲〱㍤㄰〹敡㝡㍣ㄸ㑢愴昵戰㤱㠸〵㡤㐴㈴㤵昶㑢愸挴戶㜶愱㡥㥦挱ㄱ㌵㘸扢㤹㍡愱㥡㘲㤹ち㠰㜰挰搵㉡ㄸ挲挱㄰㔰敦㐱㡥㜶㉦㠸捦捦㠸㐷捣㈱愸ㅡ㔱搴〸㥣㐶㤸晣㡣㠴愴㜰づ搵扦㥦攴㕢㉣㑣㠱㔳ㄱ㜰昸戸戴敦㔸㡣㘰挲㘰㐶㌰改㐷㘳捤㤸昴㈲户ㄹ㤳ㅥ㔴㤲㜶ㅥ〶〳㑣ㄸ扥攰攳昲㍥〲㙡㘲㤲〹昴㈴㤳挱戸ㄱぢ愵昵㐸㍡㥥㐸昶㈴㌳ㄹ㍤ㄵ㠸㠴㘳㝡㌸ㄵ〸晢㈵摡愱㌹㡦愲㡥晦㈴㑢㠳昶ㄸ㔳㈷㔷㔳㉣㔳っ㕤〴㤳㤳散㤸㝣ㅦ戹摡て㐰㝣㝥㐶㉦㉤㌱改慤ㄶㅥ挹挶扡㐸㥥㘴㔵挱愴ㅦㅣ㍥㉥敤㕦㉤㐶㌰ㄹ㐴㐲㌰改㜶挴㘴㤱㈳㈶っ㑦挴㠸㥦㠲〱㈶㑢㉤㡤摥愷挰㤸㤸㠴㜱晢㈷㝢㜸㠸㌴㘴㐴愲㤱㘴ㅣ㌳〶愰㐴搲㌱㥣摦㡦ㅢ〹晦㌲慢㡥昶㌴ㄸ晦㘹搵搴捦㤸㕡㕥㑤戱㑣㌱づㄱ㑣收搹㌱㜹〶戹摡戳㈰㍥晦㑡搰㤶㤸㌰㐴㤱挲㜹散晢㜱㈴㉦戰慡㘰戲〶ㅣ㍥㉥敤㐵㡢ㄱ㑣ㄸ㘵〸㈶㠷㍡㘲㌲挷ㄱㄳ挶ㅡ搲捥㑢㘰㠰挹戰愵搱晢㌲ㄸㄳ㤳㔴㈰ㅥ㌷㈲挹㘴㈶㤵捣㐴㐲戱戸㡥〹ㄳ㑡愶㌰㑤㘲㐶㍡㥤〹昹㈵っ愱㌹慦愰㡥㥦㠱〷㍥㉥敤㔵愶㌶㔴㔳㉣㔳㘷㠱〸㈶㌳敤㤸散㐱慥戶ㄷ挴攷㍦ㅢ戴㈵㈶攷㔴ぢ㑦愰晡㙥㤲户㔸㔵㌰㤱㤰㠱㔹㝦㐴ㄶ㍥戲搶愹㡦㠰ㄳ㑣扣㡥㤸戴㍢㘲愲愳㤲ㄸ昱㘷㌰挰㈴㠹㉦㝣㕣摥户㐱㑤㑣㝡㡣㘸㈶㤶づㄸ㝡㉡㡤㐳收㘹㍤ㄹ㑦㈷挲搱㜴捣㐸㈵㤲㐶戲㈷攱㑦㔹㜵戴㝤㘰晣改㙡捡㠵㕤㐸㍦ㅦ㕢昸戸愴㑣㡤㠲ㄵ㑣摥晥戳㙤㍤㘹㠳愰搶づ攲昳㘷㈱搰ㄲㄳ挶づ㔲ㄸ愱挲㈸挹㔴㔶ㄵ㑣㜲㈸挴挷愵㑤㐳ㄶㄹ㤹㈷㜴晦〵㤳㌷搱㘰昳㝡戲ㄷ戹捤敢㐹ㄱ㤵愴㥤㠳愰ち㤸㙣㐶㥡ㅡ扤㌳㤱㌶㌱㐹〷愲㝡㌸ㅡち㠷㔲㐶㍣ㄲ挲攲ㄲ挵㈲ㄲ㑢挶挲㍤攱〰搲㘱扦挴〷㌴攷㘰搴昱㌳㈲愰〶㙤ㄶ㔳ㄲㅡ㔴换ㄴ扤㝡挱攴㘵㍢㈶㠷㐰㔰㥢〳攲昳㙦㠵㐰㑢㑣攸昰㑢㈱㕦㙡换㠱㙢敤㐸㔶ㄵ㑣㉥㐴㈱㍥㉥敤㈸㘴㤱ㄱ㑣㉥〲㈷㤸㍣敦㠸挹戳㡥㤸搰㜳㤷㜶㡥㠵㉡㘰㜲㌱搲搴攸㥤㠷戴㠹㠹搱ㄳ㑢挷㔳㠹㐰㍣ㄲ搶㈳㤱㐰㡦ㅥ挲㜲ㅢ㑦挴㈲㠱㑣㌲㄰㑣挵晣㤷㔸㜵戴攳㔰挷㝦㘹㌵㌵㥦愹换慡㈹㤶愹㉢㤰ㄲ㑣㥥戲㘳戲㄰㐵摡㈲㄰㥦㝦〷〴㕡㘲㐲㉦㕤ち晢搹昷〱㤲㌰慢ち㈶㔷㔵ㅢ㡡㈲ぢ扣㠹〹㥤㙣挱攴㠷㡥㤸晣挰ㄱㄳ扡摡搲㑥〲慡㠰挹搵㔴㠷换㝦㑤㤵愱ㅦ㉤㌹㥦戲ㄸ㐵て㔹㝡昶戸搵㌳㔴挵㔶ㅡ捤晢㈰㠸捦㑦㈷戹㘵捦攸㍣㑢㈱㕦㘰换㌹㜱㙤㠰㔵搹㌳㍦㝤㘹㈹㕣㠲慣㘹㙤ㅥ扡㠳㈷㌷㜸㕣捥㙦慦ㄶ㌶ㅥ㌱㕥㠲㈳挳摢愱挵搵㠶㙤㝢㜳戳扢摤㝤搲㍢搳㐵㥦㡥敦扡昸攷㜹〰扤晥ぢ昴愰㐷㌶㉦㡦ㅡ攵㌱扡っ愶㝡㙥㐴㘱挰挹挴㠹㝥㜸攴㠵㡡搹昹攵㘵戸㝣昸〱摢㜰戱慦昶敢愷㠳慡慥攰挲敡挹搷㘳挷㜳晡㤲㘵扣㈸慤ㄸ搵㙡慢㑢戵㝡㌸㐹ち敦ㅤ〵ぢ㜹㑥㜶昶㜸捡昶戲攰戰昱摣攵㠵㌲捥㜴ㅢ改慡挶㌲㌶捡摢摤㙤捡昱晤㥤昵㍢㈷扥ㅤ愰㌶㥣敡㕥㥥㥥㠱ㅥㅣ收昰慡愴㍦㕢㤱㔷㡤㥤㈸㔷摡つ〰挷扢ㅣ㌰㜹ㄷ捦㕤㌱㌷ㄴ昱摣㠷㠱㤸㜴ㅢ昵戰戳㐵㉥㈴㌸慢〰㠵㡡㌱〲戵㌱㙢〶晤㙤てㄸ攲㙡扢昶㥥㙡㈵㝡捤敦づ敢摢摦㍢攳㑢搵ㅡ攷慡愳慥敤昳晣攲㤲㥢摦戸晤攴㘳扦戰㙢㥦昵㝤挹㥥搷㜱扤昸㐳慢㐶愱㔷搱慦㥥つ㍤㥡㑥㤲㈴㤱㍢晢㙥ㄸ攱㜸ち㘲户㔵搰㜸ㅡ搲晦㜵㘸㤲㍢收㐳攸挸戴㌶㐵㥦㥡㜷㡤扡ぢ㌵㌸㔵㘵㜶つ戱㤷扢㤰捤ㄹ愶㌴㍡摡摥㜵挸㌳愱っ慢摢㈱㔸〵挰愷㙤愰昴㙥挸㔴戳㘶搰㕤㍥㌰㑣攸㕢㑢㡤㔶㤸ㅣ昶摢㝢㉦㝢昰㥥攷㑤㑣慥扦愳㔷㝤ぢ㌵㥣㌰戹搵敡㝡搳〹搱㕢慣㠲挶〳㤲㝥扡攳㠲挹戹㈶㈶昴愹〵㤳㉦愳㐶つ㤳ㄱ昶㤲敥戰㠹挹㈳攰扣㝡ㄵ㤳㘰㐴㝤戱づ㤳ㄴ愵改㑡搷㌰愱扢㝣㘰㤸搰户㥥㄰㤳摦昶捣㜹敥愹挷攷昵㥤戳㘱攰戶㤱敤㍦敦㔵㑦愲㠶ㄳ㈶㍢㕢㘱昲㜹慢愰昱捣愴㥦敥戸㘰㤲㌵㌱愱㑦㉤㤸㕣㙦挷㘴ㄳ㝢㐹㜷搸挴㠴㡥戶㌷㕦挳㈴愸慥慤挳愴㐸㘹扡搲㌵㑣㥥㐱攲挰㌰愱㙦㍤㈱㈶戸㌷㕣て慤晥㝤敦㘲摦搳㕦搹扢昳慢扤㡡㝥戵ㄳ㈶搷戴挲攴㙡慢愰昱ㄸ愵㥦敥戸㘰㌲㘶㘲㐲㥦㕡㌰昹㠴ㅤ㤳慤散㈵摤㘱ㄳㄳ㍡摡㕥㍥㔸攴摥〹〶搴㤵㜵㤸晣ㄵ愵改㑡搷㌰搹㠳挴㠱㘱㐲摦㝡㐲㑣敥戸晤昶摢捦晦捥㥦㝡㙦搸戹㜳攷㤹搷摤摤慢攸㔷㍢㘱㜲㔹㉢㑣㉥戵ちㅡ㑦㔶晡晦〸㑤㠲挹㘵㈶㈶昴愹〵㤳㡢敤㤸㕣捥㕥搲㔵㌶㌱愱愳敤摤㔱挳㈴慡㉥慣挳攴㘳㤴愶㉢㕤挳㠴敥昲㠱㘱㐲摦㝡㐲㑣㕥ㅤㅥ扥晡ぢ㌳扢晡晥晤㈳扢づ㥦晤挰㡦㝢ㄵ晤㙡㈷㑣挶㕡㘱㔲戱ちㅡて㕢晡改㡥ぢ㈶搷㠰挱ㅡ㑢㥦㕡㌰㈹搹㌱昹ㄴ㜲ㄵ㕤㘵ㄳㄳ㍡摡摥扦㈵㤱挷㔵㐰ㄵ敡㌰昹っ愵改㑡搷㌰愱扢㝣㘰㤸搰户㥥㄰㤳户户㍥戶愰戴敢㕥㜳㡤晤搹攵扤㡡㝥戵ㄳ㈶搹㔶㤸㡣㕡〵㡤攷㉦晤㜴挷〵㤳㥤㘰㠰〹㝤㙡挱㈴㘳挷攴㐶攴㉡扡挳㈶㈶㜴戴扤㕦㈰ㄱ㑣㠲㉡㔹㠷挹捤㤴愶㉢㕤挳㠴敥昲㠱㘱㐲摦㝡㐲㑣搶昱摡昳㘵ㄳ㤳㑢㤷昶㉡晡搵㑥㤸㥣摢ち㤳㜳慣㠲挶㈳㤹㝥扡攳㠲挹慤㘰㠰〹㝤㙡挱攴㉣㍢㈶户㈱㜷〶扤㘵㍡ㄸ㤳㜶㌲㈰㡢㙢㔶敦っ扡搸㔲戳搵㠳昵㍡攳慡搴戹捦摥㜷敡㌹㕢㕥㠸㥦㌱昷㥢愷捥㥤㝦昱搵昷㙦扡晦㔴㐵㌷摢愹愳敢㕡㜵㜴搸㉡㘸㍡㝡㐹敦㝣㝦㐷㉦㙤扦㙡愴户攵挹㜰㠳㝢㙡挶捣愶㐳㡤㉤敥㙣㉥㈷扢挳㥤㌸㈸㔵挲敦ち㔷攰㐰㈰㡥㐷攱ㄷ昳搶㤶㈵づち昲摣㐹昵㈸㡥㈶㈹㔶昶㘶㔶㤷㜰㌶㘷㑡㘶㜹ㄹ〷㌹搳ㅤ昸㕤㔴愵㠲㕦搹扦ㄷ㑥㔱㘱扦㥥慢ㄵ㉥昳晣㤴攳㔶㌹昷挰ㅤ㥤㔷昳㙣攵㌸ㅥ搵㥦ぢ扡㜹扥敡㥤㥤改昴摥〹㜳ㅣ摦㤷戵慢戵ㄸ㘳㜳晢攰㔲搷㍥㌱ㅡぢ戵戶ぢㄵ扣扢㐱昸㙢ㅦ〹㌱㐱㝣摡摤挸㌱㡦㘸慤愳愸㠷㐱㑢㘳敦昸昶㘲㈹昲㕤つ扦晡㥢㍡㤵㕤慥㕥敤昴扢㈷昲昹改㡡㑦挹㡦攸晣㍦㐱㍡昲㈳㌹愳戰戱㌲㕡晢㝦㐰㜰昶〷㍦㈱搴敥㠱ㄲ㌶挵㍦㐵〷㤸ㄳ搳㝢㉦㐸㡢摥㥥攱搸摢晢㔰㐱㘳㙦挷㝢晡㑤㘶戱㤳㐲㕣㙡〸㘹昶戶㝡㈹晡挸散㠳昶〰〸ぢ昸愷攸㜰㡡つ摦〲搳挲㠶㐱㐷ㅢ扥㠳ちつ㌶㝣㤷㔹㌶ㅢ攸戰搶搹㐰㥦㔴㙣㜸ㄸっ㍥愶つ㜴昰挴㠶㐷挰戴戰㘱戱愳つ㡦愱㐲㠳つ㡦㌳换㘶挳㈶愴敢㙣愰て㈸㌶晣〰っ㍥愶つ㜴愸挴㠶㝦〲搳挲㠶㤸愳つ㑦愰㐲㠳つ晦捣㉣㥢つ㜴挸敡㙣愰捦㈵㌶㍣〹〶ㅦ搳〶㍡㌰㘲挳㡦挱戴戰攱㐴㐷ㅢ晥つㄵㅡ㙣昸〹戳㙣㌶搰〱慡戳攱㘳挸㄰ㅢ㥥〲㠳㡦㘹〳ㅤ〶戱攱㘹㌰㉤㙣㤸敦㘸挳捦㔱愱挱㠶㘷㤸㘵戳㠱づ㐷㥤つ昴㈹挴㠶攷挰攰㘳摡挰〷戴搸昰㍣㤸ㄶ㌶ㅣ攵㘸挳㉦㔰愱挱㠶㕦㌱换㘶挳㡤㐸搷搹挰㘷戸搸昰㥦㘰昰㌱㙤戸ㄵ㥣搸昰㈲㤸㤶慦㤶摢搵愱㡥㜶晣〶㤵ㅡ散㜸㠹㔹㌶㍢㙥㐳摡㙥㠷㠷㉢搸愴搷㔷戸慦慥㠳昱㈴戲晥㉢㈲ㅥ挷㕤㤸攳㝦㐴攴㜴扡戳晥昴昳㉢㘸㐷㜱㕤愴づ敤㔵㡢㘱㘲〶㔷㈷㌲ㅤ㕣换ㄴㄷㄹㅡ愵扤挶㙣慥㉦㔲攳㜵㡢㤱ㅡ㕣㑢挶㙢㜰㐹㤰ㅡ㝢㤸捤搵㐰㙡散戵ㄸ愹挱㍢㝦扣〶㙦㘰愹昱〶戳㜹敦㑡㡤㌷㉤㐶㙡昰㍥ㅤ慦昱〴㔲㔲攳㜷捣收㥤㈶㌵㝥㙦㌱㔲攳㐹㉢㘱昶㠳㌷㠷搴昸㉦㘶昳扥㤰ㅡ㝦戰ㄸ愹挱㝢㠰㡣㔹㠳㔳㔹㙡扣挵㙣捥㘲愹昱摦ㄶ㈳㌵㌸㘳挷㙢㜰攲㐹㡤㍦㌲㥢㜳㑥㙡晣㡦挵㐸つ捥慦昱ㅡ㥣㈲㔲攳㝦㤹捤搹㈱㌵晥㘴㌱㑣㈸ㄹ㉡㌰摡㥦㤱㕢扤晣ㅣ㌲㜱摡摥〶〳愷㑤㠶愷㐹㡡挳㈴㔲摣㌶㠲搴ㅥ愴愵㠵㍡㕤ㅣㅡ㤱㜲㥢㔲㌲っ㑤扡㌸ㅣ㈲搵㙥㑡〹昴㑤㔲ㅣ〲㤱昲㥡㔲〲㜷㤳ㄴ㘱ㄷ㈹㐲つ扢〴攲㈶㈹㐲㉤㔲㍥㔳㑡㘰㙤㤲㈲扣㈲搵㘹㑡〹㤴㑤㔲㠴㔴愴愶㡢㤴扦ち㠰㈲㝥攲敤扥昱㈷㜳㤷愵ㅦ㜵㍢㜸搴〴㠲㔲戰户愱㠰㈸㐹挱㥥㠶〲〲㈳〵慦㌷ㄴ㄰ぢ㈹㜸慤愱㠰摤㤷㠲㔷ㅢち搸㘳㈹㜸愵愱㠰㥤㤴㠲㤷ㅢち搸㉦㈹㜸愹扥㘰敡晦〱〴つ慣㥢 | C27: 㜸〱捤㕡〹㙣ㅣ搷㜹摥户挷㜰㘷挹㈵㔷㤲攵昸㌶敢㐸戵ㄲ摡㉣㈹㠹㤶ㄴ㐷㤱㜹㠸ㄲ㘳㑡㤴㐴㑡捥㘵搳戳扢㙦挸㤱㜶㜷攸㤹㔹㠹っ摣摡㍤㤲戶㈹摣戴敥改搴㘹攴ㄴ㐵搰〲㘹㠳愶㜰て愴〵〲扢㐸敢㌸㑤摡ㅡ扤搰㌶㐶敡昴㡡㥢㌸㈹㔰戸㠹〳昷晢晥㤹㔹敥㉥㤷㤴捣㈸㠰㘶戱晦扣晢昸敦昷扦㐹愸㐴㈲昱㍡ㅥ扥昹愴㤹戸㘹㜶挵て㜴㜵㜰摣慤㔴㜴㈹㜰摣㥡㍦㌸敡㜹搶捡戴攳〷㈹㌴㌰收ㅤ搴晢㤹㜹摦㜹扦捥捥㥦搷㥥㡦㐶㤹㐴㈲㥢㌵㤳愸㡦晦㠵㌸㘱戲㤷㤹〶攸㐱慢挴摣昸搸㑣昱㉣㠶㥥つ㕣㑦摦搱㝦㈶ㅣ攰攰昰昰攰昰攰摥攱愱愱挱愱㍢晡挷敢㤵愰敥改㠳㌵㕤て㍣慢㜲㐷晦㠹㝡戱攲㤴敥搵㉢㜳敥㌹㕤㍢愸㡢㐳㝢㡡搶摥晤挳㝢㐷㐶散〳〷昶昷ㄸㄸ昹昸昸搸〹㑦摢晥㤵ㅡ戳㡢㘳捥㡣㡦つㅥ搷挱㤵ㅡ㌳㡢㌱㌱攴㠴㕢戵㥣摡ㄵㅡ㌴㐳〴敦㤹搰㈵㠷㤴搰摡㜳㙡ぢ㠳㔸㜶ぢ愲㤱摢㌷㌸〹㡣㤷㉣㍦ㄸ搷㤵捡㈹㙤㜳㠳㍤㔵攲㑣㝢扡㔶搲㝥㙦昵昰㜲㐹㔷愲㙡㍦㕢㍤㘳㜹挷慤慡㑥㌳搱㔷つ改㌶㔵搶戵挰〹㔶昲搵搳扥㍥㘵搵ㄶ㌴㥢㘴慡㐷敡㑥㌹㥤㔶改㜴㈲㜵㝢愷挵〸㙤〶㈷扤搲昸愲攵〵㤲㈳搵㠶㍢戵㙤攲㄰㔹㜸换戲挸㐵晤㙤扤㐸愶㔹愷㝡慦昶㙡扡挲㐹戸户㠱戶㐶㠲㤳㄰昵つ攴挴扢㈱㘱㔴㜷挴晣摣ち㘷㌱㑤㠲ㅣ㠰搱つ㤰㍡㜳攲戸搹挳愲㍣㠰㑡㝦ぢ挲搳摣㠵㙤㤲昳㔶㜲扥㤸㥣㉦㈵攷换挹㜹㥤㥣户㤳昳ぢ挹昹挵攴扣㤳㥣㍦㥢㥣㍦㠷㌶昱㤳敤敡㑡㐶捦㠷扢扥㝤㈲㌵昹搸捣㉦㑤㝣换㑦㍤昶昹㑦㈸捡㡢〸㑥ㅦㄲ㘶〱挰搸挲愲戹愹㔳收㔶ㄶ㙤〳㔰敡㘵㉣㠱换㌸晣改㡦㍣昹㜳摢晦攸搸〷㕥㝡昴㤹攲㈷㕦㌹搱戳ㅤ搵㈷愳敤㑣㜸搶〵昰挴㉡扢敤ㅥ㠴㤴㕤㡥㥣㐱捣散ㄱ㝢㥦㍤㍣㕣ㅥㄹ戲昶㔸ㄹ㈲攴㜲愹㝢つ摡昶搸昷㌹戵戲㝢㐱挸摤㘳㑦㍡㤵㐰㝢㤲改戳昱ち㔹㔶昲㜹晢昰㌲㘴扤ㄴ㜲挶㌵昶戸昶〲挸㐸戰戲捡㉥㌷㡤㔹扥㕥捤づ㐴㘳㡦戹昵㕡搹扦戱㜳攵㙣㘰〵晡㠶昶扡搵㐱搶㜴㥢㠵晣㘸㕦㤶㜴㑢㝢户㌳㔶愵慥㐷㤷㥤戰晡收戶㙡㐸㤲㕢㕣扦㜶搲搳て㌵㙡搷慣㘸ㄴ扡昶扣㡣扤㘶㤷㘱㔵戸慥晥昱㐵搷搷㌵㔹摥㐰昵㠴㔳㍡愷扤㔹㑤㑤慤换戲搵敤慣㡡挴㜹㘰愶㠶㡤㐲㐰换户㌵㤷ㄲ搱扡㔶搶㘵慣㜷〹㔸㕥㤹戳㡡ㄵ㝤㙤㑢㤳㜰㑥㔴㕣摦㔲㍣改㤶敡晥戸㕢ぢ㍣户搲㕡㌳㕡㍥㙦㐱㠵㤴㡦戹㘵㥤㤶㈷ㄱ㐲㤵㐸愵㤴㑡散敡㈴㡢ㅣ摢愷戴㌶㌱〹㜵挲挶㡤㥢㤸㠸㡤㍢㑡㜹㘳㘴㈴㥡㤸㡣敤摦戲攱㑡㥡㤹㤰慤㠷㌶㙣摤㠱㐹搹改扡㔶挱ㅢ㍣〵晡㠰づㄵ㑤愹㑣敥㔸㝦挸㔵扥扣挴㑡㥢愸㐲挳捣搶ㅢ㈰㑤㠶㙤昰摥昷户㜱㌲戹㉤摡晤攱昳㌰ㄴ㐷慤㕡戹愲扤つ摤ち挵ㄵ㤹搷ㄲ扣㠹攰㍡㠲敢〹㙥〰挸㝣ㄵ晡㙤㕤㡣㔲㑦慡㘵戵㤲戹攰㤴㠳㐵㘳㔱㍢ぢ㡢〱捡攰㡥㘴戳㐴昷ㄷ扦昳晡敢㐷昱㝥ㄶ晥挸扦搲挳㌱㙦㈲戸㤹攰ㄶ㠰㕣㉥㘱摣㡡㜷挲挸㤹晤㝣晤〰㐰㘱捥㔹㜲晢换扡㝦挱㝢收㈹摢㈹戹㌹㤵愱ㄹ㜸攳挶㡡㕥㤰㈹戶ㄱ捥㡢㥦愹挲〴晢愹㔴㈷㜴ㅣ戵晣挵㠰㤲戸㘱愵㤸愵摢㌸攸㥢〱㝡㜶〰ㅣ㍦慡㉢㤰攳㉢攵昷㘴㘸攱㉥㘹㕦㘹㠳慥慤捥慥搴㑡㡢㥥㕢㠳㉢㌸㘱〵搶㘸〹㑥㠴慦㉣愳㍡敤㡥搷〳愳㝡搴挱慢愷㝡㑡㉦㘹㉢ㄸ㠷㥥づ昲搵㘹㌸㈰愲㐸愷捡换㤹㙡攸㍢㑣㘸扦㘴搲挹㤸㠲㕥㕡㌶㤰㠲愲敤愹㔲搳攸攵㠰㐳㜷㔵㑦㔸㜰㔲〲ㄳ㡤〶愴㔷㤸㘲捦扣㤴挵扤㜳㔱づ㈳ㄴ㈴搹㌴㑡户ㄴ㠴㈳㈵挸㍡㌰愱㌰慡改〸戶㡢搰改挰愹昸㠳ㄱ㝡〷㈷㕣㌸愱㕡㥣㘱愲摤㌰挰㘱挶㠶挴㙡㤷㜴㝡㈹㌳愵㘲㌸㉣㤶㜲挴㜳敢㑢昴㔴慥搴㌸ㅣ㉢㘱敥〴昸搸㌷㝦晢敥㥤ㅦ晤摤搷愳昷㈳㤰㈱㜹㑣㍡㈹㈶ㄹ㥥㔹扣攴㌱㜷攱㤵摢愸㉥㐳㤷愷愳慡㕤挷愱㈲愳昶㔴戱摢㌹㑦㡢㠷㤸㤵捣捡㤲捥㔷敦㜳扤㜳㐵搷㍤㐷攲昷㑡捥㕦搴㍡愰摢搵ㅤ㜹㤹㑣㉢愵㔲愹ㄶ〷慢挹㍦愳挳㘶摣〱㔰㤸㜳换慥摦㕦攱摦㈹㝡慥㙦摣㠹搲ㄴ慣㡡㌱㠸挴〴㉤㔲挵敤㥦㠵㥡搴㔵㡢㐲つ㜵㙣搵换㙥晦㉥昶慢敡戲㠳ㄷ㡡㤷慣〵昷㉤晤㔸㙥慤㝦〵捤〳㈶捥散ㅥ㕣慥昸换敡慦㠰㉣晡㔹㉢挷敥ㅣ搹昳攲摦㡤晦㠴晥挷敥㑦㝤攸戵扦㔱㕦㡡㉡搶㌸㜰攲户㘱㝥㜳㤸㘰㌷挱ㅥ㠲扤〴㈳〰敡㌹㜴愵㙥晢〶㌴ㄴ㌵ㄱ㌵搴㤷㐵㐳敤㘳㥢晤〴〷〰愰愱㠴㘰㔰㔰㜷㈳㙢扣㥤㈰戴㤸㌹愵攸ㅡ㔲㌵㤹〷〹摥〱愰㈸㥢ㄴ攲㠴㜹〸㘰㕤㑥愰㍦戹㤶ㄳ挶㔰㥡㌳㌷愸㔳昴㍣挹つ㈶戱㙦ㄲ搹㈶ㄱ慤晥㈰㐲挵ㅡㅣ㍤ㅤ㔵戴㍢愹ㄹ慡晣㜶㤹ㄳ㈷扤㘱扥㥢ㅣ㠳㕥㌴㌶散搳㌵㈷昰扢敤搱㝡攰㑥㍡挱㠴ㅦ昴搸〰㐸㑡㤷ㅢ挴搲㌵㜵ㅡ戰捦㌸晡挲ㅣ戸敥搶戵㔵㌸扦㡣搷晤挰ㄵ㜵㜲换摡晡〹昷戸ㅢ㑣㌸晥㔲挵㕡搹搱愱㍡慣戹㙦㔱搷攰㝡㜹昰挰㉥搵挸㕤㕡搲攵づ㙢㥣㜵敢㕥㐹㑦㑤㕣つ捥㥢ち昵㘲〲愲〷慤愸㜶慥敦慣㌴攱㥤〶㍣〹㜱㔵㥢戴晤㘲㠰捤㘹㡣㠲㐹ㄵ㌸摥㍣㠶㌴ㄸ㍦㐳㠷㘰㘳ㄶ㘹㜲〷愹摢㜲㌶挸ㅡ㤶攵愳昳挶㔴捤㜷捡㍡ㄷ攵㡥㌹戵摥㈸㌹㔳て㕡㙡慣攵㙤㔱捤㘸愵㌲㔳〳改㑢㤶㔷扥ㅡ愸㠲㡤攱〹㐹愲っ晣㌶㠷攸㜰㤸㐴攲㤵㌸攸昳捡㈳㄰昶攳㈸㈶慥改㜷㜵㔴昱つ㜱㐴愲挹㥢愶㡡换ㄳ摤㡤攲㉣㜳挷戴㔵ㄳ㉡捣〶攵〹㝤扥㔷㕡㘸㌰㌸挲〶ㄵ扤慤㌵㉢㤶摥戴㐷㡢扥㕢愹〷扡户㤱ㄲ㐱㌷敤㔳扡㘲昱㘴搴搳㐸㥤㈸〵㌸㍢㌶挶攳愹攷敡愱㄰㌰㤲㡥愸愴㠴㑥挶〶捣摢扡〹捡搰㈶愹ち愳㘱换昳昵㐳敡㈳㑦昰昹慤㐳㠹㌸㤱攳㤳挸搰㥦扥晣愳て㈵㘹㕢㝣㈲て㌵㥣㈸慦㥥戸㡣愷㡥扣㉤㝡て愱〵㐶㡣晡㈸㍡ㄵ㠴昳〲愷㘴㔵㉡㉢扤昶㔴慤㔴愹㤷昵戴㔵搴㤵㔸㘷扢㕥昵㉡愱㤷㠴㍢㐳㕡㙤㠰㤷攸㍣㌸〵摦㈱㍥㘸㙤㕡捤㈵捣ㄹ愰㔵㑣㉥挶挸㤹㈷㤱㈳㘹㜸捡㜹挳攷㑣摡晣慤慢㔱ㄲ〹挴㐱戵慤㈹愲㑥愳换摤㌸慡㡡挴㌵㌵㥢㜶愷㕤㠴ㄱ捡㑤㐵㐷㥤戰攸慡㤱㉢㈱㤳㘱ㄸ㥢㌵㌰挰ㄵ㥥㔷㈲㝦ㄷ㑡㉦捣挳㍤ち㠵㠳㐷挲㜶㘷扤挹ㄱㄱ摢㉦㑡㤰摥㔶ㅦ㌵㔸攸㌸捣㌹㐱㐵㜷摢㔲㉦改㉣㐵㠲搸散戲攷ㄶ攱昸㑥攴敤㈳㥥㔳慥㌸㌵㑤㈷〴㘱㉤〶㍦愷昵〲〲㌰㈷㕣摦㘱㠰㍤㙦捦㜹㔶捤㕦攲昹愶戴戲戵㈵㈷挴捡搸㘳㑥つ〲ㄴ捥挹㜴㥦㍤扢攸㕥㐰㡣扥㕥慤ㅤ戱㤶晣慢㠲㔰㜴㕤挳㈷㤴慡愴㑡㈶㔵㌶㤹摤慣慤㌲㑥㘱㌴戳晦㐸㜴〴挷㔱㉤㤵愰ㅦ㥤㈴㔰㈱攱㜸㡣摦㐰㝡㐹戳㈸ㄸ㐶改攵ち㕢〲摥ㅤて攲㡤敢づ〹㑢捣戲捦ㅣ挰㍢㡦㥣㥥㕡つ愱㝥㑦搷ㄵㄹ扡晢ㅢㄸ〶㘱㤲㐶扣㠶㔱㡣摥㤰㜱㔸㐶㍥㌲㠵晥捣戵㌳㘳捥㤶㌶攴㑢搸㔲㌶㘷㜲ㄲ〷改ㅥ愸〱㈸㘲〴㈰愰㠱㝢挳っ㥤扢慡㔵昱愳扡㜱户㕡戵挸㘸㘴搲㔹㘸㜱㥤ㄵ㑦ㅢ㝡挵戴〱㠴ㅢ愳㈲㙢ㄹ㐵搶戲ㄴ挱㌸㌳〶㉢㘹㡥攵㉥㔸㥥ㄳ㉣㔶㥤㔲㤶ㄹ挶㐹慦ちづ〵摢挸愱ㅦ〸攵㈳㙣ち户戵㍤搸ㄱ㥥捦㐱敥㐱㥣㈴㠸㍡㤲ㅦ㝣㥣ㄴ㡢慥㌶ㄹ攰㑡愸㔰昵㥢㘷㌰㕡㠶㜱㈱扡扡昲㌴戹㘳㈸ㄱ捥㔶晤愸㘱戵㜹㕦㤴㘰㈶捤挸捦㠶㈱〷㐶〰㜲搳慥㔵㥥㐴㈸摤昵扡愲敢戵㉣㐸㑢〵攳ㄵㄸ㘶ㅡ挷㤱ㄸ挱摦昳昰㡡扤㉣ぢ㘶ㄱ挰㐹㌳㐰㘵㠴㌴㈴㙥ㄲ㤹㑣㜷戶搳㕣㔳昱㔸㍢愲攳㜸昳㕤攱搴㥡昱㕦㍥戹晦㄰搷㥥换挹㝤挶扢㤰㌴摦つ愰ㄸ挰攲㝥摡ㅡ扣㠷つ摥ぢ㤰㘱ㅣ愳㕤㑡搶つ挹㜰昰㑣㤵愱愲㙣㤵摢㠱昳㘱㈰㠰㠴㤰ㄳ㔰㘲㜴㘷ㄹ戲㌱摦〷昰㠵攷㥦攷㔱㌹愱ㄸ昳㠸攷攷㜹㌶㤷㈳昲捣晢〹ㅥ〰㔰㍣戹㑢㔴㌲㍣㥥㍣㠸㉣㐸㈲挷ㄳぢ㐹㤸㙥㐵㔵挴㈳㑡晣㌴㔱ㄲ㡥㜵ㄱ挵㙣挵㠳㍦㥤㙢ㄲ昴㔲㡥㥡㘲㠰㠰捥㕡挲㉣ㄱ㜰㙥昱ㄶ㌴ㄲㅣ㡣戱〳㝡っ攱戳慥㑤㔳っ㈲搰慥㈵攴㌰㉦㠱慥㠶昶挴㐰ㅣ㡡㈱〶㙡㔰㜳〱㐰㌱搶㐰挵㠴愶㌲慢改㈰㝤㘹㐶㘵㑣㠲昴㌵捦㐶〹㘶ㄴ㔱ㅣ㈳㤷〵ㄱ昵㜹晤㘵㔶搸㠰㤱㡡づつ慡㙣㔰㘳〳ㄸ攷〴㌹挰㜴〱ㅡ㐴ㅢ㐳㈶敥㐶ㄷ㈸㈲摡ㄲㅢ㍥〴㤰攱㈱昲昲づ慤愴㜶愱㈹㤲㐰挵敡㙦戱㑦搶慤ち慥㌷㘷攰捥〶㉣扡ㅡ㌴㔷㍡㍣㔴戴摦扣戵摥㝡攲㍣㉥㕢㜸敦晤摣㔹㍢づ㕡摢㐶㝢昳搹㜲㜳㠷㡥㕣收㘷ㄱ搶戹扣㔹挸〰㕤攷ㄹ搳㥤㥦㑦㘴㌹㈷愵㌵㘷晡㠴攰㐳ㅥ昶㠵㠵〲㈴㤲昸㔳㑢㉢ㅥ㑢愵戴㡥㐴晣㘴攸㐲㙦㘰昱摢晣㜵昶摦戶慡㥦㘸㠹〶㉡昰〴㉥挳昰㥦㐷㔷㐵ㄷ㝤捤ㅡㄴ㝤〲㈹㕤㐶㠲敢愵㠹捥㔰慦㕦搲㤴㜰㘷㠸㐴挰愸捣〶㉢ㄵㄸ㜲㈶ㄹ〷つ㔳搴㕣㘱㌵ㄶ敤㝡㌸愳愴摢慦㍥ㅡ㝤㌹㘹昷㌵㙤㔷㑤搲㡤㌵戴㔹㤹㥦〴㠹搶敤捦ㅤ慣㔲㠵㝤昸ㄸ敦〷戸收㤸㔳㐲㈴搵戵㠳晥㔹戸愶晤扣㝣戴㜱㐸ㄹ捤㝣〰㈳㜶㥣㤳ㅢ㑢搷昸㈵㠰㄰㍡㜷慥收㕥愸挹㙡㌲㍥敦㘰〵㕦㕤㕤㥣㠶㜲㉢捦㥢㠱挵〲敤ㅢ㍢㥢て〳攴㔳〵ㅡ〸㌶㌶㝥ㄸ㘰攷昸搸昸愹昹愱ㄱ㙤搹㐳㝢㐶慣㝤晢敤扤晢昶敤戵昶つ㤵㑢扢㠷㡢挳〷昶摥㔵扥㙢挴㉥㠸㍤㐱㜳昳㐷〰ち戴㈰㌲摤㈳捣搱㤴㐸㡥㜵㝤戴〰㥣㥦扥摤ㄵ㝤ち戴ㅢ㘴㙢攳㐷〱㝡挷挷收㥢㥣㑦攳挷㔰搶㠳㌲㌱慦愷㜰敢㘹晣㌸㑡戶愰愴昵愳㡡挲〳㈸收㈸慢㥦ㅥ㤸ㅦ㐴㔶㍤〸㐰搵㤶㔳㉢愰〰㐵㉦ㄴ愱㥦㘲ㄹ㐴挸挲㕢㜶昹搳㔱㠲ㄹ㔵㡣㑢㍦㠴㐴晣愸ㄲ㔲㜲ㄲ晤ㄹ㈴ㄴ敤㡡昴㙣㘹戳㄰㤷㍥ㄶ㈵㌲㝣搳㈲㤰捤㤵㠷〵㤰戹㤰㑥ㄸㅦ〶㔸㤷㘳搴ㄲ㥡㤱㙢㕡愹㝥ㄶ㝤㠴敡㍦㡦〴愸㑥挳挰㔵ㄸ㡦〳㠴㔴ㅦㅥ摥㕢ㅣ扡换摥㕤㍣戰㝦晦摥攱晤㈳〷敥扡㙢昸挰扥攲扥摤扢昷ㄵ㡢㝢昵㔰㐱散〸㥡㥢扦〰㔰愰攵㤰㝤晣㈲㜳㘲㐲攲扡㍥㥡㄰捥㝦攵愹㑥挳㐳㑡ㄸ扦っ搰㑥昵㕦㐱㔹㉢搵㝦ㄵ㈵ㅤ愸㑥换㈵㔴敦㐳㐲扥昶㌰㝦つ㈹㐵〵㈹㝢㝡㌲㙡挰㐶〵㙡㐹挱摤㐷㤱㌰㝦ㅤ㈰㥦㉣搴昱攲愳㐴㙦㈱㘱挶㈵搲㠷㥡㑡晡㕣㘴搵㔳〰昹㘴㠶ㄲ㜷昷晡〱摥㈶〶ㅥ㠰㕥㙤昹㘶攰㌰扥〱㔸愱敡㑢挱㙤捣〸㕢愷㤳㙦摢摣㔸戴㕡愴っ晦㤹〷挰㉡摦挳㌸挴搶慡㔲攳㠸㜴愰捣摦攰搰㔴〰ㅤ攳㉣ㅢ㝤㙥挴㈱戶㔷愷㝣〸㉤敥㔸攷摣搱挶㈷㑦㕢㘲㘱ㅥ㠸敦㜷㜷慥㤶挴〱捤戸摢㡣搷攸㠷敢㑡㔸㐲㔴っ昰㌶㜸晢㙡慥改愲昲挶搵㔲㐴慦ㄱ㔳搳攵㜸㐴ㅦ晥㔹㍡㤹㔲㙦敤㠴散攸㌲づ㤷㕦昱〰㠷㙢昵㉡敦捡㙥散攰慣㡦㌹㠱ㅣ㜶㐵戶㑤敡㕢攳㌷〹づ敥ㄸ摦㌱扣㍢昳ㅥ㤰攲つ捣搲㡡㝡捥挹㤲㥣昹〹愶愸㡡㌹ㅥ㡢搴〷〱昲昸户摦㈰㥤㐶㠳㡥户㙣㜳㔱挵㥡㕢㌶慡㍦づ㘹㝥ㄲ㠰㡣㉥捣㑥ㅤ㈸捣晥㍢㐸㐰戹挴㥡㑤㠹挲㐳㤹ㄹ㤷㤰㠳ぢ㔴㜱搲晣㔳搲㕣㔱㈵㔱㌴搴っ愶㈵㍦ちぢ晤ㅥ㑢愸㘹挸㐶捡愴㥥㌲㝥㥦㐰戰㌵愲敥㐵挳㜸㠷㌹昳㘹㌶愲㈶㡡㡢ㄴ〵扡搳愶㈷愳扤慤戹㌶㍢ㅣ㔵戴㕦㥢ㄵ愸っ㘴扤㥦㐱挲晣ㄳ㠲㍦〵挸㈹敡〳㔹昸㈸扡㜲攱㕢㔰㤰〵慦㔰㐷㐸挵㍤㔱挵㉥㔶愸㐴收㈲摥ㅤ㐹㉣搱慥挱㌰㄰戰晡㐵ㄴ搵㔳挶愶扢搲㙤㠷ㅦ㈴㔱㜶攵㘶愵㈲戶扥〷㌱〱て摦㈴㑤㈳攰㠵㐸〰㍥挹㡢散ㅢ〲㘱㍣㥢挵愷㑥㔳㜲㈲昸昶㡣㠷㘳㘸㤷㍤攵㈳慣㔶捥攲㥥㍦挰㌷㘲戵慢挱敤㠶昷㤵㈶㠷㠰慤㜸ㄹ㤶散攸昸搰愳㘹㍦愵㌶挵づ㔷昱ㄱ挷㡦㤳っ㈵㙣捥改㌶㍥㡢挹昲愳㘷㜱㙢㘹㜹㙦敢ㅦ搳㠱愵搴㍢㐰搳搰挰㍥㥡㄰㠳㑣㥦搴㝣〶㉤㡤㘷戹㜴㈸㠳㌸搰㤰㌳晦っ㈵攱改㡥㑣㥤㔰㑦〱㕣挴摦昸ㅣ〰㜵ㄱ㍥ㄱつ㙦挳㍤㝤ㅥㅦ㤴㍥昳改㕡㔲敤㡦㘷昸摡敥敢㔷㘷昸ぢ㜶㝢づ㐰㘶㐸㡡㘴㐳摣㍦㡦㤲愶ㄹ㌲㔴扤敤㠸愳㥢㍢㐹捣戶㝤戶搳摤㑤㙣捥㍤昱挷昷㝣㜷捦晤愳㘹㙡㡥㡤昴ㄶ㠵扤慢㍡㙦昱晢攴㙣㜵扥愲㙢ぢ挱㘲攳㥢攴㉥戰㌸㍥㑡晥〲ㅡ㜱㉡ㄱ㜵慡〹ㄱ㥤扦㐴挲晣㈲挱㤷〰㜲㡡㥡㐲㈴攴㠷㈲〹㠹㐵㠷㍡攱㈲晥挶㕦〳慣㠷愰㍢㍢㈲攸〵昴㤰晢㜱㈵㑣㠴挰㠱昹户㉣ㄲ㜵ㄲ愲㥦㑡㠵〸㡡户慣愸㌷戸㙤昳敦〱攲㘵㉢ち扡慣敥昶㘸㜵㙦㐷㐱㌶㘹㈸ち扦㔴晣㘰㔴㜱㔰㉡㤴愲㐲㤰㡡㥤㔱挵㈱ㄴ㤸晦〴㤰㈱㘷㕣㌶挳㤲慡㥢㍣㐰晤㌳扡㉡昲ㅢ挷㌰晦〵愰戱ㅦ戲づ㤷㘱㝥ㄹ㐰㤱㘳愴捤㡢㐸挴㙤晡㐸㌷㤶㘶㐹㘵㐵㝡挹㝥㙥㙤挳〰㘹㈸ㄵ户戴㘱㠰㜴㤵㡡㥢㥢㌱昰ㄲ〷㈳㘱㘴晡慦㌲㐷㥡挸昴晦㠶㐴㘳㝡攲扦㌱㝤ㅦㄱ挷㠳㑡㜲㔹㤵ㅥ㉣㍦昸攰慢㝤改晥ㅢ搲敦扡愷攷㠹ㄷ㥦晢捡攳㉦扣敦攰扦扦昶攴㤳㉦扣昴昸昳慦㝤愶㜸昰㜳ㅦ晦昸戳敦晣搸昳㕦搹㙡㕦㑣㍥晤敡昴挵㠷㠷捦㍤晣㤰㝤晡慤㐷ㅥ㝥昷搹㤳挳㈷戶っ愴㔲㕤㕤户㙦晢昳敢㜶ㄵㅥ㝤攸て搵㘷晦攱㑤㌵㈵挸挲〴つ慦㡤㜳ㄷ㠸㌴㘱搷晦㘰搵㝦〲攴㤳㑡㜰挶晣㝦〱戰搹㙤昸ㄷ㕥〴㤰愶㕦㐳挲㝣ㄹ㈰㥦散攳㙥扦慦换ㄶ〴㜲挲晦〶攰㐳ぢ㔱㈰㈲㘵㉤㕦㐷挲晣〶〰㤶捤㉤〸㍤ちㄱ㍤ち慣晣㈶㠰攲挶愴慡㌷慡ㅡ㐳〱捣㔳㠱㍢㤴㠱晥〷㠹㝣㑡㜱㙦搲戰愷愵㈱扥㠳㡥㉢扡㥢〷晦㕦㤴ㄶ戸㌲㡥㤱㑦㉢㉥㐷扡㥢㉤摤ㄳ㡡㑢㤴㡡㙣㜳昷晦㐳愹攲〲㠵㔷扥㡤㐴㠶敢搸攰愲㘸㔵搹㘷搱搰慣攲㌲㈸愰摡捦㔵改㠶㠹㑢㘶㔴㜹㜵㔳摢ㄲ〵㉡〶ㅡ㙤戶㌶㑡ㅡ㙤㝢ㅢ㐵搲攷晡㌰昰捡㙦〴搹㘴㘰㜵搰敤敤㌵搲ㅥ扢收挶ㄳ户㜵昲ㄴ㐳〳ㅦ㉦㤰㕥㙥㔶㕤㜶挳㙣昸挹收㜷搸ぢ㝦㘵㌶㔲㤲㔵㐴扣㈰敤㌵搶ㄲ㡦㤲晢㉥㜳挴愳㠸㕢㝣㍥㘱㈶挳〱㉥㘳㝡戶摤愴㍡㝡㥤昳捡㝡㤰㘸㠸㔹㥥愵戲㉥㤶㌶扢㠵㑡㍡戰㤴愶㡤ㄳ昳㕦㘰㐶㔸㌲㠵㐴㍥㤵攱敢捥昵ㄱ摣戸㜶ㄵ昷摦㈷扥㜳ㄸ㈶㕦つ㉦昳㠴㈵昰㔹愸㤴慦搲㌳㘲㤲慤㉣ㅥ㘸㘹㥡ぢ㡢〸晢挲㘴㠳㕢扡愳㉡戲搷ㅢ㘵㤵㉥㙣㠹㝦搸戹㕢搶摦っ㈷〸㌹攵昲㕡㐵㙣挲㥢㜶㙥ㅡ㝣戲㥡㤴㝣ㅦ昳㔴戹ㅣㄵ捦慢挴戹扣扢晦ㅦ㠱扡〵㥥 | D27: 㜸〱捤㕡㝦㡣ㅣ搷㕤摦户户㍢户㙦敦搷㍡㡥搳晣昶㤲搸慡㤳㜳㡦晢改扢㈳㌱敥摤㥥㝦㕣㜳昶搹扥戳摤㤲愴敢戹摤㌷㜷ㄳ捦捥㕣㘶㘶敤扢㉡㄰㑡愱㠰愰㐸〴㈴ㄴ㐸攵㈶ㄵㄲ㉤ㄵ㈰愸ち愴ㄱ㌲㙤㈰㔵㐹㐵ㄱ攱㡦㠲㠰㔰㕡㈱㐴㠵〲㝦愰㑡ㄴ㤹捦攷捤散摥敥摥摥搹戹㍡㤲攷㜴摦㝤㍦扥敦捤㝢摦摦敦晢㈶㈱ㄲ㠹挴㜵㍣晣攵㤳㘲攱晥㠵昵㈰㔴㤵㠱㠲攷㌸慡ㄴ摡㥥ㅢっ㑣昹扥戹㍥㘷〷㘱〷㄰㡣愲㡤晥㈰㕤っ散㡦愹㑣昱戲昲〳㈰愵ㄳ㠹㑣㐶㈶搱㕦晢捦搵ち㤲愳㘴ち愰ㅢ㔸㠹挵挲昴晣搲㌳㤸㝡㈱昴㝣㜵㌰㝦㍥㥡攰昰搰搰挰搰挰攸搰攰攰挰攰挱㝣愱敡㠴㔵㕦ㅤ㜶㔵㌵昴㑤攷㘰晥㜴㜵挹戱㑢㑦愸昵㐵敦㤲㜲て慢愵挱㤱㈵㜳㜴㘲㘸㜴㙣捣㥡㥣㥣攸㌶㌰昳愹挲昴㘹㕦㔹挱慤㥡戳㤳㜳捥ㄷ愶〷㑥愹昰㔶捤㤹挱㥣㤸㜲挶慢㤸戶㝢㡢㈶㑤㤳挰㈳㌳慡㘴㤳ㄳ㑡昹戶扢㍣㠰㘵㌷ㄱㅡ戵昱㠱㘳愰㜸挹っ挲㠲㜲㥣戳捡攲〶扢㉢愴㤹昲㤵㕢㔲㐱㙦攵攸㕡㐹㌹㜱㜷㤰愹㥣㌷晤㔳㘶㐵愵㔸攸慢㐴㝣㥢㉤㉢㌷戴挳昵㥥捡戹㐰㥤㌵摤㘵㐵㤴㜴攵㜸搵㉥愷㔲㈲㤵㑡㜴扣扦摤㘲㌴㙦〶㡥昹愵挲㡡改㠷扡㐶慥つ戵挳㙤㤰㄰扤昰愶㘵㔱㡡昲㉤愳挸愶〵扢昲㠴昲㕤攵昰㈵摣㕢㝦ぢ㤲愶㐹㐴晡㍡㜱㙡扢㈱㘳㐴㔷㉣晣摣ち摦㈲㈵㐱ㄶ挰攸〲攸㈹㤸慢㙡㉤㍦敢摡㈵摢㜴㘴㌷㍢㝢〰㐴敡扦愱㐶㡤㠳㠹㥤㉣㥡挹攲㔲戲㔸㑡ㄶ换挹愲㑡ㄶ慤㘴㜱㌹㔹㕣㐹ㄶ敤㘴昱㤹㘴昱ㄲ㜰㙡㑦愶戳㌳ㄹ㍦晢㝦攷㝦㕥晤昷㠷㍥㍢㝢昵㔳慦散昹攵扢㈷㝦㐳㔰㜳戴ち昵愱㈰㜳〰挶㉥㠰慥㘸㌱㡢㕥㠸愵摣挱慥摤〰㐲㝣て㑢攱㜲昶㕣摤晢戳收㠵㙢㌳㕦㝥㝢攰㥣晡晣搷扥搸扤〷摤㘷攲つ捥昸收ㄵ㐸挹㠶〰づて㐰敦㙥㐶昳愰㜸搶㤸㌵㙥つつ㤵挷〶捤ㄱ㌳㑤ㄲ摤㉣扦敦〴㙥户㜵挱㜶换摥ㄵ㉤〰摤搶㌱摢〹㤵慦㉢㝤ㄶ㝥㈲㈱搶昵ㅥ敢攸ㅡ戴扦ㄴ挹捡㥤㔶㐱昹㈱戴㈶㕣摦㄰愰晢愷捤㐰㙤㔴晢攳戹愷扤慡㕢づ敥㙢摦戹㄰㥡愱扡户戵㙦㘳㤲㑤挳ㄶ愰㔱㉡搰㑢㝡戰㜵搸㜹搳愹慡愹㌵㍢敡㝥愰愵ㅢ扡攵㉤㙤摤㝢捣㔷捦搶㝢㌷慤㘸ち搶昷戲㥥㝢搳㉥愳慥㘸㕤昹挲㡡ㄷ㈸㔷㉦慦扦㜲摡㉥㕤㔲晥㠲愲敤㔶㘵扤搵㍤散㡡ㄵ扣㝦摥挵㐶愱戲攵㠷ㅡ㕢㐹㘸攵㤶㔵ㄹ敢㕤〵㤵搷ㄷ捤㈵㐷摤搵㠴ㄲ扤ㄳㅤ昷㌴㌵ㅦ昳㑡搵愰攰戹愱敦㌹捤㍤㔳攵换㈶㡣㑡昹愴㔷㔶㈹晤㈴㈲㈸ㄲㅤㅤ㐲㈴づ戴搳㑥捥ㅤ㔰㝦ㅢ㠴㠴㔶㘲㝢攴〶㈱㈲㜲㕢扤慦捦㡣㐲㠳㤰ㄱ晦㤱㙤㔷搲㈸㠴挴ㅥ摣ㄶ扢㡤㤰㜲搰摤捤㡡㌷㜰ㄶ晣〱ㅦㅣ㐵慤㑣敥摢㝡捡つ戹扣挱㑡ㅢ戸㐲㔷㑤散㙤㠸愶愷慤换摥㝢㡢㥣㑣敥㡥㜷㝦昴㌲㕣挷〹搳㉤㍢捡摦㌶搰㄰㕣㤱扣㡢攰㝤〴㜷ㄳ摣㐳㜰㉦㐰晡扢戰㙦㕢㔲㤴昶㔲慣㠹昵昴ㄵ扢ㅣ慥ㄸ㉢捡㕥㕥〹搱㠶〰㈵㤳㈱戹ㅦ晥摦敢搷㠷昰晢㍡㈲㤴㝦㘱捣㈳敦㈷㜸㠰攰㐱㠰㙣㌶㘱散挵㙦挲挸捡㍣㝦㝥〴㘰捦㜹㉣摤㜴捤㝣㔹攵㔷㝤㜵ㄹ扥昶慢㝦攴㘶ㄳ㘹㝡㠷㜷敦挳ㄸㅣ㐹敤㌲ㄱ搳〴改ち㍣㜳搰搱搱㡥㈶㈷捣㘰㈵愴㍡㙥摢愹扤搵㐳㥣昴㘱㠰敥㝤〰愷㑥㈸〷捡㝣慢挲愱㌴摤摤つ摤㉥ㅤ搱㕤㤵㠵㜵户戴攲㝢㉥㈲挴ㄹ㌳㌴愷㑡㠸㉤〲㘱ㅡ㤵㌹慦㔰つ㡤捡〹ㅢ㍦摤㤵戳㙡㔵㤹㘱〱挶㍡散愹捣㈱㉥搱搶㜴戶扣㤶慥㐴㈱挵㡣ち㑡㤲戱挷㉣㡣搳㥡㠱ㄲ慣㙤㜷㠵收㐶慤㠵㥣扡戳㜲摡㐴散ㄲ㑡㈰昵敢㔱㔱㠹㈳㝢㜴㕢㙤㜴㌶慥㘱㠶㥣㉥㌶捣搲愵ㅢ愲㤹ㄲ㤴ㅦ昸㔱㌸摤㔴っ㕢昵攸㕣㘸㍢挱㐰㑣摥㠱ㄹて戱愹搲㌱㌲挹㙥ㄸ㄰㌳㘳㕢㘶戵慡㍢㠳㤷昹搲㔲㌴㉤㤶㜲摣昷慡慢っ㘰㙥搵㍣㥣㉢㈱昷〳㕣晤慦捦㍦戶晦搳扦㝦㍤晥㝤ㅥ㡡愴ㅦ挹㠸㐵㔲敡㔹挵㡦㝥攴〱晣㘴户敢㑢㌳晥㘹㙢㙦户㠸戳㈸愸摤ㄵ散㜶搱㔷㍡㜰捣攸捡晡慡敡愹㕣昰晣㑢㑢㥥㜷㠹捣敦搵戵㘰㐵愹㤰搱㔸㔷ㅣ㝣戲㉣㠴攸攸㘸㡡戶ㅡ挲㌶挶㜱挶㐱㠰摣愲㔷昶㠲扣挳㝦㝢挹昷〲攳〳㘸敤㠰㙢㌱〶㔰㤸愱㕢㜲扣晣〲㙣愵慡㘸戵㠶㑤㌶慢㘵㉦㝦㠰攳㉡慡㙣攳㠷摡㙥㉥㝢㡦攴戱㕣㌷扦づ昴㤰㠵昳挳〳㙢㑥戰㈶晥〶挴㘲戰㌵㝤㌰晦㜸晥搵扢愶㍦㜷昲ぢ晢扥搹昵攴㥦㡡㙦挶ㅤ㥢愲㌹ㅤ挴攱晤㤲ㄶ㐸づㄳ㡣㄰㡣ㄲ㡣〱㠸慦㘳㈸つ摣〸捣搴ㅢ㘸愰㤹晡㔷㙤愶挶㠹㌳㐱㌰〹〰㌳愵ㄹ〶㉢昵ㄸ慡挶攳〰㥤挷㤵慢㜰㘰捡ち挱㐰㤱戶㐹ㅥ㈶昸㜱〰㐱攵愴ㄶ㈷攴ㄱ㠰㉤㐵㠱搱攵㘶㔱㤸㐶㙢㔶㙥搳㈷ㄸ㝦㔲ㅣ㈴挹㉦㐹㙤㐹㑡㡢㍦㡥㘹戱㠹㐸㕦㡡㍢㕡㐳搵㌴つ㝦慢搲改攰扤敥挴ㅢ挲㠳㕥㈰ㅢ搶㌹搷づ㠳㉥㙢慡ㅡ㝡挷散㜰㈶〸扢㉤〰ㄴ昵㤰㝢戵扦㙢ㄸ搴㙦㥤户搵㤵㐵㠸摤摥捤㕤㌸搷ㄴ慡㐱攸㘹㝢昲攰收晥ㄹ敦㤴ㄷ捥搸挱慡㘳慥敦㙢搳ㅤ昵㕣㔸㔱㉥〲㌰ㅦ㜱搸㡤㤰扣搵㔵㔵㙥戳挶〵慦敡㤷搴散捣敤㄰挲㠹挸㌰㈶愰㝢㌰㡢㘲晦搶㈱㑢〳摤改挶㤳搰㔷戱戳〸挰㜸〲攳㜳㐳㐳㐳㘳挳㐳㠳㘳愳〷〷㐷づ㡤つ㑥㈴攴ㅣ㥡㍢戰〸攸㠰㍣㠹㌲㔴㈱捤㌸㘱㝢㤹㘹㠸ㄲ㘹敤戲ㄶ昸ㅣ戵昵挴挷㤰㔹㌷戰换㉡ㅢ搷㑥摡㙥㙦㕣㥣慦㠶㑤㍤收摡敥戸㘷捡㜱收㕤挸㐲挹昴换户〳㥢戰㌱㍣ㄱ㡦㠴㠱扦㥤㔱㍥㥡㈶㤱㜸愷㤶ㅤ㝡攷㜹㘸晦㈹㌴㤳搶っ挷摡ㅡ晤扡㝥愲搰㄰㘴搳攸昵㤰摣昵收っ㙢㈷㤵改㙡㉥㉣㠴攵ㄹ㜵戹㔷㘳㈸㐸㍣昲ぢ㡥摡摤㕣搵扥㕦㕡㔳㑢㠱攷㔴㐳搵㕢㉦㘹捤㤷搶㔹攵㤸㍣㌰㜵搷㑢愷㑢㈱㡥㤴昵昹㜸ㄸ扡㝤㌸〴㡡愴㘲㉥〹捤㈷㘳ㅢ攱㙤摥〴㤵㙡㠷㕣㠵ㅢ戱昴昳㥦㐷挴㙦扥挸攷㜳㐷ㄲ戵㐲㤶㑦㈲捤㌰晢收㑦㐴搴愴摤戵㠳㝡㘴昲戴㌵敢慥戵昱㌰搲㘳㘹㐳㠸㡣〳㔳㑢㝤㔴ㅤ〷㜹扦搰㉥㤹㡥戳摥㙢捤扡㈵愷㕡㔶㜳收㤲㜲㙡㐶摣昳㉢户〹扦㜴㕥㌴攲搵㌶㜴㠹㡦㠹戳㠸㈶㙡攷慦ㅤ摢扤㠴㥣〷㔹戵て挶ㅣ㔹㜹〶㌵戲㠶㠷㥦㜷㝤晣㘴㄰㜰挷㐶昲㐴㘷散㘰摡㌶㌵搱愶㌱〸慦㥦㘰戵挶㌵愰捤㜹㜳ㅥ戲ぢ攵㠶愶ㄳ㜶搴㜴摢攸㤵㘶㤳㘱ㄸ㍢昵㌸愰ㄵ㥥㜷攲〸ㄸ㐶㉦慡㈳㕥㡡㤴㠳㈷挵搶昰扤㈱㌲搱挱㠰㌶㠲っ扦晡㘸挱愲㐸㘲搱づㅤ搵㘵改㝥㕤捥㔰㈵㐸捤㑥㙢㜱〵愱昰㑣㡦㜵摣户换㡥敤㉡㐶㈵挸㜶㌱㑢㍡愷㤶㤱㤷㌹敤〵㌶㌳昱㍤搶愲㙦扡挱㉡㑦㍣愵昵㍢㥡㙡㥡㔹㘹㙢摡㜶愱㐰搱㍢㔹敥戳ㄶ㔶扣㉢㐸收㔷㉢敥㜱㜳㌵戸㉤ㄸ挵㘰㌶㝡㈲慤㑡㡡㘴㔲㘴㤲㤹㥤晡㉡攳㉣㘶㤳昹攳晥㔷㕦戶散㤲㠷㤰㌳㤱㘰㘴㥤㈴㠸ㄹ挷搳晤㌶摡㑢㥥挵㌹㌲㙡㉦㔷搸㤴ㄹ㙦㝢㌴慦摦㡢攸㙣挵〲挷㉣〲㝣攸昸戹搹㡤捣敡て㜵慦㤱㘶㍥㘲ㅢ挷愰㠵愴㥥挶㘱㜲愳㌷ㄲㅣ戶㔱㡥愴收㍦㙢慤挲㤸戵㌴づ攵ㄲ扥㤴攸㉣ㅥ挳搱扡ㅢ㘶〰㠶ㄸ㈹〹㔸攰摥愸挲㘸慦㘲㍡㐱摣㔷昰㉡ㄵ㤳㠲㐶㈱㕤㠰ㄵ㔷ㄹㅤ㝡挳慥㐸ぢ㐰㑢㘳摣㘴慥愱挹㕣搳㑤㜰捥㑣捤敡㌲攷昲㤶㑤摦づ㔷㉡㜶㈹挳ち搳愷户㠵㠴㐲㠴㜴ㅡ〰〴攵愳挵ㄴ㜱㙣㙢晡㈳㍡戱㠳摤〳㌸㕡㤰㜴㘴㍦攴㌸愹㍤扡搸㘱摥ぢ攲㉢ㄹ昸捡昳〰㘹㘶㡡攰〴〰昱㌴㠴㘳㘸搱㈶㐹攴搱捥㙥㜹㈱㉥戰㤲㘲㉥㘸摢㈴〴㜳〲搹㌹捦㉣ㅦ㐳㠶摤昳㍢攳㝢戸っ㔸㑢〳攳攷㤸㜸㉡攰㤰㡣㥣昰㘵㐴挵㝥㠶つぢ㐸改愴㤸戲㌲㈲ㅥ㤲㌶㠹㜴扡㉢搳敥㕤戳戵戹昶挵〷昴挶㑢挵搹㑤昳㝦敦捣挴ㄱ慥㍤㥢搵搷ㅤㅦ㐶㔱㝥〴㐰㌰愵挵晤戴㈰晣〴ㄱ㥥〴㐸㌳戳搱慡㈵㕢㈶㘹㌸㜹扡挲攴㔱愶挲敤㈰昸㌰㤰㔲㐲ㄲち㈴㌱扡㌲㑣攲挸愷〰扥昱收㥢㍣㍢㈷〴戳㈰戵昷㌳㝦㤱捤㤲㜸昲㘹㠲㡦〲〸㥥攵㜹㘶㌵㡡〰戹愱㠹㤱㠹㤱愱挹攱昱㠳挳㠳愳㘳㤳㘳〹㜹ㄱ捤戵昳㡡㠹㌲㝣戹愰㙤攲㤹愵昶㌴戰ㄶ㤱昶ㄲ㥡㠹挵摣〰愳㙤㜲昸㐶㤱㥢㘰づ㠱搱㕢㐲㤶〸昶〲攸昰㐱愱挰挹㤸㕥㘰〸ㄱ㍤㕢㍡㌹挱㍣〳ㅤㅤ㡥搵〰つ㠶㤵㘲搸㘲㔸〵昳ㄱ㌴慥㜲ㄹ㐰㌰㌱㐱㥢㐵ㄹ㈶㌱愴つ㜰㘳ㄹ㘶〲㠳慣㤷捦挴〵㔶〴愹㕦愳㍢ㅢ㘲挱戸㠴愲㜴㠸挰慣㐶ㅢ㠴ちㄱ㕣㈲挰㙦㈷㈸ㅣㄲ㑥㘱㠳㥦搳愸搴㠶㌵昰㜳㤵㠸捦〲愴㜹扥扣戹〳㉥〵㈱搷㤰㜵愰捤つ㜶㔹㘷慡愶㠳㉢搲㜹㐴扡㈱㥢㙥〷愳㤶㡡捥ㅢ慤㜷㜵捤㌷愷㌸扢敢㉤㍣昹㌴㜷搶㑡㠳㘶摣㜸㙦〱㌱㜷㜶ㅥ挹愶㝦〵㈹愰㥢㝢ぢ〵愰昳㌲ㄳ挰挵㘲㈲挳㜷㔲㤱戳㌲㈰㠴㜰㌳て愰㐵㈸㡣ぢ㕡㠴㜸㘲搵慤㔵ㄴ㙡㑦㥡搱昵㌶挱㐰㑢㈸捦昱扢㌷㑣ㄷ㥤㔴扦㠳㈰攱㈶㘲㠲换ㄸ㉡ㄸ扤㙦㕡㠳㘰戸愰㕢搷攲㠲戶㑢㌴昹㌷昴㌲㜴㑤㐸㔲挰摦㉣㠴敢づ㝣㍣㡢㑣㥡㐶㈵ㅡ戵愸ㅢ㡢昶㝣ㅣ㕦㔲慤㤷㈵昵戱っㄹ扡敥㙣戹㥣搲挳搸㐳㜷㤶晥㜹戰㘸换昱摣挱〶㔷㌸㠶㡦昱㌱㠰㍢㑦摡㈵愴㕤㍤㉢捣㉦㈰㙡捤昳扡ㄲ昶㘴㜰㉡晤㜳㤸戱敤㍢戹戱㤴换慦〹㌴愳戳㤷㕣敦㡡慢㔷㤳づ㜸㙢慢改搵搹挹搷昰㔴愳㥦㠷㐱挵ㅣ㕤ㅦ〷换攷〰㝡㍡㜲昴ㅤ㐴㌶㝥ㄲ㘰㝦㘱扡㜰戶㌸㌶慣㔴㘹摣㥣ㅣ㌹㌴㍡㌲㙡㉥㡤㑣㡥て㥢愵㐳挳㠳搶挴愱搲愱㤱㐳㉡愷㕤つ搰攵㑦〱攴攸㕣昴敢㥥㘷㡤㕥㐶搷搸搷㐷攷挰昷㌳散扢愵㑦㡥㉥㠵㜲㘰㝣ㅣ愰户㌰㕤㙣㠸㑢㡤㥦㐱㕢㌷摡戴攷㍤㡢㝢㔲攳ㄳ㘸搹㠵㤶收て㌳㜲ㅦ㐵㌳㘷搹昸㝣㐱㝥ㄲ㔵㜱ㄱ㠰愶㉤㉢搶挱〱慡ㅥ戱戲昲ㄷ〸愱㐲㈶㝥昵㉥㝦㌱㉥戰㈲㤶㙡慤㔵ㄴ㙡㡦㈸愱愴て愹扦㠴㠲愰㠷搱㈳㥢㜰㤶㙢慤㥦㡡ぢ㘴㤱愰㐷愰㤸ぢㅦぢ愰㜰愱㥣㤰㤴ㄸち㠷㔸㐵ぢ〵愴㤹挱昴ぢ㥡挱扦㡡〲ㄸ㑣ㅦ挰ㄷㅡ㉦〰㐴っ㥥㉣ㅦㅡㅤㅦ㌳㈷㠷昱㕤挲攸昸昸愸㌹㘴つ㡤㡤㤸㠳攵攱㠹戱戱戱搲㘰㑥扢っ愰换㕦〳挸搱㐹攸㈵晦㍡㙢摡㕢搴晡晡攸㉤摥ㅢ〶搳挷㘸搶㝣㥣㉦㈳㐷攵㈷〰㜲㜴㍢扡扤㡦㑤㍣㍣捡摦〲㄰戴㙥㝡㤵㉦愱㐰〴晥攷㘸攲㌴㌵㍥㡤〲愸㔱愳扡搰昶〶㙤戲摥㐲㜴㕡ㄸ㡤㝥㔵愳愷愹㈴㡦㙤㥤扦㙤㤰戹㝥㤸挲愶て〳㡥攲愲㝦㍤㠹昱ㅤ〸〲搳㕡ㄲ㔳挹ㅦ摢搹㕣㜴㌴㔴㈱晥愷㉦㠲攵㍦挴㍣愴搱㠶ㅤ攲㡣㝢昱㉦㕦收搴搴搹戶㔹㤳敤扥㌲攲ㄴ㝢㉡戳〱昴っ㜷愸㡢摥㔴晤㑢愷㕤㌵晤敢慦摤摦敥摦㘸愹愵㈷㙢挳收晤晡㌸㕣㐷挲㜹愱愳㥦户扤㝢㌶㙡つㄷ㤱昷㙤戴㈲ㄷ㡤っ㤹㉡搷㘶っ㄰换愵㤲ㅤ攲搱㜶挴㡥㉦摢㜰戹㔵㥢攰愸㕢慤昰㉥散扥㌶愱昷戴ㅤ敡愳㉢㘳ㅦ㈱㘹㈲㡤捦〲㜴ㅥ摥㔷搸㠷㔴㝢晡㈹昰攲㕤扣愶㤹昶㝣㈹㕢戲昲户㔹愲昹攴㝣㙣ㄲ㥦〴攸挱㝦敢つ搱〵㈰戴扤㐶㍢ㅦ㜷㙣扡㐶愳挹攲㤴昲㜷〱敡㝡㐱扢愵〵晤ぢ㈸昴㜴〸㙤㥢㠸搵愴づ戴㐶ㅡ敢昷㈲㉣㥡ㄴ慡㠴㌸㠳户㔱づ戵攸晣〱㕢㘸㈹㈸㍥㐲搲捥ㄸ㝦〸〰㉡捤㠰㑡㤳攲㈴㌰㙢㍢换捡㉦ㄲ㡢愶愴搶㈴愸扦敤㌶㝢㈲摥搳愶敢戰攳㜱㐷敢㜵㔸㡥扡慦ㄷ晣㉡ち昲换〴慦〱㘴〵搵㕦慦扣㠰愱㕣昹㉥㌴㘴㤲ㅤ㘹㉡㝡㕢づ敡摣搴㐰㜴㙣摦昸慣㠹㐶㈷㙤㌱㠲攸戲愲慦㡡愸㥢晡ㅥ挴搱敥户ㅢ㈷㜸ㅦㅦㄶ捤㈱㍤㠵㜳㍢扥戴㡢㕤づ搲㔶㍣㐹搵捥㠸㔲搷戴㘲㕢昳㍥づ㡤㥤搶㙣㠰㈴㔸㌹㠳㝢晡㄰ㅦ㝡戹户㐳㈴㡣㠰㈸㐵ㅢ〶挹攱㕤㔶戲㙤㉣戲〷摤慤㘷捡㠶㑣摦〶㍤㙡搹摥㈴て晥㍢㡢㠳㡤㍦挳换㘸ㄱ昰㝤㘶㜴攷㕣晦挲㈴㈹愶挰㔷敤㄰晦㘳昸㥥敢㕣㌴㔲っ〹㜹つ㍦晡㡥㔵攸㥤攰㉡㑣㝥㠵㑤㕡㜶〹ㄲ改㤷〱㕡户挶搸昰ㄸ㐷戴㝣ㅤ搳搵挵晤㉥扥昸敡〷晦㙦攴改愹ㄴ㔵㜷㍢换㐱㡤敢慣ㄴ㑤㝥ㄸ㥣愹ㄴㅤ攵㉥㠷㉢昵㡦㠱ㄱ㥣攳ㅢ〸昹㍡㤰昸㉡晥攷愸愷㕡㠶晦〲〵昹㤷〴㙦〰㘴〵㔵㔵换昰㐴戳っぢ㙡㈷攵㔸㤲㌸㐹㜱愸㉤ㄹ晥㡡〸ㅦ〰搸㈰挳㌷搸戴㐱〶㐱㐵㈶㈹㙡㥢ㄳ㔴㔵㙥㔰晥㌵㐰㙤㠱㠲扡愵搷㌱ㄸ慦攳㜱㌴㘴㤲㠶愰扥改㡥ㅦ㡤㍢づ敢づ㈱㕥慢㜵っ挴ㅤ㐷搰㈰晦ㄶ㈰㝤つ攰愶㠵㠷㜶㙣㠷攷㡢户㌰㔴㝣㠵〰晦昲敦攲〲㉢㝤愴㍥ぢㄹ昲㑡㤰敡㝡ㄳ㡦戶散㡥㥣搰ㅤ㡦戴散㡥摣搱ㅤ〷ㅡ㜷昷㉤㑥㐶愲㕦挳扦晣㝢搶㐸㙦晤晡㝦㐰愱㐶捥㍥搲戶晥晡㍥ㄲ㠵㌱㝡㜲㑤㤴㉥㤶㉦㕥晣㝥㕦㉡㝦㙦敡挳ㅦ散㝥昱敤慦㝦晢㠵户㥥㍡晣㙦㍦㜸改愵户扥昳挲㥢㍦㜸㙤改昰ㅢ慦扣昲晡㠷慥扥昹敤㍢慣捦㈴扦昴晤戹捦㍣㌷㜴改戹㘷慤㜳㡦ㅥ㝦敥㈳捦㥣ㄹ㍡扤慢扦愳愳戳昳晤扢扦㜶昷㠱摣㑦㍦晢㈷攲捦扦昵㍥㔷㘸㐲攰〵㜵㑢㡦㜲㈲㐷㠲㘸愱晢㐷ㄴ㝡㍡晡戸晡昷㜴ㄹ㥡㈰㜸㠹晣㈷〰㍥㈴㝥㡥㠴搱换昸㘷ㄴ攴摢〰㍤㐹挱㈵㘹晡敥㡤改㍢㡤㠶っ捥㌲ㅣ㑡散㥥㤴㈰扥挶㜹戰ㄹ㐷扣㕤敢㜸㈰敥搰ㄱ攳㜷搰㉡〸慥攱㕦㝥㤷㌵つ㔸慢〲昰㈱㑦扡晥ㅦㅢ㙦挱攵
A28: Decisioneering:7.0.0.0 | B28: Decisioneering:7.0.0.0 | C28: Decisioneering:7.0.0.0 | D28: Decisioneering:7.0.0.0
A29: CB_Block_7.0.0.0:1 | B29: CB_Block_0 | C29: CB_Block_0 | D29: CB_Block_0
A30: 㜸〱捤㔸㕤㡣ㅢ㔷ㄵ㥥㍢昶搸ㅥ摢㥢戸㘹搲㌴㥢㌴戵㈰愸㠹㌶㌸晢㤳㔵㤳㤴㈸㕤摢晢㐷㤳㕤㌷㜶㌶愲〲戹㘳捦㥤昵㜴攷挷㥤ㄹ敦慥挳ぢて㐵㐸㐸つ扣昰〰攵愵敤〳ㄴ〹〴敡㔳㤱攰愱〱〴㐵〲〹〴㐸㍣㠱搴〷ㅥ㜸〰愴扥愰㔶攱㝣㜷散㕤摢敢㉤㥢㘵㤱㌲摡㍤扥㜳捦扤攷㥥㝢敥㌹摦㌹㜷㈴㈶㐹搲㝤㝡昰㡢㈷㡡挶愹㜲摢て戸㥤㉢戸㤶挵敢㠱改㍡㝥㙥挶昳戴昶㜵搳て㈲㌴㈰㔶㌵㠹敦㉢㔵摦扣挳ㄳ搵㜵敥昹㌴㐸㤱愴㐴㐲㤵㠹摦晤捦㜴ㅢ㉡㘶愹㔱㈲㘹ㅡ㈵㔵ち昹攵摡㑢㈴扡ㅣ戸ㅥ㍦㥦㕤〹〵㕣㥤㤸挸㑤攴㉥㑥㡣㡦攷挶捦㘷ぢ㉤㉢㘸㜹晣慡挳㕢㠱愷㔹攷戳愵㔶捤㌲敢捦昱㜶挵㕤攳捥㔵㕥ㅢ㥦慡㘹ㄷ㉦㑤㕣㥣㥥㌶㉥㕦扥㤴㡥㤱攴㔲㈱扦挰慤㈶挹㍢㈸愹㜱㤲扡㔴挸㤷㍣㙥ㅣ㤴㑣〵搶㤸㈸昲扡〹戳㜱敥㤹捥㙡慥㤰愷扦ㅥ慢搰摢搳戹攵㜲㤹㍢扥ㄹ㤸敢㘶搰㠶攵㔴㝢戹㕥㕢搱慣ㄶ㡦搹㐲愵㠴扤愲㜹㑢㥡捤㐷散㕢㍥扦愹㌹慢ㅣ㙦㡡㍤摦㌲昵㈸ㅤ㘷攴摣戰㠵㍡㐶捡㉤ㄷ昲㠵㠶收〵愱㐸㕡攰挲戰搱㘲愵㕣㡦㉡㘲㡥攸㠵㜹㔸慡攳㌰㔸㔳㘸㤹㠰慡㉡㤱㔸㤲挸攸扣㜷敦㜵挳慣扢㔹㥤㘷㝤㙣愸㘶㕡愶慥改搹㐹ㄶ晤㠰扣慦㜷㝥㡡㈶挸㔵㑤慥搶攴㙡㕤慥敡㜲㤵换㔵㐳慥慥捡搵㠶㕣㌵攵敡㑢㜲㜵㡤挶㜴㥦㐴㍣㉥㜷㥥摢扦㌸㘹晥攱散敦收㕦扢晢昶捦㑥㙥晥昲攷っづ㈷㍣㉦㑤つ㜵㠴㐸散㄰㤱摤昵㤹㘰散㥦愴て㜴㝡攱㠳㜷㜳㙦摥㍡㍣晢捥㐷㙦㑣晥㘸攴摡㤱㜴㠶㘶㉥㤱扤㜲㑢㍣㌸㈰攷㔲㘰愷扤㥦て㜶愱搸攱昱ㄶ戹㕦㔷㜱昶㡢㡥捥㌷㘳搴㈲㥦㐸摢〵搷〹昸㘶㔰搴〲㉤㙥㤷㌴㡦㍢㠱㑡㠳挶挴慣戰㠵㤹㈳愲慦㍢㍢搹㜹㈳〹ㄹ搱散㤱㤲ㄲㅤ愱㈴㐶攰㄰㠹㠶㌴ㄱㅢ㠶ㄲぢ㥡摦〸戴㥡挵捦っ戸ㄱ散㐶㥥㝢㉢㌰㉤㍦㐷㈲攷㍤户搵㠴㐵て㑡づ㠲㕦㠵戳挵㡥㄰ㄱ㤸㠶㕦㕡攰㔹昵㔱晡㐹ち愶ち㈶ㅤ敥㝤㜰戶㜹改攳昴㐲㉡ㄶ㕤㕢㌳㥤〳㍡摣昴攳㈴昴昹㑥㘴ㄴ㍤㙤㠳愲㝣㕢昴㘴㡥㐰㙥㉦㌰㐷㈸㘷㑣ㅢ㑦ㅢㄳㄳ晡昴戸㌶愵㈹〸慢〷㡤搲愳㌴㈷㙤摦㌶ㅤ摤摤㄰㘱㝢挴愶㘸ㄶ㔱㕣㘹㌷戹攸㑡ㅢㄵ捤㕢攵〴〵摥㘲昱愸㔱㜰㍤㡦㕢㕡挰㜵搱〱攸㍦摥摦改捦㜹慥㡤晥㔳㜹捤攷摢㤰㌰㘶㠴ぢ攵摤㤶愳晢㈷㠷㌳换〱㠹ㅥㅤ攴㙤ぢ搹㌱慤㑣㌰挹㝤愱改改挱㘹挲昹㘷㌶捤㤰晤挴〰㥢㠰搲慤敤捥㥤昳昸换㕢摣ㅤㅡ捤㔰晥㕢攷攰敦搸㘵挸ち昵捡ㄶㅡ㉥㈱㥢㔰㙦捣㉥㤹昵㌵敥㤵㌹戲㈷搷挵㔶㡦㠱挵㈹ㅥ敢摣ㅦ㕢㠶改〹愹昵㑦昴昶ㅡ戳㥢〱愷㘸搶㐹㕦捡㘰㐱扢㠲㐸㝡慣㙦㐸戸㈶㌱㑥昴㜵捦戹昵㤶㡦愸昵㕣慢㥦㌳愳慦㙢戴愶㝥挳搵㜹㌴㉡㐷愴愸ㄴ挵㈳㔱㘶㠸㔰㈸㡦て〴慡㐸㐳㤰敤昷攲㝤㡦攷〰昰愷昶㌴愹摦扤㌰㙦ㄸ㘴㙣ㄵㄶ散昱晥㔸挹摤㈴敢㤱㤵㉣㡥㐰㤲〷ㄱ愵㐷搱㙤慦挱㈲㐳昱㌴摣㔱㡦捤攰户ㄸ㝤㜶昷慤〸戱㕢㥥昱晦ㅤ㉣换㡦㜶㜶㍦扢㑥㤸扤愰㌹扡挵扤㡦户ㄷ㌴㔲㑦㠰㡣㠲㥣㈴㤲㤴㤴昷〹摤㜶戵㈴ㄲ㈲摢㘴㙤㘵挳搴㠳㐶慣挱捤搵㐶㐰㝤㔴戸㈵ㄲ㌰㜳敥挳晢昷ぢ昴晢ㅥ㐱晤摦㔰ぢ慡㑦㠰㥣㈶㤲㑣㈶㈵㠱㥦戱愴㥡ㄵ敦ㄲ㐳㐶ㄲ戹ㅥ㘹㜵㈷戸㝥ㄲ挳搴㡦攱㌱攴㘴〰㥡晡ㄴ挸㔹㤰㜳㐴㤲ㄲ晢㈳敤〳㝢㤱㐸愳㍣㜵㙤㙢㌴㠶㔱攷㌱慡㐷愳㥣㜸㤷愲挰晡㘱㘶摢捡㑣戰㕡昲扡慢改㜳㕡㥤慡捦㜸愷昶㑣ㄴ㕣扢㐹昹搲换㘰㘴㠱愲㠵愲㜰摤搴戹㤷㐰㐷㤹ち摤㈸㤵㥥㝥㑣㘰㡤㑦㠹㌰㈲㈹㑡㉡㌱㙣慤挵慥慣㌳㥤㌳敤㉤愴ㄷ㜷挸晦晢昳㤷慥愱㔰㑥㈶㐵慤㜲㠱㥡敡㌸ㄱ〵㘷晢挰昱㜹㤸㈶㍤㘶㤷ㅢ敥挶〲ㅤ㉥昷挳搲捥㉦㜸㘶㜰㝣㘷㌷㈵㜶捤㍥㈱晡攷㍤㑥㤰散㔵〸㤹挴ㅥ㌱㘳㜴㈸㐷㑣ㅡㄵ攱搱〳っ㘳挶㡡挹㌷㤰㑥㥥摣挹愲摡戴搰昲〳㔷搴㈱愷㜷昲㡢敥㤲ㅢㄴ㑤扦㘹㘹敤㌳㐳搸㈱攷㜶㠳㍢㠴愶ㅥ㠱敡㝦ㅢ攴㌶㥢㕣ㅦ愲㘳搹㙤㜹㜵扥㔸㝣ㄸ昰㤸㑥㉡㝣㤸㠰㘲㤶㘰㌱㤹搱戳㍦㈸㘰㜰ㄷ改㡢㐷㝦㌰晦搷㍢慦㕣㡢ㄱ挰㌳ち㄰ちㄱ〵昰戰ㅦ挸㐶㘰㡥昴ㄵち挷㜰挹戸㐱ㄷ㌳戳㘹昱扣收㤱㘳扢㥥慦摡摤㘶攸㜸㍤ㄷ㠵㌰㕡ㅥ〶㘳㔳摥ぢ㌳㕥㙥㜷挴敦㔱㕣昸㈰㥣ㄹ㜸挱㡥づ愴㈶戱㙦攰攵㍥捦㑡昹㉤㈱摢〳㉡〲㌴㡥慦愳捣慦㔶愵〴搴挲挳㤴摦㤰愸愱晡〱散愳づ㉥㠳㘲㔶㜲捤㜱㌷ㅣ愱戹攲愳晡ㄲ昰ㅥ㡦㘳ㅢ㈸㥣挵㌳摤㜵ㅢ㐹㐱㍥ㄹㅢ㘶慢戰㑡摥扡慤㉥敡㤴戰㍡搷搳㌴慥愷ㄵ㡦㡢㍢㘸㐲扣㤰〹㐷散摢慥户㔶㜳摤㌵摣㕤づ㠹㌷扦挱㜹㠰晢㘲捡づ㉦扤㘸㤳敦㐷㈲㝤㤷挱㡥摤挱㐴㡤ㅥ收㥦㡢搴㡡捣㜹㜵昱挶摥愳晤攳挲搶扥昱改改愹扦晣愹昰ち晦㜳敡㠷㕦晤昰昷散㔷ㅤ挶散摢摦晡昶搷㡦扤㜳攳换敦㝦改㕥敤晢晦㈸㈹㐸㘹㝢㉡㈷㜰㐱㌹㙣㙣㘱㔷挵っ㉣㥥㌲㐲搷㐰㍢㘱㄰ㅡ㔱愹愷挷㡤㑡㠳㜶㕤ㅣ㌱收㍤㔳户㑣㠷挳㜵愸㠸挶摤晡㍡㕦愵戲慥攴攲ㅥ敦㍡㈳㐶挵搳ㅣㅦ戹挶愹户㡦昴扤㠹㘸㔱㡣扣改昸戴㡣挰㑢戴てㅢ㠰㜳㍡戹㤶敤捣㙢㑤晦㘱〸㈷昲㤳敥ㄳ㠲㤷捣㘴㤹㈵攴挴㍥㈳㐲㡡㕤㈲㜹㡦㠸〸散㝣ㅤ戸㤲慤㉣摥愴捡㑦ㄶ挸㈶㑦㘲扤㄰搰㔰㡥散扤捣㠳愶㘹昱戵愴㔳㝦㐷㠶㈵敤慤㍡ㄴ㤱愵㕥㈶挲戲㈰昴慦㕥改㌴昰挲㔰搴愰捡ㄸ㐸摢捦㔰㤷晡ㄹっ㜸㡡〸戰㜸㔷㐰㘶愸㜳〰捡散ㅥ戹㈸愰㠰摡ㄲ㘳敦㔲ぢ搱㍣㈴ㅡㄹ慡㈲㐴愴昰㜹ㄵㄱ㄰㝡晦㑦㘹晣㔰敦晦㐹㠷昱戵昸扦㑢㤱戹㔷㤷扦㔱晣㤷ㅦ㜹昵搷摦㘱㈸㥦㄰〱㔲慣㐸㘴挰攲㉢愵愵㘱ㄶ㘷㈸户㘰㜵㜵㤶〸㐳戱㈵っ㌳搷㘹攰㈵㠳挲〵㜵㑣㙣㥥挸愱㐲扥摡㔳㙥挷ㄶ愸敦ㄱ敡ぢ㠳扤㡢ㄹㄹ搴㌹㤸㈳㍥ㄶ愹㥦愵ㄶㄳ愶㐷搷㜳㐴扡㑦〶㐷〰㐰㔳慦ㄳㄹ㠹㘴㘰㙥㌱ㄱ㡢愹㤰㥥㠱昱㐵㤷㈸㉡㑢昴挶㠴戶ㄸ搰㈷ぢ㕡ぢ㔹攴㕤㈴㡢㘱㔹搸㌶㔶㈶㤲愹戸扡敢㘷㉤晣㥢㌵捦昵㘳ㄵ㡣敡晦㔰㜶㡢扡㡡戸㔲㔹㙥戶㑣㌷〹㙥㙢昸戶㐵㌷ㄶ慤愵扢搹戳㤰㘰㜳摤愴ㅦ敡㙥㙡慢敥戹㉣挱愲㤳㙤搳昰〰㡤㤵挹摣愶攵㙦戲敦㜵㡥㈹昳㔶敥戵㔳㉦㝦㘵敥敥愷敥㕣昸晣收ぢ㜷搹㕢ㅤ挶攰㐷慤㑣㜷㉢ち㉣昱捣㌰㠰摥㜱搹ㄹㅢ扣㔹捥搲㑤戱つ㕢㐵愸愶㔵〴散㐴攵㉢晢㤳搵㑤㤲㠸ㅢ攵扢愴昵晦㈰〷㝥搴㥦攳㥥愴ㅥ昵㜳㐴ㄸづ㔴㐴〰㑥㐹挵愱愸㌸〶昶收㙥ㄶ㝣愳挳ㄸ晣㤲挷㜰散㌰ㅥ㝢㥤㐶㐰㘳戱挸㡢搴愳㘰愵挱㘴㡡摡㝦づ挶ㅡ戸㌵愵㔲㐸㥤㤵㙦晥昸搹㡦愶扥㌰挳㕥愴ㄷ㑣敦㜶愴晥〳㜸㝡㉤摡 | B30: 㜸〱敤㕣㕢㙣ㅣ㔷ㄹ摥ㄹ敦慥㜷搶㜶散挴戹昷收摥㉦㡥戶㜱㥡搰㤶ㄲ㔲㕦攲㈴㙤㉥㑥散㈴㔴愵㙣挷扢㘷散㐹㜶㘶㥤㤹㔹㈷㉥〱㔲㈸㉤攵㈲搴昲〰㉤〵慡ち㔵昴〵㔱㤰㑡ぢ攵〱㠱〴㐲㙤挵㐳㠵㠴〴㔲愸㄰㍣㠰㔰㈴㕥晡㔰愹㝣摦㤹㤹摤搹戵㜷散㙣㕡㜰㤰愷摤㍦㘷捥晤㥣晦㝡晥晦㡣ㄳ㑡㈲㤱㜸ㅦて晦攵㤳㘴攲捡昱㌹搷ㄳ㔶㙥戸㕣㉡㠹㠲㘷㤶㙤㌷㌷攸㌸晡摣㝥搳昵摡㔰㈱㥤㌷㔱敥愶昲慥昹㠸挸攴㘷㠵攳愲㔲㉡㤱挸㘴㌴ㄵ攵散㠴扦㥥昰㐵㘳慢捥㈴挰挴昰搰愱挹ㄳ攸㜵摣㉢㍢㘲㑢摦㌱扦敤捥㠱㠱摣㐰㙥晢挰搶慤戹慤㕢晡㠶㉢㈵慦攲㠸㥤戶愸㜸㡥㕥摡搲㌷㔶㤹㉣㤹㠵晢挵摣㐴昹愴戰㜷㡡挹慤㜷㑣敡摢敦ㅡ搸扥㘳㠷㜱昷摤㜷㜵㘲攸挴挱攱愱㌱㐷ㄸ敥〷搴㘷㡡㔳摥㍥㈲ち㈶搷㈶㠴㘳摡㔳戹攱㈱晣ㅦ㤹㍦摥敥捣㡤㑦ぢ攱㜱㘸攱〸扢㈰㕣つつ㍢慣㐱搷慤㔸㌳摣㍣捤ㅡ挵㔲ぢ扡敢愵慣㘱㔱㉡㘹㔶搸㙢挶㍡㠴扤㉢改㜳㥤搶戸戰㕤搳㌳㘷㑤㙦㉥㙤㑤愰愳㘲㤷㜵搴ㄵ㐷㜴㝢㑡ㅣ搴㉤㤱戲昶㔴捣㘲搲㝦ㄲ㙤㌷㠷㕤㐴㈷㈶㤷㥦ㅢ㜴慤攱㘹摤㤱㌳㜲戹㌱㌱㜵㐷㥤㐲㝤摤敢㥢昷换愹换ㄱ搸攷㡤捤敢愱攴㤸敥㔴㙢昶㌷慦ㄹ㉣扥㝥〶户㌷慦ㅦ搹愳晡㌶户㌶㙦㈳户戲扥戶搲ㄱ搰户摣㔱㉣㐶㑢ㄳ戴ㄳ㘴〸㠸㐰㉤㑢搰㐱搰〹愰㈴晦つ㉥㠹㌶㘴㤱㥡搷搵晣愴㥡㉦愸昹愲㥡ㄷ㙡摥㔰昳㔳㙡㝥㕡捤㥢㙡晥㠴㥡㍦㠹㍡攱㤳㘹㙦㔷㠳攷晣㥦㌶捥晤攸慤搵〷㝥晡搲敤敤户㥥㌹㝥㘷攷㉡㔴㍡ㅣ㑣㙡挴搱㑦㠳搴㙡㔴扣㉤〷㥥㔸ち㔷㠰㈹㡣ㅤ挶㥤挶挰㐰㜱挷㔶晤づ㍤挵㘵挵㈰扦㡥㔰㝡㔰户搳㌸㙥摡挵昲㘹㠹扢㉢㠷㜴㔷搴㌶慥㍦㈸ㅢ㉡㔷散愲㝢挵挲㠵攳㥥敥㠹捤㡤㘵戵㑥收㌵ㅢ〷㕢〹㔷㡥㜷㜵㘳戳㘳㝡愹㈲〶捦㤸㝥昱㔵つ挵搶㤸㔳㥥㙣㕥㍡敡㠸㔳搵搲㜹㌳ㅡ㠴㔰㥢㤵㝤捦㕢愵㕦攴捦慢㙦㜸扡散ち㕢㑥慦摦ㅡ㌳ぢ㈷㠵㌳㉥㈸ㄲ㐵㔱㉥㜵ㅤ㡢〲慥敦㍦㘴㘳愱攰搶攲㜵搱㕣㘳昷ㄹて捣㉣㡡㤸敦㡣㜰扣戹〹㝤戲㈴搶搷㔵昱挷㐴挱愶扡散搱㜲愱攲づ㤷㙤捦㈹㤷敡㑢〶㡢戳㍡㈴㑤昱㐰戹㈸㤲挹㠴ㄴち㄰戸㙤㙤㡡㤲戸慤㌹㉦㐸㐴㐴㔰㑣㐶摥㔸㑦㜶戹㈳㔸ㅤ㔶㔱ㄲ愴㐹昵㠶㐵㍡攳㝣愵㡣㠹攱挰挸㥡愸㍦㌸攸㉤㡢㜴㕢挵摣㠷㕢㔹㔵㝢㠳搵敦㥥ㄵ戶户㔷户㡢㈵攱挴㙡㍦㠵㌳搲扡〱㔲ㄷ㈰㄰㥡敥ㅥ㔵㥤㜲㐶㤹㑢㥤㌶㡢摥㜴㝡㕡㤸㔳搳ㅥ昲愰㈱㌳ㄹ㙥敤扣㐷㕢㡤㉣㙤つ㐱㉦㐰㌶㥢㐸慦㘵愵㜴ㄶ㑦㈲㐵改ㄴ挳换㜵㠲㥣敤敡㜸戹搳ㄸ㌵㑢㥥昰㠵㜲户〱㡣昸㕡㑤愲慦㡢㈴敡攸〵㕦㘱慣㌵㠶㐱愵扡㘹㝢㜳㌵扥㥤挷㈵㍥ㄱ慤挸㠲㘵㈷ぢ㈸ち敡攵㐱っ慦㠱㘸ㅡ愴㐱㝣攵〸ㄱ㤱つ㘲㌴㍢㝡慥㈷㌲搶㡦㤱ㄱ愸ㅦ㈵㐲搶摥摡㕣㐶㤰搸攷ㄳ㈹ㅢ㌵攵挷ㄵ㘹戶㤰㉤敦㑢戳㜵搸㌸㙤㍤挱〶㠲㡤〴㥢〰㤴扦㐱挲㔱捡㈱㕤晦㘸㔷攰㕤扢㤲攰㉡〰挸㈷㡤㌲㈷㄰㔵戴愱㤶㘲㐷戲㕥ㄷ散㘴㘹ㄴ晢愲㠸㤶㜱搵捥散戲㈴愲〳慢㜳㜹攸摡愴搴戱㌷㌵愷捤攸㜲㐸㤱㌱㔵愳㙢㕤愴㙡㜴㈳㔸戵㐵扤㜵つ㥡㙡㝤〴搷〲昸㡡㠵挶敥搲慣㜹㥡㤳㤷㠵㐹攴ㅢ㐲㉤㉡昷㠰㠸㘹晥挷〸戸㜹㐷㤷ㄵ晢㤹愶㘰扦㜱搹摢捦㕢㥡昳㜶㠰昴〶㥤戹愲㜳攸㉢扡㐸ぢ晡㍡戰㤷昲攷愶晡攵〶ㄴ㙢㌷ㄲ摣〴搰愰㕦㜸昲扥㔸㉦㠱㌴㠹慤〸收搶搰攳㈲㉤摣㠹戹ㄹ㈱戵㑦愷㌱愱㍢㔳挲㠳昷㘲摦〸散攰戲攳㠸ㄲづ戴㐵㤹挱戳换㠶晡㑣㜷搴㈹㕢捣㕦戱㡦摤换㐲㌱㈴㤳㙡㕢愲挱㍥㡥戱㌳㈳晥愶〸攵㔰晦摥搱㕣㐸㐴ㅡ搵㤳ㄷ摢挵㥦㉤㔷㈴㐹ぢ㤲攴ㄶ㙣慢㜶㉢〰愴㠴昲㠷愶ㄲ愵㥦搵戶挸㙡昵搶㉡扤㝢㌱㈷㤳〶晦攱㍣㌹搲攱㍢㙢㠷攰㍢㜰扢慣㜱搳慡ち㡢づ㙢㑣㌸〵昸ㄵ捣㤲挸晡㉥㔹㡡㥡ㄵ㔹㜱㤹挸㡡戶戶㜹㘷改ㄸ摦㥡愴㤳〶㈹ㄱ换敤戱㠵㌱攷昰ㅡ㔱搱〵㐹愱ㄲ攳ㄶ慡㑡㈰㔲ㅥ敢慥㠸㤸ㄶ㐴㑣づㅢ愷摤㑥戰㤵㘰〰㈰昵ㄶ㈴捤㔲㌷㥥愱戰昶㔹扡戳昳昹㐴㠶㘸㤰敥挱㌷㥢ち慢敤ㅣ㘶〷挱㐷〰ㅡ捣ㅦ㍡ㅦ㘳〸㔱愲㍣㐲㠸戴㤶㌴攳㤸㈹㑥㤳〶㔶ㄹ〸㉡つ㔷㕣慦㙣㌱慡搴㘵㡣㤴て㤶扤ㄱ搳㥤㐱ㄴ慡搷〸ㄲ挷愷㠵つ敡㜲㘰晢㌴攴㤵㘷㘶㐴㔱㌳挶换ㄵ㠸戶㝤㈳换攱㔰㡥昵挱㤶㤴攷㜲㔵挱搳摡搹ㄸ㕤㈸昲㐴っ㕦㉢㍤戱㑢昲㝣昳搰搷㕤摢搱〹搳㉢㠹づ挳㘷㍡愶㌳〶㜶ㄱ㔱㠳㘲扢㌱㌱敤〸㌱搲㘵散㜱捣㘲挹戴〵㤱〱ㅢ㤳㠱扡晤㘲ちㄱ㠲戱㌲攳㝦㘵扢换㤸㜰㜴摢㥤搱ㄹ㑣㥣㕢㔳昷㈶㐳㈲㈹㘳挸戴㕤っ㈳戱挸㜴户㌱㍥㕤㍥㡤㘸㙤挵戲昷攸㌳敥戲挰ち㠹摥㝦㈴㙡ㄴ㔵㔱㔵㈵愳㘶㕡挵てて攴㠹挴㌶晣㤲〴ㄲ㔷㠹ㄴ晤攵㌱摡㥢㜶㝤㄰㥦愱㥤捥㌹㜵㈲㜲㔴捤㙣㡢㤵挲攴㔴敤㉥戶戹ㅢ攰扥㍤㐷昷搵愲㜲㤷ㄴ慦㑥搱挳ㅦ㈳攳㈵㔹㔴㠳㈰昴捦慤昲㐹㠵㜹愴ㅣ㜰㈰㌰捥户㐶昲换ㅡ戲づ愹㙦㔵㉤㌹㡡㈸㔲愷戱㕦㥦ㄴ㈵挴愲㉤摤㕢攵扦搰㡣戵昴㤲ㅢ㤴つ㤷㉤㑢㈷㘹㤱㉣挷ぢ㍡㈹㜸戰攲㤵て㤸戶㘶〰㐸晡ぢ戲昴㌳挸搲捦挸慣㑥攳〸挳㠲㌲捤扥捡㔳扡㘳㝡搳㤶㔹挸昰㠵愱扢㘵㐱㤳㘰㜲㑡摥昰〹㘵㐶㕦㠳㌵㝦ㄴ㈶㥢㥢〳扡㜳㤰愳摣㍡愲ㅦ㤴慢㉡㘹晣愷戴攸㔸㠲㠰㤱㕥㔲敤ㅥ昴㤶㤲㌷㈳㈰㜲攴㜳㈱扣㝦㜱攱㜳挸昱晤㜲挴㝡っ㠹挰㈳ㄸㄱ昲㜴㙦愷㡤愳戶改〱㝢挴搸愸改㡤戸㐰㌹〰㤲昲㜸扢㔹㘲㌵搲愸扦慡ㄵ慥㤹㕦㔴愷㈶慥㥥㕦ㅥ搵ㅢ㌷㉣㔰散㙢㤴㠸㈲㔹慣㤲搴㉣ぢ捣㜱㌹愹ㅡ㐵㉡敥㔰摢㈸㜱㙥搳摡扥㔳㡡㕣㠲㘲㤲㌴㤳搰㜶㑡㐲㐱㤰㤷搴〱ㅤ㐵㝦㝤㍣㜹㐴愲㌵戴〱戲搴㔳㝥㕥㔷㄰づ摣㠷㉢㈷㐵㤱つ摥挰摦慢㠲攴愱㡡㔷㔷愲㥦改つ㑡〶㑢愵㐳㌶慣㠴㠲敥ㄴ㤷〹㑢㘳㙤扥㠶㤱摣搹慡昶昷户㌷挲㠸〱ㅢ㌲㈴ㄲ攳〷〶ㅢ㠲戹㈲搱㔴㕡㘷㕤摣敡㙡㜶㠶㙦〷㠴㙥㑢っ㡣㝢挵ㄱ㌱㉢捤戰㥡㈵摦㉢ㅢ㔴㑦㡢㔲㡥㙡挶攰愴ぢ㤵敥㔱㡥〷㈹挹攰㥡㜱㠴㙥㈹㕣㘰㠰搸つ㔲㘳〵て㘱摤㙡〷㍣ㄹ㉣ㅦ散㘰㐷晣戰〹慤㌳㑡搰㜴っ攱搶㉦㠲扣搳㈲㐶㈱㐸つ昹晣㙢㤷昲散㌳㝣㕥摡㤵〸ㄳ〱ㄳ㌱搴ㄵ㘳㍤〰戹搱愸㈴戹愸㌷っ㤶晢㤲㑤ち慤捥㌰㡦㈶㐶ㄷ㑤㍥挷挳つㅥ挶戱扡挹㌶㈵摣㜱昳㑣㘸搳搲摣㉡㘳㥦㕤㈸㔵㡡㐲慡攲㔰㔶㑢㡤扣㉣昰㈵慦晦昹摣ㄴ戳㉦挱愶散挳㔱㡡㑢㈶㤲㕡户扢戵㡦愳戹ㄴ㜲攸挳㤷㙤っ㍥挶戸攵㘴㌰㙣摥ㅤ〵摡㠷㙢㙡㤷ㄷ攴挵㌹㠸戴㜹㔹㤴㘵晢㜱ㄷ慦ㅡ㐱㤶摣ㄶ愹戶扦扣扦㑣㥢㍤㤲戵搷昴戳㤶〵㡥戰㑥㕦攰愵搳㌰㐶㕡攴づ㜶㤲戸㄰㐴㜶㉦㝣㑥扥㈶㉥散ち㡣て㠵昱㕤㥥㠲ㄲ搸㔵㌰ㄲつ㙥戵㘶㜵㉢㡣晣搲昲搶敥〵㔰ㄸ〲愶㐱㡢㥡扥㠱㌳㠴昴攲〶づ㠳㤱㌱搱搱㘸㈰㤵㌱捡㕥㌸散㠱㌴㜰ㄳて搲ㄳ㘵㈸㈱㙦慤扣ㄴㄶ摥㑢散户㜰〴㉡㍢敢ㅢ㌲挷㜴て㔷㕦散㑤つ搹㠳挵㈲捤㕤昸攷㤶〵㔶㜱㙤挳㌷㐷搷㌶㕣挸㤲㙢愲㝤㜷㝤㐳㐱㜰㔱㜰摢㐸㙥慦敥ㄵ愶挷扤㌹晦搲㔶慢㈴㤱晡〵晣ㄱぢ㡥㑥㥢㌹㘹昳ㄲ敡㉣昷㍥㝢搲㉥㥦戶攵扣㔲㉥㙦晣搱㡡搵摡摢㌹挹㙣攲㝤晣㈷ㅦ㌵㤱㝡ㅤ㍤㉥㘵摡散愰收㈰㘱㍦昲捥愵㉦つ晡昰ㅡ㐳㈷戰摤慢㌷〶㐸㈷㙢ㅢ攸㐴ち㠲ㄵ㐲戱愷㍥㌰㐲㔱㝥づ戴㤲㔸晣㈳㌹昶晣㐵戰扥昲㌳攴㄰攱扣搶ㄱ〸昲㙢攳㔱㈷〵㜹㜰扤㠳慤晥㝦戰ㄴ㜲昳㠲散昴㕦㘰㘶攵戵㐶ㄴ㕤㑤ㄴ扤ㅡ愰㠸㤷〹〳ㄴ㌱㄰㝢㔱㈱㙦捥㝥攵愸昹愱㕦敢晤ㅦㅥ㌵敦〳㠶昹㐸ち㐱㔰㡤挱昸慡㌱搰㌶捦ㄸ戸ㄱ挵搲ㄸ戸㥦㙤ㄸ慦昷㡤㠱挰摢㜱〰ㄹ㡢ㅢ〳㡣攲挵㤸㝣㤱愰㙡挴㠱挱戳搶㝡㡢㥥戰扤戸㕥㉢㕣㐴敥愱㥥摣㘱昸㥥㌶捣捦ㅥ搳ㅤ摤摡㈴昳昷㌸〲㙡换㤹挰㝤㙤搹㠴㉤㌶㉦㔸㈲ㅢ㉤攰㤵〸晤改㉢㥥㤳愵摤㔲〷愶晣挷㜷搴㉢ㄹ㈵㝤〹㍥ㄱ㠵㈷㠴挴愷搷晥㜰捦㕦ㅥ㜹㙣ㄷ敦愵〵戴㥡㘲㈰戸㤵攰㍣㉤〷㠴㙦㈳㔷㐲搶昱昳㥢〳昸㄰挹㥣㈹㠹㈱摤㤱昶㡥慢㔹㘱搲㈷扣〸㘱晡挴户ㅣ㡣㐹摣㜰昰㡤挹㕣㠳㘳㔳㝥扥㈴㥤㠱戹挸挴愵昷㉥っ㄰㉡㑤㔵㔶㡢㜶㘵敡挷㔰㍡ㄷ㌹㤱㝡㝢㤰攷㑢㍥㡡昲㜲愳㔶摢㐱慤㈶捤㐴愵ㅦ㌵㐲㈹㠵㐸〳㈹㈴㝡㘴㘱攸㕦㑡愹㌱㈴㔲㌹㠰㤸ㄸ㕡㘳㌰㤷㈷晦ㄵ㈱㈰慡搷晢㕡晣㔴〵扢〸㉣㠶㕥昷㔶捦慥戴㍡㐳搵挴愰慣㍣㝤ㅣ㐶㐲ㅥ㔳㤸挱㈸慤捣㍤㠲㐴昸愴〶㤰㕡戲攳㠹㠳㜴㔹㝥㠸捤㘷散㤴㐵慦㕡搶摡㙤㔷㜰挷〳㝡㈶㉤ㄵ㠶扤㠶搹㌸㝡捡㘸㥣㕦㌵敢㘷ㄱ㜶晢挹㙡愳㡥愰〸㍡换摥㠴昳㈷挲㝣晣ㅥ㠸攵晤戵慥搷㌵㤶㔰挷搹敤㔸㈰㝦戰扦慥㡥㘱㙣㡣㑡㡥㠱㠴㕤㔲慤㡣㝦〹㝣ㅣ㑤愴㍤慦㘸戵㈴挷㔲ㄴ㐶愳㐳捥㙡㔳攷改㝦挶愹㈵㘷㑤戰㌶〳搶㜵晡晦ㄸ㌲ㄶ搵晦ち愳㙣ㄲ㘵挷㠳〴㕦㔲㡣㤴㉣ㅡ㥣攱㡥挰㠷㡤㌰㡤㍣〲㙢㌲挹攰戶㥦ㅡ挷㈷慡㝥戱㤴攰昰㜰㈵ㅢ㉦㐱㔴摢搲戶敤㘸㉡〰ㄹ〵㑡晤〰㈲愸㘹㝢㑥扡晥ㅣ㡢㡣㐴晡〱㠰戵〷捣㠲㔳㜶换㠶搷㌷㡥昰㙥ㅦ扦㌰㌳㘰昳っ㉡㉦㌶ち戵敢戱ㄳ㥤て愲捤挱㐳㄰搸〷㠵昷㐱㐵ㅤㄹ㐳㔸㕡捣㠲〷㠴㥥㐸㈰㠹摡挱㕤㙤ㅣ慥攸㈵㝣愰㝡〸㕥㑤㡦㔹换㐲搹昹扥攵挶扢ㄸ摣㍡摣挶扡ㅦ㥥ㅦ㔱捡㈱っ㈶㤷昰攰㐳摣搷挶㍤愸慦ㅢ慣捤㘵捤搶扣㙢搹搴昷㠱搳愵㡤㔲㑦㌲ㅣ㤳摦ㅤ㘷戵㠷〸ㄱ攷愱㜷㜴改慥㔸昶搶ぢ㍡て㍥摢愶换慢扦〴㐷搹ㄲ攲摣㥦㐲㔳攵㕥〲晣戴㝣㤰攰㡢㐲㝦摥㍤㑣㍣㡦㘵㤱〱㤰㑥愴㜵㠰收㔴晤摤㠵愸㕡攱搱㠲㔴㤸㔵扥㠳㜲敥㤲扦摡㈲昳㜰搴㤰㐷〸愴戵愸攴㔶㜸㠴㤰攳㍦㡢〶搵昱愷㤰摢㝣晣㙦㉤㌸㍥㤵扦㕣㕦戴晦㥥㔰㜹㘸㈷㌸昴㐹㠲ㄲ㠱〵搰ㄳ搶散愶㔸愴慣㐹晢㐱㠴搷㜶㈱㡤攷昷挱扦攷㜷扤昹〶㥦㝦敥㔲愴㈰㐴㔱晤㉡㈸〸攵㉡㥥㡡慥㘲〶戹捤㔷昱昵㠵㔶搱㐳ㄹ挹㤹㘸づ㐰㔷㥢㐲㕡㤱慢㜲㤱攰㠶昲愷㐸㠴㈲㔱㌷㡢ㅥ㈲㔶戶慤㈰㠱戶摣㜹搹㜶ㄶ㠹戰㙤㡡ㅢㄱ昳〹㡦戴㡦㜸攵㤱㕥㥢戴敦㜶㑤晢㕡㌱㘳〵晥搶㘵㈱ㅢ戰㈴㝥ㄳ摢㔴愴愷㕢㡣攵㉢㑦㠶㠸搹扢㌷晣㍥㑡つ愲㑢㈰っ摦㈲㈵㈱㜱㈳㤵㉦㠵㤵㕦㝥愵收ㅣ㐵〱ㅥ㔰㡦㕦㤹〴㈷㉢㍦ㄱ㔶摥㠶㙦慦㘴㥤〴敦ち昰㌹ㅦ㔶㈶㘱捡捡㡦㠷㤵晦戱㙤㔳戵㜲㐸㠷㝥捦㈹ㄲ㐹㡣慤㉢慤晦挸㜷搸㍣㔴愷っ敡捦づ挳捦愶攴㤴㐱攲㤲搴愰㥤戸昶攱攰㑢攸晤戸挵㠴换ㅥ㄰戲晥ㅦ㐴搸㠷摢㑤㈳扡愷攳㐳攷㔹㠴㤵ㅤ㑤扥戱㜱摡㌸攴㈰愳摤搸攷攲㑣㔵㕣㔶㈴〲㜳㈰改敦敦㈲敥昷ㄸ搳戱戶ㅦ㘱㌸㑣攵㙤㤱搶㤴㠷っ愱㈴㤵挷㐲捣㈶捥搵㘸㐶晢っ㤰〳㌱〹挸㠴昶㔹㐰㍦攴戲㤶ㄹ㍤攴㝦挹摣攷㤰搰ㅥ㈵昸㍣㐰㔶㈱戳㤳づ搲㕦〰㔸〷㉢ㄵ㝦㤰挲敤㉢㡡扥ㄹ㐷捣攲て㕣晣敡㈷戶慡㥣つ㠷㡣ㄲ㤳昶㐵㌶㝢ㅣ愰つ敥㕡㈵㈰挵慣昶〴㜲愲㐳㔳㝣挸愱㥦㘴挱㤷〹扥〲㤰㑤㜱捡㑢摥㍢慥慣㐵晤昵㔵㌴㔵戸㈱㔲㥡㝤㉤㐸昰㈵㜵づ攰㥥收ㄶ㌳て挴攱㐷晣〸㙤搶㝤慤扦ㅢ㕦摦捦㜱搱㙤昸攳㈳㈹㘹摥㈷搵㡦戶搶ㄷ㔹㠱㤶戹晣㌹搸散㑢攸㠷敢慡㔹㥡散昱㘳昸㘵搴戴昲㈸晥㍤㠷㥦㜲ち㈳㜰ㄴ敡摢っ㥣㉤愴〴㔹㌰ㄳㄴ㔰㜱㘹㑦〱㈸挴㌱昱愴㍤捤㌷愲㤶晤㙢摦〸ㄲ㝣㔱㠸搷㜳㑣㤴㠲收攱㠰挴戵㉣㌸搹㌰㈰昱㉦ぢ㑥㐴〷晣㈶㜲ㄵ㠹㉣㈴敡㜵ㄳ㤱㤶㘴敥㌳〰㕤㙤摤㥣ㅢ㜵㥤㝡㐶㈹㍣㕣㝣昸攱㜷扢㤳㝤㥢㤳㥦戸户昳㤹昳扦㝢攷改户㍦戹昳敦敦㍤昷摣摢㝦㝤晡㡤昷㕥㥦摣昹㥢ㄷ㕥昸昵㝤摦㝢攳㥤㌵挶昳敡㉢敦敥㝦晥散挰挹戳愷㡣愳户敤㌹晢挰㠹挳〳㘳慢晢摢摡摡摢㙦敥晤敤挶㕢㝡捥㥤㝡㔵昹攵ㅦ㌷搸㡡㕣㉥〷㍣〲㄰㍥㍤㕣戶㥣挶户㤱挰㌴㌸攳て㜵ㅡ㕣敥㌹晣㤴㘲戰㔱㐳㜸挹挰戳挱〹挸㠲㐲㝤㐱挷㝦〰づ挲戴ㅤ | C30: 㜸〱敤㕣㕢㙣ㅣ㔷ㄹ摥ㄹ敦慥㜷搶㜶散挶㑥搲愴㌷昷㝥㜱戴㡤搳㠴戶㤴㤰晡㤲㡢摢㕣㥣搸㐹愹㑡搹㡥㜷捦搸㤳散捣㍡㌳戳㑥㕣〲愴搰㉢㔰愱㤶〷㘸㈹㔰㔵愸㠲ㄷ愴㔲愹㙡愱㍣㈰㤰戸愸〵ㅥ㉡〴て㐸愵㐲昰〰慡㈲昵愵て㤵捡昷㥤㤹搹㥤㕤㝢挷捥愶〵〷㜹摡晤㜳收摣捦昹慦攷晦捦㌸愱㈴ㄲ㠹て昱昰㕦㍥㐹㈶㉥㥤㤸㜷㍤㘱攵㐶捡愵㤲㈸㜸㘶搹㜶㜳㐳㡥愳捦敦㌳㕤慦つㄵ搲㜹ㄳ攵㙥㉡敦㥡て㡡㑣㝥㑥㌸㉥㉡愵ㄲ㠹㑣㐶㔳㔱捥㑥昸敢〹㕦㌴戶敡㑣〲㑣㡥っㅦ㥣㍡㠶㕥㈷扣戲㈳㌶昷ㅦ昵摢敥ㄸㅣ捣つ收戶つ㙥搹㤲摢戲戹㝦愴㔲昲㉡㡥搸㘱㡢㡡攷攸愵捤晤攳㤵愹㤲㔹戸㕢捣㑦㤶㡦ぢ㝢㠷㤸摡㜲换㤴扥敤戶挱㙤摢户ㅢ户摦㝥㕢㈷㠶㑥ㅣㄸㄹㅥ㜷㠴攱㝥㐴㝤愶㌸攵㙤愳愲㘰㜲㙤㐲㌸愶㍤㥤ㅢㄹ挶晦㤱昹攳敤搶摣挴㡣㄰ㅥ㠷ㄶ㡥戰ぢ挲搵搰戰挳ㅡ㜲摤㡡㌵换捤搳慣摤㔸㙡㐱㜷扤㤴㌵㈲㑡㈵捤ち㝢捤㔸〷戱㜷㈵㝤扥搳㥡㄰戶㙢㝡收㥣改捤愷慤㐹㜴㔴散戲㡥戸攲戰㙥㑦㡢〳扡㈵㔲搶㥥㡡㔹㑣晡㑦愲敤晡戰㡢攸挴攴昲㜳㐳慥㌵㌲愳㍢㜲㐶㉥㌷㈶愶敥㙥愷㔰㕦昷敡收晤㜲敡㜲〴昶㜹㙤昳㝡㈸㌹慡㍢搵㥡〳捤㙢〶㡢慦㥦挱捤捤敢㐷昶愸扥捤㡤捤摢挸慤慣慦慤㜴〴昴㉤㜷ㄴ㡢搱搲〴敤〴ㄹ〲㈲㔰换ㄲ㜴㄰㜴〲㈸挹昷挰㈵搱㠶㉣㔲昳扡㥡㥦㔲昳〵㌵㕦㔴昳㐲捤ㅢ㙡㝥㕡捤捦愸㜹㔳捤ㅦ㔳昳挷㔱㈷㝣㌲敤敤㙡昰晣攱愵㍦敢㥢㕥敥ㅤ㝢晣㤱晥㜷㝦晢㘴摦㝢㥤㙢㔰改㔰㌰愹㔱㐷㍦〹㔲慢㔱昱搶ㅣ㜸㘲㌹㕣〱愶㌰戶ㅢ户ㅡ㠳㠳挵敤㕢昴㕢昴ㄴ㤷ㄵ㠳晣㍡㐲改㐱摤㑥攳ㅥ搳㉥㤶㑦㑡摣㕤㍡慣扢愲戶㜱〳㐱搹㜰戹㘲ㄷ摤㑢ㄶ㉦㥣昰㜴㑦㙣㙡㉣慢㜵戲愰搹〴搸㑡戸㜲扣换ㅢ㥢ㅤ搵㑢ㄵ㌱㜴捡昴㡢㉦㙢㈸戶挶㥤昲㔴昳搲摤㡥㌸㔱㉤㕤㌰愳㈱〸戵㌹搹昷㠲㔵晡㐵晥扣晡㐷㘶捡慥戰攵昴〶慣㜱戳㜰㕣㌸ㄳ㠲㈲㔱ㄴ攵㔲搷戱㈸攰晡㠱㠳㌶ㄶち㙥㉤㕥ㄵ捤㌵㜶㥤昲挰捣愲㠸昹捥ち挷㥢㥦搴愷㑡㘲㝤㕤ㄵ㝦㑣ㄴ㙣慣换摥㕤㉥㔴摣㤱戲敤㌹攵㔲㝤挹㔰㜱㑥㠷愴㈹敥㉦ㄷ㐵㌲㤹㤰㐲〱〲户慤㑤㔱ㄲ㌷㌵攷〵㠹㠸〸㡡挹挸ㄷ搷㤳㕤敥㌰㔶㠷㔵㤴〴㘹㔲扤㘶㠹捥㌸㕦㈹㘳㘲㌸㌰戲㈶敡てづ㝡挳ㄲ摤㔶㌱昷昱㔶㔶搵摥㘰昵扢收㠴敤敤搵敤㘲㐹㌸戱摡㑦攱㡣戴㙥㠰搴㔹〸㠴愶扢㐷㔵愷㥣㔲收㔳㈷捤愲㌷㤳㥥ㄱ收昴㡣㠷㍣㘸挸㑣㠶㕢扢攰搱㉥㐲㤶戶㤶愰ㄷ㈰㥢㑤愴晢㔸㈹㥤挵㤳㐸㔱㍡挵昰㜲㥤㈰㘷扢㍡㕥敥㌴㜶㥢㈵㑦昸㐲戹摢〰㐶㝣慤㈶搱搷㐵ㄲ㜵昴㠲慦㌰晡㡣ㄱ㔰愹㙥摡摥㝣㡤㙦ㄷ㜰㠹㑦㐴慢戲㘰挵挹〲㡡㠲㝡㜹㄰挳㙢㈰㥡〶㘹㄰㕦㌹㐲㐴㘴㠳ㄸ捤㡥㥥敢㠹㡣昵㘳㘴〴敡㐷㠹㤰戵户㌴㤷ㄱ㈴昶㠵㐴捡㐶㑤昹㜱㔵㥡㉤㘶换晢搲㙣ㅤ㌶㑥㕢㑦戰㠱攰㘲㠲㡤〰捡㍦㈰攱㈸攵㤰慥㝦戴㑢昰慥㕤㑡㜰ㄹ〰攴㤳㐶㤹ㄳ㠸㉡摡㔰换戱㈳㔹慦ぢ㜶戲㌴㡡㝤㔱㐴换戸㙡㘷㜶㔹ㄲ搱㠱搵戹㌲㜴㙤㔲敡搸敢㥡搳㘶㜴㌹愴挸㤸慡搱戵㉥㔱㌵扡ㄱ慣摡愲摥扡〲㑤戵㝥㠲㉢〱㝣挵㐲㘳㜷㜹搶㍣捤挹ぢ挲㈴昲つ愱ㄶ㤵㝢㐰挴㌴晦㘳〴摣㠲愳换慡晤㑣㔳㜰挰戸攰敤攷捤捤㜹㍢㐰㝡㠳捥㕣搵㌹昴ㄵ㥤愳〵㝤ㄵ搸㑢昹㙢㔳晤㜲つ㡡戵㙢〹慥〳㘸搰㉦㍣㜹㥦慢㤷㐰㥡挴㔶〴㜳㙢改㜱㤱ㄶ敥攴晣慣㤰摡愷搳㤸搴㥤㘹攱挱㝢㌱㌶ち㍢戸散㌸愲㠴〳㙤㔱㘶昰散戲愱㍥搳摤敤㤴㉤收慦摡挷敥〵愱ㄸ㤲㐹戵㉤搱㘰ㅦ挷搸㤹ㄱ㝦㔳㠴㜲愸㝦㙦㘹㉥㈴㈲㡤敡挹㡢敤攲捦㤶慢㤲愴〵㐹㜲〳戶㔵扢ㄱ〰㔲㐲昹㔳㔳㠹㌲挰㙡㥢㘵戵㝡㙢㤵摥扤㤸㤳㐹㠳晦㜰㠱ㅣ改昰㥤戵挳昰ㅤ戸㕤搶㠴㘹㔵㠵㐵㠷㌵㉥㥣〲晣ち㘶㐹㘴㝤㤷㉣㐵捤慡慣戸㐰㘴㐵㕢摢㠲戳㜴㡣㙦㑤搲㐹㠳㤴㠸攵昶搸挲㤸㜳㜸㡤愸攸㠲愴㔰㠹㜱ぢ㔵㈵㄰㈹㡦㜵㔷㐵㑣ぢ㈲㈶㠷㡤搳㙥㈶搸㐲㌰〸㤰晡㍤㈴捤㜲㌷㥥愱戰昶㌹扡戳昳昹㐴㠶㘸㤰敥挱㌷㥢ち慢㙤ㅣ㘶㍢挱㈷〰ㅡ捣ㅦ㍡ㅦ㘳〸㔱愲㍣㐲㠸戴㤶㌴攳愸㈹㑥㤲〶搶ㄸ〸㉡㡤㔴㕣慦㙣㌱慡搴㘵㡣㤶て㤴扤㔱搳㥤㐵ㄴ慡搷〸ㄲ昷捣〸ㅢ搴攵挰昶㘹挸㉢捦捥㡡愲㘶㑣㤴㉢㄰㙤㘳愳㉢攱㔰㡥昵挱㤶㤴攷㜲㔵挱搳摡搹ㄸ㕤㈸昲㐴っ㕦㉢㍤戱换昲㝣昳搰搷㕤摢搱㐹搳㉢㠹づ挳㘷㍡愶㌳〶㜶ㄱ㔱㠳㘲扢㌱㌹攳〸㌱摡㘵散㜱捣㘲挹戴〵㤱〱ㅢ㤳㠱扡㝤㘲ㅡㄱ㠲昱㌲攳㝦㘵扢换㤸㜴㜴摢㥤搵ㄹ㑣㥣㕦㕢昷㈶㐳㈲㈹㘳搸戴㕤っ㈳戱挸㜴户㌱㌱㔳㍥㠹㘸㙤挵戲昷攸戳敥㡡挰ち㠹摥㝦㈴㙡ㄴ㔵㔱㔵㈵愳㘶㕡挵てて攴㠹挴㔶晣㤲〴ㄲ㔷㠹ㄴ晤攵㌱摡㥢㜶㝤㄰㥦愱㥤捥㌹㜵㈲㜲㔴捤㙣㡢㤵挲攴㔴敤㌶戶戹ㅤ攰慥㍤㐷挶㙡㔱戹昳㡡㔷愷攸攱㡦㤱昱㤲㉣慡㐱㄰晡攷搶昸愴挲㍣㔲づ㌸㄰ㄸ攷㕢㈳昹㘵つ㔹㠷搴户愶㤶摣㡤㈸㔲愷戱㑦㥦ㄲ㈵挴愲㉤摤㕢攳扦搰㡣戵昴㤲ㅢ㤴㡤㤴㉤㑢㈷㘹㤱㉣㈷ち㍡㈹㜸愸攲㤵昷㥢戶㘶〰㐸晡ぢ戲昴㔳挸搲㑦挹慣㑥攳㌰挳㠲㌲捤扥捡搳扡㘳㝡㌳㤶㔹挸昰㠵愱扢ㄵ㐱㤳㘰㜲㑡摥昰〹㘵㐶㝦㠳㌵㝦〴㈶㥢㥢〳扡㜳㤰愳摣㍡愲ㅦ㤴慢㉡㘹晣愷戴攸㔸㠲㠰㤱㕥㔲敤づ昴㤶㤲㌷㈳㈰㜲攴㜳㌶扣㝦㜱昶㑢挸昱晤㜲挴㝡っ㠹挰㈳ㄸㄱ昲㜴㙦愷㡤㈳戶改〱㝢挴搸㙥搳ㅢ㜵㠱㜲〰㈴攵昱㜶㤳挴㙡愴搱㐰㔵㉢㕣戱戰愸㑥㑤㕣扥戰㍣慡㌷慥㔹愴搸搷㈸ㄱ㐵戲㔴㈵愹㔹ㄶ㤹攳㑡㔲㌵㡡㔴摣愱戶㔱攲摣愶戵㝤愷ㄴ㌹て挵㈴㘹㈶愱敤㤰㠴㠲㈰㉦愹〳㍡㡡晥晡㜸昲㠸㐴㙢㘸〳㘴愹愷晣扣慥㈰ㅣ㌸㠶㉢㈷㐵㤱つ摥挰摦㙢㠲攴挱㡡㔷㔷愲㥦敡つ㑡㠶㑡愵㠳㌶慣㠴㠲敥ㄴ㔷〸㑢㘳㙤扥㠶㤱摣搹慡昶昷户㌷挲㠸〱ㅢ㌲㈴ㄲ攳〷〶ㅢ㠲戹㈲搱㔴㕡㘷㕤摣敡㙡㜶㠶㙦晢㠵㙥㑢っ㑣㜸挵㔱㌱㈷捤戰㥡㈵摦㉢ㅢ㔴㑦㡢㔲㡥㙡挶搰㤴ぢ㤵敥㔱㡥〷㈹挹攰㥡㜱㤸㙥㈹㕣㘰㠰搸つ㔲攳〵て㘱摤㙡〷㍣ㄹ慣ㅣ散㘰㐷晣戰〹慤㌳㑡搰㜴っ攱搶㉦㠲扣搳㈲㐶㈱㐸つ昹扣扢㔳㜹昶ㄹ㍥㍦摡㤹〸ㄳ〱ㄳ㌱搴ㄵ㘳㍤〰戹搱愸㈴戹愸㌷っ㤶晢㤲㑤ち慤捥㌰㡦㈶㐶ㄷ㑤㍥挷挳つㅥ挶戱扡挹㌶㈵摣㜱昳㑣㘸搳搲晣ㅡ㘳捣㉥㤴㉡㐵㈱㔵㜱㈸慢愵㐶㕥ㄱ昸㤲搷晦㝣㙥㡡搹㤷㘰㔳挶㜰㤴攲㤲㠹愴搶敤㙥敤搳㘸㉥㠵ㅣ晡昰㘵ㅢ㠳㡦㌱㙥㌹ㄹっ㕢㜰㐷㠱昶攱摡摡攵〵㜹㜱づ㈲㙤㐱ㄶ㘵搹㍥摣挵慢㐶㤰㈵户㐵慡敤㉢敦㉢搳㘶㡦㘴敤㌵晤慣ㄵ㠱㈳慣搳ㄷ㜸改㌴㡣㤱ㄶ戹㠳㥤㈴捥〶㤱摤戳㕦㤲慦㠹戳㍢〳攳㐳㘱㝣㤷愷愰〴㜶ㄵ㡣㐴㠳㕢慤㔹摤ち㈳扦戴扣戵㍢〱ㄴ㠶㠰㘹搰愲愶㙦攰っ㈳扤戴㠱挳㘰㘴㑣㜴㌴ㅡ㐸㘵㡣戲ㄷづ㝢㈰つ摣挴㠳昴㘴ㄹ㑡挸敢㤳㤷挲挲㝢㠹〳ㄶ㡥㐰㘵㘷㝤㐳收戸敥攱敡㡢扤戱㈱㝢愸㔸愴戹ぢ晦摣㡡挰㉡慥㙤昸收㘸㕦挳㠵㉣戹㈶摡㜷㔷㌷ㄴ〴ㄷ〵户㡥收昶敡㕥㘱㘶挲㥢昷㉦㙤戵㑡ㄲ愹㥦挳ㅦ戱攸攸戴㤹㤳㌶㉦愱捥㜱敦戳挷敤昲㐹㕢捥㉢攵昲挶ㅦ慤㔸慤扤㥤㤳捣㈶㍥挴㝦昲㔱ㄳ愹搷搱攳㜲愶捤づ㙡づㄲ昶㈳敦㕣晡搲愰ㅦ慦㌱㜴〲摢扤㝡㘳㠰㜴搲搷㐰㈷㔲㄰慣ㄲ㡡㍤晤㤱ㄱ㡡昲㌳愰㤵挴攲ㅦ挹戱攷㉦㠲昵㤵㥦㈲㠷〸攷戵㡥㐰㤰㕦ㄹ㡦㍡㈹挸㠳敢ㅤ㙣昵晦㠳愵㤰㥢ㄷ㘵愷晦〲㌳㉢慦㌵愲攸㜲愲攸搵〰㐵扣㑣ㄸ愰㠸㠱搸㜳ち㜹㜳昶慢㐷捤㡦晤㕡敦晦昰愸㜹ㄷ㌰捣㐷㔲〸㠲㙡っ挶㔷㡤㠱戶〵挶挰戵㈸㤶挶挰摤㙣挳㜸扤㙦っ〴摥㡥晤挸㔸摡ㄸ㘰ㄴ㉦挶攴㡢〴㔵㈳づっ㥥戵搶㕢昴㠴敤挵昵㕡攱㈲㜲て昵攴㡥挰昷戴㘱㘱昶戸敥攸搶㐶㤹扦挷ㄱ㔰㕢捥㈴敥㙢换㈶㙣戱㘹搱ㄲ搹㘸ㄱ慦㐴攸㑦㕦昵㥣㉣敦㤶㍡㌰攵㍦扥愳㕥挹㈸改昳昰㠹㈸㍣㈱㈴㍥摦昷攳㍤㝦㝢昰攱㥤扣㤷ㄶ搰㙡㡡㠱攰㔶㠲昳戴ㅣ㄰扥㡤㕣〹㔹挷捦㙦昶攳㐳㈴㜳戶㈴㠶㜵㐷摡㍢慥㘶㠵㐹㥦昰㈲㠴改ㄳ摦㑡㌰㈶㜱挳挱㌷㈶㜳つ㡥㑤昹昹㤲㜴〶收㈲ㄳ㤷摥扢㌰㐰愸㌴㔵㔹㉤摡㤵愹㥦㐰改㥣攳㐴敡敤㐱㥥㉦昹㈸捡㑢㡤㕡㙤㍢戵㥡㌴ㄳ㤵〱搴〸愵ㄴ㈲つ愴㤰攸㤱㠵愱㝦㈹愵挶㤱㐸攵〰㘲㘲㘸㡤挱㕣㥥晣㔷㠵㠰愸㕥敦㙢昱㔳ㄵ散㈲戰ㄸ㝡摤㕢㍤扢搲敡っ㔵ㄳ㠳戲昲昴㜱〸〹㜹㑣㘱〶愳戴㌲昷㌰ㄲ攱㤳ㅡ㐴㙡搹㡥㈷づ搲㘵昹㈱㌶㥦戱㔳ㄶ扤㙡㔹㙢㤷㕤挱ㅤて攸㤹戴㔴ㄸ昶㕡㘶攳攸㈹愳㜱㝥搵慣㥦㐵搸敤㈷慢㡤㍡㠲㈲攸㉣㝢㈳捥㥦〸昳昱㝢㈰㤶て搴扡㕥搷㔸㐲ㅤ㘷户㘳㠱晣挱晥扡㍣㠶戱㌱㉡㌹〶ㄲ㜶㔹戵㌲晥㈵昰〹㌴㤱昶扣愲搵㤲ㅣ㑢㔱ㄸ㡤づ㌹慢㑤㕤愰晦ㄹ愷㤶㥣㌵挹摡っ㔸搷改晦愳挸㔸㔲晦㉢㡣戲㐹㤴摤ㄳ㈴昸㤲㘲愴㘴挹攰っ㜷〴㍥㙣㠴㘹攴ㄱ㔸㤳㐹〶户晤搴〴㍥㔱昵㡢愵〴㠷㠷㉢搹㜸〹愲摡㤶戶㙤㐷㔳〱挸㈸㔰敡㠷㄰㐱㑤摢㜳搲昵攷㔸㘴㈴搲昷〲昴敤㌷ぢ㑥搹㉤ㅢ㕥晦〴挲扢晤晣挲捣㠰捤㌳愴扣搸㈸搴慥挶㑥㜴摥㠷㌶〷づ㐲㘰ㅦ㄰摥㐷ㄵ㜵㘴っ㘱㜹㌱ぢㅥ㄰㝡㈲㠱㈴㙡〷昷㈲攳㔰㐵㉦攱〳搵㠳昰㙡㝡捣㕡ㄱ捡捥昷㉤㌷摥挵攰搶攱㌶搶摤昰晣㠸㔲づ㘱㌰戹㠴晢敥攷扥㌶敥㐱㝤摤㘰㙤㉥㙢戶收㕤换愶㝥〰㥣㉥㙦㤴㝡㤲攱㤸晣敥㌸慢摤㑦㠸㌸て扤愳换㜷挵戲户㕥搰㜹昰搹㌶㕤㕥〳㈵㌸捡㤶ㄱ攷晥ㅣ㥡㉡㜷ㄲ攰愷攵㠳〴㕦ㄴ晡昳敥㘰攲㜹㉣㡢っ㠰㜴㈲慤〳㌴愷敡敦㉤㐶搵ち㡦ㄶ愴挲慣昲㕤㤴㜳㤷晣搵ㄶ㤹㠷愳㠶㍣㐲㈰慤㐵㈵户挲㈳㠴ㅣ晦㔹㌴愸㡥㍦㡤摣收攳㝦㝢搱昱愹晣攵晡愲晤昷㠴捡㐳㍢挶愱㡦ㄳ㤴〸㉣㠰㥥戰㘶㌷挵㈲㘵㑤摡て㈲扣戶ㄳ㘹㍣㝦っ晥㝤㝢攷㥢㙦昰昹昷㑥㐵ち㐲ㄴ搵慦㠲㠲㔰慥攲愹攸㉡㘶㤱摢㝣ㄵ摦㔸㙣ㄵ㍤㤴㤱㥣㠹收〰㜴戵㈹愴ㄵ戹㉡ㄷ〹㙥㈸㝦㡡㐴㈸ㄲ㜵戳攸㈱㘲㘵摢ちㄲ㘸换㥤㤷㙤攷㤰〸摢愶戸ㄱ㌱㥦昰㐸晢㠸㔷ㅥ改戵㐹晢㙥搷戴慦ㄵ㌳㔶攰㙦㕤ㄱ戲〱㑢攲㌷戱㑤㐵㝡扡挵㔸扥昲㐴㠸㤸扤㝢挳敦愳搴㈰扡〴挲昰㉤㔲ㄲㄲ㌷㔲㜹㍣慣晣搲㉢㌵攷㈸ち昰㠰㝡晣捡㈴㌸㔹昹戱戰昲㔶㝣㝢㈵敢㈴㜸㔷㠰捦摢㘱㘵ㄲ愶慣晣㘸㔸昹㕦㕢㌷㔶㉢㠷㜴攸昷㥣㈲㤱挴搸扡搲晡㡦㝣㠷捤㐳㜵捡愰晥散㌰晣㙣㑡㑥ㄹ㈴㉥㐹つ摡㠹㙢ㅦづ扥㠴摥㠷㕢㑣戸散〱㈱敢晦㐱㠴㌱摣㙥ㅡ搵㍤ㅤㅦ㍡捦㈱慣散㘸昲㡤㡤搳挶㐱〷ㄹ敤挶㤸㡢㌳㔵㜱㐵㤱〸捣㠱愴扦扦㑢戸摦㘳㑣挷摡㝥㠴攱㌰㤵户㐵㕡㔳ㅥ㌲㠴㤲㔴ㅥづ㌱㥢㌸㔳愳ㄹ敤ぢ㐰づ挴㈴㈰ㄳ摡ㄷ〱晤㤰㑢ㅦ㌳㝡挸晦㤲戹捦㈰愱㍤㐴昰㘵㠰慣㐲㘶㈷ㅤ愴扦〲戰づ㔶㉡晥㈰㠵摢㕦ㄴ晤戳㡥㤸挳ㅦ戸昸攵换戶慡㥣づ㠷㡣ㄲ㤳昶〸㥢㍤ち搰〶㜷慤ㄲ㤰㘲㔶㝢っ㌹搱愱㈹㍥攴搰㑦戰攰慢〴㕦〳挸愶㌸攵㘵敦ㅤ㔷搶愲晥晡㍡㥡㉡摣㄰㈹捤㥥っㄲ㝣㐹㥤〱戸愳戹挵捣〳㜱昸ㄱ㍦㐲㥢㜵㕦敢敦挲搷昷昳㕣㜴ㅢ晥昸㐸㑡㥡昷㐹昵㤳慤昵㐵㔶愰㘵㉥㝦づ㌶晢㍣晡攱扡㙡㤶㈶㝢晣ㄴ㝥ㄹ㌵慤㍣㠴㝦捦攰愷㥣挰〸ㅣ㠵晡㌶〳㘷ぢ㈹㐱ㄶ捣〶〵㔴㕣摡㔳〰ち㜱㑣㍣㘹㑦昳㡤愸㘵晦摡㌷㠳〴㕦ㄴ攲昵っㄳ愵愰㜹㌸㈰㜱㉤ぢ㡥㌷っ㐸晣换㠲㘳搱〱扦㠵㕣㐵㈲ぢ㠹㝡摤㐴愴㈵㤹晢っ㐰㔷㕢㌷攷㐶㕤愷㥥㔲ちてㄴㅦ㜸攰晤敥㘴晦愶攴㘷敥散㝣收敤摦扤昳昴㕢㥦摤昱捦て㥥㝢敥慤扦㍦晤挶〷慦㑦敤昸昵ぢ㉦晣敡慥敦扦昱捥㕡攳㜹昵㤵昷昷㍤㝦㝡昰昸改ㄳ挶㤱㥢昶㥣扥昷搸愱挱昱㡢〶摡摡摡摢慦敦晤捤挵㌷昴㥣㌹昱慡昲㡢扦㙣戰ㄵ戹㕣づ㜸ㄸ㈰㝣㝡戸㙣㌹㡤敦㈰㠱㘹㜰挶ㅦ敢㌴戸摣㌳昸㈹挵㘰愳㠶昱㤲㠱㘷㠳ㄳ㤰〵㠵晡㠲㡥晦〰つ愵戵㠹 | D30: 㜸〱敤㕣㕢㙣ㅣ㔷ㄹ摥ㄹ敦慥㜷搶㜶散挶㑥搲愴㌷昷㝥㜱戴㠹搳㠴戶㤴㤰晡ㄲ㈷㘹㥤挴㠹㥤戴㔵㈹摢昱敥ㄹ㝢㤲㥤㔹㘷㘶搶㠹㑢愰㈹㤴㤶㜲ㄱ㙡㜹㠰㤶〲㔵㠵㉡㜸㐱㉡㐸㔵ぢ〵〹㠱〴㐲㉤攲愱㐲攲〱愹㔴〸ㅥ㐰㈸ㄲ㉦㝤愸㔴扥敦捣捣敥散摡㍢㜶㌶㉤㌸挸搳敥㥦㌳攷㝥捥㝦㍤晦㝦挶〹㈵㤱㐸㝣㠰㠷晦昲㐹㌲㜱攵攴㠲敢〹㉢㌷㔲㉥㤵㐴挱㌳换戶㥢ㅢ㜲ㅣ㝤㘱摣㜴扤㌶㔴㐸攷㑤㤴扢愹扣㙢㍥㉡㌲昹㜹攱戸愸㤴㑡㈴㌲ㄹ㑤㐵㌹㍢攱慦㈷㝣搱搸慡㌳〹㌰㌵㌲㝣㜸晡〴㝡㥤昴捡㡥搸摡㝦摣㙦扢㝢㜰㌰㌷㤸摢㌹戸㝤㝢㙥晢搶晥㤱㑡挹慢㌸㘲户㉤㉡㥥愳㤷戶昶㑦㔴愶㑢㘶攱㍥戱㌰㔵㍥㈹散摤㘲㝡晢敤搳晡捥㍢〷㜷敥摡㘵摣㜵搷㥤㥤ㄸ㍡㜱㘸㘴㜸挲ㄱ㠶晢㈱昵㤹攲㤴㜷㡥㡡㠲挹戵〹攱㤸昶㑣㙥㘴ㄸ晦㐷收㡦户㍢㜲㤳戳㐲㜸ㅣ㕡㌸挲㉥〸㔷㐳挳づ㙢挸㜵㉢搶ㅣ㌷㑦戳挶戰搴㠲敥㝡㈹㙢㐴㤴㑡㥡ㄵ昶㥡戱づ㘳敦㑡晡㐲愷㌵㈹㙣搷昴捣㜹搳㕢㐸㕢㔳攸愸搸㘵ㅤ㜳挵㔱摤㥥ㄱ㠷㜴㑢愴慣㝤ㄵ戳㤸昴㥦㐴摢捤㘱ㄷ搱㠹挹攵攷㠶㕣㙢㘴㔶㜷攴㡣㕣㙥㑣㑣摤㌱愷㔰㕦昷晡收晤㜲敡㜲〴昶㜹㘳昳㝡㈸㌹慥㍢搵㥡〳捤㙢〶㡢慦㥦挱戶收昵㈳㝢㔴摦收搶收㙤攴㔶搶搷㔶㍡〲晡㤶㍢㡡挵㘸㘹㠲㜶㠲っ〱ㄱ愸㘵〹㍡〸㍡〱㤴攴扦挱㈵搱㠶㉣㔲昳扡㥡㥦㔶昳〵㌵㕦㔴昳㐲捤ㅢ㙡㝥㐶捤捦慡㜹㔳捤㥦㔰昳㈷㔱㈷㝣㌲敤敤㙡昰っ㥤摤㜶㔳敡愱攲挱㕦㔴收收ㅥ㜸㘱挳戶捥㜵愸㜴㈴㤸搴愸愳㥦〶愹搵愸㜸㐷づ㍣戱ㄲ慥〰㔳ㄸ扢㡣㍢㡣挱挱攲慥敤晡敤㝡㡡换㡡㐱㝥ㅤ愱昴愰㙥愷㜱扦㘹ㄷ换愷㈵敥慥ㅣ搶㕤㔱摢戸㠱愰㙣戸㕣戱㡢敥ㄵ㑢ㄷ㑥㝡扡㈷戶㌴㤶搵㍡㔹搴㙣ㄲ㙣㈵㕣㌹摥搵㡤捤㡥敢愵㡡ㄸ㍡㘳晡挵㔷㌵ㄴ㕢ㄳ㑥㜹扡㜹改㤸㈳㑥㔵㑢ㄷ捤㘸〸㐲㙤㕥昶扤㘸㤵㝥㤱㍦慦晥㤱搹戲㉢㙣㌹扤〱㙢挲㉣㥣ㄴ捥愴愰㐸ㄴ㐵戹搴つ㉣ち戸㝥攰戰㡤㠵㠲㕢㡢搷㐵㜳㡤扤㘷㍣㌰戳㈸㘲扥㜳挲昱ㄶ愶昴改㤲搸㔸㔷挵ㅦㄳ〵㥢敢戲挷捡㠵㡡㍢㔲戶㍤愷㕣慡㉦ㄹ㉡捥敢㤰㌴挵㠳攵愲㐸㈶ㄳ㔲㈸㐰攰戶戵㈹㑡攲戶收扣㈰ㄱㄱ㐱㌱ㄹ昹昲㝡戲换ㅤ挵敡戰㡡㤲㈰㑤慡㌷㉣搳ㄹ攷㉢㘵㑣っ〷㐶搶㐴晤挱㐱㙦㔹愶摢㉡收㍥摡捡慡摡ㅢ慣㝥敦扣戰扤晤扡㕤㉣〹㈷㔶晢㈹㥣㤱搶つ㤰㍡て㠱搰㜴昷愸敡㤴㌳捡㐲敡戴㔹昴㘶搳戳挲㥣㤹昵㤰〷つ㤹挹㜰㙢ㄷ㍤摡㘵挸搲搶ㄳ昴〲㘴戳㠹㜴ㅦ㉢愵戳㜸ㄲ㈹㑡愷ㄸ㕥慥ㄳ攴㙣㔷挷换㥤挶㤸㔹昲㠴㉦㤴扢つ㘰挴搷㙡ㄲ㝤㕤㈴㔱㐷㉦昸ち愳捦ㄸ〱㤵敡愶敤㉤搴昸㜶ㄱ㤷昸㐴戴㈶ぢ㔶㥤㉣愰㈸愸㤷〷㌱扣〶愲㘹㤰〶昱㤵㈳㐴㐴㌶㠸搱散攸戹㥥挸㔸㍦㐶㐶愰㝥㤴〸㔹㝢㝢㜳ㄹ㐱㘲㕦㑣愴㙣搴㤴ㅦ搷愴搹㔲戶扣㉦捤㌶㘰攳戴㡤〴㥢〸㉥㈷搸っ愰晣つㄲ㡥㔲づ改晡㐷扢〲敦摡㤵〴㔷〱㐰㍥㘹㤴㌹㠱愸愲つ戵ㄲ㍢㤲昵扡㘰㈷㑢愳搸ㄷ㐵戴㡣慢㜶㘶㤷㈵ㄱㅤ㔸㥤慢㐳搷㈶愵㡥扤愹㌹㙤㐶㤷㐳㡡㡣愹ㅡ㕤敢㌲㔵愳ㅢ挱慡㉤敡慤㙢搰㔴敢㈷戸ㄶ挰㔷㉣㌴㜶㔷㘶捤搳㥣扣㈴㑣㈲摦㄰㙡㔱戹〷㐴㑣昳㍦㐶挰㉤㍡扡慣搹捦㌴〵〷㡣㑢摥㝥摥摡㥣户〳愴㌷攸捣㌵㥤㐳㕦搱〵㕡搰搷㠱扤㤴㍦㌷搵㉦㌷愰㔸扢㤱攰㈶㠰〶晤挲㤳昷㠵㝡〹愴㐹㙣㐵㌰户㥥ㅥㄷ㘹攱㑥㉤捣〹愹㝤㍡㡤㈹摤㤹ㄱㅥ扣ㄷ〷㐶㘱〷㤷ㅤ㐷㤴㜰愰㉤捡っ㥥㕤㌶搵㘷扡㘳㑥搹㘲晥㥡㝤散㕥ㄲ㡡㈱㤹㔴摢ㄲつ昶㜱㡣㥤ㄹ昱㌷㐵㈸㠷晡昷昶收㐲㈲搲愸㥥扣搸㉥晥㙣戹㈶㐹㕡㤰㈴户㘰㕢戵㕢〱㈰㈵㤴㍦㌶㤵㈸〳慣戶㔵㔶慢户㔶改摤㡢㌹㤹㌴昸てㄷ挹㤱づ摦㔹㍢っ摦㠱摢㘵㑤㥡㔶㔵㔸㜴㔸ㄳ挲㈹挰慦㘰㤶㐴搶㜷挹㔲搴慣挹㡡㑢㐴㔶戴戵㉤㍡㑢挷昸搶㈴㥤㌴㐸㠹㔸㙥㡦㉤㡣㌹㠷搷㠸㡡㉥㐸ち㤵ㄸ户㔰㔵〲㤱昲㔸㜷㑤挴戴㈰㘲㜲搸㌸㙤ㅢ挱㜶㠲㐱㠰搴敦㈱㘹㔶扡昱っ㠵戵捦搳㥤㥤捦㈷㌲㐴㠳㜴て扥搵㔴㔸敤攴㌰扢〸㍥〶搰㘰晥搰昹ㄸ㐳㠸ㄲ攵ㄱ㐲愴戵愴ㄹ挷㑤㜱㥡㌴戰捥㐰㔰㘹愴攲㝡㘵㡢㔱愵㉥㘳戴㝣愸散㡤㥡敥ㅣ愲㔰扤㐶㤰戸㝦㔶搸愰㉥〷戶㑦㐳㕥㜹㙥㑥ㄴ㌵㘳戲㕣㠱㘸㍢㌰扡ㅡづ攵㔸ㅦ㙣㐹㜹㉥㔷ㄵ㍣慤㥤㡤搱㠵㈲㑦挴昰戵搲ㄳ扢㈲捦㌷て㝤摤戵ㅤ㥤㌲扤㤲攸㌰㝣愶㘳㍡㘳㘰ㄷㄱ㌵㈸戶ㅢ㔳戳㡥㄰愳㕤挶㍥挷㉣㤶㑣㕢㄰ㄹ戰㌱ㄹ愸ㅢㄷ㌳㠸㄰㑣㤴ㄹ晦㉢摢㕤挶㤴愳摢敥㥣捥㘰攲挲晡扡㌷ㄹㄲ㐹ㄹ挳愶敤㘲ㄸ㠹㐵愶扢㡤挹搹昲㘹㐴㙢㉢㤶扤㑦㥦㜳㔷〵㔶㐸昴晥㈳㔱愳愸㡡慡㉡ㄹ㌵搳㉡㝥㜸㈰㑦㈴㜶攰㤷㈴㤰戸㑡愴攸㉦㡦搱摥戴敢㠳昸っ敤㜴捥愹ㄳ㤱愳㙡㘶㕢慣ㄴ㈶愷㙡㜷戲捤㕤〰昷敥㍢㜶愰ㄶ㤵扢愸㜸㜵㡡ㅥ晥ㄸㄹ㉦挹愲ㅡ〴愱㝦㙥㥤㑦㉡捣㈳攵㠰〳㠱㜱扥㌵㤲㕦搶㤰㜵㐸㝤敢㙡挹㌱㐴㤱㍡㡤㜱㝤㕡㤴㄰㡢戶㜴㙦㥤晦㐲㌳搶搲㑢㙥㔰㌶㔲戶㉣㥤愴㐵戲㥣㉣攸愴攰愱㡡㔷㍥㘸摡㥡〱㈰改㉦挸搲捦㈰㑢㍦㈳戳㍡㡤愳っぢ捡㌴晢㉡捦攸㡥改捤㕡㘶㈱挳ㄷ㠶敥㔶〵㑤㠲挹㈹㜹挳㈷㤴ㄹ晤つ搶晣㌱㤸㙣㙥づ攸捥㐱㡥㜲敢㠸㝥㔰慥慡愴昱㥦搲愲㘳〹〲㐶㝡㐹戵扢搱㕢㑡摥㡣㠰挸㤱捦昹昰晥挵昹挷㤰攳晢攵㠸昵ㄸㄲ㠱㐷㌰㈲攴改摥㑥ㅢ挷㙣搳〳昶㠸戱㌱搳ㅢ㜵㠱㜲〰㈴攵昱㜶㡢挴㙡愴搱㐰㔵㉢㕣戳戸愸㑥㑤㕣扤戸㍣慡㌷㙥㔸愲搸搷㈸ㄱ㐵戲㕣㈵愹㔹㤶㤸攳㙡㔲㌵㡡㔴摣愱戶㔱攲摣愶戵㝤愷ㄴ戹〸挵㈴㘹㈶愱敤㤶㠴㠲㈰㉦愹〳㍡㡡晥晡㜸昲㠸㐴㙢㘸〳㘴愹愷晣扣慥㈰ㅣ㜸〰㔷㑥㡡㈲ㅢ扣㠱扦搷〵挹挳ㄵ慦慥㐴㍦搳ㅢ㤴っ㤵㑡㠷㙤㔸〹〵摤㈹慥ㄲ㤶挶摡㝣つ㈳戹戳㔵敤敦㙦㙦㠴ㄱ〳㌶㘴㐸㈴挶てっ㌶〴㜳㐵愲愹戴捥扡戸搵搵散っ摦づち摤㤶ㄸ㤸昴㡡愳㘲㕥㥡㘱㌵㑢扥㔷㌶愸㥥ㄶ愵ㅣ搵㡣愱㘹ㄷ㉡摤愳ㅣて㔲㤲挱㌵攳㈸摤㔲戸挰〰戱ㅢ愴㈶ちㅥ挲扡搵づ㜸㌲㔸㍤搸挱㡥昸㘱ㄳ㕡㘷㤴愰改ㄸ挲慤㕦〴㜹愷㐵㡣㐲㤰ㅡ昲昹搷ㅥ攵昹攷昸晣㜰㑦㈲㑣〴㑣挴㔰㔷㡣昵〰攴㐶愳㤲攴愲摥㌰㔸敥㑢㌶㈹戴㍡挳㍣㥡ㄸ㕤㌴昹ㅣて㌷㜸ㄸ挷敡㈶摢㤴㜰挷捤㌳愱㑤㑢ぢ敢㡣〳㜶愱㔴㈹ち愹㡡㐳㔹㉤㌵昲慡挰㤷扣晥攷㜳㔳捣扥〴㥢㜲〰㐷㈹㉥㤹㐸㙡摤敥搶㍥㠹收㔲挸愱て㕦戶㌱昸ㄸ攳㤶㤳挱戰㐵㜷ㄴ㘸ㅦ慥慦㕤㕥㤰ㄷ攷㈰搲ㄶ㘵㔱㤶㡤攳㉥㕥㌵㠲㉣戹㉤㔲㙤扣㍣㕥愶捤ㅥ挹摡㙦晡㔹慢〲㐷㔸愷㉦昰搲㘹ㄸ㈳㉤㜲〷㍢㐹㥣て㈲扢攷ㅦ㤳慦㠹昳㝢〲攳㐳㘱㝣㤷愷愰〴㜶ㄵ㡣㐴㠳㕢慤㔹摤ち㈳扦戴扣戵㝢〰ㄴ㠶㠰㘹搰愲愶㙦攰っ㈳扤扣㠱挳㘰㘴㑣㜴㌴ㅡ㐸㘵㡣戲ㄷづ㝢㈰つ摣挴㠳昴㔴ㄹ㑡挸敢㤳㤷挲挲㝢㠹〳ㄶ㡥㐰㘵㘷㘳㐳收㠴敥攱敡㡢扤戹㈱㝢愸㔸愴戹ぢ晦摣慡挰㉡慥㙤昸收㘸㕦挳㠵㉣戹㈶摡㜷搷㌷ㄴ〴ㄷ〵㜷㡣收昶敢㕥㘱㜶搲㕢昰㉦㙤戵㑡ㄲ愹㥦挳ㅦ戱攴攸戴㤹㤳㌶㉦愱捥㜳敦戳㈷敤昲㘹㕢捥㉢攵昲挶ㅦ慤㔸慤扤㥤㤳捣㈶㍥挰㝦昲㔱ㄳ愹㌷搰攳㑡愶捤づ㙡づㄲ昶㈳敦㕣晡搲愰ㅦ慦㌱㜴〲摢扤㝡㘳㠰㜴搲搷㐰㈷㔲㄰慣ㄱ㡡㍤昳愱ㄱ㡡昲㌳愰㤵挴攲ㅦ挹戱攷㉦㠳昵㤵㥦㈲㠷〸攷戵㡥㐰㤰㕦ㅢ㡦㍡㈹挸㠳敢ㅤ㙣昵晦㠳愵㤰㥢㤷㘴愷晦〲㌳㉢慦㌷愲攸㙡愲攸戵〰㐵扣㑣ㄸ愰㠸㠱搸ぢち㜹㜳昶㙢㐷捤㡦晣㕡敦晦昰愸㜹㉦㌰捣㐷㔲〸㠲㙡っ挶㔷㡤㠱戶㐵挶挰㡤㈸㤶挶挰㝤㙣挳㜸扤㙦っ〴摥㡥㠳挸㔸摥ㄸ㘰ㄴ㉦挶攴㡢〴㔵㈳づっ㥥戵㌶㕡昴㠴敤挷昵㕡攱㈲㜲て昵攴㡥挰昷戴㘹㜱昶㠴敥攸搶㘶㤹扦捦ㄱ㔰㕢捥ㄴ敥㙢换㈶㙣戱㘵挹ㄲ搹㘸〹慦㐴攸㑦㕦昳㥣慣散㤶㍡㌰攵㍦扥愳㕥挹㈸改㡢昰㠹㈸㍣㈱㈴㍥搳昷愳㝤㝦㜹昴㠹㍤扣㤷ㄶ搰㙡㡡㠱攰㔶㠲昳戴ㅣ㄰扥㡤㕣〹搹挰捦㙦づ攲㐳㈴㜳慥㈴㠶㜵㐷摡㍢慥㘶㠵㐹㥦昰㈲㠴改ㄳ摦㙡㌰㈶㜱挳挱㌷㈶㜳つ㡥㑤昹昹㤲㜴〶收㈲ㄳ㤷摥扢㌰㐰愸㌴㔵㔹㉤摡㤵愹ㅦ㐳改㕣攰㐴敡敤㐱㥥㉦昹㈸捡㉢㡤㕡㙤ㄷ戵㥡㌴ㄳ㤵〱搴〸愵ㄴ㈲つ愴㤰攸㤱㠵愱㝦㈹愵㈶㤰㐸攵〰㘲㘲㘸㡤挱㕣㥥晣搷㠴㠰愸㕥敦㙢昱㔳ㄵ散㈲戰ㄸ㝡摤㕢㍤扢搲敡っ㔵ㄳ㠳戲昲昴㜱〴〹㜹㑣㘱〶愳戴㌲昷㈸ㄲ攱㤳ㅡ㐴㙡挵㡥㈷づ搲㘵昹㈱㌶㥦戱㔳ㄶ扤㙡㔹㙢慦㕤挱ㅤて攸㤹戴㔴ㄸ昶㝡㘶攳攸㈹愳㜱㝥搵慣㥦㐵搸敤㈷慢㡤㍡㠲㈲攸㉣㝢㌳捥㥦〸昳昱㝢㈰㤶て搴扡摥搰㔸㐲ㅤ㘷户㘳㠱晣挱晥扡㍡㠶戱㌱㉡㌹〶ㄲ㜶㐵戵㌲晥㈵昰㐹㌴㤱昶扣愲搵㤲ㅣ㑢㔱ㄸ㡤づ㌹慢㑤㕤愴晦ㄹ愷㤶㥣㌵挵摡っ㔸搷改晦攳挸㔸㔶晦㉢㡣戲㐹㤴摤ㅦ㈴昸㤲㘲愴㘴搹攰っ㜷〴㍥㙣㠴㘹攴ㄱ㔸㤳㐹〶户晤搴㈴㍥㔱昵㡢愵〴㠷㠷㉢搹㜸〹愲摡㤶戶㙤㐷㔳〱挸㈸㔰敡〷㄰㐱㑤摢㜳搲昵攷㔸㘴㈴搲て〲昴ㅤ㌴ぢ㑥搹㉤ㅢ㕥晦㈴挲扢晤晣挲捣㠰捤㌳愴扣摣㈸搴慥挷㑥㜴㍥㠴㌶㠷づ㐳㘰ㅦㄲ摥㠷ㄵ㜵㘴っ㘱㘵㌱ぢㅥ㄰㝡㈲㠱㈴㙡〷昷㌲攳㐸㐵㉦攱〳搵挳昰㙡㝡捣㕡ㄵ捡捥昷㉤㌷摥挵攰搶攱㌶搶㝤昰晣㠸㔲づ㘱㌰戹㠴㠷ㅥ收扥㌶敥㐱㝤摤㘰㙤㉥㙢戶收㕤换愶扥て㥣慥㙣㤴㝡㤲攱㤸晣敥㌸慢㍤㑣㠸㌸て扤愳㉢㜷挵戲户㕥搰㜹昰搹㌶㕤㕥〳㈵㌸捡㔶㄰攷晥㌴㥡㉡昷㄰攰愷攵㠳〴㕦ㄴ晡昳敥㘶攲㐵㉣㡢っ㠰㜴㈲慤〳㌴愷敡敦㉥㐵搵ち㡦ㄶ愴挲慣昲ㅤ㤴㜳㤷晣搵ㄶ㤹㠷愳㠶㍣㐲㈰慤㐵㈵户挲㈳㠴ㅣ晦㜹㌴愸㡥㍦㠳摣收攳㝦㙢挹昱愹晣攵晡愲晤昷㠴捡㐳㍢挱愱㑦ㄲ㤴〸㉣㠰㥥戰㘶㌷挵㈲㘵㑤摡て㈲扣扥〷㘹㍣㝦〸晥㝤㘷捦㕢㙦昲昹攷ㅥ㐵ち㐲ㄴ搵慦㠲㠲㔰慥攲㤹攸㉡收㤰摢㝣ㄵ㕦㕦㙡ㄵ㍤㤴㤱㥣㠹收〰㜴戵㈹愴ㄵ戹㉡ㄷ〹㙥㈸㝦㡡㐴㈸ㄲ㜵戳攸㈱㘲㘵摢ちㄲ㘸换㥤㤷㙤攷㤱〸摢愶戸ㄱ㌱㥦昰㐸晢㠸㔷ㅥ改戵㐹晢㙥搷戴慦ㄵ㌳㔶攰㙦㕤ㄵ戲〱㑢攲㌷戱㑤㐵㝡扡挵㔸扥昲㜴㠸㤸晤晢挳敦愳搴㈰扡〴挲昰㉤㔲ㄲㄲ㌷㔲昹㔲㔸昹㤵㔷㙢捥㔱ㄴ攰〱昵昸㤵㐹㜰戲昲㔳㘱攵ㅤ昸昶㑡搶㐹昰慥〰㥦㜷挲捡㈴㑣㔹昹挹戰昲㍦㜶㙣慥㔶づ改搰敦㌹㐵㈲㠹戱㜵愵昵ㅦ昹づ㥢㠷敡㤴㐱晤搹㘱昸搹㤴㥣㌲㐸㕣㤲ㅡ戴ㄳ搷㍥ㅣ㝣〹㍤㡥㕢㑣戸散〱㈱敢晦㐱㠴〳戸摤㌴慡㝢㍡㍥㜴㥥㐷㔸搹搱攴ㅢㅢ愷㡤挳づ㌲摡㡤〳㉥捥㔴挵㔵㐵㈲㌰〷㤲晥晥㉥攳㝥㡦㌱ㅤ㙢晢ㄱ㠶挳㔴摥ㄶ㘹㑤㜹挸㄰㑡㔲㜹㈲挴㙣攲㕣㡤㘶戴捦〲㌹㄰㤳㠰㑣㘸㥦〳昴㐳㉥㝤捣攸㈱晦㑢收㍥㠷㠴昶㌸挱攷〱戲ち㤹㥤㜴㤰晥〲挰〶㔸愹昸㠳ㄴ㙥㝦㔱昴捦㌹㘲ㅥ㝦攰攲㔷㍦戱㔵攵㙣㌸㘴㤴㤸戴㉦戲搹㤳〰㙤㜰搷㉡〱㈹㘶戵愷㤰ㄳㅤ㥡攲㐳づ晤㌴ぢ扥㑣昰ㄵ㠰㙣㡡㔳㕥昱摥㜱㘵㉤敡慦慦愲愹挲つ㤱搲散㙢㐱㠲㉦愹㜳〰㜷㌷户㤸㜹㈰づ㍦攲㐷㘸戳敥㙢晤扤昸晡㝥㠱㡢㙥挳ㅦㅦ㐹㐹昳㍥愹㝥扣戵扥挸ち戴捣攵捦挱㘶㕦㐴㍦㕣㔷捤搲㘴㡦㥦挰㉦愳愶㤵挷昱敦㌹晣㤴㔳ㄸ㠱愳㔰摦㘶攰㙣㈱㈵挸㠲戹愰㠰㡡㑢㝢〶㐰㈱㡥㠹㈷敤㔹扥ㄱ戵散㕦晢㐶㤰攰㡢㐲扣㥥㘳愲ㄴ㌴て〷㈴慥㘵挱挹㠶〱㠹㝦㔹㜰㈲㍡攰㌷㤱慢㐸㘴㈱㔱慦㥢㠸戴㈴㜳㥦〳攸㙡敢收摣愸敢搴㌳㑡攱㤱攲㈳㡦扣搷㥤散摦㤲㝣攰㥥捥攷摥昹摤扢捦扥晤愹摤㝦㝦晦㠵ㄷ摥晥敢戳㙦扥晦挶昴敥摦扣昴搲慦敦晤摥㥢敦慥㌷㕥㔴㕦㝤㙦晣挵戳㠳㈷捦㥥㌲㡥摤戶敦散㠳㈷㡥っ㑥㕣㌶搰搶搶摥㝥㜳敦㙦㉦扦愵攷摣愹搷㤴㕦晥㘹㤳慤挸攵㜲挰愳〰攱搳挳㘵换㘹㝣ㅢ〹㑣㠳㌳晥㐸愷挱攵㥥挳㑦㈹〶ㅢ㌵㡣㤷っ㍣ㅢ㥣㠰㉣㈸搴ㄷ㜴晣〷愴㜸戲㥤
A31: Decisioneering:7.0.0.0 | B31: Decisioneering:7.0.0.0 | C31: Decisioneering:7.0.0.0 | D31: Decisioneering:7.0.0.0

Sheet Area Data Center (hidden)
A1: *** | B1: *** | C1: *** | D1: *** | E1: *** | F1: *** | G1: *** | H1: *** | I1: *** | J1: *** | K1: *** | L1: *** | M1: *** | N1: *** | O1: *** | P1: *** | Q1: *** | R1: *** | S1: *** | T1: *** | U1: *** | V1: *** | W1: *** | X1: *** | Y1: *** | Z1: *** | AA1: *** | AB1: *** | AC1: *** | AD1: *** | AE1: *** | AF1: *** | AG1: ***
A2: *** | B2: *** | C2: *** | D2: 0.2 | E2: 0.2 | F2: 0.2 | G2: 0.2 | H2: 0.2 | I2: 0.2 | J2: 0.2 | K2: 0.2 | L2: 0.2 | M2: 0.2 | N2: 0.2 | O2: 0.2 | P2: 0.2 | Q2: 0.2 | R2: 0.2 | S2: 0.2 | T2: 0.2 | U2: 0.2 | V2: 0.2 | W2: 0.2 | X2: 0.2 | Y2: 0.2 | Z2: 0.2 | AA2: 0.2 | AB2: 0.2 | AC2: 0.2 | AD2: 0.2 | AE2: 0.2 | AF2: 0.2 | AG2: 0.2
A3: *** | B3: *** | C3: 0 | D3: 0.2 | E3: 0.4 | F3: 0.6 | G3: 0.8 | H3: 1 | I3: 1.2 | J3: 1.4 | K3: 1.6 | L3: 1.8 | M3: 2 | N3: 2.2 | O3: 2.4 | P3: 2.6 | Q3: 2.8 | R3: 3 | S3: 3.2 | T3: 3.4 | U3: 3.6 | V3: 3.8 | W3: 4 | X3: 4.2 | Y3: 4.4 | Z3: 4.6 | AA3: 4.8 | AB3: 5 | AC3: 5.2 | AD3: 5.4 | AE3: 5.6 | AF3: 5.8 | AG3: 0.2
A4: *** | B4: 0.2 | C4: 0.2 | AF4: 0.2 | AG4: 0.2
A5: *** | B5: 0.2 | C5: 0.4 | E5: Empty Space | AF5: 0.4 | AG5: 0.2
A6: *** | B6: 0.2 | C6: 0.6 | E6: Racks | AF6: 0.6 | AG6: 0.2 | AI6: Area por Racks (m2) | AJ6: =0.8*0.8 -> 0.64
A7: *** | B7: 0.2 | C7: 0.8 | E7: Other Equipment | AF7: 0.8 | AG7: 0.2 | AI7: Número actual de racks | AJ7: 2
A8: *** | B8: 0.2 | C8: 1 | E8: Working Place | AF8: 1 | AG8: 0.2 | AI8: Número futuro de racks | AJ8: 3
A9: *** | B9: 0.2 | C9: 1.2 | AF9: 1.2 | AG9: 0.2 | AI9: Area Total Racks | AJ9: =(RacksActual+RacksFuturos)*AreaPorRack -> 3.2
A10: *** | B10: 0.2 | C10: 1.4 | J10: R1 | P10: R2 | V10: R3 | AF10: 1.4 | AG10: 0.2 | AI10: Area Puesto de Trabajo | AJ10: =0.6*1.4 -> 0.84
A11: *** | B11: 0.2 | C11: 1.6 | AF11: 1.6 | AG11: 0.2 | AI11: Area Otro Equipos | AJ11: =0.8*1.6 -> 1.28
A12: *** | B12: 0.2 | C12: 1.8 | AF12: 1.8 | AG12: 0.2 | AI12: Area Vacia | AJ12: =(5.6*5)-(AreaTotalRacks+PustodeTrabajo+OtrosEquipos) -> 22.68
A13: *** | B13: 0.2 | C13: 2 | AF13: 2 | AG13: 0.2 | AI13: Area total DC | AJ13: =SUM(AJ9:AJ12) -> 28
A14: *** | B14: 0.2 | C14: 2.2 | AF14: 2.2 | AG14: 0.2
A15: *** | B15: 0.2 | C15: 2.4 | AF15: 2.4 | AG15: 0.2
A16: *** | B16: 0.2 | C16: 2.6 | AF16: 2.6 | AG16: 0.2
A17: *** | B17: 0.2 | C17: 2.8 | AF17: 2.8 | AG17: 0.2
A18: *** | B18: 0.2 | C18: 3 | AF18: 3 | AG18: 0.2
A19: *** | B19: 0.2 | C19: 3.2 | AF19: 3.2 | AG19: 0.2
A20: *** | B20: 0.2 | C20: 3.4 | AF20: 3.4 | AG20: 0.2
A21: *** | B21: 0.2 | C21: 3.6 | AF21: 3.6 | AG21: 0.2
A22: *** | B22: 0.2 | C22: 3.8 | AF22: 3.8 | AG22: 0.2
A23: *** | B23: 0.2 | C23: 4 | E23: 1 | U23: 4 | V23: O | Z23: O | AF23: 4 | AG23: 0.2
A24: *** | B24: 0.2 | C24: 4.2 | E24: 2 | U24: 3 | AF24: 4.2 | AG24: 0.2
A25: *** | B25: 0.2 | C25: 4.4 | E25: 3 | U25: 2 | AF25: 4.4 | AG25: 0.2
A26: *** | B26: 0.2 | C26: 4.6 | F26: 1 | G26: 2 | H26: 3 | I26: 4 | J26: 5 | K26: 6 | L26: 7 | U26: 1 | AF26: 4.6 | AG26: 0.2
A27: *** | B27: 0.2 | C27: 4.8 | V27: 1 | W27: 2 | X27: 3 | Y27: 4 | Z27: 5 | AA27: 6 | AB27: 7 | AC27: 8 | AF27: 4.8 | AG27: 0.2
A28: *** | B28: 0.2 | C28: 5 | AF28: 5 | AG28: 0.2
A29: *** | B29: 0.2 | C29: 5.2 | D29: 0.2 | E29: 0.4 | F29: 0.6 | G29: 0.8 | H29: 1 | I29: 1.2 | J29: 1.4 | K29: 1.6 | L29: 1.8 | M29: 2 | N29: 2.2 | O29: 2.4 | P29: 2.6 | Q29: 2.8 | R29: 3 | S29: 3.2 | T29: 3.4 | U29: 3.6 | V29: 3.8 | W29: 4 | X29: 4.2 | Y29: 4.4 | Z29: 4.6 | AA29: 4.8 | AB29: 5 | AC29: 5.2 | AD29: 5.4 | AE29: 5.6 | AF29: 0 | AG29: 0.2
A30: *** | B30: 0.2 | C30: 5.4 | D30: 0.2 | E30: 0.2 | F30: 0.2 | G30: 0.2 | H30: 0.2 | I30: 0.2 | J30: 0.2 | K30: 0.2 | L30: 0.2 | M30: 0.2 | N30: 0.2 | O30: 0.2 | P30: 0.2 | Q30: 0.2 | R30: 0.2 | S30: 0.2 | T30: 0.2 | U30: 0.2 | V30: 0.2 | W30: 0.2 | X30: 0.2 | Y30: 0.2 | Z30: 0.2 | AA30: 0.2 | AB30: 0.2 | AC30: 0.2 | AD30: 0.2 | AE30: 0.2 | AF30: 0.2 | AG30: 0.2
A31: ***
A32: ***
A33: ***

Sheet Calculadora de energía (hidden)
A1: Consumo de Energía del Data Center
B2: Item | C2: Subtotal kWh (Centro de Datos)
B3: Consumo de Energía del Data Center | C3: =TotalConsumoEnergia -> 37.4224094
B4: Centro de Control
B5: Alquiler e internet | C5: Incluidos en administrativos
B6: Entradas
B7: Dimensionamiento de la carga crítica (kW) | C7: =SUM('CAPEX (Tecnología)'!J8:J24)/1000 -> 12.022
B8: Equipos adicionales (kW) | C8: 0
B9: Cargas futuras (kW) | C9: =(C7+C8)*0.3 -> 3.6066
B10: Requisitos de potencia - Sistemas eléctricos
B11: Peak power draw due to variation in critical loads | C11: =SUM(C7:C9)*1.05 -> 16.41003
B12: Ineficiencias de la UPS y la carga de la batería | C12: =SUM(C7:C9)*0.32 -> 5.001152
B13: Iluminación | C13: =AreaDataCenter1*0.0215 -> 0.602
B14: Poder total para soportar la demanda eléctrica | C14: =SUM(C11:C13) -> 22.013182
B15: Requisitos de potencia Sistema de enfriamiento
B16: Poder total para soportar la demanda del sistema de enfriamiento | C16: =C14*0.7 -> 15.4092274
B17: Requisito total de potencia
B18: Poder total para soportar la demanda eléctrica y del sistema de enfriamiento | C18: =C16+C14 -> 37.4224094

Sheet Requisitos de Memoria (hidden)
A1: Requisitos de Memoria
B2: Item | C2: Centro de Datos SITI Q
B3: SAE
B4: Envíos diarios | C4: =(3600/PeriodicidadDeEnvios)*HorasDeOperacion*(FlotaTroncalUF1+FlotaAlimentadoraUF1+FlotaColectivos) -> 10602000
B5: SIR
B6: Número de transacciones de validación | C6: =(NumPasCorredoresUF1+NumPasColectivos+NumPasCable+NumPasMetro) -> 3101395
B7: Número de transacciones de recarga | C7: =C6*FactorRecargasPorValidacion -> 3101395
B8: Número de transacciones tipo PQRS | C8: =C6*FactorPQRSPorValidacion -> 155069.75
B9: Número de transacciones al día SIR | C9: =SUM(C6:C8) -> 6357859.75
B10: Periodo de almacenamiento (días) | C10: =ROUNDUP(365*1.5,0) -> 548
B11: Tamaño de datos (GB) + Buffer | C11: =ROUNDUP(((C9+C4)*C10*'Configuración TIC'!$C$7/'Configuración TIC'!$C$6)*'Configuración TIC'!$C$9,0) -> 1801
B12: Index data | C12: ='Configuración TIC'!$C$10*$C$11 -> 540.3
B13: Archive Log | C13: ='Configuración TIC'!$C$11*C$11 -> 180.1
B14: System data | C14: ='Configuración TIC'!$C$12*C$11 -> 90.05
B15: Temp | C15: ='Configuración TIC'!$C$13*C$11 -> 180.1
B16: Undo | C16: ='Configuración TIC'!$C$14*C$11 -> 180.1
B17: SubTotal(1) | C17: =SUM(C11:C16) -> 2971.65
B18: Application file system | C18: 500
B19: Planeación, programación | C19: 500
B20: SMS, NMS | C20: 200
B21: SubTotal(2) | C21: =SUM(C18:C20) -> 1200
B22: SubTotal(1)+(2) | C22: =C21+C17 -> 4171.65
B23: File-system overhead | C23: =C22*'Configuración TIC'!$C$15 -> 4588.815
B24: Business increase | C24: =C23*'Configuración TIC'!$C$16 -> 5506.578
B25: Volume for Production | C25: =C24 -> 5506.578
B26: Volume for BCV | C26: =C24 -> 5506.578
B27: Volumen requerido (GB) | C27: =ROUNDUP(C26+C25,0) -> 11014
B28: Cache (GB) | C28: 2

Sheet Configuración TIC (hidden)
A1: Configuración de parámetros TIC
B2: Item | C2: Centro de Datos
B3: Dimensionamiento servidores de bases de datos
B4: Buffer cache (%) | C4: 0.3
B5: Buffer de recursos (%) | C5: 0.3
B6: 1GB -> 1MB | C6: 1073741824
B7: Tamaño transacción (Byte) | C7: 160
B8: Periodicidad de envío (segundos) | C8: 20
B9: Buffer | C9: 1.3
B10: Index data | C10: 0.3
B11: Archive Log | C11: 0.1
B12: System data | C12: 0.05
B13: Temp | C13: 0.1
B14: Undo | C14: 0.1
B15: File-system overhead | C15: 1.1
B16: Business increase | C16: 1.2

Sheet Supuestos y Entradas
B1: Codificación para las fuentes de información | F1: Supuetos Generales | M1: Unidad Funcional 1 y 3 - Metrobus-Q | R1: Unidad Funcional 2 -Transporte Colectivo | W1: Unidad Funcional 3 - Metro | AB1: Unidad Funcional 4 -Cable | AI1: Supuestos macroeconómicos y de demanda | BA1: Parámetros/Supuestos de Data Center | BG1: Parámetros/Supuestos para costos de operación | BL1: Parámetros/Supuestos Personal | BR1: Parámetros/Supuestos financieros
B3: A | C3: Secrearia de Movilidad | F3: Parámetro | G3: Valor | H3: Fuente | M3: Parámetros/Supuestos Generales Troncal | N3: UF 1 | O3: Fuente | R3: Parámetros/Supuestos Generales Colectivo | U3: Fuente | W3: Parámetros/Supuestos Generales Metro | Z3: Fuente | AB3: Parámetros/Supuestos Generales Troncal | AE3: Fuente | AI3: Variables Macroeconómicas | BD3: Fuente | BJ3: Fuente | BO3: Fuente | BT3: Fuente
B4: B | C4: Cálculos | F4: Crecimiento de la demanda | G4: 0.015 | H4: A | M4: Pasajeros promedio diaros corredores | N4: =+PasajerosDiariosCorreFase1 -> 1400000 | O4: B | R4: Pasajeros promedio diarios transporte colectivo | S4: =+PasajerosDiariosColecFase2 -> 1581395 | U4: A | W4: Pasajeros promedio diaros metro | X4: 100000 | Z4: A | AB4: Pasajeros promedio diaros Cable | AC4: =+PasajerosDiariosCableFase3 -> 20000 | AE4: A | AH4: Variable | AI4: Año 0 | AJ4: Año 1 | AK4: Año 2 | AL4: Año 3 | AM4: Año 4 | AN4: Año 5 | AO4: Año 6 | AP4: Año 7 | AQ4: Año 8 | AR4: Año 9 | AS4: Año 10 | BA4: Factor de ocupación Racks | BB4: 0.5 | BC4: Tier I | BD4: D | BG4: Mantenimiento equipos Centro de Datos | BH4: 0.06 | BJ4: D | BL4: Utilidades liquidas para trabajadores (Código de trabajo) | BM4: 0.15 | BN4: http://www.trabajo.gob.ec/el-15-de-abril-vence-el-plazo-para-el-pago-de-utilidades/, art 97, código del trabajo. | BO4: E | BR4: Tasa impositiva t | BS4: 0.3 | BT4: E | BU4: http://www.sri.gob.ec/de/web/guest/tarifas
B5: C | C5: Bases / Anexos Bases | E5: 0 | F5: Días de operación al mes | G5: =ROUNDUP('Dias de operación al año'!C12/12,0) -> 30 | H5: S | M5: Precio de pasaje corredores (USD) | N5: =+G27 -> 0.25 | O5: A | R5: Precio de pasaje colectivos (USD) | S5: =+H27 -> 0.25 | U5: E | W5: Precio de pasaje Metro (USD) | X5: =+J34 -> 0.45 | Z5: A | AB5: Precio de pasaje Metro (USD) | AC5: =+K34 -> 0 | AE5: A | AH5: Inflación1 | AI5: 0.04081 | AJ5: 0.02941 | AK5: 0.02043 | AL5: 0.01782 | AM5: 0.016 | AN5: 0.015 | AO5: 0.015 | AP5: 0.015 | AQ5: 0.015 | AR5: 0.015 | AS5: 0.015 | BA5: Factor "empty space" (areas futuras) | BB5: 0.2 | BC5: Tier II | BD5: D | BG5: Mantenimiento Infraestructura | BH5: 0.05 | BJ5: D | BL5: Factor prestacional | BR5: Costo de la deuda Kd | BS5: 0.105 | BT5: E | BU5: http://contenido.bce.fin.ec/docs.php?path=/documentos/Estadisticas/SectorMonFin/TasasInteres/Indice.htm
B6: D | C6: Supuestos | E6: 1 | F6: Horas de operación diaria | G6: 20 | H6: A, B, D | M6: Recaudo promedio diario corredores | N6: =NumPasCorredoresUF1*PrecioPasajeCorredores*(DemandaTarifaReducida*PorcentajeReduccionTarifa+(1-DemandaTarifaReducida)) -> 312900 | O6: B | R6: Recaudo promedio diario corredores | S6: =NumPasColectivos*PrecioPasajeColectivo -> 395348.75 | U6: B | W6: Recaudo promedio diario Metro | X6: =PrecioPasajeMetro*NumPasMetro -> 45000 | Z6: B | AB6: Recaudo promedio diario Metro | AC6: =PrecioPasajeMetro*NumPasMetro -> 45000 | AE6: B | AH6: Tasa EURUSD | AI6: 1.13 | BA6: Servidores de respaldo (backup de info) | BB6: 1 | BC6: Tier III | BD6: D | BG6: Mantenimiento Software | BH6: 0.22 | BJ6: D | BL6: Seguro de invalidez, vejez y muerte | BM6: 0.031 | BN6: http://www.iess.gob.ec/documents/13718/54965/Tasasdeaportacion.pdf | BO6: E | BR6: Pesso de la deuda Wd | BS6: 0.6 | BT6: D
B7: E | C7: WEB | E7: 1 | F7: Días equivalentes año | G7: 300 | H7: NA | M7: Número de tarjetas | N7: 1000000 | O7: D | R7: Número de tarjetas | S7: 1100000 | U7: D | W7: Número de tarjetas | X7: =+ROUNDUP(PasajerosDiariosMetroFase3*NumTarjetasDesfireColectivos/NumPasColectivos,-5) -> 300000 | Z7: D | AB7: Número de tarjetas | AC7: =+ROUNDUP(NumPasCable*NumTarjetasDesfireColectivos/NumPasColectivos,-4) -> 20000 | AE7: D | AH7: Inflación proyectada Fondo Monetario Internacional | BA7: Area Data Center | BB7: ='Area Data Center'!AJ13 -> 28 | BC7: Tier IV | BD7: B | BG7: Mantenimiento Equipos a bordo y en Estaciones | BH7: 0.08 | BJ7: D | BL7: Seguro de salud | BM7: 0.057 | BN7: http://www.iess.gob.ec/documents/13718/54965/Tasasdeaportacion.pdf | BO7: E | BR7: Prima de riesgo Rm-Rf | BS7: 0.157 | BT7: E | BU7: www.stern.nyu.edu/~adamodar/pc/datasets/ctryprem.xls, http://pages.stern.nyu.edu/~adamodar/New_Home_Page/datafile/ctryprem.html
B8: F | C8: Cotizaciones | E8: 2 | F8: Personal estaciones: ciudad (0) concesionario (1) | G8: 0 | H8: NA | M8: Número de paradas corrredores | N8: =+'Paradas y Terminales Corredores'!D64+'Paradas y Terminales Corredores'!D68 -> 143 | O8: A | W8: Número de paradas Metro | X8: 15 | Z8: A | AB8: Número de paradas Cable - Línea 1 | AC8: 6 | AD8: 1 | AE8: B | AH8: TRM USD a USD | AI8: 1 | BA8: Tipo de acondicionamiento | BB8: Tier III | BC8: si | BD8: NA | BG8: Salario Mínimo (USD) | BH8: 354 | BJ8: A | BL8: Seguro de riesgo del trabajo | BM8: 0.0055 | BN8: http://www.iess.gob.ec/documents/13718/54965/Tasasdeaportacion.pdf | BO8: E | BR8: Beta del sector B | BS8: 1.08 | BT8: E
B9: NA | C9: No Aplica | E9: 3 | F9: Unidad Funcional 1 | G9: 1 | H9: D | M9: Número de terminales | N9: =+'Paradas y Terminales Corredores'!D65+'Paradas y Terminales Corredores'!D69 -> 17 | O9: A | W9: Número de trenes | X9: 18 | Z9: D | BA9: Redundancia | BB9: si | BC9: no | BD9: NA | BL9: Seguro de cesantía | BM9: 0.01 | BN9: http://www.iess.gob.ec/documents/13718/54965/Tasasdeaportacion.pdf | BO9: E | BR9: Tasa libre de riesgo Rf | BS9: 0.105 | BT9: E | BU9: http://cbonds.com/countries/Ecuador-bond
F10: Unidad Funcional 2 | G10: 1 | H10: D | AI10: 2015 | AJ10: 2016 | AK10: 2017 | AL10: 2018 | AM10: 2019 | AN10: 2020 | AO10: 2021 | AP10: 2022 | AQ10: 2023 | AR10: 2024 | AS10: 2025 | BA10: Número de librerias de cintas | BB10: 1 | BD10: D | BL10: Seguro social campesino | BM10: 0.0035 | BN10: http://www.iess.gob.ec/documents/13718/54965/Tasasdeaportacion.pdf | BO10: E | BR10: Costo del equity Ke | BS10: =BS9+BS7*BS8 -> 0.27456 | BT10: B
F11: Unidad Funcional 3 | G11: 1 | H11: D | M11: Parámetros/Supuestos SAE | O11: Fuente | R11: Parámetros/Supuestos SAE | U11: Fuente | W11: Parámetros/Supuestos Equipos Metro | Z11: Fuente | AB11: Parámetros/Supuestos SAE | AE11: Fuente | AI11: Demanda Estimada y tarifa proyectada | BA11: Capacidad de unidades de cada rack | BB11: 42 | BD11: D | BL11: Gastos de administración | BM11: 0.0044 | BN11: http://www.iess.gob.ec/documents/13718/54965/Tasasdeaportacion.pdf | BO11: E | BR11: Peso del equity We | BS11: 0.4 | BT11: D
F12: Unidad Funcional 4 | G12: 1 | H12: D | M12: Flota Troncal | N12: =+FlotaTroncalFase1+I22 -> 516 | O12: D | R12: Flota de Colectivos | S12: =+FlotaColetivosFase2 -> 1511 | T12: incluye inter e intra parroquiales | U12: C | W12: Número de torniques por parada | X12: 7 | Z12: D | AB12: Velocidad promedio (metros/min) | AC12: =5*60 -> 300 | AE12: B | AH12: Cifras por día de operación | AI12: Diaria | AJ12: Año 1 | AK12: Año 2 | AL12: Año 3 | AM12: Año 4 | AN12: Año 5 | AO12: Año 6 | AP12: Año 7 | AQ12: Año 8 | AR12: Año 9 | AS12: Año 10 | AX12: Pesimista | AY12: 0.015 | BA12: Porcentaje servicios profesionales centro de datos y centro de control | BB12: 0.2 | BD12: D | BL12: Contribución Servicio Ecuatoriano de Capacitación Profesional (SECAP) | BM12: 0.005 | BN12: http://www.proecuador.gob.ec/invierta-en-ecuador/entorno-de-negocios/regimen-laboral/ | BO12: E | BR12: WAAC | BS12: =BS11*BS10+BS6*BS5*(1-BS4) -> 0.153924 | BT12: B
F13: Unidad Funcional 5 | G13: 1 | H13: D | M13: Puertas por bus troncal articulado | N13: 3 | O13: D | R13: Puertas por bus colectivo | S13: 2 | U13: D | W13: Total de toniquetes validadores Metro | X13: =NumTorniquetesMetroPorParada*NumParadasMetro -> 105 | Z13: B | AB13: Distancia entre paradas (metros) | AC13: 500 | AE13: B | AH13: Porcentaje | AJ13: =IncrementoDemanda -> 0.015 | AK13: 0.015 | AL13: 0.015 | AM13: 0.015 | AN13: 0.015 | AO13: 0.015 | AP13: 0.015 | AQ13: 0.015 | AR13: 0.015 | AS13: 0.015 | AX13: Intermedio | AY13: 0.025 | BA13: Memoria incluida Controlador (GB) | BB13: 2400 | BD13: D | BL13: Contribución Instituto Ecuatoriano de Educación y Crédito Educativo (IECE) | BM13: 0.005 | BN13: http://www.proecuador.gob.ec/invierta-en-ecuador/entorno-de-negocios/regimen-laboral/ | BO13: E | BR13: Plazo de la deuda 1 (años) | BS13: 10
F14: Puntos de personalización (0) no, (1) si | G14: 1 | H14: A | M14: Puertas por bus troncal biarticulado | N14: 5 | R14: Parámetros/Supuestos SIU | U14: Fuente | W14: Total de máquinas VRM | X14: =NumParadasMetro*2+4 -> 34 | Z14: B | AB14: Tiempo entre paradas (min) | AC14: =AC13/AC12 -> 1.666666667 | AE14: B | AH14: Pasajeros Corredores | AI14: =PasajerosDiariosCorreFase1 -> 1400000 | AJ14: =$AI$14*Diasequivalentes -> 420000000 | AK14: =$AI14*Diasequivalentes*(1+AK13)^(RIGHT(AK12,2)-RIGHT($AJ$12,2)) -> 426300000 | AL14: 432694500 | AM14: 439184917.5 | AN14: 445772691.3 | AO14: 452459281.6 | AP14: 459246170.9 | AQ14: 466134863.4 | AR14: 473126886.4 | AS14: 480223789.7 | AX14: Optimista | AY14: 0.035 | BA14: Memoria por Disco Duro (GB) | BB14: 1200 | BD14: D | BL14: Décimo tercero | BM14: =1/12 -> 0.08333333333 | BN14: http://www.proecuador.gob.ec/invierta-en-ecuador/entorno-de-negocios/regimen-laboral/ | BO14: E | BR14: Tasa de interés | BS14: =CostoDeuda -> 0.105
F15: Porcentaje de reducción tarifa usuarios preferenciales | G15: 0.5 | H15: A | I15: =+IngresoPasajeroF1 -> 0.03631783107 | M15: Puertas por bus alimentador | N15: 2 | O15: D | R15: Número de paneles VMS por bus colectivo | S15: 1 | U15: D | W15: Factor de validaciones a solicitudes de servicio | X15: 0.0015 | Z15: D | AB15: Tiempo en paradas (min) | AC15: =10/60 -> 0.1666666667 | AE15: B | AH15: Pasajeros Colectivos | AI15: =+NumPasColectivos -> 1581395 | AK15: =$AI15*Diasequivalentes -> 474418500 | AL15: =($AI15)*Diasequivalentes*(1+AL13)^(RIGHT(AL12,2)-RIGHT($AK$12,2)) -> 481534777.5 | AM15: 488757799.2 | AN15: 496089166.1 | AO15: 503530503.6 | AP15: 511083461.2 | AQ15: 518749713.1 | AR15: 526530958.8 | AS15: 534428923.2 | BA15: Precio kWh (USD) | BB15: 0.15 | BD15: E | BL15: Décima cuarta | BM15: =1/12 -> 0.08333333333 | BN15: http://www.proecuador.gob.ec/invierta-en-ecuador/entorno-de-negocios/regimen-laboral/ | BO15: E | BR15: Seguros | BS15: 0.04
F16: Porcentaje de usuarios con tarifa reducida | G16: 0.212 | I16: =+DemandaTarifaReducida*0.125+(1-DemandaTarifaReducida)*0.25 -> 0.2235 | J16: =+I15/I16 -> 0.1624958885 | M16: Flota Alimentadora | N16: =+FlotaAlimentadoraFase1+I25 -> 918 | O16: A | R16: Número de TVs abordo colectivo | S16: 0 | U16: D | W16: Número de solicitudes de servicio | X16: =NumPasMetro*FactorValidacionesASolicitudes3 -> 150 | Z16: B | AB16: Paradas promedio por línea | AC16: =13/4 -> 3.25 | AE16: B | AH16: Pasajeros Metro | AI16: =+NumPasMetro -> 100000 | AM16: =($AI16)*Diasequivalentes*(1+$AM$13) -> 30450000 | AN16: =($AI16)*Diasequivalentes*(1+AN13)^(RIGHT(AN12,2)-RIGHT($AL$12,2)) -> 30906750 | AO16: =($AI16)*Diasequivalentes*(1+AO13)^(RIGHT(AO12,2)-RIGHT($AL$12,2)) -> 31370351.25 | AP16: 31840906.52 | AQ16: 32318520.12 | AR16: 32803297.92 | AS16: 33295347.39 | BL16: Aportes empleador | BM16: =SUM(BM6:BM15) -> 0.2880666667
M17: Licencia SAE por vehículo (USD) | N17: 1000 | O17: D | R17: Número de parlantes por bus colectivo | S17: 2 | U17: D | W17: Duración servicios en módulos de atención (min) | X17: 2 | Z17: D | AB17: Tiempo de recorrido promedio por linea ida y vuelta (min) | AC17: =(ParadasPromedioPorLinea*TiempoEnParadas)+((ParadasPromedioPorLinea-1)*TiempoEntreParadas)*2 -> 8.041666667 | AE17: B | AH17: Pasajeros Cable | AI17: =+NumPasCable -> 20000 | AM17: =($AI17)*Diasequivalentes*(1+$AM$13) -> 6090000 | AN17: =($AI17)*Diasequivalentes*(1+AN13)^(RIGHT(AN12,2)-RIGHT($AL$12,2)) -> 6181350 | AO17: 6274070.25 | AP17: 6368181.304 | AQ17: 6463704.023 | AR17: 6560659.584 | AS17: 6659069.477 | BL17: Gerencial | BO17: D
G18: Unidades Funcionales | M18: Parámetros/Supuestos SIU | O18: Fuente | R18: Parámetros/Supuestos Equipos Colectivo | U18: Fuente | W18: Demanda de tiempo de atención (horas) | X18: =(X16*X17)/60 -> 5 | Z18: B | AB18: Número de líneas | AC18: 4 | AE18: B | AH18: Tarifa plena 1 | AJ18: 0.25 | AK18: 0.25 | AL18: 0.25 | AM18: 0.25 | AN18: 0.25 | AO18: 0.25 | AP18: 0.25 | AQ18: 0.25 | AR18: 0.25 | AS18: 0.25 | BL18: Num Gerente General | BM18: 1 | BO18: D
F19: Cantidades por Unidades Funcionales | G19: 1 | H19: 2 | I19: 1 | J19: 4 | K19: 5 | M19: Número de paneles VMS por bus troncal articulado/tipo | N19: 1 | O19: D | R19: Total de validadores Colectivo | S19: =FlotaColectivos -> 1511 | U19: B | W19: Horas de operación diaria módulo de atención | X19: 12 | Z19: D | AB19: Tiempo equivalente total 4 líneas (min) | AC19: =TimepoRecorridoPorLinea*NumLineas -> 32.16666667 | AE19: B | AH19: Tarifa plena 2 | AJ19: 0.25 | AK19: 0.25 | AL19: 0.25 | AM19: 0.45 | AN19: 0.45 | AO19: 0.45 | AP19: 0.45 | AQ19: 0.45 | AR19: 0.45 | AS19: 0.45 | BL19: Horas operación diarias Asistente de Gerencia | BM19: 10 | BO19: D
G20: Metrobus | H20: Convencional | I20: Metrobus Ampliaciones | J20: Metro Línea 1 | K20: Cable Líneas azul | M20: Número de paneles VMS por bus troncal biarticulado | N20: 2 | O20: D | R20: Factor de validaciones a solicitudes de servicio | S20: 0.0015 | U20: D | W20: Número de módulos de atención Metro | X20: =ROUNDUP(X18/X19,0) -> 1 | Z20: B | AB20: Pasajeros promedio por min | AC20: =(NumPasCable/HorasDeOperacion)/60 -> 16.66666667 | AE20: B | AH20: Tarifa plena cable | AM20: 0.35 | AN20: 0.35 | AO20: 0.35 | AP20: 0.35 | AQ20: 0.35 | AR20: 0.35 | AS20: 0.35 | BL20: Número de Asistentes de gerencia por turno | BM20: 1 | BO20: D
F21: Corredores | M21: Número de paneles VMS por bus Alimentador | N21: 1 | O21: D | R21: Número de solicitudes de servicio | S21: =NumPasColectivos*FactorValidacionesASolicitudes2 -> 2372.0925 | U21: B | W21: SAM por Handheld | X21: 2 | Z21: D | AB21: Requerimiento de pasajeros | AC21: =AC20*AC19 -> 536.1111111 | AE21: B | AH21: Tarifa preferencial 1 | AJ21: =ROUNDDOWN(AJ18*PorcentajeReduccionTarifa,2) -> 0.12 | AK21: 0.12 | AL21: 0.12 | AM21: 0.12 | AN21: 0.12 | AO21: 0.12 | AP21: 0.12 | AQ21: 0.12 | AR21: 0.12 | AS21: 0.12 | BL21: Num Asistente de gerencia | BM21: 1
F22: Flota Troncal | G22: =+SUM(G23:G24) -> 473 | I22: =+SUM(I23:I24) -> 43 | K22: 558 | M22: Número de TVs a bordo bus troncal | N22: 2 | O22: D | R22: Duración servicios en módulos de atención (min) | S22: 2 | U22: D | W22: Porcentaje de estaciones con handheld | X22: 1 | Z22: D | AB22: Capacidad vehículos (per/vehi) | AC22: 8 | AE22: B | AH22: Tarifa preferancial 2 | AJ22: =ROUNDDOWN(AJ19*PorcentajeReduccionTarifa,2) -> 0.12 | AK22: 0.12 | AL22: 0.12 | AM22: 0.22 | AN22: 0.22 | AO22: 0.22 | AP22: 0.22 | AQ22: 0.22 | AR22: 0.22 | AS22: 0.22 | BL22: Tecnología | BO22: D
F23: Articulados/Tipo | G23: 386 | M23: Número de TVs a bordo bus alimentador | N23: 0 | O23: D | R23: Demanda de tiempo de atención (horas) | S23: =(S21*S22)/60 -> 79.06975 | U23: B | W23: Número de handhelds recarga por parada | X23: 2 | Z23: D | AB23: Flota en operación | AC23: =AC21/AC22 -> 67.01388889 | AE23: B | AH23: Recaudo Corredores | AJ23: =AJ14*(1-DemandaTarifaReducida)*AJ$18+AJ14*DemandaTarifaReducida*AJ$21 -> 93424800 | AK23: 94826172 | AL23: 96248564.58 | AM23: 97692293.05 | AN23: 99157677.44 | AO23: 100645042.6 | AP23: 102154718.2 | AQ23: 103687039 | AR23: 105242344.6 | AS23: 106820979.8 | BL23: Número de Directores de tecnología | BM23: 1 | BO23: D
F24: Biarticulados | G24: 87 | I24: 43 | M24: Número de parlantes por bus troncal | N24: 4 | O24: D | R24: Horas de operación diaria módulo de atención | S24: 10 | U24: D | W24: Número de handhelds validación y recarga | X24: =ROUNDUP(PorceHandheldMetro*NumParadasMetro*HandheldsRecargaPorParadaMetro,0) -> 30 | Z24: B | AB24: Flota de reserva | AC24: =AC23*10% -> 6.701388889 | AE24: B | AH24: Recaudo Colectivos | AJ24: =AJ15*(1-DemandaTarifaReducida)*AJ$18+AJ15*DemandaTarifaReducida*AJ$21 -> 0 | AK24: 105529651.1 | AL24: 107112595.9 | AM24: 108719284.8 | AN24: 110350074.1 | AO24: 112005325.2 | AP24: 113685405.1 | AQ24: 115390686.2 | AR24: 117121546.5 | AS24: 118878369.7 | BL24: Número de Ingenieros de sistemas | BM24: 1 | BO24: D
F25: Flota Alimentadora | G25: 764 | I25: 154 | K25: 896 | M25: Número de parlantes por bus alimentador | N25: 2 | O25: D | R25: Número de módulos de atención Colectivo | S25: =ROUNDUP(S23/S24,0)*VarPersonalizacion -> 8 | U25: B | W25: Accesos por estación con entrada de discapacitados | X25: 1 | Z25: D | AB25: Flota total | AC25: =ROUNDUP(AC23+AC24,0) -> 74 | AE25: B | AH25: Recaudo Metro | AM25: =AM16*(1-DemandaTarifaReducida)*AM$19+AM16*DemandaTarifaReducida*AM$22 -> 12217758 | AN25: 12401024.37 | AO25: 12587039.74 | AP25: 12775845.33 | AQ25: 12967483.01 | AR25: 13161995.26 | AS25: 13359425.19 | BL25: Horas de Operación diarias Supervisores (centro control) | BM25: =HorasDeOperacion -> 20 | BO25: D
F26: Pasajeros promedio diaros corredores | G26: 1400000 | I26: 41000 | K26: 1197329.424 | M26: Número de pantallas TV en paradas y terminales | N26: 4 | O26: D | R26: Tiempo por transaccion de recarga (seg) | S26: 10 | U26: D | W26: Accesos por estación metro | X26: 2 | Y26: No hay planos, es un supuesto | Z26: D | AB26: Parámetros/Supuestos Equipos | AE26: Fuente | AH26: Recaudo Cable | AM26: =AM17*(1-DemandaTarifaReducida)*AM20+AM17*DemandaTarifaReducida*AM20*50% -> 1905561 | AN26: 1934144.415 | AO26: 1963156.581 | AP26: 1992603.93 | AQ26: 2022492.989 | AR26: 2052830.384 | AS26: 2083622.839 | BL26: Número de Supervisores por turno (centro de control) | BM26: 1 | BO26: D
F27: Tarifa usuario | G27: 0.25 | H27: =+G27 -> 0.25 | I27: =+G27 -> 0.25 | M27: Parámetros/Supuestos Equipos Troncal | O27: Fuente | R27: Número de transacciones de recarga | S27: =PasajerosDiariosColecFase2/2 -> 790697.5 | U27: D | AB27: Número de torniques por parada | AC27: 4 | AE27: D | BL27: Horas de Operación diarias Operarios (centro de control) | BM27: =HorasDeOperacion -> 20 | BO27: B
F28: Colectivo | M28: Número de torniquetes en paradas/terminales | N28: =SUM('Paradas y Terminales Corredores'!H66:H67)+SUM('Paradas y Terminales Corredores'!H68:H69) -> 558 | O28: B | R28: Demanda de tiempo de recarga (horas) | S28: =(S27*S26)/3600 -> 2196.381944 | U28: B | AB28: Total de toniquetes validadores Cable | AC28: =NumTorniquetesCablePorParada*NumParadasCable -> 24 | AE28: B | AH28: =+AH14 -> Pasajeros Corredores | AJ28: =+AJ14/Diasequivalentes -> 1400000 | AK28: 1421000 | AL28: 1442315 | AM28: 1463949.725 | AN28: 1485908.971 | AO28: 1508197.605 | AP28: 1530820.57 | AQ28: 1553782.878 | AR28: 1577089.621 | AS28: 1600745.966 | BL28: Número de Operarios por turno (centro de control) SAE | BM28: =ROUNDUP((FlotaAlimentadoraUF1+FlotaTroncalUF1)/PuntosPorOperario,0) -> 18 | BO28: D
F29: Flota de Colectivos | G29: 0 | H29: =1361+150 -> 1511 | K29: =1361+150 -> 1511 | M29: Número de pasillos para discapacitados | N29: =SUM('Paradas y Terminales Corredores'!I66:J67)+SUM('Paradas y Terminales Corredores'!I68:I690) -> 181 | O29: B | R29: Horas de operación diaria punto de recarga | S29: 10 | U29: D | AB29: Total de máquinas VRM | AC29: =NumParadasCable -> 6 | AE29: B | AH29: =+AH15 -> Pasajeros Colectivos | AJ29: =+AJ15/Diasequivalentes -> 0 | AK29: 1581395 | AL29: 1605115.925 | AM29: 1629192.664 | AN29: 1653630.554 | AO29: 1678435.012 | AP29: 1703611.537 | AQ29: 1729165.71 | AR29: 1755103.196 | AS29: 1781429.744 | BL29: Número de Operarios por turno (centro de control) SIR | BM29: =ROUNDUP((PuntosRedRecargaExternaCorredores)/(PuntosPorOperario*2),0) -> 4
F30: Pasajeros promedio diarios colectivo | G30: 0 | H30: 1581395 | K30: 1533635.875 | M30: Total torniquetes validadores Corredores | N30: =N29+N28 -> 739 | O30: B | R30: Factor de ampliación por demanda asimetria | S30: 0.5 | U30: D | AB30: Número de máquinas CIM por parada | AC30: 1 | AE30: D | AH30: Pasajeros Metro | AJ30: =+AJ16/Diasequivalentes -> 0 | AK30: 0 | AL30: 0 | AM30: 101500 | AN30: 103022.5 | AO30: 104567.8375 | AP30: 106136.3551 | AQ30: 107728.4004 | AR30: 109344.3264 | AS30: 110984.4913 | BL30: Puntos por operario (centro de control) | BM30: 80 | BO30: D
F31: Metro | M31: Total de máquinas VRM | N31: =SUM('Paradas y Terminales Corredores'!K66:L67)+SUM('Paradas y Terminales Corredores'!K68:L69) -> 291 | O31: B | R31: Puntos de venta y recarga externa Colectivos | S31: =MAX(ROUNDUP((S28/S29)*(1+S30),0),1000) -> 1000 | U31: B | AB31: SAM por Handheld | AC31: 2 | AE31: D | AH31: Pasajeros Cable | AJ31: =+AJ17/Diasequivalentes -> 0 | AK31: 0 | AL31: 0 | AM31: 20300 | AN31: 20604.5 | AO31: 20913.5675 | AP31: 21227.27101 | AQ31: 21545.68008 | AR31: 21868.86528 | AS31: 22196.89826 | BL31: Número de Operarios de emisión de tarjetas | BM31: 1
F32: Pasajeros promedio diaros metro | G32: 0 | H32: 0 | J32: 400000 | M32: Porcentaje de terminales con modulos de personalización | N32: 0.7 | O32: D | R32: Porcentaje Máquinas de inspección | S32: 0.1 | U32: D | AB32: Número de handhelds recarga por parada | AC32: 2 | AE32: D | BL32: Operaciones | BO32: D
F33: Pasajeros promedio diaros metro (Nuevos no tomados de Metrobus-Q) | J33: 200000 | M33: Número de módulos de personalización Corredores | N33: =NumTerminalesCorredoresUF1*POrcTerminalesCorredoresConPersonali*VarPersonalizacion/2 -> 5.95 | O33: B | R33: Parámetros/Supuestos Centro de Control SIR-SAE | U33: Fuente | AB33: Porcentaje de esatciones con handheld | AC33: 1 | AE33: D | BL33: Número de Directores de operaciones | BM33: 1
F34: Tarifa | J34: 0.45 | M34: Número de máquinas CIM por estación | N34: 1 | O34: D | R34: Número de Centros de Control | S34: 0 | U34: D | AB34: Número de handhelds recarga | AC34: =ROUNDUP(PorceHandheldCable*NumParadasCable*AC32,0) -> 12 | AE34: B | BL34: Distribución de tarjetas | BO34: D
F35: Cable | M35: Número de SAMs por Validador en estaciones | N35: =2 -> 2 | O35: D | R35: Costo arriendo oficinas Centro de Control (COP) | S35: 7000000 | U35: D | AB35: Accesos por estación con entrada de discapacitados | AC35: 1 | AE35: D | BL35: Número de Encargados de área | BM35: 1 | BO35: D
F36: Pasajeros promedio diaros Cable | G36: 0 | H36: 0 | K36: 20000 | M36: Número de SAMs por Máquina VRM | N36: 2 | O36: D | R36: Número de operadores de transporte | S36: 46 | U36: A | AB36: Accesos por estación cable | AC36: 2 | AD36: No hay planos, es un supuesto | AE36: D | BL36: Personal de distribución | BM36: 2
M37: Número de SAMs por Módulo de atención (lector de medios de pago) | N37: 2 | O37: D | R37: Parámetros/Supuestos Personal | U37: Fuente | AB37: Número de módulos de personalización | AC37: 1 | AE37: D | BL37: Puntos de personalización | BO37: D
M38: Número de SAMs por Máquina CIM | N38: 2 | O38: D | R38: Horas de Operación diarias Supervisores (centro control) | S38: =HorasDeOperacion -> 20 | U38: D | BL38: Horas de Operación diarias Jefe de turnos | BM38: 8 | BO38: D
M39: Número de handhelds recarga por parada | N39: 2 | O39: D | R39: Número de Supervisores por turno (centro de control) | S39: =IF(Colectivos=1,1,0) -> 1 | U39: D | BL39: Número de Jefes de turno | BM39: 1 | BO39: D
M40: SAM por Handheld | N40: 2 | O40: D | R40: Horas de Operación diarias Operarios (centro de control) | S40: =HorasDeOperacion -> 20 | U40: D | BL40: Horas de operación diarias módulos de atención | BM40: 9 | BO40: D
M41: Porcentaje de esatciones con handheld | N41: 1 | O41: D | R41: Número de Operarios por turno (centro de control) SAE | S41: =MAX(NumOperadoresTransporteColectivo,IF(Colectivos=1,ROUNDUP((FlotaColectivos)/PuntosPorOperario2,0),0)) -> 46 | U41: B | BL41: Número de Operarios módulos de atención | BM41: =NumModulosPersonalizacionCorredores+IF(Fase2=1,NumModulosAtencionColectivos,0)+IF(G12=1,NumModulosAtencionMetro,0) -> 14.95
M42: Número de handhelds validacion y recarga | N42: =ROUNDUP((NumParadaCorredoresUF1+NumTerminalesCorredoresUF1)*PorceHandheldCorredores*HandheldsRecargaPorParadaCorredores,0) -> 320 | O42: B | R42: Número de Operarios por turno (centro de control) SIR | S42: =IF(Colectivos=1,ROUNDUP((RedRecargaExternaColectivos)/PuntosPorOperario2,0),0) -> 7 | BL42: Comunicaciones | BO42: D
M43: Parámetros/Supuestos Equipos Alimentadores | O43: Fuente | R43: Puntos por operario (centro de control) | S43: 160 | U43: D | BL43: Número de Comunicador social | BM43: 1
M44: Total de validadores Alimentadores | N44: =FlotaAlimentadoraUF1 -> 918 | O44: B | BL44: Personal de inspección | BO44: D
M45: Tiempo por transaccion de recarga (seg) | N45: 10 | O45: C | BL45: Horas de operación diarias inspectores | BM45: 24 | BO45: B
M46: Número de transacciones de recarga | N46: =NumPasCorredoresUF1*33% -> 462000 | O46: C | BL46: Personal estaciones corredores | BM46: =IF(Corredor1=1,SUM('Paradas y Terminales Corredores'!G66:G67),IF(Colectivos=1,SUM('Paradas y Terminales Corredores'!G68:G69),SUM('Paradas y Terminales Corredores'!G70:G71))) -> 264 | BO46: B
M47: Demanda de tiempo de recarga (horas) | N47: =(N46*N45)/3600 -> 1283.333333 | O47: B | BL47: Personal buses colectivos | BM47: 0
M48: Horas de operación diaria punto de recarga | N48: 10 | O48: C | BL48: Peronas por estación metro | BM48: 2 | BO48: B
M49: Factor de ampliación por demanda asimetria | N49: 0.5 | O49: C | BL49: Peronal estaciones metro | BM49: =NumParadasMetro*PersonasPorEstacionMetro -> 30
M50: Puntos de recarga externa Corredores | N50: =MAX(ROUNDUP((N47/N48)*(1+N49),0),500) -> 500 | O50: B | BL50: Personas por estacion cable | BM50: 2 | BO50: B
M51: Número de SAMs por dispositivo de recarga | N51: 2 | O51: C | BL51: Personal estaciones cable | BM51: =NumParadasCable*PersonasPorEstacionCable -> 12
M52: Número de SAMs por Validador en Buses | N52: 2 | O52: C | BL52: Número total de personal por turno | BM52: =(NumInspectoresCorredores+IF(Metro=1,NumInspectoresMetro,0)+IF(Cable=1,NumInspectoresCable,0))*PersonalEsta0ciudad1concesionario -> 0 | BO52: D
M53: Número Kits de herramientas | N53: 4 | O53: D | BL53: Personal Help Desk | BM53: 3
M54: Porcentaje Máquinas de inpeacción | N54: 0 | O54: D | BL54: Área RRHH | BO54: D
M55: Otros parámetros/supuestos Corredores | O55: Fuente | BL55: Número de Encargados de área | BM55: 1 | BO55: D
M56: Número total de tarjetas dostribuidas | N56: 1000000 | O56: D | BL56: Número de Analista | BM56: 1
M57: Recaudo red externa | N57: =1-PorcRecRedInternaCorredores -> 0.3 | O57: B | BL57: Área comercial | BO57: D
M58: Recaudo red interna | N58: 0.7 | O58: B | BL58: Número de Comerciales | BM58: 1
M59: Factor número de tarjetas/número de pasajeros | N59: 1.3 | O59: D | Y59: 19145 | BL59: Área jurídica | BO59: D
M60: Factor número recargas/validaciones | N60: 1 | O60: D | BL60: Número de Abogados senior | BM60: 1 | BO60: D
M61: Factor número de PQRS/validaciones | N61: 0.05 | O61: D | BL61: Número de Abogados junior | BM61: 1
M62: Comisión red de Red de Recarga Externa | N62: 0.03 | O62: D | BL62: Área financiera | BO62: D
M63: Plan de datos mensual equipos abordo y en campo (COP) | N63: 14 | O63: E | BL63: Número de Financieros | BM63: 1 | BO63: D
M64: Plan de datos mensual estaciones, centro de control y patios (USD) | N64: 52 | O64: E | BL64: Número de Contadores | BM64: 1 | BO64: D
M65: Plan de datos mensual centro de datos (USD) | N65: 1384 | O65: E | BL65: Número de Auxiliares contable | BM65: 1 | BO65: D
M66: Costo de alquiler fibra óptica por punto (USD) | N66: 15 | O66: D | BL66: Número de Revisores fiscales | BM66: 1
M67: IVA | N67: 0.12 | O67: E | BL67: Área de apoyo | BO67: D
M68: ImpoRenta | N68: =BS4 -> 0.3 | O68: D | BL68: Número de Mensajeros | BM68: 1 | BO68: D
M69: Tasa de importación | N69: 0.05 | O69: D | BL69: Número de Recepcionistas | BM69: 2 | BO69: D
M70: Aranceles | N70: 0.05 | O70: D | BL70: Número de Personal de aseo | BM70: 3 | BO70: D
M71: Meses al año | N71: 12 | O71: NA | BL71: Factor para cubrir horas muertas | BM71: 0.2 | BO71: D
M72: Días a la semana | N72: 7 | O72: NA | BL72: Máximo de horas laborales a la semana | BM72: 40 | BO72: D | BP72: http://casas.mitula.ec/casas/arriendo-oficinas-quito
M73: Horas al día | N73: 24 | O73: NA | BL73: Número de Áreas con router | BM73: 6 | BO73: D
M74: Porcentaje de repuestos | N74: 0.05 | O74: D | BL74: Número licencias de software de contabilidad | BM74: 1 | BO74: D
M75: Porcentaje servicios profesionales equipos en campo | N75: 0.25 | O75: D | BL75: Sillas por gerente | BM75: 2 | BO75: D
M76: Accesos por estación con entrada de discapacitados | N76: 2 | O76: D | BL76: Número de vans de personalización | BM76: 1 | BO76: D
M77: Costo firmware y software dispositivos SIR por bus | N77: 800 | O77: D | BL77: Costo Mantenimiento Oficina (anual) | BM77: 0.1 | BO77: D
M78: Parámetros/Supuestos Centro de Control SIR-SAE | O78: Fuente | BL78: Costo Mantemiento Vehículos (anual) | BM78: 0.1 | BO78: D
M79: Número de Centros de Control | N79: 1 | O79: D | BL79: Cantidad medios materiales (microondas, nevera, cafetera, dispensador de agua, vajilla) | BM79: 1 | BO79: D
M80: Costo arriendo oficinas Centro de Control (USD) | N80: 2422 | O80: D | BL80: Número de áreas con aire acondicionado | BM80: 6 | BO80: D
M81: Parámetros/Supuestos Modelo de transporte de Valores | O81: Fuente | BL81: Sillas Sala de Juntas | BM81: 10 | BO81: D
M82: Costo mensual de conteo | N82: 0.0008 | O82: D | BL82: Cantidad equipos Sala de Juntas (mesa, proyector, televisor, tablero) | BM82: 1 | BO82: D
M83: Costo mensual de cambio | N83: 0.0004 | O83: D | BL83: Sillas Sala de Juntas Gerente | BM83: 6 | BO83: D
M84: Recolecciones por día | N84: 1 | O84: D | BL84: Sillas Sala de Espera | BM84: 6 | BO84: D
M85: Costo de recolección por punto | N85: 6 | O85: D | BL85: Mesas Sala de Espera | BM85: 1 | BO85: E
M86: Preparaciones por día | N86: 1 | O86: D | BL86: Costo por metro cuadrado centro de control | BM86: 19.07 | BO86: D
M87: Costo preparación por punto | N87: =0.31*TRMUSDaUSD -> 0.31 | O87: D | BL87: Metros cuadrados centro de control | BM87: 200 | BO87: D
M88: Días al mes de recolección | N88: =ROUNDUP(317/12,0) -> 27 | O88: D | BL88: Número de cámaras de seguridad | BM88: 10
M89: Número de Turros por punto al día | N89: 30 | O89: D
M90: Costo por turro | N90: 0.02 | O90: D
M91: Costo insumos por punto por mes | N91: 19 | O91: D
M92: Parámetros/Supuestos Fideicomiso | O92: Fuente
M93: Costo del fideicomiso | N93: =0.5% -> 0.005 | O93: D
M94: Parámetros/Supuestos de Clearing | O94: Fuente
M95: Porcentaje de transacciones interoperables | N95: 0.2 | O95: D
M96: Parámetros/Supuestos para las proyecciones | O96: Fuente
M97: Factor de reposición de Capex Operativo | N97: 0.5 | O97: D
M98: Tiempo para la reposicion Capex Operativo (años) | N98: 5 | O98: D
M99: Factor de reposición de Capex Administrativo | N99: 0.3 | O99: D
M100: Tiempo para la reposicion Capex Administrativo (años) | N100: 5 | O100: D
M101: Porcentaje de Fareboxes desinstalados anualmente | N101: 0.15 | O101: D
M102: Porcentaje del recaudo perteneciente al Concencionario | N102: 0.045 | O102: D
M103: Incremento del recaudo anual | N103: 0.01 | O103: D
M104: Incremento anual tarifa | N104: 0.01 | O104: D
M105: Incremento de la tarifa año 1 | N105: 0.1666 | O105: D
M106: Parámetros/Supuestos Depreciaciones | O106: Fuente
M107: Vida útil hardware centro de datos (años) | N107: 10 | O107: D
M108: Valor Salvamento hardware centro de datos | N108: 0.3 | O108: D
M109: Vida útil hardware operativo (años) | N109: 5 | O109: D
M110: Valor de salvamento hardware operativo | N110: 0.3 | O110: D
M111: Parámetros/Supuestos Estructura de Capital | O111: Fuente
M112: Deuda | N112: 0.7 | O112: D
M113: Equity | N113: 0.3 | O113: D
M114: Costo Deuda (CETES a 28 días+6%) | N114: =3%+6% -> 0.09 | O114: D
M115: Risk Free (rendimiento bonos 30 años) | N115: 0.0675 | O115: E
M116: Beta concesionario | N116: 1.2 | O116: D
M117: Equity Risk Premium | N117: 0.0755 | O117: E
M118: Costo Equity | N118: =N115+N116*N117 -> 0.1581 | O118: B
M119: WACC | N119: =N112*N114+N113*N118*(1-ImpuestosOperativos) ->  | O119: B
P149: http://cdn.agilitycms.com/scotia-bank-mexico/spanish/pdf/acerca-de/economia-y-finanzas/analisis-economico-y-politco/pronosticos/pinf.pdf
Q194: Aswath Damodaran

Sheet Dias de operación al año (hidden)
B3: Días al año | C3: 366 | F3: Caso BRT Bogotá
B4: Días laborales | C4: =C3-C5-C8 -> 249 | F4: Día convencional | G4: =20 -> 20
B5: Días fin de semana | C5: =SUM(C6:C7) -> 109 | F5: Día domingo o feriado | G5: =18 -> 18
B6: Sábado | C6: 53 | F6: Porcentaje de disminución domingos y feriados | G6: =1-G5/G4 -> 0.1
B7: Domingo | C7: =56 -> 56
B8: Días feriados laborales | C8: =8 -> 8 | D8: http://www.feriadosecuador.net/feriado/2016 | E8: .
B9: Horas operación días laborales y sábados | C9: 24
B10: Horas operación domingos y festivos | C10: 21
B11: Porcentaje de disminución domingos y feriados | C11: =1-C10/C9 -> 0.125
B12: Dias de operación | C12: =C3-(C8+C7)+(C7+C8)*(1-C11) -> 358

Sheet Paradas y Terminales Corredores (hidden)
C1: Número | D1: Accesos | E1: Total Accesos | F1: Personas | G1: Torniquetes estandar | H1: Torniquetes discapacitados | I1: Total estandar | J1: Total discapacitado | K1: estandar | L1: discapa | M1: Acceso tipo 1 | N1: Acceso tipo 2 | O1: Acceso tipo 3
B2: Terminal tipo 1 | C2: 1 | D2: 2 | E2: =D2*C2 -> 2 | F2: =D2*C2 -> 2 | G2: 10 | H2: 2 | I2: =G2*C2 -> 10 | J2: =H2*C2 -> 2 | M2: 3.41 | N2: 2.95
A3: 1 | B3: Terminal tipo 2 | C3: 1 | D3: 1 | E3: =D3*C3 -> 1 | F3: =D3*C3 -> 1 | G3: 7 | H3: 1 | I3: =G3*C3 -> 7 | J3: =H3*C3 -> 1 | K3: 4 | L3: 1 | M3: 3.58 | N3: 3.77
B4: Terminal tipo 3 | C4: 1 | D4: 3 | E4: 3 | F4: 3 | G4: 7 | H4: 3 | I4: 7 | J4: 3 | M4: 3.9 | N4: 2.78 | P4: =2.4/2 -> 1.2
B5: Terminal tipo 4 | C5: 1 | D5: 1 | E5: 1 | F5: 1 | G5: 5 | H5: 1 | I5: 5 | J5: 1 | M5: 5.47
A6: 1 | B6: Terminal tipo 5 | C6: 1 | D6: 1 | E6: 1 | F6: 1 | G6: 7 | H6: 1 | I6: 7 | J6: 1 | K6: 4 | L6: 1 | M6: 7.82
A7: 1 | B7: Terminal tipo 6 | C7: 1 | D7: 2 | E7: 2 | F7: 2 | G7: 7 | H7: 2 | I7: 7 | J7: 2 | K7: 3 | L7: 2 | M7: 2.62 | N7: 6.6
B8: Terminal tipo 7 | C8: 1 | D8: 2 | E8: 2 | F8: 2 | G8: 8 | H8: 2 | I8: 8 | J8: 2 | M8: 4 | N8: 4
A9: 1 | B9: Terminal tipo 8 | C9: 1 | D9: 2 | E9: 2 | F9: 2 | G9: 8 | H9: 2 | I9: 8 | J9: 2 | K9: 3 | L9: 2 | M9: 2.16 | N9: 2.38
B10: Terminal tipo 9 | C10: 1 | D10: 6 | E10: 6 | F10: 6 | G10: 20 | H10: 12 | I10: 20 | J10: 12 | M10: 2.39 | N10: 2.42 | O10: 1.46
B11: Terminal tipo 10 | C11: 1 | D11: 1 | E11: 1 | F11: 1 | G11: 3 | H11: 1 | I11: 3 | J11: 1 | M11: 3.54
B12: Terminal tipo 11 | C12: 1 | D12: 4 | E12: 4 | F12: 4 | G12: 20 | H12: 4 | I12: 20 | J12: 4 | M12: 6
B13: Terminal tipo 12 | C13: 1 | D13: 1 | E13: 1 | F13: 1 | G13: 5 | H13: 1 | I13: 5 | J13: 1 | M13: 4.9
B14: Parada tipo 1 | C14: 2 | D14: 2 | E14: 4 | F14: 4 | G14: 4 | H14: 1 | I14: 8 | J14: 2 | M14: 2.13
B15: Parada tipo 2 | C15: 1 | D15: 1 | E15: 1 | F15: 1 | G15: 2 | H15: 1 | I15: 2 | J15: 1 | M15: 2.15
B16: Parada tipo 3 | C16: 8 | D16: 2 | E16: 16 | F16: 16 | G16: 4 | H16: 1 | I16: 32 | J16: 8 | M16: 2.28
B17: Parada tipo 4 | C17: 1 | D17: 2 | E17: 2 | F17: 2 | G17: 4 | H17: 1 | I17: 4 | J17: 1 | M17: 3.12
B18: Parada tipo 5 | C18: 1 | D18: 1 | E18: 1 | F18: 1 | G18: 2 | H18: 1 | I18: 2 | J18: 1 | M18: 2.16
B19: Parada tipo 6 | C19: 2 | D19: 1 | E19: 2 | F19: 2 | G19: 2 | H19: 1 | I19: 4 | J19: 2 | M19: 2.43
B20: Parada tipo 7 | C20: 9 | D20: 1 | E20: 9 | F20: 9 | G20: 2 | H20: 1 | I20: 18 | J20: 9 | M20: 2.6
B21: Parada tipo 8 | C21: 3 | D21: 1 | E21: 3 | F21: 3 | G21: 2 | H21: 1 | I21: 6 | J21: 3 | M21: 2.5
B22: Parada tipo 9 | C22: 1 | D22: 1 | E22: 1 | F22: 1 | G22: 2 | H22: 1 | I22: 2 | J22: 1 | M22: 2.75
B23: Parada tipo 10 | C23: 1 | D23: 1 | E23: 1 | F23: 1 | G23: 4 | H23: 1 | I23: 4 | J23: 1 | M23: 3.85
B24: Parada tipo 11 | C24: 1 | D24: 1 | E24: 1 | F24: 1 | G24: 2 | H24: 1 | I24: 2 | J24: 1 | M24: 2.1
B25: Parada tipo 12 | C25: 1 | D25: 1 | E25: 1 | F25: 1 | G25: 4 | H25: 1 | I25: 4 | J25: 1 | M25: 4
B26: Parada tipo 13 | C26: 1 | D26: 1 | E26: 1 | F26: 1 | G26: 4 | H26: 1 | I26: 4 | J26: 1 | M26: 2.98
B27: Parada tipo 14 | C27: 1 | D27: 2 | E27: 2 | F27: 2 | G27: 6 | H27: 1 | I27: 6 | J27: 1 | M27: 3.5 | N27: 3.5
A28: 4 | B28: Parada tipo 15 | C28: 4 | D28: 1 | E28: 4 | F28: 4 | G28: 4 | H28: 1 | I28: 16 | J28: 4 | K28: 2 | L28: 1 | M28: 3.88
A29: 30 | B29: Parada tipo 16 | C29: 30 | D29: 2 | E29: 60 | F29: 60 | G29: 4 | H29: 1 | I29: 120 | J29: 30 | K29: 2 | L29: 1 | M29: 2.33
A30: 1 | B30: Parada tipo 17 | C30: 1 | D30: 2 | E30: 2 | F30: 2 | G30: 8 | H30: 2 | I30: 8 | J30: 2 | K30: 3 | L30: 2 | M30: 2.16 | N30: 2.38
A31: 1 | B31: Parada tipo 18 | C31: 1 | D31: 2 | E31: 2 | F31: 2 | G31: 10 | H31: 2 | I31: 10 | J31: 2 | K31: 5 | L31: 2 | M31: 6.7
A32: 2 | B32: Parada tipo 19 | C32: 2 | D32: 2 | E32: 4 | F32: 4 | G32: 4 | H32: 1 | I32: 8 | J32: 2 | K32: 2 | L32: 1 | M32: 2.4
A33: 3 | B33: Parada tipo 20 | C33: 3 | D33: 2 | E33: 6 | F33: 6 | G33: 4 | H33: 1 | I33: 12 | J33: 3 | K33: 2 | L33: 1 | M33: 2.33
A34: 1 | B34: Parada tipo 21 | C34: 1 | D34: 2 | E34: 2 | F34: 2 | G34: 4 | H34: 2 | I34: 4 | J34: 2 | K34: 1 | L34: 2 | M34: 2.43
B35: Parada tipo 22 | C35: 1 | D35: 2 | E35: 2 | F35: 2 | G35: 4 | H35: 1 | I35: 4 | J35: 1 | M35: 2.43
B36: Parada tipo 23 | C36: 4 | D36: 2 | E36: 8 | F36: 8 | G36: 4 | H36: 1 | I36: 16 | J36: 4 | M36: 2.28
A37: 1 | B37: Parada tipo 24 | C37: 2 | D37: 1 | E37: 2 | F37: 2 | G37: 2 | H37: 1 | I37: 4 | J37: 2 | K37: 1 | L37: 1 | M37: 2.6
B38: Parada tipo 25 | C38: 7 | D38: 1 | E38: 7 | F38: 7 | G38: 2 | H38: 1 | I38: 14 | J38: 7 | M38: 2.5
B39: Parada tipo 26 | C39: 2 | D39: 1 | E39: 2 | F39: 2 | G39: 2 | H39: 1 | I39: 4 | J39: 2 | M39: 2.75
A40: 1 | B40: Parada tipo 27 | C40: 1 | D40: 1 | E40: 1 | F40: 1 | G40: 4 | H40: 1 | I40: 4 | J40: 1 | K40: 2 | L40: 1 | M40: 3.88
A41: 4 | B41: Parada tipo 28 | C41: 4 | D41: 4 | E41: 16 | F41: 16 | G41: 4 | H41: 1 | I41: 16 | J41: 4 | K41: 2 | L41: 1 | M41: 2.33
A42: 1 | B42: Parada tipo 29 | C42: 1 | D42: 2 | E42: 2 | F42: 2 | G42: 4 | H42: 1 | I42: 4 | J42: 1 | K42: 2 | L42: 1 | M42: 2.33
A43: 1 | B43: Parada tipo 30 | C43: 1 | D43: 2 | E43: 2 | F43: 2 | G43: 3 | H43: 1 | I43: 3 | J43: 1 | L43: 1 | M43: 2.33
A44: 1 | B44: Parada tipo 31 | C44: 1 | D44: 1 | E44: 1 | F44: 1 | G44: 4 | H44: 1 | I44: 4 | J44: 1 | K44: 2 | L44: 1 | M44: 4.51
B45: Parada tipo 32 | C45: 1 | D45: 1 | E45: 1 | F45: 1 | G45: 4 | H45: 1 | I45: 4 | J45: 1 | M45: 4
B46: Parada tipo 33 | C46: 5 | D46: 2 | E46: 10 | F46: 10 | G46: 4 | H46: 1 | I46: 20 | J46: 5 | M46: 2.45
B47: Parada tipo A | C47: 10 | D47: 2 | E47: 20 | F47: 20 | G47: 4 | H47: 1 | I47: 40 | J47: 10 | M47: 2.4
B48: Parada tipo B1 | C48: 8 | D48: 2 | E48: 16 | F48: 16 | G48: 4 | H48: 1 | I48: 32 | J48: 8 | M48: 2.4
B49: Parada tipo B2 | C49: 1 | D49: 2 | E49: 2 | F49: 2 | G49: 5 | H49: 1 | I49: 5 | J49: 1 | M49: 2.85
B50: Parada tipo B3 | C50: 1 | D50: 2 | E50: 2 | F50: 2 | G50: 5 | H50: 1 | I50: 5 | J50: 1 | M50: 3
B51: Parada tipo B4 | C51: 2 | D51: 2 | E51: 4 | F51: 4 | G51: 5 | H51: 1 | I51: 10 | J51: 2 | M51: 2.4
A52: 2 | B52: Parada tipo C | C52: 4 | D52: 2 | E52: 8 | F52: 8 | G52: 4 | H52: 1 | I52: 16 | J52: 4 | K52: 2 | L52: 1 | M52: 2.4
B53: Totales | C53: =SUM(C2:C52) -> 143 | D53: =SUM(D2:D52) -> 89 | E53: 257 | F53: 257 | G53: 257 | H53: 74 | I53: 588 | J53: 166
B55: Paradas | C55: =SUM(C14:C52) -> 131 | D55: =SUM(D14:D52) -> 63 | E55: 231 | F55: 231 | G55: =SUM(G14:G52) -> 150 | H55: 42 | I55: 481 | J55: 134 | K55: 28 | L55: 17
B56: Terminales | C56: =SUM(C2:C13) -> 12 | D56: =SUM(D2:D13) -> 26 | E56: 26 | F56: 26 | G56: =SUM(G2:G13) -> 107 | H56: 32 | I56: 107 | J56: 32 | K56: 14 | L56: 6
C58: prom. accesos y estaciones | E58: prom. Estandar | G58: prom. Discapacitado
B59: Paradas | C59: =E55/C55 -> 1.763358779 | E59: =I55/C55 -> 3.671755725 | G59: =J55/C55 -> 1.022900763
B60: Terminales | C60: =E56/C56 -> 2.166666667 | E60: =I56/C56 -> 8.916666667 | G60: =J56/C56 -> 2.666666667
B62: Personas en estaciones | H62: Torni/paradas | I62: Torni/disca | K62: Máquinas VRM
D63: F1 completo | E63: F1 incompleto | F63: F1 faltante | G63: Per/acces
B64: Faltante Unidad Funcional 1 | C64: Paradas | D64: 131 | E64: =143-12 -> 131 | F64: =D64-E64 -> 0 | G64: =ROUNDUP(F64*$C$59,0) -> 0 | H64: =ROUNDUP(F64*$E$59,0) -> 0 | I64: =ROUNDUP(F64*$G$59,0) -> 0 | J64: =ROUNDUP(H64*G59,0) -> 0 | K64: =ROUNDUP(F64*$C$59,0) -> 0
C65: Terminales | D65: 15 | E65: 12 | F65: 3 | G65: =ROUNDUP(F65*$C$60,0) -> 7 | H65: =ROUNDUP(F65*$E$60,0) -> 27 | I65: =ROUNDUP(G65*$G$59,0) -> 8 | J65: =ROUNDUP(H65*G60,0) -> 72 | K65: =ROUNDUP($C$60*F65,0) -> 7
B66: Total Unidad Funcional 1 | C66: Paradas | D66: 131 | E66: 131 | F66: 0 | G66: =$F$55+$G$64 -> 231 | H66: =$I$55+$H$64-SUMPRODUCT($A$2:$A$13,$K$2:$K$13) -> 467 | I66: =$I$64+$J$55-SUMPRODUCT($L$2:$L$13,$A$2:$A$13) -> 128 | K66: =E55+K64 -> 231 | N66: =SUM(I66:J67)*0.05 -> 8.1
C67: Terminales | D67: 15 | E67: 15 | F67: 0 | G67: =F56+G65 -> 33 | H67: =I56+H65-SUMPRODUCT(A14:A52,K14:K52) -> 28 | I67: =I65+J56-SUMPRODUCT(L2:L13,A2:A13) -> 34 | K67: =E56+K65 -> 33
B68: Total Unidad Funcional 3 | C68: Paradas | D68: 12 | F68: 12 | G68: =ROUNDUP(F68*$C$59,0) -> 22 | H68: =ROUNDUP(F68*$E$59,0) -> 45 | I68: =ROUNDUP(F68*$G$59,0) -> 13 | J68: =ROUNDUP(H68*G63,0) ->  | K68: =ROUNDUP(F68*$C$59,0) -> 22
C69: Terminales | D69: 2 | F69: 2 | G69: =ROUNDUP(F69*$C$60,0) -> 5 | H69: =ROUNDUP(F69*$E$60,0) -> 18 | I69: =ROUNDUP(G69*$G$59,0) -> 6 | J69: =ROUNDUP(H69*G64,0) -> 0 | K69: =ROUNDUP($C$60*F69,0) -> 5

Sheet CAPEX (Tecnología)
A1: CAPEX SITI Q
B2: Item | C2: Referencias | D2: Cantidad | E2: Precio USD | F2: .+Impuestos | G2: Unidades de Rack | H2: Total Unidades de Rack | I2: Potencia por Unidad (W) | J2: Potencia total (W) | K2: Total (USD) | L2: W | M2: TR | N2: FR
B3: TOTAL | K3: =SUM(K4,K73,K115,K146,K180,K204,K217,K230,K245) -> 58229533.25 | L3: =K3/$K$3 -> 1
B4: CAPEX CENTRO DE DATOS Y CENTRO DE CONTROL (SISTEMA CENTRAL) | K4: =SUM(K5,K64,K71) -> 9108776.688 | L4: =K4/$K$3 -> 0.1564288116
B5: Centro de datos | K5: =SUM(K8:K16,K18:K20,K26:K52,K59:K61,K63,K22:K24) -> 7475706.176 | L5: 0.1283834123 | M5: 5 | N5: 1 | O5: =+K50+K51 -> 2296000
B6: Hardware | L6: 0
B7: Servidores | K7: =SUM(K8:K16) -> 68396.16 | L7: 0.001174595711
B8: App/Web | C8: DELL PowerEdge R320 (Intel® Xeon® E5-2407 2.20GHz, 10M Cache, 6.4GT/s QPI, No Turbo, 4C, 80W, Max Mem 1066MHz - 16GB RAM - 500GB) | D8: =IF(Redundancia="si",2,1) -> 2 | E8: 1778 | F8: =E8*(1+IVA)*(1+TasaImportacion) -> 2090.928 | G8: 1 | H8: =G8*D8 -> 2 | I8: 350 | J8: =I8*D8 -> 700 | K8: =F8*TRMUSDaUSD*D8 -> 4181.856 | L8: 7.181675289e-05 | M8: 5 | N8: 1
B9: Base de datos | C9: DELL PowerEdge R520 (2xIntel® Xeon® E5-2450 2.10GHz, 20M Cache, 8.0GT/s QPI, Turbo, 8C, 95W, Max Mem 1600MHz - 32GB RAM - 500GB) | D9: =IF(Redundancia="si",2,1) -> 2 | E9: 5208 | F9: 6124.608 | G9: 2 | H9: 4 | I9: 550 | J9: 1100 | K9: 12249.216 | L9: 0.0002103608825 | M9: 5 | N9: 1
B10: Comunicaciones | C10: DELL PowerEdge R220 (Intel Core I3-4150 3.5GHz, 3M Cache, No Turbo,2C,65W - 8GB RAM - 500GB) | D10: =IF(Redundancia="si",2,1) -> 2 | E10: 1143 | F10: 1344.168 | G10: 1 | H10: 2 | I10: 250 | J10: 500 | K10: 2688.336 | L10: 4.616791257e-05 | M10: 5 | N10: 1
B11: Respaldo | C11: DELL PowerEdge R220 (Intel Core I3-4150 3.5GHz, 3M Cache, No Turbo,2C,65W - 4GB RAM - 500GB) | D11: =ServidoresRespaldo -> 1 | E11: 952 | F11: 1119.552 | G11: 1 | H11: 1 | I11: 250 | J11: 250 | K11: 1119.552 | L11: 1.922653227e-05 | M11: 5 | N11: 1
B12: Balance | C12: DELL PowerEdge R420 (Intel® Xeon® E5-2450 2.10GHz, 20M Cache, 8.0GT/s QPI, Turbo, 8C, 95W, Max Mem 1600MHz - 16GB RAM - 500GB) | D12: =IF(Redundancia="si",2,1) -> 2 | E12: 2925 | F12: 3439.8 | G12: 1 | H12: 2 | I12: 550 | J12: 1100 | K12: 6879.6 | L12: 0.000118146233 | M12: 5 | N12: 1
B13: Autorización de transacciones | C13: DELL PowerEdge R420 (Intel® Xeon® E5-2450 2.10GHz, 20M Cache, 8.0GT/s QPI, Turbo, 8C, 95W, Max Mem 1600MHz - 16GB RAM - 500GB) | D13: =IF(Redundancia="si",4,2) -> 4 | E13: 2925 | F13: 3439.8 | G13: 1 | H13: 4 | I13: 550 | J13: 2200 | K13: 13759.2 | L13: 0.0002362924659 | M13: 5 | N13: 1
B14: Gestión de flota | C14: DELL PowerEdge R420 (Intel® Xeon® E5-2450 2.10GHz, 20M Cache, 8.0GT/s QPI, Turbo, 8C, 95W, Max Mem 1600MHz - 16GB RAM - 500GB) | D14: 0 | E14: 2925 | F14: 3439.8 | G14: 1 | H14: 0 | I14: 550 | J14: 0 | K14: 0 | L14: 0 | M14: 5 | N14: 1
B15: Servidor CRM | D15: =IF(Redundancia="si",4,2) -> 4 | E15: 2925 | F15: 3439.8 | G15: 1 | H15: 4 | I15: 550 | J15: 2200 | K15: 13759.2 | L15: 0.0002362924659 | M15: 5 | N15: 1
B16: Servidor ERP | D16: =IF(Redundancia="si",4,2) -> 4 | E16: 2925 | F16: 3439.8 | G16: 1 | H16: 4 | I16: 550 | J16: =I16*D16 -> 2200 | K16: 13759.2 | L16: 0.0002362924659 | M16: 5 | N16: 1
B17: Equipos de redes y comunicaciones | K17: =SUM(K18:K20) -> 23096.64 | L17: 0.0003966482078
B18: Switch Fiber Channel 16 Puertas | C18: Brocade 300 | D18: =IF(Redundancia="si",2,1) -> 2 | E18: 5025 | F18: =E18*(1+IVA)*(1+TasaImportacion) -> 5909.4 | G18: 1 | H18: =G18*D18 -> 2 | I18: 48 | J18: =I18*D18 -> 96 | K18: =F18*TRMUSDaUSD*D18 -> 11818.8 | L18: 0.0002029691694 | M18: 5 | N18: 1
B19: Switch Ethernet Gigabit 24 Puertas | C19: Dell PowerConnect 5424 | D19: =IF(Redundancia="si",2,1) -> 2 | E19: 1500 | F19: =E19*(1+IVA)*(1+TasaImportacion) -> 1764 | G19: 1 | H19: =G19*D19 -> 2 | I19: 48 | J19: =I19*D19 -> 96 | K19: =F19*TRMUSDaUSD*D19 -> 3528 | L19: 6.058781177e-05 | M19: 5 | N19: 1
B20: Appliance Balanceo de Carga / Firewall | C20: Dell SonicWall SRA 4600 | D20: =IF(Redundancia="si",2,1) -> 2 | E20: 3295 | F20: =E20*(1+IVA)*(1+TasaImportacion) -> 3874.92 | G20: 1 | H20: =G20*D20 -> 2 | I20: 50 | J20: =I20*D20 -> 100 | K20: =F20*TRMUSDaUSD*D20 -> 7749.84 | L20: 0.0001330912265 | M20: 5 | N20: 1
B21: Equipos de almacenamiento | K21: =SUM(K22:K24) -> 50764.392 | L21: 0.0008717980236 | M21: 5 | N21: 1
B22: Controlador SAN (2.4TB incluidos) | C22: PowerVault MD3800f | D22: =IF(Redundancia="si",2,1) -> 2 | E22: 16079 | F22: =E22*(1+IVA)*(1+TasaImportacion) -> 18908.904 | G22: 2 | H22: =G22*D22 -> 4 | I22: 700 | J22: =D22*I22 -> 1400 | K22: =F22*TRMUSDaUSD*D22 -> 37817.808 | L22: 0.0006494609503 | M22: 5 | N22: 1
B23: Discos duros SAS de 1.2TB 10K RPM SAS 6Gbps | C23: 1.2TB 10K RPM SAS 6Gbps 2.5in Hot-plug Hard Drive,3.5in HYB CARR [DELL] | D23: =ROUNDUP((ReqMemTren-MemoriaControlador)/MemoriaDiscoDuro,0) -> 8 | E23: 595 | F23: =E23*(1+IVA)*(1+TasaImportacion) -> 699.72 | G23: 0 | H23: =G23*D23 -> 0 | I23: 0 | J23: =D23*I23 -> 0 | K23: =F23*TRMUSDaUSD*D23 -> 5597.76 | L23: 9.613266135e-05 | M23: 5 | N23: 1
B24: Librería de Cintas 124T | C24: PowerVault 124T Tape Autoloader | D24: =NumLibreriaCintas -> 1 | E24: 6249 | F24: =E24*(1+IVA)*(1+TasaImportacion) -> 7348.824 | G24: 2 | H24: =G24*D24 -> 2 | I24: 80 | J24: =D24*I24 -> 80 | K24: =F24*TRMUSDaUSD*D24 -> 7348.824 | L24: 0.0001262044119 | M24: 5 | N24: 1
B25: Software | K25: =SUM(K26:K57) -> 6321280 | L25: 0.1085579713 | M25: 0 | N25: 0
B26: Motor de base de datos | C26: Oracle Database Enterprise Edition Motor de base de datos | D26: Ilimitado | E26: 431364.3052 | F26: =E26*(1+IVA) -> 483128.0219 | G26: NA | H26: NA | I26: NA | J26: NA | K26: =F26 -> 483128.0219 | L26: 0.008296958518 | M26: 0 | N26: 0
B27: Motor Base de Datos - Alta Disponibilidad | C27: Oracle RAC | D27: Ilimitado | E27: 208871.1373 | F27: 233935.6737 | G27: NA | H27: NA | I27: NA | J27: NA | K27: =F27 -> 233935.6737 | L27: 0.004017474651 | M27: 0 | N27: 0
B28: Particionamiento | C28: Oracle Partitioning | D28: Ilimitado | E28: 104435.5686 | F28: 116967.8369 | G28: NA | H28: NA | I28: NA | J28: NA | K28: 116967.8369 | L28: 0.002008737325 | M28: 0 | N28: 0
B29: Seguridad de Base de Datos | C29: Oracle Advanced Security | D29: Ilimitado | E29: 136220.3069 | F29: 152566.7437 | G29: NA | H29: NA | I29: NA | J29: NA | K29: 152566.7437 | L29: 0.002620092164 | M29: 0 | N29: 0
B30: Concentrador base de datos | C30: Oracle Multitenant | D30: Ilimitado | E30: 158923.6914 | F30: 177994.5344 | G30: NA | H30: NA | I30: NA | J30: NA | K30: =IF(Colectivos=1,F30,0) -> 177994.5344 | L30: 0.003056774191 | M30: 0 | N30: 0
B31: Auditoría | C31: Audit Vault and Database Firewall | D31: Ilimitado | E31: 12108.47173 | F31: 13561.48833 | G31: NA | H31: NA | I31: NA | J31: NA | K31: 13561.48833 | L31: 0.0002328970812 | M31: 0 | N31: 0
B32: Monitoreo | C32: Oracle Diagnostics Pack | D32: Ilimitado | E32: 68110.15346 | F32: 76283.37187 | G32: NA | H32: NA | I32: NA | J32: NA | K32: 76283.37187 | L32: 0.001310046082 | M32: 0 | N32: 0
C33: Oracle Tuning Pack | D33: Ilimitado | E33: 45406.76897 | F33: 50855.58125 | G33: NA | H33: NA | I33: NA | J33: NA | K33: 50855.58125 | L33: 0.0008733640545 | M33: 0 | N33: 0
B34: MIDDLEWARE | L34: 0 | M34: 0 | N34: 0
B35: Aplicaciones/WEB | C35: Weblogic Suite SW Servidor de aplicaciones | D35: Ilimitado | E35: 431364.3052 | F35: =E35*(1+IVA) -> 483128.0219 | G35: NA | H35: NA | I35: NA | J35: NA | K35: =F35 -> 483128.0219 | L35: 0.008296958518 | M35: 0 | N35: 0
C36: WebCenter Portal | D36: Ilimitado | E36: 116039.5207 | F36: =E36*(1+IVA) -> 129964.2632 | G36: NA | H36: NA | I36: NA | J36: NA | K36: =F36 -> 129964.2632 | L36: 0.002231930362 | M36: 0 | N36: 0
B37: SOA | C37: SOA Suite for Oracle Middleware | D37: Ilimitado | E37: 126129.9138 | F37: =E37*(1+IVA) -> 141265.5035 | G37: NA | H37: NA | I37: NA | J37: NA | K37: =F37 -> 141265.5035 | L37: 0.002426011263 | M37: 0 | N37: 0
B38: Seguridad | C38: Identity Governance Suite | D38: Ilimitado | E38: 181627.0759 | F38: =E38*(1+IVA) -> 203422.325 | G38: NA | H38: NA | I38: NA | J38: NA | K38: =F38 -> 203422.325 | L38: 0.003493456218 | M38: 0 | N38: 0
B39: Transferencia de Archivos | C39: Managed File Transfer | D39: Ilimitado | E39: 30271.17931 | F39: =E39*(1+IVA) -> 33903.72083 | G39: NA | H39: NA | I39: NA | J39: NA | K39: =F39 -> 33903.72083 | L39: 0.000582242703 | M39: 0 | N39: 0
B40: BI & ETL & DQ | L40: 0 | M40: 0 | N40: 0
B41: Inteligencia de Negocios (BI) | C41: Business Intelligence Suite Enterprise Edition Plus | D41: Ilimitado | E41: 148833.2983 | F41: =E41*(1+IVA) -> 166693.2941 | G41: NA | H41: NA | I41: NA | J41: NA | K41: =IF(Colectivos=1,F41,0) -> 166693.2941 | L41: 0.00286269329 | M41: 0 | N41: 0
C42: Oracle Data Integrator Enterprise Edition | D42: Ilimitado | E42: 20180.78621 | F42: =E42*(1+IVA) -> 22602.48055 | G42: NA | H42: NA | I42: NA | J42: NA | K42: =IF(Colectivos=1,F42,0) -> 22602.48055 | L42: 0.000388161802 | M42: 0 | N42: 0
C43: Oracle Golden Gate | D43: Ilimitado | E43: 70632.75173 | F43: =E43*(1+IVA) -> 79108.68194 | G43: NA | H43: NA | I43: NA | J43: NA | K43: =IF(Colectivos=1,F43,0) -> 79108.68194 | L43: 0.001358566307 | M43: 0 | N43: 0
B44: SW de solución | L44: 0 | M44: 0 | N44: 0
B45: Enterprise Asset Management | D45: Ilimitado | E45: 51517.06257 | F45: =E45*(1+IVA) -> 57699.11008 | G45: NA | H45: NA | I45: NA | J45: NA | K45: =F45 -> 57699.11008 | L45: 0.0009908908224 | M45: 0 | N45: 0
B46: Self-Service Work Requests | D46: Ilimitado | E46: 6446.640039 | F46: 7220.236844 | G46: NA | H46: NA | I46: NA | J46: NA | K46: =F46 -> 7220.236844 | L46: 0.0001239961312 | M46: 0 | N46: 0
B47: Financials | D47: Ilimitado | E47: 51517.06257 | F47: 57699.11008 | G47: NA | H47: NA | I47: NA | J47: NA | K47: 57699.11008 | L47: 0.0009908908224 | M47: 0 | N47: 0
B48: Personalización de software | D48: - | E48: 1000000 | F48: 1120000 | G48: NA | H48: NA | I48: NA | J48: NA | K48: =F48 -> 1120000 | L48: 0.01923422596 | M48: 0 | N48: 0
B49: Otros software
B50: Software de recaudo (Equipos en Campo) | D50: 1 | E50: 1000000 | F50: 1120000 | G50: NA | H50: NA | I50: NA | J50: NA | K50: =F50 -> 1120000 | L50: =K50/$K$3 -> 0.01923422596 | M50: 0 | N50: 0
B51: Programación de flota (Equipos en Campo + Sistema Central) | C51: Citymovil | D51: 1 | E51: 1050000 | F51: 1176000 | G51: NA | H51: NA | I51: NA | J51: NA | K51: =F51 -> 1176000 | L51: =K51/$K$3 -> 0.02019593726 | M51: 0 | N51: 0
B52: Software de ERP | D52: =D16 -> 4 | E52: =21000*D52 -> 84000 | F52: 94080 | G52: NA | H52: NA | I52: NA | J52: NA | K52: 94080 | L52: =K52/$K$3 -> 0.001615674981 | M52: 0 | N52: 0
B53: Software info al usuario/operador
B54: Desarrollo página WEB | D54: 1 | E54: 20000 | F54: =E54*(1+IVA) -> 22400 | G54: NA | H54: NA | I54: NA | J54: NA | K54: =F54*TRMUSDaUSD*D54 -> 22400 | L54: =K54/$K$3 -> 0.0003846845192 | M54: 0 | N54: 0
B55: Desarrollo APP+API | D55: 1 | E55: 50000 | F55: =E55*(1+IVA) -> 56000 | G55: NA | H55: NA | I55: NA | J55: NA | K55: =F55*TRMUSDaUSD*D55 -> 56000 | L55: 0.000961711298 | M55: 0 | N55: 0
B56: Desarrollo Help Desk (operarios) | D56: 1 | E56: 20000 | F56: =E56*(1+IVA) -> 22400 | G56: NA | H56: NA | I56: NA | J56: NA | K56: =F56*TRMUSDaUSD*D56 -> 22400 | L56: 0.0003846845192 | M56: 0 | N56: 0
B57: Desarrollo Help Desk (usuarios) (call cenmter) | D57: 1 | E57: 20000 | F57: =E57*(1+IVA) -> 22400 | G57: NA | H57: NA | I57: NA | J57: NA | K57: =F57*TRMUSDaUSD*D57 -> 22400 | L57: 0.0003846845192 | M57: 0 | N57: 0
B58: Infraestructura y acondicionamiento (adecuación, demanda energética y refrigeración) | K58: =SUM(K59:K61) -> 1119046.104 | L58: 0.0192178443
B59: "kW" component | D59: =TotalConsumoEnergia -> 37.4224094 | E59: =IF(TipoDeAcondicionamiento1="Tier I",11500,IF(TipoDeAcondicionamiento1="Tier II",12500,IF(TipoDeAcondicionamiento1="Tier III",23000,25000))) -> 23000 | F59: =E59*(1+IVA)*(1+TasaImportacion) -> 27048 | G59: NA | H59: NA | I59: NA | J59: NA | K59: =D59*F59*TRMUSDaUSD -> 1012201.329 | L59: 0.01738295454 | M59: 5 | N59: 1
B60: "Computer room" component | D60: =AreaDataCenter1 -> 28 | E60: 2880 | F60: =E60*(1+IVA)*(1+TasaImportacion) -> 3386.88 | G60: NA | H60: NA | I60: NA | J60: NA | K60: =D60*F60*TRMUSDaUSD -> 94832.64 | L60: 0.00162860038 | M60: 5 | N60: 1
B61: "Empty space " component (for future use) | D61: =AreaDataCenter1*FactorAreasFuturas -> 5.6 | E61: 1824 | F61: =E61*(1+IVA)*(1+TasaImportacion) -> 2145.024 | G61: NA | H61: NA | I61: NA | J61: NA | K61: =D61*F61*TRMUSDaUSD -> 12012.1344 | L61: 0.0002062893815 | M61: 5 | N61: 1
B62: Racks | K62: =K63 -> 16322.88 | L62: 0.0002803196091
B63: RACK 19" 42U CON KVM 16 PUERTAS | D63: =ROUNDUP(((SUM(H8:H24))*(1+FactorOcupacionRacks))/CapacidadRacks,0) -> 2 | E63: 6940 | F63: =E63*(1+IVA)*(1+TasaImportacion) -> 8161.44 | G63: NA | H63: NA | I63: NA | J63: NA | K63: =F63*D63 -> 16322.88 | L63: 0.0002803196091 | M63: 5 | N63: 1
B64: Centros de Control | K64: =SUM(K65:K70) -> 114941.064 | L64: 0.001973930712 | M64: 5 | N64: 1
B65: Modem | D65: =NumCentrosControlCorredores+NumCentrosControlColectivos -> 1 | E65: 31 | F65: =E65*(1+IVA)*(1+TasaImportacion) -> 36.456 | G65: NA | H65: NA | I65: NA | J65: NA | K65: =D65*F65 -> 36.456 | L65: 6.26074055e-07 | M65: 5 | N65: 1
B66: Switch | D66: =NumCentrosControlCorredores+NumCentrosControlColectivos -> 1 | E66: 400 | F66: 470.4 | G66: NA | H66: NA | I66: NA | J66: NA | K66: 470.4 | L66: 8.078374903e-06 | M66: 5 | N66: 1
B67: Computador | D67: =NumOperariosCCCorredoresSAE+NumOperariosCCCorredoresSIR+NumSupervisoresCCCorredores+NumOperariosCCColectivosSAE+NumOperariosCCColectivosSIR+NumSupervisoresCCColectivos -> 77 | E67: 1000 | F67: 1176 | G67: NA | H67: NA | I67: NA | J67: NA | K67: 90552 | L67: 0.001555087169 | M67: 5 | N67: 1
B68: Mesa | D68: =D67 -> 77 | E68: 150 | F68: 176.4 | G68: NA | H68: NA | I68: NA | J68: NA | K68: 13582.8 | L68: 0.0002332630753 | M68: 5 | N68: 1
B69: Silla | D69: =D67 -> 77 | E69: 100 | F69: 117.6 | G69: NA | H69: NA | I69: NA | J69: NA | K69: 9055.2 | L69: 0.0001555087169 | M69: 5 | N69: 1
B70: UPS | D70: =NumCentrosControlCorredores -> 1 | E70: 1058 | F70: 1244.208 | G70: NA | H70: NA | I70: NA | J70: NA | K70: 1244.208 | L70: 2.136730162e-05 | M70: 5 | N70: 1 | P70: 215
B71: Servicios profesionales centro de datos y centro de control | K71: =K72 -> 1518129.448 | L71: 0.02607146861 | M71: 5 | N71: 1
B72: Gestión de proyectos, ingeniería, instalación, pruebas, soporte y documentación, capacitación | D72: =PorcServiciosProfecionalesCentroDatosyCentroControl -> 0.2 | E72: =(K5+K64)/TRMUSDaUSD -> 7590647.24 | F72: =E72 -> 7590647.24 | G72: NA | H72: NA | I72: NA | J72: NA | K72: =D72*F72*TRMUSDaUSD -> 1518129.448 | L72: 0.02607146861 | M72: 5 | N72: 1
B73: CAPEX EQUIPOS EN CAMPO - SIR - CORREDORES | K73: =SUM(K74,K78,K83,K86,K96,K108,K113) -> 22510227.16 | L73: 0.386577496
B74: Medios de pago | K74: =SUM(K75:K77) -> 1456551.264 | L74: =K74/$K$3 -> 0.02501396083
B75: Tarjeta MIFARE Desfire | D75: =+NumTarjetasDesfireCorredores -> 1000000 | E75: 1 | F75: =E75*(1+IVA)*(1+TasaImportacion) -> 1.176 | G75: NA | H75: NA | I75: NA | J75: NA | K75: =D75*F75*TRMUSDaUSD -> 1176000 | L75: 0.02019593726 | M75: 0 | N75: 0
B76: Módulo SAM | D76: =D81*SAMValidadorCamiones+D84*SAMporDispositivoRecarga+D89*SAMporModuloAtencion+D92*SAMporDispositivoRecarga+D97*SAMporMaquinaVRM+D100*SAMporValidadorParadas+D102*SAMporMaquinaCIM+D106*SAMHandheldCorredores -> 5548 | E76: 8 | F76: =E76*(1+IVA)*(1+TasaImportacion) -> 9.408 | G76: NA | H76: NA | I76: NA | J76: NA | K76: =D76*F76*TRMUSDaUSD -> 52195.584 | L76: 0.0008963764793 | M76: 0 | N76: 0 | O76: =+D97+D152+D186 -> 331
B77: Emisión y distribución por SAM | D77: =D76 -> 5548 | E77: 35 | F77: =E77*(1+IVA)*(1+TasaImportacion) -> 41.16 | G77: NA | H77: NA | I77: NA | J77: NA | K77: =D77*F77*TRMUSDaUSD -> 228355.68 | L77: 0.003921647097 | M77: 0 | N77: 0 | O77: =+D84+D127 -> 1500
B78: Buses Alimentadores | K78: =SUM(K79:K82) -> 3380590.08 | L78: 0.05805627989 | M78: 10 | N78: 1
B79: Cámara estereoscópica de conteo | D79: =FlotaAlimentadoraUF1*PuertasBusAlimentador -> 1836 | E79: 1175 | F79: =E79*(1+IVA)*(1+TasaImportacion) -> 1381.8 | G79: NA | H79: NA | I79: NA | J79: NA | K79: =D79*F79*TRMUSDaUSD -> 2536984.8 | L79: 0.04356869545 | M79: 10 | N79: 1
B80: Máquinas de inspección | D80: =ROUNDUP(PorcentajeMaquiInspeAlimentadores*FlotaAlimentadoraUF1,0) -> 0 | E80: 300 | F80: =E80*(1+IVA)*(1+TasaImportacion) -> 352.8 | G80: NA | H80: NA | I80: NA | J80: NA | K80: =D80*F80*TRMUSDaUSD -> 0 | L80: 0 | M80: 10 | N80: 1
B81: Validador | C81: Empresa 1 | D81: =ValidadoresAlimentadoresUF1 -> 918 | E81: 610 | F81: =E81*(1+IVA)*(1+TasaImportacion) -> 717.36 | G81: NA | H81: NA | I81: NA | J81: NA | K81: =D81*F81*TRMUSDaUSD -> 658536.48 | L81: 0.01130932095 | M81: 10 | N81: 1
B82: Licencia de uso validador | D82: =D81 -> 918 | E82: 180 | F82: =E82*(1+IVA) -> 201.6 | G82: NA | H82: NA | I82: NA | J82: NA | K82: =D82*F82*TRMUSDaUSD -> 185068.8 | L82: 0.003178263498 | M82: 10
B83: Red de recarga | E83: 1478 | F83: 1792 | G83: =+F83-E83 -> 314 | K83: =SUM(K84:K85) -> 260400 | L83: 0.004471957536 | M83: 10 | N83: 1
B84: Dispositivo de recarga | D84: =PuntosRedRecargaExternaCorredores -> 500 | E84: 300 | F84: =E84*(1+IVA)*(1+TasaImportacion) -> 352.8 | G84: NA | H84: NA | I84: NA | J84: NA | K84: =D84*F84*TRMUSDaUSD -> 176400 | L84: 0.003029390589 | M84: 10 | N84: 1
B85: Licencia de uso | D85: =PuntosRedRecargaExternaCorredores -> 500 | E85: 150 | F85: =E85*(1+IVA) -> 168 | G85: NA | H85: NA | I85: NA | J85: NA | K85: =D85*F85*TRMUSDaUSD -> 84000 | L85: 0.001442566947 | M85: 10
B86: Puntos de personalización | K86: =SUM(K87:K95) -> 13413.52 | L86: 0.0002303559595 | M86: 10 | N86: 1 | O86: =CapexPPCorredores/D87 -> 2235.586667
B87: Silla | D87: =ROUNDUP(NumModulosPersonalizacionCorredores,0) -> 6 | E87: 40 | F87: =E87 -> 40 | G87: NA | H87: NA | I87: NA | J87: NA | K87: =D87*F87*TRMUSDaUSD -> 240 | L87: 4.121619849e-06 | M87: 10 | N87: 1
B88: Escritorio | D88: 6 | E88: 80 | F88: =E88 -> 80 | G88: NA | H88: NA | I88: NA | J88: NA | K88: 480 | L88: 8.243239697e-06 | M88: 10 | N88: 1
B89: Computador | D89: 6 | E89: 1050 | F89: =E89 -> 1050 | G89: NA | H89: NA | I89: NA | J89: NA | K89: 6300 | L89: 0.000108192521 | M89: 10 | N89: 1
B90: Impresora de tarjetas | D90: 6 | E90: 580 | F90: =E90*(1+IVA)*(1+TasaImportacion) -> 682.08 | G90: NA | H90: NA | I90: NA | J90: NA | K90: 4092.48 | L90: 7.028186166e-05 | M90: 10 | N90: 1
B91: Lector de tarjetas | D91: 6 | E91: 60 | F91: =E91*(1+IVA)*(1+TasaImportacion) -> 70.56 | G91: NA | H91: NA | I91: NA | J91: NA | K91: 423.36 | L91: 7.270537413e-06 | M91: 10 | N91: 1
B92: Dispositivo de recarga | D92: 0 | E92: 300 | F92: =E92*(1+IVA)*(1+TasaImportacion) -> 352.8 | G92: NA | H92: NA | I92: NA | J92: NA | K92: 0 | L92: 0 | M92: 10 | N92: 1
B93: Cámara web | D93: 6 | E93: 30 | F93: =E93*(1+IVA)*(1+TasaImportacion) -> 35.28 | G93: NA | H93: NA | I93: NA | J93: NA | K93: 211.68 | L93: 3.635268706e-06 | M93: 10 | N93: 1
B94: Licencia de uso recarga | D94: =NumModulosPersonalizacionCorredores*0 -> 0 | E94: 685 | F94: =E94*(1+IVA) -> 767.2 | G94: NA | H94: NA | I94: NA | J94: NA | K94: =F94*D94 -> 0 | L94: 0
B95: Licencia software de personalización | D95: =NumModulosPersonalizacionCorredores -> 5.95 | E95: 250 | F95: =E95*(1+IVA) -> 280 | G95: NA | H95: NA | I95: NA | J95: NA | K95: =F95*D95 -> 1666 | L95: 2.861091112e-05
B96: Paradas | K96: =+SUM(K97:K107) -> 12325012.86 | L96: 0.2116625735 | O96: =CapexParadasCorredores/(NumParadaCorredoresUF1+NumTerminalesCorredoresUF1) -> 77031.33038
B97: Máquina VRM | D97: =NumMaqVRMCorredoresUF1 -> 291 | E97: 15500 | F97: =E97*(1+IVA)*(1+TasaImportacion) -> 18228 | G97: NA | H97: NA | I97: NA | J97: NA | K97: =D97*F97*TRMUSDaUSD -> 5304348 | L97: 0.091093775 | M97: 10 | N97: 1
B98: Licencia de uso VRM | D98: =D97 -> 291 | E98: 3200 | F98: =E98*(1+IVA) -> 3584 | G98: NA | H98: NA | I98: NA | J98: NA | K98: 1042944 | L98: 0.01791091121 | M98: 7 | N98: 1
B99: Pasillos motorizados discapacitados | C99: Fichet | D99: =+PasillosMotorizadosUF1 -> 181 | E99: =5600*1.065*(1-15%) -> 5069.4 | F99: =E99 -> 5069.4 | G99: NA | H99: NA | I99: NA | J99: NA | K99: 917561.4 | L99: 0.01575766366 | M99: 10 | N99: 1
B100: Toniquete + Validador | C100: Fichet | D100: =NumTorniquetesCorredoresUF1 -> 739 | E100: =5200*1.065*(1-15%)+950 -> 5657.3 | F100: =E100 -> 5657.3 | G100: NA | H100: NA | I100: NA | J100: NA | K100: 4180744.7 | L100: 0.07179766807 | M100: 10 | N100: 1
B101: Licencia de uso Validador | D101: =D100 -> 739 | E101: 490 | F101: =E101*(1+IVA) -> 548.8 | G101: NA | H101: NA | I101: NA | J101: NA | K101: 405563.2 | L101: 0.006964905562 | M101: 7 | N101: 1
B102: Máquina CIM | D102: 0 | E102: 300 | F102: 352.8 | G102: NA | H102: NA | I102: NA | J102: NA | K102: 0 | L102: 0 | M102: 10 | N102: 1
B103: Licencia de uso CIM | D103: =D102 -> 0 | E103: 150 | F103: =E103*(1+IVA) -> 168 | G103: NA | H103: NA | I103: NA | J103: NA | K103: 0 | L103: 0 | M103: 7 | N103: 1
B104: Modem WIFI | D104: =NumParadaCorredoresUF1+NumTerminalesCorredoresUF1 -> 160 | E104: 31 | F104: 36.456 | G104: NA | H104: NA | I104: NA | J104: NA | K104: 5832.96 | L104: 0.0001001718488 | M104: 10 | N104: 1
B105: Teléfono IP | C105: Grandstream GXP2100 | D105: 0 | E105: 87 | F105: 102.312 | G105: NA | H105: NA | I105: NA | J105: NA | K105: 0 | L105: 0 | M105: 10 | N105: 1
B106: Handhelds validación y recarga | D106: =HandheldsValidacionRecargaCorredores -> 320 | E106: 300 | F106: 352.8 | G106: NA | H106: NA | I106: NA | J106: NA | K106: 112896 | L106: 0.001938809977 | M106: 10 | N106: 1
B107: Camaras de conteo | D107: ='Paradas y Terminales Corredores'!E53 -> 257 | E107: 1175 | F107: 1381.8 | G107: NA | H107: NA | I107: NA | J107: NA | K107: =D107*F107*TRMUSDaUSD -> 355122.6 | L107: 0.006098668154 | M107: 10 | N107: 1
B108: Otros (Repuestos) | K108: =SUM(K109:K110) -> 715267.5022 | L108: 0.01228358639
B109: Repuestos 1 | D109: =PorceRepuestos -> 0.05 | E109: =SUM(CapexModulosSamCorredores,K79,K81,K84,K90,K91,K92,K93,K97,K102,K104,K105,K106,K80,CapexTorniqueteDiscaParadasCorredores,CapexCamarasParadasCorredores)/TRMUSDaUSD -> 10124605.34 | F109: =E109 -> 10124605.34 | G109: NA | H109: NA | I109: NA | J109: NA | K109: =D109*F109*TRMUSDaUSD -> 506230.2672 | L109: 0.008693702989 | M109: 10 | N109: 1
B110: Repuestos 2 | D110: 0.05 | E110: =CapexTorniqueteParadasCorredores -> 4180744.7 | F110: =E110 -> 4180744.7 | G110: NA | H110: NA | I110: NA | J110: NA | K110: =D110*F110*TRMUSDaUSD -> 209037.235 | L110: 0.003589883404 | M110: 10 | N110: 1
B111: Firmware y software de recaudo | K111: =K112 -> 822528 | L111: 0.01412561555
B112: Firmware y software de recaudo dispositivos | D112: =FlotaAlimentadoraUF1 -> 918 | E112: 800 | F112: =E112*(1+IVA) -> 896 | G112: NA | H112: NA | I112: NA | J112: NA | K112: =F112*D112 -> 822528 | L112: 0.01412561555 | M112: 0 | N112: 0
B113: Servicios profesionales equipos en campo | K113: =K114 -> 4358991.931 | L113: 0.07485878193 | M113: 10 | N113: 1
B114: Gestión de proyectos, ingeniería, instalación, pruebas, soporte y documentación, capacitación | D114: =PorceServiciosProfecionalesEquiposCampo -> 0.25 | E114: =SUM(K96,K86,K83,K78,K74)/TRMUSDaUSD -> 17435967.72 | F114: =E114 -> 17435967.72 | G114: NA | H114: NA | I114: NA | J114: NA | K114: =D114*F114*TRMUSDaUSD -> 4358991.931 | L114: 0.07485878193 | M114: 10 | N114: 1
B115: CAPEX EQUIPOS EN CAMPO - SIR - COLECTIVOS | K115: =SUM(K116,K120,K126,K129,K140,K144) -> 11537028.26 | L115: 0.1981301862
B116: Medios de pago | K116: =SUM(K117:K119) -> 1548361.584 | L116: 0.02659065766
B117: Tarjeta MIFARE Desfire | D117: =+NumTarjetasDesfireColectivos -> 1100000 | E117: 1 | F117: =E117*(1+IVA)*(1+TasaImportacion) -> 1.176 | G117: NA | H117: NA | I117: NA | J117: NA | K117: =D117*F117*TRMUSDaUSD -> 1293600 | L117: 0.02221553098 | M117: 0 | N117: 0
B118: Módulo SAM | D118: =D122*SAMValidadorCamiones+D127*SAMporDispositivoRecarga+D132*SAMporModuloAtencion+D135*SAMporDispositivoRecarga -> 5038 | E118: 8 | F118: =E118*(1+IVA)*(1+TasaImportacion) -> 9.408 | G118: NA | H118: NA | I118: NA | J118: NA | K118: =D118*F118*TRMUSDaUSD -> 47397.504 | L118: 0.0008139770553 | M118: 0 | N118: 0
B119: Emisión y distribución por SAM | D119: =D118 -> 5038 | E119: 35 | F119: =E119*(1+IVA)*(1+TasaImportacion) -> 41.16 | G119: NA | H119: NA | I119: NA | J119: NA | K119: =D119*F119*TRMUSDaUSD -> 207364.08 | L119: 0.003561149617 | M119: 0 | N119: 0
B120: Buses Colectivos | K120: =+SUM(K121:K125) -> 6183737.28 | L120: 0.106195893 | O120: =K120/FlotaColectivos -> 4092.48
B121: Cámara estereoscópica de conteo | D121: =FlotaColectivos*PuertasBusColectivo -> 3022 | E121: 1175 | F121: =E121*(1+IVA)*(1+TasaImportacion) -> 1381.8 | G121: NA | H121: NA | I121: NA | J121: NA | K121: =D121*F121*TRMUSDaUSD -> 4175799.6 | L121: 0.07171274381 | M121: 10 | N121: 1
B122: Validador | D122: =NumValidadoresColectivo -> 1511 | E122: 950 | F122: =E122*(1+IVA)*(1+TasaImportacion) -> 1117.2 | G122: NA | H122: NA | I122: NA | J122: NA | K122: =D122*F122*TRMUSDaUSD -> 1688089.2 | L122: 0.02899025814 | M122: 10 | N122: 1
B123: Licencia de uso validador | D123: =D122 -> 1511 | E123: 180 | F123: =E123*(1+IVA)*(1+TasaImportacion) -> 211.68 | G123: NA | H123: NA | I123: NA | J123: NA | K123: =D123*F123*TRMUSDaUSD -> 319848.48 | L123: 0.005492891015 | M123: 10 | N123: 1
B124: Router 3G WIFI | D124: =FlotaColectivos*0 -> 0 | E124: 350 | F124: =E124*(1+IVA)*(1+TasaImportacion) -> 411.6 | G124: NA | H124: NA | I124: NA | J124: NA | K124: =D124*F124*TRMUSDaUSD -> 0 | L124: 0 | M124: 10 | N124: 1
B125: Handhelds inspección | D125: =ROUNDUP(PorcentajeMaquiInspeColectivos*FlotaColectivos,0)*0 -> 0 | E125: 300 | F125: =E125*(1+IVA)*(1+TasaImportacion) -> 352.8 | G125: NA | H125: NA | I125: NA | J125: NA | K125: =D125*F125*TRMUSDaUSD -> 0 | M125: 10 | N125: 1
B126: Red de recarga | K126: =SUM(K127:K128) -> 1037800 | L126: 0.01782257116 | M126: 10 | N126: 1
B127: Dispositivo de recarga | D127: =RedRecargaExternaColectivos -> 1000 | E127: 300 | F127: =E127*(1+IVA)*(1+TasaImportacion) -> 352.8 | G127: NA | H127: NA | I127: NA | J127: NA | K127: =D127*F127*TRMUSDaUSD -> 352800 | L127: 0.006058781177 | M127: 10 | N127: 1
B128: Licencia de uso | D128: =RedRecargaExternaColectivos -> 1000 | E128: 685 | G128: NA | H128: NA | I128: NA | J128: NA | K128: =D128*E128*TRMUSDaUSD -> 685000 | L128: 0.01176378998 | M128: 10
B129: Puntos de personalización (portatil) | K129: =+SUM(K130:K139) -> 215135.36 | L129: 0.003694609041 | M129: 10 | N129: 1
B130: Silla | D130: =NumModulosAtencionColectivos -> 8 | E130: 40 | F130: =E130 -> 40 | G130: NA | H130: NA | I130: NA | J130: NA | K130: =D130*F130*TRMUSDaUSD -> 320 | L130: 5.495493131e-06 | M130: 10 | N130: 1
B131: Escritorio | D131: 8 | E131: 80 | F131: =E131 -> 80 | G131: NA | H131: NA | I131: NA | J131: NA | K131: 640 | L131: 1.099098626e-05 | M131: 10 | N131: 1
B132: Computador | D132: 8 | E132: 1050 | F132: =E132 -> 1050 | G132: NA | H132: NA | I132: NA | J132: NA | K132: 8400 | L132: 0.0001442566947 | M132: 10 | N132: 1
B133: Impresora de tarjetas | D133: 8 | E133: 580 | F133: =E133*(1+IVA)*(1+TasaImportacion) -> 682.08 | G133: NA | H133: NA | I133: NA | J133: NA | K133: 5456.64 | L133: 9.370914888e-05 | M133: 10 | N133: 1
B134: Lector de tarjetas | D134: 8 | E134: 60 | F134: 70.56 | G134: NA | H134: NA | I134: NA | J134: NA | K134: 564.48 | L134: =K134/$K$3 -> 9.694049884e-06 | M134: 10 | N134: 1
B135: Dispositivo de recarga | D135: 0 | E135: 300 | F135: 352.8 | G135: NA | H135: NA | I135: NA | J135: NA | K135: 0 | L135: 0 | M135: 10 | N135: 1
B136: Cámara web | D136: 8 | E136: 30 | F136: 35.28 | G136: NA | H136: NA | I136: NA | J136: NA | K136: 282.24 | L136: 4.847024942e-06 | M136: 10 | N136: 1
B137: Licencia de uso recarga | D137: =NumModulosAtencionColectivos*0 -> 0 | E137: 685 | F137: 805.56 | G137: NA | H137: NA | I137: NA | J137: NA | K137: 0 | L137: 0 | M137: 10 | N137: 1
B138: Licencia software de personalización | D138: 8 | E138: 250 | F138: 294 | G138: NA | H138: NA | I138: NA | J138: NA | K138: 2352 | L138: 4.039187452e-05 | M138: 10 | N138: 1
B139: Vehículo | D139: =NumModulosAtencionColectivos -> 8 | E139: =22000 -> 22000 | F139: =E139*(1+IVA) -> 24640 | G139: NA | H139: NA | I139: NA | J139: NA | K139: 197120 | L139: 0.003385223769 | M139: 10 | N139: 1
B140: Otros (Repuestos) | K140: =SUM(K141:K141) -> 305735.4832 | L140: 0.00525052265 | M140: 10 | N140: 1
B141: Repuestos 1 | D141: 0.05 | E141: =SUM(CapexModulosSamColectivos,K121,K122,K124,K125,K133,K134,K135,K136,K139) -> 6114709.664 | F141: =E141 -> 6114709.664 | G141: NA | H141: NA | I141: NA | J141: NA | K141: =D141*F141*TRMUSDaUSD -> 305735.4832 | L141: =K141/$K$3 -> 0.00525052265 | M141: 10 | N141: 1
B142: Firmware y software de recaudo | K142: =K143 -> 1353856 | L142: 0.02325033234
B143: Firmware y software de recaudo dispositivos | D143: =FlotaColectivos -> 1511 | E143: =CostoFimwareYSoftwarePorBus -> 800 | F143: =E143*(1+IVA) -> 896 | G143: NA | H143: NA | I143: NA | J143: NA | K143: =F143*D143 -> 1353856 | L143: 0.02325033234 | M143: 0 | N143: 0
B144: Servicios profesionales equipos en campo | K144: =K145 -> 2246258.556 | L144: 0.03857593271 | M144: 10 | N144: 1
B145: Gestión de proyectos, ingeniería, instalación, pruebas, soporte y documentación, capacitación | D145: =PorceServiciosProfecionalesEquiposCampo -> 0.25 | E145: =SUM(K129,K126,K120,K116)/TRMUSDaUSD -> 8985034.224 | F145: =E145 -> 8985034.224 | G145: NA | H145: NA | I145: NA | J145: NA | K145: =D145*F145*TRMUSDaUSD -> 2246258.556 | L145: 0.03857593271 | M145: 10 | N145: 1
B146: CAPEX EQUIPOS EN CAMPO - SIR - METRO | K146: =SUM(K147,K151,K163,K173,K178) -> 2397065.824 | L146: =K146/$K$3 -> 0.04116580866
B147: Medios de pago | K147: =SUM(K148:K150) -> 369993.12 | L147: 0.00635404578
B148: Tarjeta MIFARE Desfire | D148: =+NumTarjetasDesfireMetro -> 300000 | E148: 1 | F148: =E148*(1+IVA)*(1+TasaImportacion) -> 1.176 | G148: NA | H148: NA | I148: NA | J148: NA | K148: =D148*F148*TRMUSDaUSD -> 352800 | L148: 0.006058781177 | M148: 0 | N148: 0
B149: Módulo SAM | D149: =SAMporMaquinaVRM*D152+SAMporMaquinaCIM*D157+SAMHandheldMetro*D161+SAMporModuloAtencion*D168+SAMporDispositivoRecarga*D169+SAMporValidadorParadas*D155 -> 340 | E149: 8 | F149: =E149*(1+IVA)*(1+TasaImportacion) -> 9.408 | G149: NA | H149: NA | I149: NA | J149: NA | K149: =D149*F149*TRMUSDaUSD -> 3198.72 | L149: 5.493294934e-05 | M149: 0 | N149: 0
B150: Emisión y distribución por SAM | D150: =D149 -> 340 | E150: 35 | F150: =E150*(1+IVA)*(1+TasaImportacion) -> 41.16 | G150: NA | H150: NA | I150: NA | J150: NA | K150: =D150*F150*TRMUSDaUSD -> 13994.4 | L150: 0.0002403316534 | M150: 0 | N150: 0
B151: Paradas | K151: =+SUM(K152:K162) -> 1492569.54 | L151: 0.02563251767
B152: Máquina VRM | D152: =NumMaqVRMMetro -> 34 | E152: =+E97 -> 15500 | F152: =E152*(1+IVA)*(1+TasaImportacion) -> 18228 | G152: NA | H152: NA | I152: NA | J152: NA | K152: =D152*F152*TRMUSDaUSD -> 619752 | L152: 0.01064325894 | M152: 10 | N152: 1
B153: Licencia de uso VRM | D153: =D152 -> 34 | E153: 3200 | F153: 3763.2 | G153: NA | H153: NA | I153: NA | J153: NA | K153: 127948.8 | L153: 0.002197317974 | M153: 7 | N153: 1
B154: Torniquetes discapacitados | C154: Fichet | D154: =NumParadasMetro*AccesosDiscapaciPorEstaMetro -> 15 | E154: =5600*1.065*(1-15%) -> 5069.4 | F154: =E154 -> 5069.4 | G154: NA | H154: NA | I154: NA | J154: NA | K154: 76041 | M154: 10 | N154: 1
B155: Toniquete + Validador | D155: =NumTorniquetesMetro -> 105 | E155: =5200*1.065*(1-15%)+950 -> 5657.3 | F155: =E155 -> 5657.3 | G155: NA | H155: NA | I155: NA | J155: NA | K155: 594016.5 | L155: 0.01020129249 | M155: 10 | N155: 1
B156: Licencia de uso Validador | D156: =D155 -> 105 | E156: 180 | F156: 211.68 | G156: NA | H156: NA | I156: NA | J156: NA | K156: 22226.4 | L156: 0.0003817032142 | M156: 7 | N156: 1
B157: Máquina CIM | D157: 0 | E157: 300 | F157: 352.8 | G157: NA | H157: NA | I157: NA | J157: NA | K157: 0 | L157: 0 | M157: 10 | N157: 1
B158: Licencia de uso CIM | D158: =D157 -> 0 | E158: 150 | F158: 176.4 | G158: NA | H158: NA | I158: NA | J158: NA | K158: 0 | L158: 0 | M158: 10 | N158: 1
B159: Modem WIFI | D159: =NumParadasMetro -> 15 | E159: 31 | F159: 36.456 | G159: NA | H159: NA | I159: NA | J159: NA | K159: 546.84 | L159: 9.391110825e-06 | M159: 10 | N159: 1
B160: Teléfono IP | C160: Grandstream GXP2100 | D160: 0 | E160: 87 | F160: 102.312 | G160: NA | H160: NA | I160: NA | J160: NA | K160: 0 | L160: 0 | M160: 10 | N160: 1
B161: Handhelds validación y recarga | D161: =HandheldsValidacionRecargaMetro -> 30 | E161: 300 | F161: 352.8 | G161: NA | H161: NA | I161: NA | J161: NA | K161: 10584 | L161: 0.0001817634353 | M161: 10 | N161: 1
B162: Camaras de conteo | D162: =NumParadasMetro*AccesosPorEstaMetro -> 30 | E162: 1175 | F162: 1381.8 | G162: NA | H162: NA | I162: NA | J162: NA | K162: 41454
B163: Puntos de personalización | K163: =SUM(K164:K172) -> 2892.92 | L163: 4.968131872e-05 | M163: 10 | N163: 1
B164: Silla | D164: =NumModulosAtencionMetro -> 1 | E164: 40 | F164: =E164 -> 40 | G164: NA | H164: NA | I164: NA | J164: NA | K164: =D164*F164*TRMUSDaUSD -> 40 | L164: 6.869366414e-07 | M164: 10 | N164: 1
B165: Escritorio | D165: 1 | E165: 80 | F165: =E165 -> 80 | G165: NA | H165: NA | I165: NA | J165: NA | K165: 80 | L165: 1.373873283e-06 | M165: 10 | N165: 1
B166: Computador | D166: 1 | E166: 1050 | F166: =E166 -> 1050 | G166: NA | H166: NA | I166: NA | J166: NA | K166: 1050 | L166: 1.803208684e-05 | M166: 10 | N166: 1
B167: Impresora de tarjetas | D167: 1 | E167: 580 | F167: =E167*(1+IVA)*(1+TasaImportacion) -> 682.08 | G167: NA | H167: NA | I167: NA | J167: NA | K167: 682.08 | L167: 1.171364361e-05 | M167: 10 | N167: 1
B168: Lector de tarjetas | D168: 1 | E168: 60 | F168: =E168*(1+IVA)*(1+TasaImportacion) -> 70.56 | G168: NA | H168: NA | I168: NA | J168: NA | K168: 70.56 | L168: 1.211756235e-06 | M168: 10 | N168: 1
B169: Dispositivo de recarga | D169: 0 | E169: 300 | F169: =E169*(1+IVA)*(1+TasaImportacion) -> 352.8 | G169: NA | H169: NA | I169: NA | J169: NA | K169: 0 | L169: 0 | M169: 10 | N169: 1
B170: Cámara web | D170: 1 | E170: 30 | F170: =E170*(1+IVA)*(1+TasaImportacion) -> 35.28 | G170: NA | H170: NA | I170: NA | J170: NA | K170: 35.28 | L170: 6.058781177e-07 | M170: 10 | N170: 1
B171: Licencia de uso recarga | D171: 1 | E171: 685 | G171: NA | H171: NA | I171: NA | J171: NA | K171: =E171*D171 -> 685 | L171: 1.176378998e-05 | M171: 10 | N171: 1
B172: Licencia software de personalización | D172: 1 | E172: 250 | G172: NA | H172: NA | I172: NA | J172: NA | K172: =D172*E172*TRMUSDaUSD -> 250 | L172: 4.293354009e-06 | M172: 10 | N172: 1
B173: Otros (Repuestos) | K173: =SUM(K174:K175) -> 65246.349 | L173: 0.001120502696 | M173: 10 | N173: 1
B174: Repuestos 1 | D174: 0.05 | E174: =SUM(CapexModulosSamMetro,K152,K157,K159,K160,K161,K167,K168,K169,K170,CapexTorniqueteDiscaParadasMetro) -> 710910.48 | F174: =E174 -> 710910.48 | G174: NA | H174: NA | I174: NA | J174: NA | K174: =D174*F174*TRMUSDaUSD -> 35545.524 | L174: 0.0006104380719 | M174: 10 | N174: 1
B175: Repuestos 2 | D175: =PorceRepuestos -> 0.05 | E175: =CapexTorniqueteParadasMetro -> 594016.5 | F175: =E175 -> 594016.5 | G175: NA | H175: NA | I175: NA | J175: NA | K175: =D175*F175*TRMUSDaUSD -> 29700.825 | L175: 0.0005100646243 | M175: 10 | N175: 1
B176: Firmware y software de recaudo | K176: =K177 -> 94080 | L176: 0.001615674981
B177: Firmware y software de recaudo dispositivos | D177: =D156 -> 105 | E177: 800 | F177: =E177*(1+IVA) -> 896 | G177: NA | H177: NA | I177: NA | J177: NA | K177: =F177*D177 -> 94080 | L177: 0.001615674981 | M177: 0 | N177: 0
B178: Servicios profesionales equipos en campo | K178: =K179 -> 466363.895 | L178: 0.008009061193 | M178: 10 | N178: 1
B179: Gestión de proyectos, ingeniería, instalación, pruebas, soporte y documentación, capacitación | D179: =PorceServiciosProfecionalesEquiposCampo -> 0.25 | E179: =SUM(K163,K151,K147)/TRMUSDaUSD -> 1865455.58 | F179: =E179 -> 1865455.58 | G179: NA | H179: NA | I179: NA | J179: NA | K179: =D179*F179*TRMUSDaUSD -> 466363.895 | L179: 0.008009061193 | M179: 10 | N179: 1
B180: CAPEX EQUIPOS EN CAMPO - SIR - CABLE | K180: =SUM(K181,K185,K197,K202) -> 454066.0704 | L180: 0.007797865535
B181: Medios de pago | K181: =SUM(K182:K184) -> 27767.712 | L181: 0.0004768664705
B182: Tarjeta MIFARE Desfire | D182: =+NumTarjetasDesfireCable -> 20000 | E182: 1 | F182: =E182*(1+IVA)*(1+TasaImportacion) -> 1.176 | G182: NA | H182: NA | I182: NA | J182: NA | K182: =D182*F182*TRMUSDaUSD -> 23520 | L182: 0.0004039187452 | M182: 0 | N182: 0
B183: Módulo SAM | D183: =SAMporMaquinaVRM*D186+SAMporValidadorParadas*D189+SAMporMaquinaCIM*D191+SAMHandheldCable*D195 -> 84 | E183: 8 | F183: =E183*(1+IVA)*(1+TasaImportacion) -> 9.408 | G183: NA | H183: NA | I183: NA | J183: NA | K183: =D183*F183*TRMUSDaUSD -> 790.272 | L183: 1.357166984e-05 | M183: 0 | N183: 0
B184: Emisión y distribución por SAM | D184: =D183 -> 84 | E184: 35 | F184: =E184*(1+IVA)*(1+TasaImportacion) -> 41.16 | G184: NA | H184: NA | I184: NA | J184: NA | K184: =D184*F184*TRMUSDaUSD -> 3457.44 | L184: 5.937605554e-05 | M184: 0 | N184: 0
B185: Paradas | E185: =+D195*0.05 -> 0.6 | K185: =+SUM(K186:K196) -> 324253.056 | L185: 0.005568532632
B186: Máquina VRM | D186: =NumMaqVRMCable -> 6 | E186: =+E97 -> 15500 | F186: =E186*(1+IVA)*(1+TasaImportacion) -> 18228 | G186: NA | H186: NA | I186: NA | J186: NA | K186: =D186*F186*TRMUSDaUSD -> 109368 | L186: 0.001878222165 | M186: 10 | N186: 1
B187: Licencia de uso VRM | D187: =D186 -> 6 | E187: 3200 | F187: 3763.2 | G187: NA | H187: NA | I187: NA | J187: NA | K187: 22579.2 | L187: 0.0003877619954 | M187: 7 | N187: 1
B188: Torniquetes discapacitados | C188: Fichet | D188: =NumParadasCable*AccesosDiscapaciPorEstaCable -> 6 | E188: =5600*1.065*(1-15%) -> 5069.4 | F188: =E188 -> 5069.4 | G188: NA | H188: NA | I188: NA | J188: NA | K188: 30416.4 | L188: 0.0005223534915 | M188: 10 | N188: 1
B189: Toniquete + Validador | D189: =NumTorniquetesCable -> 24 | E189: =5200*1.065*(1-15%)+950 -> 5657.3 | F189: =E189 -> 5657.3 | G189: NA | H189: NA | I189: NA | J189: NA | K189: 135775.2 | L189: 0.002331723997 | M189: 10 | N189: 1
B190: Licencia de uso Validador | D190: =D189 -> 24 | E190: 180 | F190: 211.68 | G190: NA | H190: NA | I190: NA | J190: NA | K190: 5080.32 | L190: 8.724644896e-05 | M190: 7 | N190: 1
B191: Máquina CIM | D191: 0 | E191: 300 | F191: 352.8 | G191: NA | H191: NA | I191: NA | J191: NA | K191: 0 | L191: 0 | M191: 10 | N191: 1
B192: Licencia de uso CIM | D192: =D191 -> 0 | E192: 150 | F192: 176.4 | G192: NA | H192: NA | I192: NA | J192: NA | K192: 0 | L192: 0 | M192: 10 | N192: 1
B193: Modem WIFI | D193: =NumParadasCable -> 6 | E193: 31 | F193: 36.456 | G193: NA | H193: NA | I193: NA | J193: NA | K193: 218.736 | L193: 3.75644433e-06 | M193: 10 | N193: 1
B194: Teléfono IP | C194: Grandstream GXP2100 | D194: 0 | E194: 87 | F194: 102.312 | G194: NA | H194: NA | I194: NA | J194: NA | K194: 0 | L194: 0 | M194: 10 | N194: 1
B195: Handhelds validación y recarga | D195: =HandheldsValidacionRecargaCable -> 12 | E195: 300 | F195: 352.8 | G195: NA | H195: NA | I195: NA | J195: NA | K195: 4233.6 | L195: 7.270537413e-05 | M195: 10 | N195: 1
B196: Camaras de conteo | D196: =NumParadasCable*AccesosPorEstaMetro -> 12 | E196: 1175 | F196: 1381.8 | G196: NA | H196: NA | I196: NA | J196: NA | K196: 16581.6 | L196: 0.0002847627153
B197: Otros (Repuestos) | K197: =SUM(K198:K199) -> 14040.1104 | L197: =K197/$K$3 -> 0.0002411166571 | M197: 10 | N197: 1
B198: Repuestos 1 | D198: =PorceRepuestos -> 0.05 | E198: =SUM(CapexModulosSamCable,K186,K191,K193,K194,K195,CapexTorniqueteDiscaParadasCable) -> 145027.008 | F198: =E198 -> 145027.008 | G198: NA | H198: NA | I198: NA | J198: NA | K198: =D198*E198*TRMUSDaUSD -> 7251.3504 | L198: 0.0001245304572 | M198: 10 | N198: 1
B199: Repuestos 2 | D199: =PorceRepuestos -> 0.05 | E199: =CapexTorniqueteParadasCable -> 135775.2 | F199: =E199 -> 135775.2 | G199: NA | H199: NA | I199: NA | J199: NA | K199: =D199*E199*TRMUSDaUSD -> 6788.76 | L199: 0.0001165861998 | M199: 10 | N199: 1
B200: Firmware y software de recaudo | K200: =K201 -> 66304 | L200: 0.001138666177
... 59 more rows

Sheet CAPEX (Personal)
A1: CAPEX PERSONAL SITI Q
B2: Item | C2: Cantidad | D2: Precio USD | E2: Total (USD)
B3: TOTAL | E3: =E4 -> 136957.1 | F3: =E3/$E$3 -> 1 | H3: 62697
B4: CAPEX Personal | E4: =SUM(E5,E8,E12,E22,E29,E35,E40,E43) -> 136957.1 | F4: =E4/$E$3 -> 1 | H4: 25891.6
B5: Servicios públicos | E5: =SUM(E6:E7) -> 2871 | F5: 0.02096276863 | H5: =SUM(H3:H4) -> 88588.6
B6: Teléfonos | C6: =SUM(NumGerentes,NumAsistentesDeGerencia,NumDirectoresTecnologia,NumSupervisoresCCCorredores,NumOperariosCCCorredoresSAE,NumDirectoresOperaciones,NumEncargadosAreaTarjetas,NumComunicadorSocial,NumEncargadosAreaRRHH,NumAnalistas,NumComerciales,NumAbogadosSenior,NumAbogadosJunior,NumFinancieros,NumAuxiliaresContables, NumRecepcionistas)+ NumSupervisoresCCColectivos+NumOperariosCCColectivosSAE -> 81 | D6: 35 | E6: =D6*C6*TRMUSDaUSD -> 2835 | F6: 0.0206999126 | H6: =CapexAdministrativo-H5 -> 48368.5
B7: Diadema | C7: =NumRecepcionistas -> 2 | D7: 18 | E7: =D7*C7*TRMUSDaUSD -> 36 | F7: 0.000262856033
B8: Comunicaciones | E8: =SUM(E9:E11) -> 391.1 | F8: 0.002855638737
B9: Radios | C9: =SUM(NumDirectoresOperaciones,NumEncargadosAreaTarjetas,NumJefeTurnos,NumOperariosModulosAtencion) -> 17.95 | D9: 18 | E9: =D9*C9*TRMUSDaUSD -> 323.1 | F9: 0.002359132896
B10: Celulares | C10: =NumMensajeros -> 1 | D10: 50 | E10: =D10*C10*TRMUSDaUSD -> 50 | F10: 0.0003650778236
B11: Router | C11: =NumAreasConRouter -> 6 | D11: 3 | E11: =D11*C11*TRMUSDaUSD -> 18 | F11: 0.0001314280165
B12: Oficina | E12: =SUM(E13:E21) -> 123630 | F12: 0.9026914267
B13: Escritorio gerente | C13: =NumGerentes -> 1 | D13: 200 | E13: =D13*C13*TRMUSDaUSD -> 200 | F13: 0.001460311295
B14: Sillas visita | C14: =NumGerentes*SillasPorGenrente -> 2 | D14: 20 | E14: 40 | F14: 0.0002920622589
B15: Escritorio | C15: =NumGerentes+NumAsistentesDeGerencia+NumDirectoresTecnologia+NunIngenieroSistemas+NumDirectoresOperaciones+NumEncargadosAreaTarjetas+NumJefeTurnos+NumComunicadorSocial+NumEncargadosAreaRRHH+NumAnalistas+NumComerciales+NumAbogadosSenior+NumAbogadosJunior+NumFinancieros+NumContadores+NumAuxiliaresContables+NumRevisoresFiscales+NumRecepcionistas+NumOperariosCCColectivosSAE+NumOperariosCCColectivosSIR+NumOperariosCCCorredoresSAE+NumOperariosCCCorredoresSIR -> 94 | D15: 150 | E15: 14100 | F15: 0.1029519463
B16: Silla gerente | C16: =NumGerentes -> 1 | D16: 200 | E16: 200 | F16: 0.001460311295
B17: Silla | C17: =+C15 -> 94 | D17: 100 | E17: 9400 | F17: 0.06863463084
B18: Computador | C18: =+C15 -> 94 | D18: 1000 | E18: 94000 | F18: 0.6863463084
B19: Archivadores | C19: =NumGerentes+NumAsistentesDeGerencia+NumDirectoresTecnologia+NumDirectoresOperaciones+NumEncargadosAreaTarjetas+NumJefeTurnos+NumComunicadorSocial+NumEncargadosAreaRRHH+NumAnalistas+NumComerciales+NumAbogadosSenior+NumAbogadosJunior+NumFinancieros+NumContadores+NumAuxiliaresContables+NumRevisoresFiscales -> 16 | D19: 150 | E19: 2400 | F19: 0.01752373553
B20: Tablero | C20: =NumGerentes+NumDirectoresTecnologia+NumSupervisoresCCCorredores+NumDirectoresOperaciones+NumEncargadosAreaRRHH+NumComerciales+NumAbogadosSenior+NumFinancieros -> 8 | D20: 80 | E20: 640 | F20: 0.004672996143
B21: Impresora | C21: =NumAsistentesDeGerencia+NumDirectoresOperaciones+NumEncargadosAreaRRHH+NumComerciales+NumFinancieros -> 5 | D21: 530 | E21: 2650 | F21: 0.01934912465
B22: Medios materiales | E22: =SUM(E23:E28) -> 4845 | F22: 0.03537604111
B23: Microondas | C23: =CantidadMediosMateriales -> 1 | D23: 75 | E23: =D23*C23*TRMUSDaUSD -> 75 | F23: 0.0005476167355
B24: Nevera | C24: =CantidadMediosMateriales -> 1 | D24: 430 | E24: 430 | F24: 0.003139669283
B25: Cafetera | C25: =CantidadMediosMateriales -> 1 | D25: 40 | E25: 40 | F25: 0.0002920622589
B26: Dispensador de agua | C26: =CantidadMediosMateriales -> 1 | D26: 200 | E26: 200 | F26: 0.001460311295
B27: Vajilla | C27: =CantidadMediosMateriales -> 1 | D27: 500 | E27: 500 | F27: 0.003650778236
B28: Unidad de aire acondicionado | C28: =NumAreasConAireAcondicionado -> 6 | D28: 600 | E28: 3600 | F28: 0.0262856033
B29: Sala de juntas | E29: =SUM(E30:E34) -> 2630 | F29: 0.01920309352
B30: Sillas | C30: =SillasSalaJuntas -> 10 | D30: 100 | E30: =D30*C30*TRMUSDaUSD -> 1000 | F30: 0.007301556473
B31: Mesa | C31: =CantidadEquiposSalaJuntas -> 1 | D31: 400 | E31: =D31*C31*TRMUSDaUSD -> 400 | F31: 0.002920622589
B32: Proyector | C32: =CantidadEquiposSalaJuntas -> 1 | D32: 450 | E32: =D32*C32*TRMUSDaUSD -> 450 | F32: 0.003285700413
B33: Televisor | C33: =CantidadEquiposSalaJuntas -> 1 | D33: 700 | E33: =D33*C33*TRMUSDaUSD -> 700 | F33: 0.005111089531
B34: Tablero | C34: =CantidadEquiposSalaJuntas -> 1 | D34: 80 | E34: =D34*C34*TRMUSDaUSD -> 80 | F34: 0.0005841245178
B35: Sala de juntas del gerente | E35: =SUM(E36:E39) -> 1510 | F35: 0.01102535027
B36: Sillas | C36: =SillasSalaJuntasGerente -> 6 | D36: 100 | E36: =D36*C36*TRMUSDaUSD -> 600 | F36: 0.004380933884
B37: Mesa | C37: =CantidadEquiposSalaJuntas -> 1 | D37: 280 | E37: =D37*C37*TRMUSDaUSD -> 280 | F37: 0.002044435812
B38: Televisor | C38: =CantidadEquiposSalaJuntas -> 1 | D38: 550 | E38: =D38*C38*TRMUSDaUSD -> 550 | F38: 0.00401585606
B39: Tablero | C39: =CantidadEquiposSalaJuntas -> 1 | D39: 80 | E39: =D39*C39*TRMUSDaUSD -> 80 | F39: 0.0005841245178
B40: Sala de espera | E40: =SUM(E41:E42) -> 580 | F40: 0.004234902754
B41: Sillas | C41: =SillasSalaEspera -> 6 | D41: 80 | E41: =D41*C41*TRMUSDaUSD -> 480 | F41: 0.003504747107
B42: Mesa | C42: =MesasSalaEspera -> 1 | D42: 100 | E42: =D42*C42*TRMUSDaUSD -> 100 | F42: 0.0007301556473
B43: Sistema de seguridad | E43: =SUM(E44:E44) -> 500 | F43: 0.003650778236
B44: Cámaras | C44: =NumCamarasSeguridad -> 10 | D44: 50 | E44: =D44*C44*TRMUSDaUSD -> 500 | F44: 0.003650778236

Sheet Tabla Capex Personal F1 (hidden)
A1: CAPEX PERSONAL SITI Q
B2: Item | C2: Cantidad | D2: Precio USD | E2: Total (USD)
B3: TOTAL | E3: =E4 -> 3941.4 | F3: =E3/$E$3 -> 1 | H3: Fase1 | I3: Aumento Fase 2 | J3: Fase 3
B4: CAPEX Personal | E4: =+J4-H4-I4 -> 3941.4 | F4: =E4/$E$3 -> 1 | H4: 118912 | I4: 49301.6 | J4: 172155
B5: Servicios públicos | E5: =+J5-H5-I5 -> 105 | F5: 0.0266402801 | H5: 1156 | I5: 1645 | J5: 2906
B6: Teléfonos | C6: =SUM(NumGerentes,NumAsistentesDeGerencia,NumDirectoresTecnologia,NumSupervisoresCCCorredores,NumOperariosCCCorredoresSAE,NumDirectoresOperaciones,NumEncargadosAreaTarjetas,NumComunicadorSocial,NumEncargadosAreaRRHH,NumAnalistas,NumComerciales,NumAbogadosSenior,NumAbogadosJunior,NumFinancieros,NumAuxiliaresContables, NumRecepcionistas)+IF(Fase<>1, NumSupervisoresCCColectivos+NumOperariosCCColectivosSAE,0) ->  | D6: 35 | E6: 0 | F6: 0 | G6: =CapexAdministrativo-G5 -> 136957.1 | I6: 0
B7: Diadema | C7: =NumRecepcionistas -> 2 | D7: 18 | E7: 0 | F7: 0 | I7: 0
B8: Comunicaciones | E8: 86.4 | F8: 0.02192114477 | H8: 311 | I8: 156.6 | J8: 554
B9: Radios | C9: =SUM(NumDirectoresOperaciones,NumEncargadosAreaTarjetas,NumJefeTurnos,NumOperariosModulosAtencion) -> 17.95 | D9: 18 | E9: 0 | F9: 0 | I9: 0
B10: Celulares | C10: =NumMensajeros -> 1 | D10: 50 | E10: 0 | F10: 0 | I10: 0
B11: Router | C11: =NumAreasConRouter -> 6 | D11: 3 | E11: 0 | F11: 0 | I11: 0
B12: Oficina | E12: 3750 | F12: 0.9514385751 | H12: 107380 | I12: 47500 | J12: 158630
B13: Escritorio gerente | C13: =NumGerentes -> 1 | D13: 200 | E13: 0 | F13: 0 | I13: 0
B14: Sillas visita | C14: =NumGerentes*SillasPorGenrente -> 2 | D14: 20 | E14: 0 | F14: 0 | I14: 0
B15: Escritorio | C15: =NumGerentes+NumAsistentesDeGerencia+NumDirectoresTecnologia+NunIngenieroSistemas+NumDirectoresOperaciones+NumEncargadosAreaTarjetas+NumJefeTurnos+NumComunicadorSocial+NumEncargadosAreaRRHH+NumAnalistas+NumComerciales+NumAbogadosSenior+NumAbogadosJunior+NumFinancieros+NumContadores+NumAuxiliaresContables+NumRevisoresFiscales+NumRecepcionistas+NumOperariosCCColectivosSAE+NumOperariosCCCorredoresSAE -> 83 | D15: 150 | E15: 0 | F15: 0 | I15: 0
B16: Silla gerente | C16: =NumGerentes -> 1 | D16: 200 | E16: 0 | F16: 0 | I16: 0
B17: Silla | C17: =+C15 -> 83 | D17: 100 | E17: 0 | F17: 0 | I17: 0
B18: Computador | C18: =+C15 -> 83 | D18: 1000 | E18: 0 | F18: 0 | I18: 0
B19: Archivadores | C19: =NumGerentes+NumAsistentesDeGerencia+NumDirectoresTecnologia+NumDirectoresOperaciones+NumEncargadosAreaTarjetas+NumJefeTurnos+NumComunicadorSocial+NumEncargadosAreaRRHH+NumAnalistas+NumComerciales+NumAbogadosSenior+NumAbogadosJunior+NumFinancieros+NumContadores+NumAuxiliaresContables+NumRevisoresFiscales -> 16 | D19: 150 | E19: 0 | F19: 0 | I19: 0
B20: Tablero | C20: =NumGerentes+NumDirectoresTecnologia+NumSupervisoresCCCorredores+NumDirectoresOperaciones+NumEncargadosAreaRRHH+NumComerciales+NumAbogadosSenior+NumFinancieros -> 8 | D20: 80 | E20: 0 | F20: 0 | I20: 0
B21: Impresora | C21: =NumAsistentesDeGerencia+NumDirectoresOperaciones+NumEncargadosAreaRRHH+NumComerciales+NumFinancieros -> 5 | D21: 530 | E21: 0 | F21: 0 | I21: 0
B22: Medios materiales | E22: 0 | F22: 0 | H22: 4845 | I22: 0 | J22: 4845
B23: Microondas | C23: =CantidadMediosMateriales -> 1 | D23: 75 | E23: 0 | F23: 0 | I23: 0
B24: Nevera | C24: =CantidadMediosMateriales -> 1 | D24: 430 | E24: 0 | F24: 0 | I24: 0
B25: Cafetera | C25: =CantidadMediosMateriales -> 1 | D25: 40 | E25: 0 | F25: 0 | I25: 0
B26: Dispensador de agua | C26: =CantidadMediosMateriales -> 1 | D26: 200 | E26: 0 | F26: 0 | I26: 0
B27: Vajilla | C27: =CantidadMediosMateriales -> 1 | D27: 500 | E27: 0 | F27: 0 | I27: 0
B28: Unidad de aire acondicionado | C28: =NumAreasConAireAcondicionado -> 6 | D28: 600 | E28: 0 | F28: 0 | I28: 0
B29: Sala de juntas | E29: 0 | F29: 0 | H29: 2630 | I29: 0 | J29: 2630
B30: Sillas | C30: =SillasSalaJuntas -> 10 | D30: 100 | E30: 0 | F30: 0 | I30: 0
B31: Mesa | C31: =CantidadEquiposSalaJuntas -> 1 | D31: 400 | E31: 0 | F31: 0 | I31: 0
B32: Proyector | C32: =CantidadEquiposSalaJuntas -> 1 | D32: 450 | E32: 0 | F32: 0 | I32: 0
B33: Televisor | C33: =CantidadEquiposSalaJuntas -> 1 | D33: 700 | E33: 0 | F33: 0 | I33: 0
B34: Tablero | C34: =CantidadEquiposSalaJuntas -> 1 | D34: 80 | E34: 0 | F34: 0 | I34: 0
B35: Sala de juntas del gerente | E35: 0 | F35: 0 | H35: 1510 | I35: 0 | J35: 1510
B36: Sillas | C36: =SillasSalaJuntasGerente -> 6 | D36: 100 | E36: 0 | F36: 0 | I36: 0
B37: Mesa | C37: =CantidadEquiposSalaJuntas -> 1 | D37: 280 | E37: 0 | F37: 0 | I37: 0
B38: Televisor | C38: =CantidadEquiposSalaJuntas -> 1 | D38: 550 | E38: 0 | F38: 0 | I38: 0
B39: Tablero | C39: =CantidadEquiposSalaJuntas -> 1 | D39: 80 | E39: 0 | F39: 0 | I39: 0
B40: Sala de espera | E40: 0 | F40: 0 | H40: 580 | I40: 0 | J40: 580
B41: Sillas | C41: =SillasSalaEspera -> 6 | D41: 80 | E41: 0 | F41: 0 | I41: 0
B42: Mesa | C42: =MesasSalaEspera -> 1 | D42: 100 | E42: 0 | F42: 0 | I42: 0
B43: Sistema de seguridad | E43: 0 | F43: 0 | H43: 500 | I43: 0 | J43: 500
B44: Cámaras | C44: =NumCamarasSeguridad -> 10 | D44: 50 | E44: =+'CAPEX (Personal)'!E45 -> 0

Sheet Tabla Capex F2 (hidden)
A1: Proyecciones
D2: 0 | E2: 1 | F2: 2 | H2: 3 | I2: 4 | J2: 5 | K2: 6 | L2: 7 | M2: 8 | N2: 9 | O2: 10
A3: SUPUESTOS | B3: Inflación | E3: ='Supuestos y Entradas'!AI5 -> 0.04081 | F3: ='Supuestos y Entradas'!AJ5 -> 0.02941 | H3: ='Supuestos y Entradas'!AK5 -> 0.02043 | I3: ='Supuestos y Entradas'!AL5 -> 0.01782 | J3: ='Supuestos y Entradas'!AM5 -> 0.016 | K3: ='Supuestos y Entradas'!AN5 -> 0.015 | L3: ='Supuestos y Entradas'!AO5 -> 0.015 | M3: ='Supuestos y Entradas'!AP5 -> 0.015 | N3: ='Supuestos y Entradas'!AQ5 -> 0.015 | O3: ='Supuestos y Entradas'!AR5 -> 0.015
B4: Factor Spot de Inflación | E4: =1+E3 -> 1.04081 | F4: =E4*(1+F3) -> 1.071420222 | H4: =F4*(1+H3) -> 1.093309337 | I4: =H4*(1+I3) -> 1.11279211 | J4: 1.130596783 | K4: 1.147555735 | L4: 1.164769071 | M4: 1.182240607 | N4: 1.199974216 | O4: 1.21797383
B5: Demanda (% Crecimiento) | E5: ='Supuestos y Entradas'!AJ13 -> 0.015 | F5: ='Supuestos y Entradas'!AK13 -> 0.015 | H5: ='Supuestos y Entradas'!AL13 -> 0.015 | I5: ='Supuestos y Entradas'!AM13 -> 0.015 | J5: ='Supuestos y Entradas'!AN13 -> 0.015 | K5: ='Supuestos y Entradas'!AO13 -> 0.015 | L5: ='Supuestos y Entradas'!AP13 -> 0.015 | M5: ='Supuestos y Entradas'!AQ13 -> 0.015 | N5: ='Supuestos y Entradas'!AR13 -> 0.015 | O5: ='Supuestos y Entradas'!AS13 -> 0.015
B6: Demanda (No. Pasajeros) | E6: =IF(Fase=1,'Supuestos y Entradas'!AJ14,0)+IF(Fase=2,'Supuestos y Entradas'!AJ15,0)+IF(Fase=3,'Supuestos y Entradas'!AJ16,0) ->  | F6: 251343.5358 | H6: 257819.2225 | I6: 264802.4403 | J6: 272324.7211 | K6: 280420.546 | L6: 289127.6039 | M6: 298487.0775 | N6: 308543.96 | O6: 319347.4064
B7: Ingresos necesarios por pasajero | E7: =IngresoPasajeroF2 -> 0.02237251661 | F7: 0.02237251661 | H7: 0.02237251661 | I7: 0.02237251661 | J7: 0.02237251661 | K7: 0.02237251661 | L7: 0.02237251661 | M7: 0.02237251661 | N7: 0.02237251661 | O7: 0.02237251661
A8: PROYECCIONES | E8: 1 | F8: 2 | H8: 3 | I8: 4 | J8: 5 | K8: 6 | L8: 7 | M8: 8 | N8: 9 | O8: 10
B9: Ingresos Operacionales del sistema | E9: ='Supuestos y Entradas'!AJ15*E7 -> 0 | F9: ='Supuestos y Entradas'!AK15*F7 -> 10613935.77 | H9: ='Supuestos y Entradas'!AL15*H7 -> 10773144.81 | I9: ='Supuestos y Entradas'!AM15*I7 -> 10934741.98 | J9: ='Supuestos y Entradas'!AN15*J7 -> 11098763.11 | K9: ='Supuestos y Entradas'!AO15*K7 -> 11265244.55 | L9: ='Supuestos y Entradas'!AP15*L7 -> 11434223.22 | M9: ='Supuestos y Entradas'!AQ15*M7 -> 11605736.57 | N9: ='Supuestos y Entradas'!AR15*N7 -> 11779822.62 | O9: ='Supuestos y Entradas'!AS15*O7 -> 11956519.96
B10: Opex (tecnología) | E10: 4771415.021 | F10: =(OpexSistemaCentral+OpexSIRCorredores+OpexSAECorredores+OpexSIUCorredores+OpexSIRColectivos+OpexSAEColectivos+OpexSIUColectivos)*MesesPorAño*F4 -> 10055380.82 | H10: 10260812.25 | I10: 10443659.93 | J10: 10610758.48 | K10: 10769919.86 | L10: 10931468.66 | M10: 11095440.69 | N10: 11261872.3 | O10: 11430800.38
B11: Opex (Personal) | E11: 707094.0489 | F11: =OpexAdminitrativo*MesesPorAño*F4 -> 3780385.688 | H11: 3857618.968 | I11: 3926361.738 | J11: 3989183.526 | K11: 4049021.279 | L11: 4109756.598 | M11: 4171402.947 | N11: 4233973.991 | O11: 4297483.601
B12: Capex (Tecnología) | C12: TR | D12: FASE | E12: 36124384.91 | F12: =SUM(F13,F15,F16,F17,F47,F55)+SUM(F25,F51,F62) -> 19528780.64 | G12: =F12/$F$12 -> 1 | H12: =SUM(H13,H15,H16,H17,H47,H55)+SUM(H25,H51,H62) -> 0 | I12: 0 | J12: 3151534.789 | K12: 0 | L12: 0 | M12: 0 | N12: 0 | O12: 33713760.58
B13: Capex Centro de Datos | C13: ='CAPEX (Tecnología)'!$M$5 -> 5 | D13: 1 | E13: 12106098.44 | F13: =IF(F8=CEILING(F8,'CAPEX (Tecnología)'!$M$5),(CapexCentroDatos-CostoSoftware)*'CAPEX (Tecnología)'!$N$5*F4,0) -> 0 | G13: =F13/$F$12 -> 0 | H13: =IF(H8=CEILING(H8,'CAPEX (Tecnología)'!$M$5),(CapexCentroDatos-CostoSoftware)*'CAPEX (Tecnología)'!$N$5*H4,0) -> 0 | I13: =IF(I8=CEILING(I8,'CAPEX (Tecnología)'!$M$5),(CapexCentroDatos-CostoSoftware)*'CAPEX (Tecnología)'!$N$5*I4,0) -> 0 | J13: =IF(J8=CEILING(J8,'CAPEX (Tecnología)'!$M$5),(CapexCentroDatos-CostoSoftware)*'CAPEX (Tecnología)'!$N$5*J4,0) -> 1305190.521 | K13: =IF(K8=CEILING(K8,'CAPEX (Tecnología)'!$M$5),(CapexCentroDatos-CostoSoftware)*'CAPEX (Tecnología)'!$N$5*K4,0) -> 0 | L13: =IF(L8=CEILING(L8,'CAPEX (Tecnología)'!$M$5),(CapexCentroDatos-CostoSoftware)*'CAPEX (Tecnología)'!$N$5*L4,0) -> 0 | M13: =IF(M8=CEILING(M8,'CAPEX (Tecnología)'!$M$5),(CapexCentroDatos-CostoSoftware)*'CAPEX (Tecnología)'!$N$5*M4,0) -> 0 | N13: =IF(N8=CEILING(N8,'CAPEX (Tecnología)'!$M$5),(CapexCentroDatos-CostoSoftware)*'CAPEX (Tecnología)'!$N$5*N4,0) -> 0 | O13: =IF(O8=CEILING(O8,'CAPEX (Tecnología)'!$M$5),(CapexCentroDatos-CostoSoftware)*'CAPEX (Tecnología)'!$N$5*O4,0) -> 1406060.87
B14: Software de Infraestructura y Sistema de Recaudo | E14: 10907473.24 | F14: 0 | G14: 0 | H14: 0 | I14: 0 | J14: 0 | K14: 0 | L14: 0 | M14: 0 | N14: 0 | O14: 0
B15: Capex Centro de Control | C15: ='CAPEX (Tecnología)'!$M$64 -> 5 | D15: 1 | E15: 29362.35752 | F15: =IF(F8=CEILING(F8,'CAPEX (Tecnología)'!$M$64),CapexCentroControl*'CAPEX (Tecnología)'!$N$64*F4,0) -> 0 | G15: 0 | H15: =IF(H8=CEILING(H8,'CAPEX (Tecnología)'!$M$64),CapexCentroControl*'CAPEX (Tecnología)'!$N$64*H4,0) -> 0 | I15: =IF(I8=CEILING(I8,'CAPEX (Tecnología)'!$M$64),CapexCentroControl*'CAPEX (Tecnología)'!$N$64*I4,0) -> 0 | J15: =IF(J8=CEILING(J8,'CAPEX (Tecnología)'!$M$64),CapexCentroControl*'CAPEX (Tecnología)'!$N$64*J4,0) -> 129951.9972 | K15: =IF(K8=CEILING(K8,'CAPEX (Tecnología)'!$M$64),CapexCentroControl*'CAPEX (Tecnología)'!$N$64*K4,0) -> 0 | L15: =IF(L8=CEILING(L8,'CAPEX (Tecnología)'!$M$64),CapexCentroControl*'CAPEX (Tecnología)'!$N$64*L4,0) -> 0 | M15: =IF(M8=CEILING(M8,'CAPEX (Tecnología)'!$M$64),CapexCentroControl*'CAPEX (Tecnología)'!$N$64*M4,0) -> 0 | N15: =IF(N8=CEILING(N8,'CAPEX (Tecnología)'!$M$64),CapexCentroControl*'CAPEX (Tecnología)'!$N$64*N4,0) -> 0 | O15: =IF(O8=CEILING(O8,'CAPEX (Tecnología)'!$M$64),CapexCentroControl*'CAPEX (Tecnología)'!$N$64*O4,0) -> 139995.2079
B16: Capex Servicios Profesionales CD y CC | C16: ='CAPEX (Tecnología)'!$M$71 -> 5 | D16: 1 | E16: 2427092.16 | F16: =IF(F$8=CEILING(F$8,'CAPEX (Tecnología)'!$M$71),CapexServiciosProfesionalesCDyCC*'CAPEX (Tecnología)'!$N$71*F$4,0) -> 0 | G16: 0 | H16: =IF(H8=CEILING(H8,'CAPEX (Tecnología)'!$M$71),CapexServiciosProfesionalesCDyCC*'CAPEX (Tecnología)'!$N$71*H4,0) -> 0 | I16: =IF(I8=CEILING(I8,'CAPEX (Tecnología)'!$M$71),CapexServiciosProfesionalesCDyCC*'CAPEX (Tecnología)'!$N$71*I4,0) -> 0 | J16: =IF(J8=CEILING(J8,'CAPEX (Tecnología)'!$M$71),CapexServiciosProfesionalesCDyCC*'CAPEX (Tecnología)'!$N$71*J4,0) -> 1716392.271 | K16: =IF(K8=CEILING(K8,'CAPEX (Tecnología)'!$M$71),CapexServiciosProfesionalesCDyCC*'CAPEX (Tecnología)'!$N$71*K4,0) -> 0 | L16: =IF(L8=CEILING(L8,'CAPEX (Tecnología)'!$M$71),CapexServiciosProfesionalesCDyCC*'CAPEX (Tecnología)'!$N$71*L4,0) -> 0 | M16: =IF(M8=CEILING(M8,'CAPEX (Tecnología)'!$M$71),CapexServiciosProfesionalesCDyCC*'CAPEX (Tecnología)'!$N$71*M4,0) -> 0 | N16: =IF(N8=CEILING(N8,'CAPEX (Tecnología)'!$M$71),CapexServiciosProfesionalesCDyCC*'CAPEX (Tecnología)'!$N$71*N4,0) -> 0 | O16: =IF(O8=CEILING(O8,'CAPEX (Tecnología)'!$M$71),CapexServiciosProfesionalesCDyCC*'CAPEX (Tecnología)'!$N$71*O4,0) -> 1849041.938
B17: SIR-CORREDORES | E17: 18977616.27 | F17: =SUM(F18:F20,F21,F24) -> 0 | G17: 0 | H17: 0 | I17: 0 | J17: 0 | K17: 0 | L17: 0 | M17: 0 | N17: 0 | O17: 15662000.71
B18: Capex Medios de Pago | E18: 1697572.417 | F18: 0 | G18: 0 | H18: 0 | I18: 0 | J18: 0 | K18: 0 | L18: 0 | M18: 0 | N18: 0 | O18: 0
B19: Equipos 1 | C19: 10 | D19: 1 | E19: 8102500.119 | F19: =IF(F8=CEILING(F8,$C$19),$E$19*(F4/$E$4),0) -> 0 | G19: 0 | H19: =IF(H8=CEILING(H8,$C$19),$E$19*(H4/$E$4),0) -> 0 | I19: 0 | J19: 0 | K19: 0 | L19: 0 | M19: 0 | N19: 0 | O19: 9481685.514
B20: Equipos 2 | C20: 15 | D20: 1 | E20: 4840079.367 | F20: =IF(F$8=CEILING(F$8,$C$20),$E$20*(F4/$E$4),0) -> 0 | G20: 0 | H20: =IF(H$8=CEILING(H$8,$C$20),$E$20*(H4/$E$4),0) -> 0 | I20: 0 | J20: 0 | K20: 0 | L20: 0 | M20: 0 | N20: 0 | O20: 0
B21: Otros (Repuestos) | E21: 677426.3917 | F21: =SUM(F22:F23) -> 0 | G21: 0 | H21: 0 | I21: 0 | J21: 0 | K21: 0 | L21: 0 | M21: 0 | N21: 0 | O21: 871177.0988
B22: Repuestos 1 | C22: ='CAPEX (Tecnología)'!$M$109 -> 10 | D22: 1 | E22: 408860.6388 | F22: =IF(F$8=CEILING(F$8,'CAPEX (Tecnología)'!$M$109),CapexSIRCorredoresRepuestos1*F$4*'CAPEX (Tecnología)'!$N$109,0) -> 0 | G22: 0 | H22: =IF(H$8=CEILING(H$8,'CAPEX (Tecnología)'!$M$109),CapexSIRCorredoresRepuestos1*H$4*'CAPEX (Tecnología)'!$N$109,0) -> 0 | I22: =IF(I$8=CEILING(I$8,'CAPEX (Tecnología)'!$M$109),CapexSIRCorredoresRepuestos1*I$4*'CAPEX (Tecnología)'!$N$109,0) -> 0 | J22: =IF(J$8=CEILING(J$8,'CAPEX (Tecnología)'!$M$109),CapexSIRCorredoresRepuestos1*J$4*'CAPEX (Tecnología)'!$N$109,0) -> 0 | K22: =IF(K$8=CEILING(K$8,'CAPEX (Tecnología)'!$M$109),CapexSIRCorredoresRepuestos1*K$4*'CAPEX (Tecnología)'!$N$109,0) -> 0 | L22: =IF(L$8=CEILING(L$8,'CAPEX (Tecnología)'!$M$109),CapexSIRCorredoresRepuestos1*L$4*'CAPEX (Tecnología)'!$N$109,0) -> 0 | M22: =IF(M$8=CEILING(M$8,'CAPEX (Tecnología)'!$M$109),CapexSIRCorredoresRepuestos1*M$4*'CAPEX (Tecnología)'!$N$109,0) -> 0 | N22: =IF(N$8=CEILING(N$8,'CAPEX (Tecnología)'!$M$109),CapexSIRCorredoresRepuestos1*N$4*'CAPEX (Tecnología)'!$N$109,0) -> 0 | O22: =IF(O$8=CEILING(O$8,'CAPEX (Tecnología)'!$M$109),CapexSIRCorredoresRepuestos1*O$4*'CAPEX (Tecnología)'!$N$109,0) -> 616575.2172
B23: Repuestos 2 | C23: ='CAPEX (Tecnología)'!$M$110 -> 10 | D23: 1 | E23: 242003.9684 | F23: =IF(F$8=CEILING(F$8,'CAPEX (Tecnología)'!$M$110),CapexSIRCorredoresRepuestos2*F$4*'CAPEX (Tecnología)'!$N$110,0) -> 0 | G23: 0 | H23: =IF(H$8=CEILING(H$8,'CAPEX (Tecnología)'!$M$110),CapexSIRCorredoresRepuestos2*H$4*'CAPEX (Tecnología)'!$N$110,0) -> 0 | I23: =IF(I$8=CEILING(I$8,'CAPEX (Tecnología)'!$M$110),CapexSIRCorredoresRepuestos2*I$4*'CAPEX (Tecnología)'!$N$110,0) -> 0 | J23: =IF(J$8=CEILING(J$8,'CAPEX (Tecnología)'!$M$110),CapexSIRCorredoresRepuestos2*J$4*'CAPEX (Tecnología)'!$N$110,0) -> 0 | K23: =IF(K$8=CEILING(K$8,'CAPEX (Tecnología)'!$M$110),CapexSIRCorredoresRepuestos2*K$4*'CAPEX (Tecnología)'!$N$110,0) -> 0 | L23: =IF(L$8=CEILING(L$8,'CAPEX (Tecnología)'!$M$110),CapexSIRCorredoresRepuestos2*L$4*'CAPEX (Tecnología)'!$N$110,0) -> 0 | M23: =IF(M$8=CEILING(M$8,'CAPEX (Tecnología)'!$M$110),CapexSIRCorredoresRepuestos2*M$4*'CAPEX (Tecnología)'!$N$110,0) -> 0 | N23: =IF(N$8=CEILING(N$8,'CAPEX (Tecnología)'!$M$110),CapexSIRCorredoresRepuestos2*N$4*'CAPEX (Tecnología)'!$N$110,0) -> 0 | O23: =IF(O$8=CEILING(O$8,'CAPEX (Tecnología)'!$M$110),CapexSIRCorredoresRepuestos2*O$4*'CAPEX (Tecnología)'!$N$110,0) -> 254601.8816
B24: Servicios profesionales equipos en campo | C24: ='CAPEX (Tecnología)'!M113 -> 10 | D24: 1 | E24: 3660037.976 | F24: =IF(F$8=CEILING(F$8,'CAPEX (Tecnología)'!$M$113),CapexSIRCorredoresSP*F$4*'CAPEX (Tecnología)'!$N$113,0) -> 0 | G24: 0 | H24: =IF(H$8=CEILING(H$8,'CAPEX (Tecnología)'!$M$113),CapexSIRCorredoresSP*H$4*'CAPEX (Tecnología)'!$N$113,0) -> 0 | I24: =IF(I$8=CEILING(I$8,'CAPEX (Tecnología)'!$M$113),CapexSIRCorredoresSP*I$4*'CAPEX (Tecnología)'!$N$113,0) -> 0 | J24: =IF(J$8=CEILING(J$8,'CAPEX (Tecnología)'!$M$113),CapexSIRCorredoresSP*J$4*'CAPEX (Tecnología)'!$N$113,0) -> 0 | K24: =IF(K$8=CEILING(K$8,'CAPEX (Tecnología)'!$M$113),CapexSIRCorredoresSP*K$4*'CAPEX (Tecnología)'!$N$113,0) -> 0 | L24: =IF(L$8=CEILING(L$8,'CAPEX (Tecnología)'!$M$113),CapexSIRCorredoresSP*L$4*'CAPEX (Tecnología)'!$N$113,0) -> 0 | M24: =IF(M$8=CEILING(M$8,'CAPEX (Tecnología)'!$M$113),CapexSIRCorredoresSP*M$4*'CAPEX (Tecnología)'!$N$113,0) -> 0 | N24: =IF(N$8=CEILING(N$8,'CAPEX (Tecnología)'!$M$113),CapexSIRCorredoresSP*N$4*'CAPEX (Tecnología)'!$N$113,0) -> 0 | O24: =IF(O$8=CEILING(O$8,'CAPEX (Tecnología)'!$M$113),CapexSIRCorredoresSP*O$4*'CAPEX (Tecnología)'!$N$113,0) -> 5309138.095
B25: SIR-COLECTIVOS | F25: =SUM(F29:F30,F26:F27) -> 12361005.38 | G25: 0.6329635021 | H25: =SUM(H29:H30,H26:H27) -> 0 | I25: 0 | J25: 0 | K25: 0 | L25: 0 | M25: 0 | N25: 0 | O25: 0
B26: Capex Medios de Pago | F26: =CapexSIRColectivosMediosPago*F4 -> 1658945.912 | G26: 0.08494877089 | H26: 0 | I26: 0 | J26: 0 | K26: 0 | L26: 0 | M26: 0 | N26: 0 | O26: 0 | Q26: 77
B27: Equipos 1 | C27: 10 | D27: 2 | F27: =SUM('CAPEX (Tecnología)'!$K$120,'CAPEX (Tecnología)'!$K$126,'CAPEX (Tecnología)'!$K$129)*F4 -> 7967801.452 | G27: 0.4080030187 | H27: =IF(H$8=CEILING(H$8,$C$27+1),$F$27*(H4/$E$4),0) -> 0 | I27: =IF(I$8=CEILING(I$8,$C$27+1),$F$27*(I4/$E$4),0) -> 0 | J27: 0 | K27: 0 | L27: 0 | M27: 0 | N27: =IF(N$8=CEILING(N$8,$C$27+1),$F$27*(N4/$E$4),0) -> 0 | O27: 0 | Q27: 8
B28: Otros (Repuestos) | F28: =SUM(F29) -> 327571.1793 | G28: 0.01677376511 | H28: =SUM(H29) -> 0 | I28: 0 | J28: 0 | K28: 0 | L28: 0 | M28: 0 | N28: 0 | O28: 0 | Q28: 15
B29: Repuestos 1 | C29: 10 | D29: 2 | F29: =SUM('CAPEX (Tecnología)'!K140)*F4 -> 327571.1793 | G29: 0.01677376511 | H29: =IF(H$8=CEILING(H$8,$C$29+1),$F$29*(H4/$E$4),0) -> 0 | I29: =IF(I$8=CEILING(I$8,$C$29+1),$F$29*(I4/$E$4),0) -> 0 | J29: 0 | K29: 0 | L29: 0 | M29: 0 | N29: 0 | O29: 0
B30: Servicios profesionales equipos en campo | C30: 10 | D30: 2 | F30: =SPSIRColectivos*F4 -> 2406686.841 | G30: 0.1232379474 | H30: =IF(H$8=CEILING(H$8,$C$30+1),$F$30*(H4/$E$4),0) -> 0 | I30: =IF(I$8=CEILING(I$8,$C$30+1),$F$30*(I4/$E$4),0) -> 0 | J30: 0 | K30: 0 | L30: 0 | M30: 0 | N30: 0 | O30: 0 | Q30: =SUM(Q26:Q28) -> 100
B31: SIR-METRO | G31: 0
B32: Capex Medios de Pago | G32: 0
B33: Equipos 1 | G33: 0
B34: Equipos 2 | G34: 0
B35: Otros (Repuestos) | G35: 0
B36: Repuestos 1 | G36: 0
B37: Repuestos 2 | G37: 0
B38: Servicios profesionales equipos en campo | G38: 0
B39: SIR-CABLE | G39: 0
B40: Capex Medios de Pago | G40: 0
B41: Equipos 1 | G41: 0
B42: Equipos 2 | G42: 0
B43: Otros (Repuestos) | G43: 0
B44: Repuestos 1 | G44: 0
B45: Repuestos 2 | G45: 0
B46: Servicios profesionales equipos en campo | G46: 0
B47: SAE-CORREDORES | E47: 1100460.076 | F47: =SUM(F48:F50) -> 0 | G47: 0 | H47: 0 | I47: 0 | J47: 0 | K47: 0 | L47: 0 | M47: 0 | N47: 0 | O47: 4716432.237
B48: Equipos 1 | C48: ='CAPEX (Tecnología)'!M205 -> 10 | D48: 1 | E48: 852939.2154 | F48: =IF(F$8=CEILING(F$8,'CAPEX (Tecnología)'!$M$205),CapexSAECorredoresEquiposAbordo*F$4*'CAPEX (Tecnología)'!$N$205,0) -> 0 | G48: 0 | H48: =IF(H$8=CEILING(H$8,'CAPEX (Tecnología)'!$M$205),CapexSAECorredoresEquiposAbordo*H$4*'CAPEX (Tecnología)'!$N$205,0) -> 0 | I48: =IF(I$8=CEILING(I$8,'CAPEX (Tecnología)'!$M$205),CapexSAECorredoresEquiposAbordo*I$4*'CAPEX (Tecnología)'!$N$205,0) -> 0 | J48: =IF(J$8=CEILING(J$8,'CAPEX (Tecnología)'!$M$205),CapexSAECorredoresEquiposAbordo*J$4*'CAPEX (Tecnología)'!$N$205,0) -> 0 | K48: =IF(K$8=CEILING(K$8,'CAPEX (Tecnología)'!$M$205),CapexSAECorredoresEquiposAbordo*K$4*'CAPEX (Tecnología)'!$N$205,0) -> 0 | L48: =IF(L$8=CEILING(L$8,'CAPEX (Tecnología)'!$M$205),CapexSAECorredoresEquiposAbordo*L$4*'CAPEX (Tecnología)'!$N$205,0) -> 0 | M48: =IF(M$8=CEILING(M$8,'CAPEX (Tecnología)'!$M$205),CapexSAECorredoresEquiposAbordo*M$4*'CAPEX (Tecnología)'!$N$205,0) -> 0 | N48: =IF(N$8=CEILING(N$8,'CAPEX (Tecnología)'!$M$205),CapexSAECorredoresEquiposAbordo*N$4*'CAPEX (Tecnología)'!$N$205,0) -> 0 | O48: =IF(O$8=CEILING(O$8,'CAPEX (Tecnología)'!$M$205),CapexSAECorredoresEquiposAbordo*O$4*'CAPEX (Tecnología)'!$N$205,0) -> 3727958.415
B49: Otros (Repuestos) | C49: ='CAPEX (Tecnología)'!M211 -> 10 | D49: 1 | E49: 42646.96077 | F49: =IF(F$8=CEILING(F$8,'CAPEX (Tecnología)'!$M$211),CapexSAECorredoresRespuestos1*F$4*'CAPEX (Tecnología)'!$N$211,0) -> 0 | G49: 0 | H49: =IF(H$8=CEILING(H$8,'CAPEX (Tecnología)'!$M$211),CapexSAECorredoresRespuestos1*H$4*'CAPEX (Tecnología)'!$N$211,0) -> 0 | I49: =IF(I$8=CEILING(I$8,'CAPEX (Tecnología)'!$M$211),CapexSAECorredoresRespuestos1*I$4*'CAPEX (Tecnología)'!$N$211,0) -> 0 | J49: =IF(J$8=CEILING(J$8,'CAPEX (Tecnología)'!$M$211),CapexSAECorredoresRespuestos1*J$4*'CAPEX (Tecnología)'!$N$211,0) -> 0 | K49: =IF(K$8=CEILING(K$8,'CAPEX (Tecnología)'!$M$211),CapexSAECorredoresRespuestos1*K$4*'CAPEX (Tecnología)'!$N$211,0) -> 0 | L49: =IF(L$8=CEILING(L$8,'CAPEX (Tecnología)'!$M$211),CapexSAECorredoresRespuestos1*L$4*'CAPEX (Tecnología)'!$N$211,0) -> 0 | M49: =IF(M$8=CEILING(M$8,'CAPEX (Tecnología)'!$M$211),CapexSAECorredoresRespuestos1*M$4*'CAPEX (Tecnología)'!$N$211,0) -> 0 | N49: =IF(N$8=CEILING(N$8,'CAPEX (Tecnología)'!$M$211),CapexSAECorredoresRespuestos1*N$4*'CAPEX (Tecnología)'!$N$211,0) -> 0 | O49: =IF(O$8=CEILING(O$8,'CAPEX (Tecnología)'!$M$211),CapexSAECorredoresRespuestos1*O$4*'CAPEX (Tecnología)'!$N$211,0) -> 56484.21841
B50: Servicios profesionales equipos en campo | C50: ='CAPEX (Tecnología)'!M215 -> 10 | D50: 1 | E50: 204873.9 | F50: =IF(F$8=CEILING(F$8,'CAPEX (Tecnología)'!$M$215),CapexSAECorredoresSP*F$4*'CAPEX (Tecnología)'!$N$215,0) -> 0 | G50: 0 | H50: =IF(H$8=CEILING(H$8,'CAPEX (Tecnología)'!$M$215),CapexSAECorredoresSP*H$4*'CAPEX (Tecnología)'!$N$215,0) -> 0 | I50: =IF(I$8=CEILING(I$8,'CAPEX (Tecnología)'!$M$215),CapexSAECorredoresSP*I$4*'CAPEX (Tecnología)'!$N$215,0) -> 0 | J50: =IF(J$8=CEILING(J$8,'CAPEX (Tecnología)'!$M$215),CapexSAECorredoresSP*J$4*'CAPEX (Tecnología)'!$N$215,0) -> 0 | K50: =IF(K$8=CEILING(K$8,'CAPEX (Tecnología)'!$M$215),CapexSAECorredoresSP*K$4*'CAPEX (Tecnología)'!$N$215,0) -> 0 | L50: =IF(L$8=CEILING(L$8,'CAPEX (Tecnología)'!$M$215),CapexSAECorredoresSP*L$4*'CAPEX (Tecnología)'!$N$215,0) -> 0 | M50: =IF(M$8=CEILING(M$8,'CAPEX (Tecnología)'!$M$215),CapexSAECorredoresSP*M$4*'CAPEX (Tecnología)'!$N$215,0) -> 0 | N50: =IF(N$8=CEILING(N$8,'CAPEX (Tecnología)'!$M$215),CapexSAECorredoresSP*N$4*'CAPEX (Tecnología)'!$N$215,0) -> 0 | O50: =IF(O$8=CEILING(O$8,'CAPEX (Tecnología)'!$M$215),CapexSAECorredoresSP*O$4*'CAPEX (Tecnología)'!$N$215,0) -> 931989.6038
B51: SAE-COLECTIVOS | F51: =SUM(F52:F54) -> 4384793.393 | G51: 0.2245298093 | H51: 0 | I51: 0 | J51: 0 | K51: 0 | L51: 0 | M51: 0 | N51: 0 | O51: 4984564.87
B52: Equipos 1 | C52: 10 | D52: 2 | F52: ='CAPEX (Tecnología)'!K218*F4 -> 3455478.972 | G52: 0.1769428945 | H52: =IF(H$8=CEILING(H$8,$C$52),$F$52*(H4/$F$4),0) -> 0 | I52: =IF(I$8=CEILING(I$8,$C$52),$F$52*(I4/$F$4),0) -> 0 | J52: 0 | K52: 0 | L52: 0 | M52: 0 | N52: 0 | O52: 3928134.704
B53: Otros (Repuestos) | C53: 10 | D53: 2 | F53: ='CAPEX (Tecnología)'!K224*F4 -> 52355.742 | G53: 0.002680952947 | H53: =IF(H$8=CEILING(H$8,$C$53),$F$53*(H4/$F$4),0) -> 0 | I53: =IF(I$8=CEILING(I$8,$C$53),$F$53*(I4/$F$4),0) -> 0 | J53: 0 | K53: 0 | L53: 0 | M53: 0 | N53: 0 | O53: 59517.19248
B54: Servicios profesionales equipos en campo | C54: 10 | D54: 2 | F54: ='CAPEX (Tecnología)'!K228*F4 -> 876958.6786 | G54: 0.04490596186 | H54: =IF(H$8=CEILING(H$8,$C$54),$F$54*(H4/$F$4),0) -> 0 | I54: =IF(I$8=CEILING(I$8,$C$54),$F$54*(I4/$F$4),0) -> 0 | J54: =IF(J$8=CEILING(J$8,$C$54),$F$54*(J4/$F$4),0) -> 0 | K54: 0 | L54: 0 | M54: 0 | N54: 0 | O54: 996912.9741
B55: SIU-CORREDORES | E55: 1483755.605 | F55: =SUM(F56,F57,F58,F61) -> 0 | G55: 0 | H55: 0 | I55: 0 | J55: 0 | K55: 0 | L55: 0 | M55: 0 | N55: 0 | O55: 1792014.288
B56: Equipos 1 | C56: 10 | D56: 1 | E56: 1145235.983 | F56: =IF(F$8=CEILING(F$8,$C$56),$E$56*(F4/$E$4),0) -> 0 | G56: 0 | H56: 0 | I56: 0 | J56: 0 | K56: 0 | L56: 0 | M56: 0 | N56: 0 | O56: 1340174.917
B57: Equipos 2 | C57: 10 | D57: 1 | E57: 0 | F57: =IF(F$8=CEILING(F$8,$C$57),$E$57*(F4/$E$4),0) -> 0 | G57: 0 | H57: 0 | I57: 0 | J57: 0 | K57: 0 | L57: 0 | M57: 0 | N57: 0 | O57: 0
B58: Otros (Repuestos) | E58: 52210.62664 | F58: =SUM(F59:F60) -> 0 | G58: 0 | H58: 0 | I58: 0 | J58: 0 | K58: 0 | L58: 0 | M58: 0 | N58: 0 | O58: 70952.25671
B59: Repuestos 1 | C59: ='CAPEX (Tecnología)'!M241 -> 10 | D59: 1 | E59: 52210.62664 | F59: =IF(F$8=CEILING(F$8,'CAPEX (Tecnología)'!$M$241),'CAPEX (Tecnología)'!$K$241*F$4*'CAPEX (Tecnología)'!$N$241,0) -> 0 | G59: 0 | H59: =IF(H$8=CEILING(H$8,'CAPEX (Tecnología)'!$M$241),'CAPEX (Tecnología)'!$K$241*H$4*'CAPEX (Tecnología)'!$N$241,0) -> 0 | I59: =IF(I$8=CEILING(I$8,'CAPEX (Tecnología)'!$M$241),'CAPEX (Tecnología)'!$K$241*I$4*'CAPEX (Tecnología)'!$N$241,0) -> 0 | J59: =IF(J$8=CEILING(J$8,'CAPEX (Tecnología)'!$M$241),'CAPEX (Tecnología)'!$K$241*J$4*'CAPEX (Tecnología)'!$N$241,0) -> 0 | K59: =IF(K$8=CEILING(K$8,'CAPEX (Tecnología)'!$M$241),'CAPEX (Tecnología)'!$K$241*K$4*'CAPEX (Tecnología)'!$N$241,0) -> 0 | L59: =IF(L$8=CEILING(L$8,'CAPEX (Tecnología)'!$M$241),'CAPEX (Tecnología)'!$K$241*L$4*'CAPEX (Tecnología)'!$N$241,0) -> 0 | M59: =IF(M$8=CEILING(M$8,'CAPEX (Tecnología)'!$M$241),'CAPEX (Tecnología)'!$K$241*M$4*'CAPEX (Tecnología)'!$N$241,0) -> 0 | N59: =IF(N$8=CEILING(N$8,'CAPEX (Tecnología)'!$M$241),'CAPEX (Tecnología)'!$K$241*N$4*'CAPEX (Tecnología)'!$N$241,0) -> 0 | O59: =IF(O$8=CEILING(O$8,'CAPEX (Tecnología)'!$M$241),'CAPEX (Tecnología)'!$K$241*O$4*'CAPEX (Tecnología)'!$N$241,0) -> 70952.25671
B60: Repuestos 2 | C60: ='CAPEX (Tecnología)'!M242 -> 10 | D60: 1 | E60: 0 | F60: =IF(F$8=CEILING(F$8,'CAPEX (Tecnología)'!$M$242),'CAPEX (Tecnología)'!$K$242*F$4*'CAPEX (Tecnología)'!$N$242,0) -> 0 | G60: 0 | H60: =IF(H$8=CEILING(H$8,'CAPEX (Tecnología)'!$M$242),'CAPEX (Tecnología)'!$K$242*H$4*'CAPEX (Tecnología)'!$N$242,0) -> 0 | I60: =IF(I$8=CEILING(I$8,'CAPEX (Tecnología)'!$M$242),'CAPEX (Tecnología)'!$K$242*I$4*'CAPEX (Tecnología)'!$N$242,0) -> 0 | J60: =IF(J$8=CEILING(J$8,'CAPEX (Tecnología)'!$M$242),'CAPEX (Tecnología)'!$K$242*J$4*'CAPEX (Tecnología)'!$N$242,0) -> 0 | K60: =IF(K$8=CEILING(K$8,'CAPEX (Tecnología)'!$M$242),'CAPEX (Tecnología)'!$K$242*K$4*'CAPEX (Tecnología)'!$N$242,0) -> 0 | L60: =IF(L$8=CEILING(L$8,'CAPEX (Tecnología)'!$M$242),'CAPEX (Tecnología)'!$K$242*L$4*'CAPEX (Tecnología)'!$N$242,0) -> 0 | M60: =IF(M$8=CEILING(M$8,'CAPEX (Tecnología)'!$M$242),'CAPEX (Tecnología)'!$K$242*M$4*'CAPEX (Tecnología)'!$N$242,0) -> 0 | N60: =IF(N$8=CEILING(N$8,'CAPEX (Tecnología)'!$M$242),'CAPEX (Tecnología)'!$K$242*N$4*'CAPEX (Tecnología)'!$N$242,0) -> 0 | O60: =IF(O$8=CEILING(O$8,'CAPEX (Tecnología)'!$M$242),'CAPEX (Tecnología)'!$K$242*O$4*'CAPEX (Tecnología)'!$N$242,0) -> 0
B61: Servicios profesionales equipos en campo | C61: ='CAPEX (Tecnología)'!M243 -> 10 | D61: 1 | E61: 286308.9957 | F61: =IF(F$8=CEILING(F$8,'CAPEX (Tecnología)'!$M$243),'CAPEX (Tecnología)'!$K$243*F$4*'CAPEX (Tecnología)'!$N$243,0) -> 0 | G61: 0 | H61: =IF(H$8=CEILING(H$8,'CAPEX (Tecnología)'!$M$243),'CAPEX (Tecnología)'!$K$243*H$4*'CAPEX (Tecnología)'!$N$243,0) -> 0 | I61: =IF(I$8=CEILING(I$8,'CAPEX (Tecnología)'!$M$243),'CAPEX (Tecnología)'!$K$243*I$4*'CAPEX (Tecnología)'!$N$243,0) -> 0 | J61: =IF(J$8=CEILING(J$8,'CAPEX (Tecnología)'!$M$243),'CAPEX (Tecnología)'!$K$243*J$4*'CAPEX (Tecnología)'!$N$243,0) -> 0 | K61: =IF(K$8=CEILING(K$8,'CAPEX (Tecnología)'!$M$243),'CAPEX (Tecnología)'!$K$243*K$4*'CAPEX (Tecnología)'!$N$243,0) -> 0 | L61: =IF(L$8=CEILING(L$8,'CAPEX (Tecnología)'!$M$243),'CAPEX (Tecnología)'!$K$243*L$4*'CAPEX (Tecnología)'!$N$243,0) -> 0 | M61: =IF(M$8=CEILING(M$8,'CAPEX (Tecnología)'!$M$243),'CAPEX (Tecnología)'!$K$243*M$4*'CAPEX (Tecnología)'!$N$243,0) -> 0 | N61: =IF(N$8=CEILING(N$8,'CAPEX (Tecnología)'!$M$243),'CAPEX (Tecnología)'!$K$243*N$4*'CAPEX (Tecnología)'!$N$243,0) -> 0 | O61: =IF(O$8=CEILING(O$8,'CAPEX (Tecnología)'!$M$243),'CAPEX (Tecnología)'!$K$243*O$4*'CAPEX (Tecnología)'!$N$243,0) -> 380887.1145
B62: SIU-COLECTIVOS | F62: =SUM(F63:F64,F65,F68) -> 2782981.861 | G62: 0.1425066886 | H62: 0 | I62: 0 | J62: 0 | K62: 0 | L62: 0 | M62: 0 | N62: 0 | O62: 3163650.457
B63: Equipos 1 | C63: 10 | D63: 2 | F63: =SUM('CAPEX (Tecnología)'!K247,'CAPEX (Tecnología)'!K248,'CAPEX (Tecnología)'!K250)*F4 -> 2210364.235 | G63: 0.113184959 | H63: =IF(H$8=CEILING(H$8,$C$63),$F$63*(H4/$F$4),0) -> 0 | I63: =IF(I$8=CEILING(I$8,$C$63),$F$63*(I4/$F$4),0) -> 0 | J63: 0 | K63: 0 | L63: 0 | M63: 0 | N63: 0 | O63: =IF(O$8=CEILING(O$8,$C$63),$F$63*(O4/$F$4),0) -> 2512707.654
B64: Equipos 2 | C64: 10 | D64: 2 | F64: =SUM(CapexTVColectivos)*F4 -> 0 | G64: 0 | H64: =IF(H$8=CEILING(H$8,$C$64),$F$64*(H4/$F$4),0) -> 0 | I64: =IF(I$8=CEILING(I$8,$C$64),$F$64*(I4/$F$4),0) -> 0 | J64: 0 | K64: 0 | L64: 0 | M64: 0 | N64: 0 | O64: 0
B65: Otros (Repuestos) | F65: =SUM(F66:F67) -> 56861.952 | G65: 0.002911700073 | H65: 0 | I65: 0 | J65: 0 | K65: 0 | L65: 0 | M65: 0 | N65: 0 | O65: 64639.78186
B66: Repuestos 1 | C66: 10 | D66: 2 | F66: ='CAPEX (Tecnología)'!K252 -> 56861.952 | G66: 0.002911700073 | H66: =IF(H$8=CEILING(H$8,$C$66),$F$66*(H4/$F$4),0) -> 0 | I66: =IF(I$8=CEILING(I$8,$C$66),$F$66*(I4/$F$4),0) -> 0 | J66: 0 | K66: 0 | L66: 0 | M66: 0 | N66: 0 | O66: 64639.78186
B67: Repuestos 2 | C67: 10 | D67: 2 | F67: ='CAPEX (Tecnología)'!K253 -> 0 | G67: 0 | H67: =IF(H$8=CEILING(H$8,$C$67),$F$67*(H4/$F$4),0) -> 0 | I67: =IF(I$8=CEILING(I$8,$C$67),$F$67*(I4/$F$4),0) -> 0 | J67: 0 | K67: 0 | L67: 0 | M67: 0 | N67: 0 | O67: 0
B68: Servicios profesionales equipos en campo | C68: 10 | D68: 2 | F68: ='CAPEX (Tecnología)'!K254 -> 515755.674 | G68: 0.02641002956 | H68: =IF(H$8=CEILING(H$8,$C$68),$F$68*(H4/$F$4),0) -> 0 | I68: =IF(I$8=CEILING(I$8,$C$68),$F$68*(I4/$F$4),0) -> 0 | J68: 0 | K68: 0 | L68: 0 | M68: 0 | N68: 0 | O68: 586303.0214
B69: Capex (Personal) | C69: 10 | E69: =CapexAdministrativo*E4 -> 142546.3193 | F69: =IF(F8=CEILING(F8,$C$69),CapexAdministrativo*F4,0) -> 0 | H69: 0 | I69: 0 | J69: 0 | K69: 0 | L69: 0 | M69: 0 | N69: 0 | O69: 166810.1636
B70: Depreciaciones | C70: VU | E70: =SUM(E72,E74,E76,E78) -> 4734944.388 | F70: =SUM(F72,F74,F76,F78) -> 6521927.861 | H70: =SUM(H72,H74,H76,H78) -> 6521927.861 | I70: 6521927.861 | J70: 7152234.819 | K70: 4239724.227 | L70: 4239724.227 | M70: 4239724.227 | N70: 4239724.227 | O70: 7320303.128
B71: Capex depreciado a 5 años | C71: 5 | E71: =SUMIFS(E13:E68,$C$13:$C$68,$C$71) -> 14562552.96 | F71: =SUMIFS(F13:F68,$C$13:$C$68,$C$71) -> 0 | H71: 0 | I71: 0 | J71: 3151534.789 | K71: 0 | L71: 0 | M71: 0 | N71: 0 | O71: 3395098.016
B72: Depraciación a 5 años | C72: 5 | E72: =SUM(E71)/$C$72 -> 2912510.592 | F72: =SUM($E71:F71)/$C$72 -> 2912510.592 | H72: =SUM($E71:H71)/$C$72 -> 2912510.592 | I72: =SUM($E71:I71)/$C$72 -> 2912510.592 | J72: =SUM(E71:J71)/$C$72 -> 3542817.55 | K72: =SUM(F71:K71)/$C$72 -> 630306.9578 | L72: =SUM(H71:L71)/$C$72 -> 630306.9578 | M72: =SUM(I71:M71)/$C$72 -> 630306.9578 | N72: =SUM(J71:N71)/$C$72 -> 630306.9578 | O72: =SUM(K71:O71)/$C$72 -> 679019.6032
B73: Capex depreciado a 5 años | C73: 7 | E73: =SUMIFS(E13:E68,$C$13:$C$68,$C$73) -> 0 | F73: =SUMIFS(F13:F68,$C$13:$C$68,$C$73) -> 0 | H73: 0 | I73: 0 | J73: 0 | K73: 0 | L73: 0 | M73: 0 | N73: 0 | O73: 0
B74: Depraciación a 5 años | C74: 7 | E74: =SUM(E73)/$C$73 -> 0 | F74: =SUM(E73:F73)/$C$73 -> 0 | H74: =SUM(E73:H73)/$C$73 -> 0 | I74: =SUM(E73:I73)/$C$73 -> 0 | J74: =SUM(E73:J73)/$C$73 -> 0 | K74: =SUM(E73:K73)/$C$73 -> 0 | L74: =SUM(E73:L73)/$C$73 -> 0 | M74: =SUM(F73:M73)/$C$73 -> 0 | N74: =SUM(H73:N73)/$C$73 -> 0 | O74: =SUM(I73:O73)/$C$73 -> 0
B75: Capex depreciado a 10 años | C75: 10 | E75: =SUMIFS(E13:E68,$C$13:$C$68,$C$75) -> 14997618.38 | F75: 17869834.73 | H75: 0 | I75: 0 | J75: 0 | K75: 0 | L75: 0 | M75: 0 | N75: 0 | O75: 30318662.56
B76: Depreciación a 10 años | C76: 10 | E76: =SUM($E75:E75)/$C$76 -> 1499761.838 | F76: =SUM($E75:F75)/$C$76 -> 3286745.311 | H76: =SUM($E75:H75)/$C$76 -> 3286745.311 | I76: =SUM($E75:I75)/$C$76 -> 3286745.311 | J76: =SUM($E75:J75)/$C$76 -> 3286745.311 | K76: =SUM($E75:K75)/$C$76 -> 3286745.311 | L76: =SUM($E75:L75)/$C$76 -> 3286745.311 | M76: =SUM($E75:M75)/$C$76 -> 3286745.311 | N76: =SUM($E75:N75)/$C$76 -> 3286745.311 | O76: =SUM($E75:O75)/$C$76 -> 6318611.567
B77: Capex depreciado a 15 años | C77: 15 | E77: =SUMIFS(E13:E68,$C$13:$C$68,$C$77) -> 4840079.367 | F77: =SUMIFS(F13:F68,$C$13:$C$68,$C$77) -> 0 | H77: 0 | I77: 0 | J77: 0 | K77: 0 | L77: 0 | M77: 0 | N77: 0 | O77: 0
B78: Depreciación a 15 años | C78: 15 | E78: =SUM(E77)/$C$77 -> 322671.9578 | F78: =SUM($E77:F77)/$C$77 -> 322671.9578 | H78: =SUM($E77:H77)/$C$77 -> 322671.9578 | I78: =SUM($E77:I77)/$C$77 -> 322671.9578 | J78: =SUM($E77:J77)/$C$77 -> 322671.9578 | K78: =SUM($E77:K77)/$C$77 -> 322671.9578 | L78: =SUM($E77:L77)/$C$77 -> 322671.9578 | M78: =SUM($E77:M77)/$C$77 -> 322671.9578 | N78: =SUM($E77:N77)/$C$77 -> 322671.9578 | O78: =SUM($E77:O77)/$C$77 -> 322671.9578
G82: =SUM(G25,G51,G62) -> 1
I96: =H96 -> 0
I97: =H97+I102 -> 0
I98: =H98+I100 -> 0
I99: =H99+I98 -> 0
I100: =H100+I96 -> 0
I101: =H101+I99 -> 0
I102: =H102+I99 -> 0
I103: =H103+I97 -> 0
I105: =H105+I103 -> 0
I106: =H106+I105 -> 0
I107: =H107+I106 -> 0
I108: =H108+I107 -> 0
I109: =H109+I108 -> 0
I117: =H117 -> 0
I118: =H118+I117 -> 0
I119: =H119+I118 -> 0
I120: =H120+I119 -> 0
I121: =H121+I120 -> 0
I122: =H122+I120 -> 0
I123: 0
I124: 0
I125: 0
I126: 0
I127: 0
I128: =H128+I127 -> 0

Sheet Tabla Capex F3 (hidden)
A1: Proyecciones
D2: 0 | E2: 1 | F2: 2 | G2: 3 | H2: 4 | J2: 5 | K2: 6 | L2: 7 | M2: 8 | N2: 9 | O2: 10
A3: SUPUESTOS | B3: Inflación | E3: ='Supuestos y Entradas'!AI5 -> 0.04081 | F3: ='Supuestos y Entradas'!AJ5 -> 0.02941 | G3: ='Supuestos y Entradas'!AK5 -> 0.02043 | H3: ='Supuestos y Entradas'!AL5 -> 0.01782 | J3: ='Supuestos y Entradas'!AM5 -> 0.016 | K3: ='Supuestos y Entradas'!AN5 -> 0.015 | L3: ='Supuestos y Entradas'!AO5 -> 0.015 | M3: ='Supuestos y Entradas'!AP5 -> 0.015 | N3: ='Supuestos y Entradas'!AQ5 -> 0.015 | O3: ='Supuestos y Entradas'!AR5 -> 0.015
B4: Factor Spot de Inflación | E4: =1+E3 -> 1.04081 | F4: =E4*(1+F3) -> 1.071420222 | G4: =F4*(1+G3) -> 1.093309337 | H4: =G4*(1+H3) -> 1.11279211 | J4: =H4*(1+J3) -> 1.130596783 | K4: 1.147555735 | L4: 1.164769071 | M4: 1.182240607 | N4: 1.199974216 | O4: 1.21797383
B5: Demanda (% Crecimiento) | E5: ='Supuestos y Entradas'!AJ13 -> 0.015 | F5: ='Supuestos y Entradas'!AK13 -> 0.015 | G5: ='Supuestos y Entradas'!AL13 -> 0.015 | H5: ='Supuestos y Entradas'!AM13 -> 0.015 | J5: ='Supuestos y Entradas'!AN13 -> 0.015 | K5: ='Supuestos y Entradas'!AO13 -> 0.015 | L5: ='Supuestos y Entradas'!AP13 -> 0.015 | M5: ='Supuestos y Entradas'!AQ13 -> 0.015 | N5: ='Supuestos y Entradas'!AR13 -> 0.015 | O5: ='Supuestos y Entradas'!AS13 -> 0.015
B6: Demanda (No. Pasajeros) | E6: =IF(Fase=1,'Supuestos y Entradas'!AJ14,0)+IF(Fase=2,'Supuestos y Entradas'!AJ15,0)+IF(Fase=3,'Supuestos y Entradas'!AJ16,0) ->  | F6: 251343.5358 | G6: 257819.2225 | H6: 264802.4403 | J6: 272324.7211 | K6: 280420.546 | L6: 289127.6039 | M6: 298487.0775 | N6: 308543.96 | O6: 319347.4064
B7: Ingresos necesarios por pasajero | E7: =IngresoPasajeroF3 -> 0.03670366842 | F7: 0.03670366842 | G7: 0.03670366842 | H7: 0.03670366842 | J7: 0.03670366842 | K7: 0.03670366842 | L7: 0.03670366842 | M7: 0.03670366842 | N7: 0.03670366842 | O7: 0.03670366842
A8: PROYECCIONES | E8: 1 | F8: 2 | G8: 3 | H8: 4 | J8: 5 | K8: 6 | L8: 7 | M8: 8 | N8: 9 | O8: 10
B9: Ingresos Operacionales del sistema | E9: ='Supuestos y Entradas'!AJ16*E7 -> 0 | F9: ='Supuestos y Entradas'!AK16*F7 -> 0 | G9: ='Supuestos y Entradas'!AL16*G7 -> 0 | H9: ='Supuestos y Entradas'!AM16*H7 -> 1117626.703 | J9: ='Supuestos y Entradas'!AN16*J7 -> 1134391.104 | K9: ='Supuestos y Entradas'!AO16*K7 -> 1151406.97 | L9: ='Supuestos y Entradas'!AP16*L7 -> 1168678.075 | M9: ='Supuestos y Entradas'!AQ16*M7 -> 1186208.246 | N9: ='Supuestos y Entradas'!AR16*N7 -> 1204001.37 | O9: ='Supuestos y Entradas'!AS16*O7 -> 1222061.39
B10: Opex (tecnología) | E10: ='PR3 Metro'!E10 -> 0 | F10: ='PR3 Metro'!F10 -> 0 | G10: =(OpexSistemaCentral+OpexSIRCorredores+OpexSAECorredores+OpexSIUCorredores+OpexSIRColectivos+OpexSAEColectivos+OpexSIUColectivos)*MesesPorAño*G4 -> 10260812.25 | H10: =(OpexSistemaCentral+OpexSIRCorredores+OpexSAECorredores+OpexSIUCorredores+OpexSIRColectivos+OpexSAEColectivos+OpexSIUColectivos+OpexSIRMetro+OpexSIRCable)*MesesPorAño*H4 -> 10741501.65 | J10: 10610758.48 | K10: 10769919.86 | L10: 10931468.66 | M10: 11095440.69 | N10: 11261872.3 | O10: 11430800.38
B11: Opex (Personal) | E11: ='PR3 Metro'!E11 -> 0 | F11: ='PR3 Metro'!F11 -> 0 | G11: =OpexAdminitrativo*MesesPorAño*G4 -> 3857618.968 | H11: 3926361.738 | J11: 3989183.526 | K11: 4049021.279 | L11: 4109756.598 | M11: 4171402.947 | N11: 4233973.991 | O11: 4297483.601
B12: Capex (Tecnología) | C12: TR | D12: FASE | E12: ='PR3 Metro'!E12 -> 0 | F12: ='PR3 Metro'!F12 -> 0 | G12: =SUM(G13,G15,G16,G17,G47,G55)+SUM(G25,G51,G62)+SUM(G31,G39) -> 0 | H12: =SUM(H17,H47,H55)+SUM(H25,H51,H62)+SUM(H31,H39) ->  | I12: =H12/$H$12 -> 
B13: Capex Centro de Datos | C13: ='CAPEX (Tecnología)'!$M$5 -> 5 | D13: 3 | E13: ='PR3 Metro'!E13 -> 0 | G13: =IF(G8=CEILING(G8,'CAPEX (Tecnología)'!$M$5),(CapexCentroDatos-CostoSoftware)*'CAPEX (Tecnología)'!$N$5*G4,0) -> 0 | H13: ='PR3 Metro'!H13+#REF! ->  | I13: =H13/$H$12 ->  | J13: ='PR3 Metro'!I13+#REF! ->  | K13: ='PR3 Metro'!J13+#REF! ->  | L13: ='PR3 Metro'!K13+#REF! ->  | M13: ='PR3 Metro'!L13+#REF! ->  | N13: ='PR3 Metro'!M13+#REF! ->  | O13: ='PR3 Metro'!N13+#REF! ->  | Q13: =NPV(WACC.,E13,F13:J13) -> 
B14: Software de Infraestructura y Sistema de Recaudo | E14: ='PR3 Metro'!E14 -> 0 | G14: 0 | H14: ='PR3 Metro'!H14+#REF! ->  | J14: ='PR3 Metro'!I14+#REF! ->  | K14: ='PR3 Metro'!J14+#REF! ->  | L14: ='PR3 Metro'!K14+#REF! ->  | M14: ='PR3 Metro'!L14+#REF! ->  | N14: ='PR3 Metro'!M14+#REF! ->  | O14: ='PR3 Metro'!N14+#REF! -> 
B15: Capex Centro de Control | C15: ='CAPEX (Tecnología)'!$M$64 -> 5 | D15: 3 | E15: ='PR3 Metro'!E15 -> 0 | G15: =IF(G8=CEILING(G8,'CAPEX (Tecnología)'!$M$64),CapexCentroControl*'CAPEX (Tecnología)'!$N$64*G4,0) -> 0 | H15: ='PR3 Metro'!H15+#REF! ->  | J15: ='PR3 Metro'!I15+#REF! ->  | K15: ='PR3 Metro'!J15+#REF! ->  | L15: ='PR3 Metro'!K15+#REF! ->  | M15: ='PR3 Metro'!L15+#REF! ->  | N15: ='PR3 Metro'!M15+#REF! ->  | O15: ='PR3 Metro'!N15+#REF! -> 
B16: Capex Servicios Profesionales CD y CC | C16: ='CAPEX (Tecnología)'!$M$71 -> 5 | D16: 3 | E16: ='PR3 Metro'!E16 -> 0 | G16: =IF(G8=CEILING(G8,'CAPEX (Tecnología)'!$M$71),CapexServiciosProfesionalesCDyCC*'CAPEX (Tecnología)'!$N$71*G4,0) -> 0 | H16: ='PR3 Metro'!H16+#REF! ->  | J16: ='PR3 Metro'!I16+#REF! ->  | K16: ='PR3 Metro'!J16+#REF! ->  | L16: ='PR3 Metro'!K16+#REF! ->  | M16: ='PR3 Metro'!L16+#REF! ->  | N16: ='PR3 Metro'!M16+#REF! ->  | O16: ='PR3 Metro'!N16+#REF! -> 
B17: SIR-CORREDORES | E17: ='PR3 Metro'!E17 -> 0 | G17: =SUM(G18:G20,G21,G24) -> 0 | H17: ='PR3 Metro'!H17+#REF! ->  | J17: ='PR3 Metro'!I17+#REF! ->  | K17: ='PR3 Metro'!J17+#REF! ->  | L17: ='PR3 Metro'!K17+#REF! ->  | M17: ='PR3 Metro'!L17+#REF! ->  | N17: ='PR3 Metro'!M17+#REF! ->  | O17: ='PR3 Metro'!N17+#REF! ->  | Q17: =NPV(WACC.,E17,F17:J17) -> 
B18: Capex Medios de Pago | E18: ='PR3 Metro'!E18 -> 0 | G18: 0 | H18: ='PR3 Metro'!H18+#REF! ->  | J18: ='PR3 Metro'!I18+#REF! ->  | K18: ='PR3 Metro'!J18+#REF! ->  | L18: ='PR3 Metro'!K18+#REF! ->  | M18: ='PR3 Metro'!L18+#REF! ->  | N18: ='PR3 Metro'!M18+#REF! ->  | O18: ='PR3 Metro'!N18+#REF! -> 
B19: Equipos 1 | C19: 10 | D19: 3 | E19: ='PR3 Metro'!E19 -> 0 | G19: =IF(G8=CEILING(G8,$C$19),$E$19*(G4/$E$4),0) -> 0 | H19: ='PR3 Metro'!H19+#REF! ->  | J19: ='PR3 Metro'!I19+#REF! ->  | K19: ='PR3 Metro'!J19+#REF! ->  | L19: ='PR3 Metro'!K19+#REF! ->  | M19: ='PR3 Metro'!L19+#REF! ->  | N19: ='PR3 Metro'!M19+#REF! ->  | O19: ='PR3 Metro'!N19+#REF! -> 
B20: Equipos 2 | C20: 10 | D20: 3 | E20: ='PR3 Metro'!E20 -> 0 | G20: =IF(G$8=CEILING(G$8,$C$20),$E$20*(G4/$E$4),0) -> 0 | H20: ='PR3 Metro'!H20+#REF! ->  | J20: ='PR3 Metro'!I20+#REF! ->  | K20: ='PR3 Metro'!J20+#REF! ->  | L20: ='PR3 Metro'!K20+#REF! ->  | M20: ='PR3 Metro'!L20+#REF! ->  | N20: ='PR3 Metro'!M20+#REF! ->  | O20: ='PR3 Metro'!N20+#REF! -> 
B21: Otros (Repuestos) | E21: ='PR3 Metro'!E21 -> 0 | G21: =SUM(G22:G23) -> 0 | H21: ='PR3 Metro'!H21+#REF! ->  | J21: ='PR3 Metro'!I21+#REF! ->  | K21: ='PR3 Metro'!J21+#REF! ->  | L21: ='PR3 Metro'!K21+#REF! ->  | M21: ='PR3 Metro'!L21+#REF! ->  | N21: ='PR3 Metro'!M21+#REF! ->  | O21: ='PR3 Metro'!N21+#REF! -> 
B22: Repuestos 1 | C22: ='CAPEX (Tecnología)'!$M$109 -> 10 | D22: 3 | E22: ='PR3 Metro'!E22 -> 0 | G22: =IF(G$8=CEILING(G$8,'CAPEX (Tecnología)'!$M$109),CapexSIRCorredoresRepuestos1*G$4*'CAPEX (Tecnología)'!$N$109,0) -> 0 | H22: ='PR3 Metro'!H22+#REF! ->  | J22: ='PR3 Metro'!I22+#REF! ->  | K22: ='PR3 Metro'!J22+#REF! ->  | L22: ='PR3 Metro'!K22+#REF! ->  | M22: ='PR3 Metro'!L22+#REF! ->  | N22: ='PR3 Metro'!M22+#REF! ->  | O22: ='PR3 Metro'!N22+#REF! -> 
B23: Repuestos 2 | C23: ='CAPEX (Tecnología)'!$M$110 -> 10 | D23: 3 | E23: ='PR3 Metro'!E23 -> 0 | G23: =IF(G$8=CEILING(G$8,'CAPEX (Tecnología)'!$M$110),CapexSIRCorredoresRepuestos2*G$4*'CAPEX (Tecnología)'!$N$110,0) -> 0 | H23: ='PR3 Metro'!H23+#REF! ->  | J23: ='PR3 Metro'!I23+#REF! ->  | K23: ='PR3 Metro'!J23+#REF! ->  | L23: ='PR3 Metro'!K23+#REF! ->  | M23: ='PR3 Metro'!L23+#REF! ->  | N23: ='PR3 Metro'!M23+#REF! ->  | O23: ='PR3 Metro'!N23+#REF! -> 
B24: Servicios profesionales equipos en campo | C24: ='CAPEX (Tecnología)'!M113 -> 10 | D24: 3 | E24: ='PR3 Metro'!E24 -> 0 | G24: =IF(G$8=CEILING(G$8,'CAPEX (Tecnología)'!$M$113),CapexSIRCorredoresSP*G$4*'CAPEX (Tecnología)'!$N$113,0) -> 0 | H24: ='PR3 Metro'!H24+#REF! ->  | J24: ='PR3 Metro'!I24+#REF! ->  | K24: ='PR3 Metro'!J24+#REF! ->  | L24: ='PR3 Metro'!K24+#REF! ->  | M24: ='PR3 Metro'!L24+#REF! ->  | N24: ='PR3 Metro'!M24+#REF! ->  | O24: ='PR3 Metro'!N24+#REF! -> 
B25: SIR-COLECTIVOS | F25: ='PR3 Metro'!F25 -> 0 | G25: =SUM(G29:G30,G26:G27) -> 0 | H25: ='PR3 Metro'!H25+#REF! ->  | J25: ='PR3 Metro'!I25+#REF! ->  | K25: ='PR3 Metro'!J25+#REF! ->  | L25: ='PR3 Metro'!K25+#REF! ->  | M25: ='PR3 Metro'!L25+#REF! ->  | N25: ='PR3 Metro'!M25+#REF! ->  | O25: ='PR3 Metro'!N25+#REF! ->  | Q25: =NPV(WACC.,E25,F25:J25) -> 
B26: Capex Medios de Pago | F26: ='PR3 Metro'!F26 -> 0 | G26: 0 | H26: ='PR3 Metro'!H26+#REF! ->  | J26: ='PR3 Metro'!I26+#REF! ->  | K26: ='PR3 Metro'!J26+#REF! ->  | L26: ='PR3 Metro'!K26+#REF! ->  | M26: ='PR3 Metro'!L26+#REF! ->  | N26: ='PR3 Metro'!M26+#REF! ->  | O26: ='PR3 Metro'!N26+#REF! -> 
B27: Equipos 1 | C27: 10 | D27: 2 | F27: ='PR3 Metro'!F27 -> 0 | G27: =IF(G$8=CEILING(G$8,$C$27+1),$F$27*(G4/$E$4),0) -> 0 | H27: ='PR3 Metro'!H27+#REF! ->  | J27: ='PR3 Metro'!I27+#REF! ->  | K27: ='PR3 Metro'!J27+#REF! ->  | L27: ='PR3 Metro'!K27+#REF! ->  | M27: ='PR3 Metro'!L27+#REF! ->  | N27: ='PR3 Metro'!M27+#REF! ->  | O27: ='PR3 Metro'!N27+#REF! -> 
B28: Otros (Repuestos) | F28: ='PR3 Metro'!F28 -> 0 | G28: =SUM(G29) -> 0 | H28: ='PR3 Metro'!H28+#REF! ->  | J28: ='PR3 Metro'!I28+#REF! ->  | K28: ='PR3 Metro'!J28+#REF! ->  | L28: ='PR3 Metro'!K28+#REF! ->  | M28: ='PR3 Metro'!L28+#REF! ->  | N28: ='PR3 Metro'!M28+#REF! ->  | O28: ='PR3 Metro'!N28+#REF! -> 
B29: Repuestos 1 | C29: 10 | D29: 2 | F29: ='PR3 Metro'!F29 -> 0 | G29: =IF(G$8=CEILING(G$8,$C$29+1),$F$29*(G4/$E$4),0) -> 0 | H29: ='PR3 Metro'!H29+#REF! ->  | J29: ='PR3 Metro'!I29+#REF! ->  | K29: ='PR3 Metro'!J29+#REF! ->  | L29: ='PR3 Metro'!K29+#REF! ->  | M29: ='PR3 Metro'!L29+#REF! ->  | N29: ='PR3 Metro'!M29+#REF! ->  | O29: ='PR3 Metro'!N29+#REF! -> 
B30: Servicios profesionales equipos en campo | C30: 10 | D30: 2 | F30: ='PR3 Metro'!F30 -> 0 | G30: =IF(G$8=CEILING(G$8,$C$30+1),$F$30*(G4/$E$4),0) -> 0 | H30: ='PR3 Metro'!H30+#REF! ->  | J30: ='PR3 Metro'!I30+#REF! ->  | K30: ='PR3 Metro'!J30+#REF! ->  | L30: ='PR3 Metro'!K30+#REF! ->  | M30: ='PR3 Metro'!L30+#REF! ->  | N30: ='PR3 Metro'!M30+#REF! ->  | O30: ='PR3 Metro'!N30+#REF! -> 
B31: SIR-METRO | H31: =SUM(H32:H34,H35,H38) -> 2405910.209 | J31: =SUM(J32:J34,J35,J38) -> 0 | K31: 0 | L31: 0 | M31: 0 | N31: 0 | O31: 0 | Q31: =NPV(WACC.,E31,F31:J31) -> 
B32: Capex Medios de Pago | H32: ='CAPEX (Tecnología)'!K147*H4 -> 411725.4246 | J32: 0 | K32: 0 | L32: 0 | M32: 0 | N32: 0 | O32: 0 | V32: |
B33: Equipos 1 | C33: 10 | D33: 3 | H33: =SUM('CAPEX (Tecnología)'!K152,'CAPEX (Tecnología)'!K157,'CAPEX (Tecnología)'!K159,'CAPEX (Tecnología)'!K160,'CAPEX (Tecnología)'!K161,'CAPEX (Tecnología)'!K174)*H4 -> 741596.2251 | J33: =IF(J$8=CEILING(J$8,$C$33+3),$H$33*(J4/$H$4),0) -> 0 | K33: 0 | L33: 0 | M33: 0 | N33: 0 | O33: 0
B34: Equipos 2 | C34: 10 | D34: 3 | H34: =CapexTorniqueteParadasMetro*H4 -> 661016.8742 | J34: =IF(J$8=CEILING(J$8,$C$34+3),$H$34*(J4/$H$4),0) -> 0 | K34: 0 | L34: 0 | M34: 0 | N34: 0 | O34: 0
B35: Otros (Repuestos) | H35: =SUM(H36:H37) -> 72605.62235 | J35: =SUM(J36:J37) -> 0 | K35: 0 | L35: 0 | M35: 0 | N35: 0 | O35: 0
B36: Repuestos 1 | C36: 10 | D36: 3 | H36: ='CAPEX (Tecnología)'!K174*H4 -> 39554.77864 | J36: =IF(J$8=CEILING(J$8,$C$36+3),$H$36*(J4/$H$4),0) -> 0 | K36: 0 | L36: 0 | M36: 0 | N36: 0 | O36: 0
B37: Repuestos 2 | C37: 15 | D37: 3 | H37: ='CAPEX (Tecnología)'!K175*H4 -> 33050.84371 | J37: =IF(J$8=CEILING(J$8,$C$37+3),$H$37*(J4/$H$4),0) -> 0 | K37: 0 | L37: 0 | M37: 0 | N37: 0 | O37: 0
B38: Servicios profesionales equipos en campo | C38: 10 | D38: 3 | H38: ='CAPEX (Tecnología)'!K178*H4 -> 518966.0626 | J38: =IF(J$8=CEILING(J$8,$C$38+3),$H$38*(J4/$H$4),0) -> 0 | K38: 0 | L38: 0 | M38: 0 | N38: 0 | O38: 0
B39: SIR-CABLE | H39: =SUM(H40:H43,H46) -> 422202.8412 | J39: =SUM(J40:J43,J46) -> 0 | K39: 0 | L39: 0 | M39: 0 | N39: 0 | O39: 0 | Q39: =NPV(WACC.,E39,F39:J39) -> 
B40: Capex Medios de Pago | H40: ='CAPEX (Tecnología)'!K181*H4 -> 30899.69082 | J40: 0 | K40: 0 | L40: 0 | M40: 0 | N40: 0 | O40: 0
B41: Equipos 1 | C41: 10 | D41: 3 | H41: =SUM('CAPEX (Tecnología)'!K186,'CAPEX (Tecnología)'!K191:K195)*H4 -> 126658.3718 | J41: =IF(J$8=CEILING(J$8,$C$41+3),$H$41*(J4/$H$4),0) -> 0 | K41: 0 | L41: 0 | M41: 0 | N41: 0 | O41: 0
B42: Equipos 2 | C42: 10 | D42: 3 | H42: =CapexTorniqueteParadasCable*H4 -> 151089.5712 | J42: =IF(J$8=CEILING(J$8,$C$42+3),$H$42*(J4/$H$4),0) -> 0 | K42: 0 | L42: 0 | M42: 0 | N42: 0 | O42: 0
B43: Otros (Repuestos) | H43: =SUM(H44:H45) -> 15623.72407 | J43: =SUM(J44:J45) -> 0 | K43: 0 | L43: 0 | M43: 0 | N43: 0 | O43: 0
B44: Repuestos 1 | C44: 10 | D44: 3 | H44: ='CAPEX (Tecnología)'!K198*H4 -> 8069.245509 | J44: =IF(J$8=CEILING(J$8,$C$44+3),$H$44*(J4/$H$4),0) -> 0 | K44: 0 | L44: 0 | M44: 0 | N44: 0 | O44: 0
B45: Repuestos 2 | C45: 15 | D45: 3 | H45: ='CAPEX (Tecnología)'!K199*H4 -> 7554.478562 | J45: =IF(J$8=CEILING(J$8,$C$45+3),$H$45*(J4/$H$4),0) -> 0 | K45: 0 | L45: 0 | M45: 0 | N45: 0 | O45: 0
B46: Servicios profesionales equipos en campo | C46: 10 | D46: 3 | H46: ='CAPEX (Tecnología)'!K202*H4 -> 97931.48326 | J46: =IF(J$8=CEILING(J$8,$C$46+3),$H$46*(J4/$H$4),0) -> 0 | K46: 0 | L46: 0 | M46: 0 | N46: 0 | O46: 0
B47: SAE-CORREDORES | E47: ='PR3 Metro'!E47 -> 0 | G47: =SUM(G48:G50) -> 0 | H47: ='PR3 Metro'!H47+#REF! ->  | J47: ='PR3 Metro'!I47+#REF! ->  | K47: ='PR3 Metro'!J47+#REF! ->  | L47: ='PR3 Metro'!K47+#REF! ->  | M47: ='PR3 Metro'!L47+#REF! ->  | N47: ='PR3 Metro'!M47+#REF! ->  | O47: ='PR3 Metro'!N47+#REF! ->  | Q47: =NPV(WACC.,E47,F47:J47) -> 
B48: Equipos 1 | C48: ='CAPEX (Tecnología)'!M205 -> 10 | D48: 3 | E48: ='PR3 Metro'!E48 -> 0 | G48: =IF(G$8=CEILING(G$8,'CAPEX (Tecnología)'!$M$205),CapexSAECorredoresEquiposAbordo*G$4*'CAPEX (Tecnología)'!$N$205,0) -> 0 | H48: ='PR3 Metro'!H48+#REF! ->  | J48: ='PR3 Metro'!I48+#REF! ->  | K48: ='PR3 Metro'!J48+#REF! ->  | L48: ='PR3 Metro'!K48+#REF! ->  | M48: ='PR3 Metro'!L48+#REF! ->  | N48: ='PR3 Metro'!M48+#REF! ->  | O48: ='PR3 Metro'!N48+#REF! -> 
B49: Otros (Repuestos) | C49: ='CAPEX (Tecnología)'!M211 -> 10 | D49: 3 | E49: ='PR3 Metro'!E49 -> 0 | G49: =IF(G$8=CEILING(G$8,'CAPEX (Tecnología)'!$M$211),CapexSAECorredoresRespuestos1*G$4*'CAPEX (Tecnología)'!$N$211,0) -> 0 | H49: ='PR3 Metro'!H49+#REF! ->  | J49: ='PR3 Metro'!I49+#REF! ->  | K49: ='PR3 Metro'!J49+#REF! ->  | L49: ='PR3 Metro'!K49+#REF! ->  | M49: ='PR3 Metro'!L49+#REF! ->  | N49: ='PR3 Metro'!M49+#REF! ->  | O49: ='PR3 Metro'!N49+#REF! -> 
B50: Servicios profesionales equipos en campo | C50: ='CAPEX (Tecnología)'!M215 -> 10 | D50: 3 | E50: ='PR3 Metro'!E50 -> 0 | G50: =IF(G$8=CEILING(G$8,'CAPEX (Tecnología)'!$M$215),CapexSAECorredoresSP*G$4*'CAPEX (Tecnología)'!$N$215,0) -> 0 | H50: ='PR3 Metro'!H50+#REF! ->  | J50: ='PR3 Metro'!I50+#REF! ->  | K50: ='PR3 Metro'!J50+#REF! ->  | L50: ='PR3 Metro'!K50+#REF! ->  | M50: ='PR3 Metro'!L50+#REF! ->  | N50: ='PR3 Metro'!M50+#REF! ->  | O50: ='PR3 Metro'!N50+#REF! -> 
B51: SAE-COLECTIVOS | F51: ='PR3 Metro'!F51 -> 0 | G51: =SUM(G52:G54) -> 0 | H51: 0 | J51: 0 | K51: 0 | L51: 0 | M51: 0 | N51: 0 | O51: 0 | Q51: =NPV(WACC.,E51,F51:J51) -> 
B52: Equipos 1 | C52: 10 | D52: 2 | F52: ='PR3 Metro'!F52 -> 0 | G52: =IF(G$8=CEILING(G$8,$C$52),$F$52*(G4/$F$4),0) -> 0 | H52: =IF(H$8=CEILING(H$8,$C$52),$F$52*(H4/$F$4),0) -> 0 | J52: 0 | K52: 0 | L52: 0 | M52: 0 | N52: 0 | O52: 0
B53: Otros (Repuestos) | C53: 10 | D53: 2 | F53: ='PR3 Metro'!F53 -> 0 | G53: =IF(G$8=CEILING(G$8,$C$53),$F$53*(G4/$F$4),0) -> 0 | H53: =IF(H$8=CEILING(H$8,$C$53),$F$53*(H4/$F$4),0) -> 0 | J53: 0 | K53: 0 | L53: 0 | M53: 0 | N53: 0 | O53: 0
B54: Servicios profesionales equipos en campo | C54: 10 | D54: 2 | F54: ='PR3 Metro'!F54 -> 0 | G54: =IF(G$8=CEILING(G$8,$C$54),$F$54*(G4/$F$4),0) -> 0 | H54: =IF(H$8=CEILING(H$8,$C$54),$F$54*(H4/$F$4),0) -> 0 | J54: =IF(J$8=CEILING(J$8,$C$54),$F$54*(J4/$F$4),0) -> 0 | K54: 0 | L54: 0 | M54: 0 | N54: 0 | O54: 0
B55: SIU-CORREDORES | E55: ='PR3 Metro'!E55 -> 0 | G55: =SUM(G56,G57,G58,G61) -> 0 | H55: ='PR3 Metro'!H55+#REF! ->  | J55: ='PR3 Metro'!I55+#REF! ->  | K55: ='PR3 Metro'!J55+#REF! ->  | L55: ='PR3 Metro'!K55+#REF! ->  | M55: ='PR3 Metro'!L55+#REF! ->  | N55: ='PR3 Metro'!M55+#REF! ->  | O55: ='PR3 Metro'!N55+#REF! ->  | Q55: =NPV(WACC.,E55,F55:J55) -> 
B56: Equipos 1 | C56: 10 | D56: 3 | E56: ='PR3 Metro'!E56 -> 0 | G56: =IF(G$8=CEILING(G$8,$C$56),$E$56*(G4/$E$4),0) -> 0 | H56: ='PR3 Metro'!H56+#REF! ->  | J56: ='PR3 Metro'!I56+#REF! ->  | K56: ='PR3 Metro'!J56+#REF! ->  | L56: ='PR3 Metro'!K56+#REF! ->  | M56: ='PR3 Metro'!L56+#REF! ->  | N56: ='PR3 Metro'!M56+#REF! ->  | O56: ='PR3 Metro'!N56+#REF! -> 
B57: Equipos 2 | C57: 10 | D57: 1 | E57: ='PR3 Metro'!E57 -> 0 | G57: =IF(G$8=CEILING(G$8,$C$57),$E$57*(G4/$E$4),0) -> 0 | H57: ='PR3 Metro'!H57+#REF! ->  | J57: ='PR3 Metro'!I57+#REF! ->  | K57: ='PR3 Metro'!J57+#REF! ->  | L57: ='PR3 Metro'!K57+#REF! ->  | M57: ='PR3 Metro'!L57+#REF! ->  | N57: ='PR3 Metro'!M57+#REF! ->  | O57: ='PR3 Metro'!N57+#REF! -> 
B58: Otros (Repuestos) | E58: ='PR3 Metro'!E58 -> 0 | G58: =SUM(G59:G60) -> 0 | H58: ='PR3 Metro'!H58+#REF! ->  | J58: ='PR3 Metro'!I58+#REF! ->  | K58: ='PR3 Metro'!J58+#REF! ->  | L58: ='PR3 Metro'!K58+#REF! ->  | M58: ='PR3 Metro'!L58+#REF! ->  | N58: ='PR3 Metro'!M58+#REF! ->  | O58: ='PR3 Metro'!N58+#REF! -> 
B59: Repuestos 1 | C59: ='CAPEX (Tecnología)'!M241 -> 10 | D59: 3 | E59: ='PR3 Metro'!E59 -> 0 | G59: =IF(G$8=CEILING(G$8,'CAPEX (Tecnología)'!$M$241),'CAPEX (Tecnología)'!$K$241*G$4*'CAPEX (Tecnología)'!$N$241,0) -> 0 | H59: ='PR3 Metro'!H59+#REF! ->  | J59: ='PR3 Metro'!I59+#REF! ->  | K59: ='PR3 Metro'!J59+#REF! ->  | L59: ='PR3 Metro'!K59+#REF! ->  | M59: ='PR3 Metro'!L59+#REF! ->  | N59: ='PR3 Metro'!M59+#REF! ->  | O59: ='PR3 Metro'!N59+#REF! -> 
B60: Repuestos 2 | C60: ='CAPEX (Tecnología)'!M242 -> 10 | D60: 1 | E60: ='PR3 Metro'!E60 -> 0 | G60: =IF(G$8=CEILING(G$8,'CAPEX (Tecnología)'!$M$242),'CAPEX (Tecnología)'!$K$242*G$4*'CAPEX (Tecnología)'!$N$242,0) -> 0 | H60: ='PR3 Metro'!H60+#REF! ->  | J60: ='PR3 Metro'!I60+#REF! ->  | K60: ='PR3 Metro'!J60+#REF! ->  | L60: ='PR3 Metro'!K60+#REF! ->  | M60: ='PR3 Metro'!L60+#REF! ->  | N60: ='PR3 Metro'!M60+#REF! ->  | O60: ='PR3 Metro'!N60+#REF! -> 
B61: Servicios profesionales equipos en campo | C61: ='CAPEX (Tecnología)'!M243 -> 10 | D61: 3 | E61: ='PR3 Metro'!E61 -> 0 | G61: =IF(G$8=CEILING(G$8,'CAPEX (Tecnología)'!$M$243),'CAPEX (Tecnología)'!$K$243*G$4*'CAPEX (Tecnología)'!$N$243,0) -> 0 | H61: ='PR3 Metro'!H61+#REF! ->  | J61: ='PR3 Metro'!I61+#REF! ->  | K61: ='PR3 Metro'!J61+#REF! ->  | L61: ='PR3 Metro'!K61+#REF! ->  | M61: ='PR3 Metro'!L61+#REF! ->  | N61: ='PR3 Metro'!M61+#REF! ->  | O61: ='PR3 Metro'!N61+#REF! -> 
B62: SIU-COLECTIVOS | F62: ='PR3 Metro'!F62 -> 0 | G62: =SUM(G63:G64,G65,G68) -> 0 | H62: 0 | J62: 0 | K62: 0 | L62: 0 | M62: 0 | N62: 0 | O62: 0 | Q62: =NPV(WACC.,E62,F62:J62) -> 
B63: Equipos 1 | C63: 10 | D63: 2 | F63: ='PR3 Metro'!F63 -> 0 | G63: =IF(G$8=CEILING(G$8,$C$63),$F$63*(G4/$F$4),0) -> 0 | H63: =IF(H$8=CEILING(H$8,$C$63),$F$63*(H4/$F$4),0) -> 0 | J63: 0 | K63: 0 | L63: 0 | M63: 0 | N63: 0 | O63: =IF(O$8=CEILING(O$8,$C$63),$F$63*(O4/$F$4),0) -> 0
B64: Equipos 2 | C64: 10 | D64: 2 | F64: ='PR3 Metro'!F64 -> 0 | G64: =IF(G$8=CEILING(G$8,$C$64),$F$64*(G4/$F$4),0) -> 0 | H64: =IF(H$8=CEILING(H$8,$C$64),$F$64*(H4/$F$4),0) -> 0 | J64: 0 | K64: 0 | L64: 0 | M64: 0 | N64: 0 | O64: 0
B65: Otros (Repuestos) | F65: ='PR3 Metro'!F65 -> 0 | G65: =SUM(G66:G67) -> 0 | H65: 0 | J65: 0 | K65: 0 | L65: 0 | M65: 0 | N65: 0 | O65: 0
B66: Repuestos 1 | C66: 10 | D66: 2 | F66: ='PR3 Metro'!F66 -> 0 | G66: =IF(G$8=CEILING(G$8,$C$66),$F$66*(G4/$F$4),0) -> 0 | H66: =IF(H$8=CEILING(H$8,$C$66),$F$66*(H4/$F$4),0) -> 0 | J66: 0 | K66: 0 | L66: 0 | M66: 0 | N66: 0 | O66: 0
B67: Repuestos 2 | C67: 10 | D67: 2 | F67: ='PR3 Metro'!F67 -> 0 | G67: =IF(G$8=CEILING(G$8,$C$67),$F$67*(G4/$F$4),0) -> 0 | H67: =IF(H$8=CEILING(H$8,$C$67),$F$67*(H4/$F$4),0) -> 0 | J67: 0 | K67: 0 | L67: 0 | M67: 0 | N67: 0 | O67: 0
B68: Servicios profesionales equipos en campo | C68: 10 | D68: 2 | F68: ='PR3 Metro'!F68 -> 0 | G68: =IF(G$8=CEILING(G$8,$C$68),$F$68*(G4/$F$4),0) -> 0 | H68: =IF(H$8=CEILING(H$8,$C$68),$F$68*(H4/$F$4),0) -> 0 | J68: 0 | K68: 0 | L68: 0 | M68: 0 | N68: 0 | O68: 0
B69: Capex (Personal) | C69: 10 | E69: ='PR3 Metro'!E69 -> 0 | F69: ='PR3 Metro'!F69 -> 0 | G69: =IF(G8=CEILING(G8,$C$69),CapexAdministrativo*G4,0) -> 0 | H69: 0 | J69: 0 | K69: 0 | L69: 0 | M69: 0 | N69: 0 | O69: 166810.1636 | Q69: =NPV(WACC.,E69,F69:J69) -> 0
B70: Depreciaciones | C70: VU | E70: ='PR3 Metro'!E70 -> 0 | F70: ='PR3 Metro'!F70 -> 0 | G70: =SUM(G72,G74,G76,G78) -> 
B71: Capex depreciado a 5 años | C71: 5 | E71: ='PR3 Metro'!E71 -> 0 | F71: ='PR3 Metro'!F71 -> 0 | G71: =SUMIFS(G13:G68,$C$13:$C$68,$C$71) -> 0
B72: Depraciación a 5 años | C72: 5 | E72: ='PR3 Metro'!E72 -> 0 | F72: ='PR3 Metro'!F72 -> 0 | G72: =SUM($E71:G71)/$C$72 -> 0 | H72: =SUM($E71:H71)/$C$72 ->  | J72: =SUM(E71:J71)/$C$72 ->  | K72: =SUM(F71:K71)/$C$72 ->  | L72: =SUM(G71:L71)/$C$72 ->  | M72: =SUM(H71:M71)/$C$72 ->  | N72: =SUM(J71:N71)/$C$72 ->  | O72: =SUM(K71:O71)/$C$72 -> 
B73: Capex depreciado a 5 años | C73: 7 | E73: ='PR3 Metro'!E73 -> 0 | F73: ='PR3 Metro'!F73 -> 0 | G73: =SUMIFS(G13:G68,$C$13:$C$68,$C$73) -> 0 | H73: 0 | J73: 0 | K73: 0 | L73: 0 | M73: 0 | N73: 0 | O73: 0
B74: Depraciación a 5 años | C74: 7 | E74: ='PR3 Metro'!E74 -> 0 | F74: ='PR3 Metro'!F74 -> 0 | G74: =SUM(E73:G73)/$C$73 -> 0 | H74: =SUM(E73:H73)/$C$73 -> 0 | J74: =SUM(E73:J73)/$C$73 -> 0 | K74: =SUM(E73:K73)/$C$73 -> 0 | L74: =SUM(E73:L73)/$C$73 -> 0 | M74: =SUM(F73:M73)/$C$73 -> 0 | N74: =SUM(G73:N73)/$C$73 -> 0 | O74: =SUM(H73:O73)/$C$73 -> 0
B75: Capex depreciado a 10 años | C75: 10 | E75: ='PR3 Metro'!E75 -> 0 | F75: ='PR3 Metro'!F75 -> 0 | G75: =SUMIFS(G13:G68,$C$13:$C$68,$C$75) -> 0
B76: Depreciación a 10 años | C76: 10 | E76: ='PR3 Metro'!E76 -> 0 | F76: ='PR3 Metro'!F76 -> 0 | G76: =SUM($E75:G75)/$C$76 -> 0 | H76: =SUM($E75:H75)/$C$76 ->  | J76: =SUM($E75:J75)/$C$76 ->  | K76: =SUM($E75:K75)/$C$76 ->  | L76: =SUM($E75:L75)/$C$76 ->  | M76: =SUM($E75:M75)/$C$76 ->  | N76: =SUM($E75:N75)/$C$76 ->  | O76: =SUM($E75:O75)/$C$76 -> 
B77: Capex depreciado a 15 años | C77: 15 | E77: ='PR3 Metro'!#REF! ->  | F77: ='PR3 Metro'!#REF! ->  | G77: =SUMIFS(G13:G68,$C$13:$C$68,$C$77) -> 0 | H77: 40605.32227 | J77: 0 | K77: 0 | L77: 0 | M77: 0 | N77: 0 | O77: 0
B78: Depreciación a 15 años | C78: 15 | E78: ='PR3 Metro'!#REF! ->  | F78: ='PR3 Metro'!#REF! ->  | G78: =SUM($E77:G77)/$C$77 ->  | H78: =SUM($E77:H77)/$C$77 ->  | J78: =SUM($E77:J77)/$C$77 ->  | K78: =SUM($E77:K77)/$C$77 ->  | L78: =SUM($E77:L77)/$C$77 ->  | M78: =SUM($E77:M77)/$C$77 ->  | N78: =SUM($E77:N77)/$C$77 ->  | O78: =SUM($E77:O77)/$C$77 -> 
I81: =SUM(I17,I31,I39) -> 
I82: =I47 -> 
I83: =I55 -> 
I84: =SUM(I81:I83) -> 

Sheet OPEX (Tecnología)
A1: OPEX SITI Q
B2: Item | C2: Cantidad | D2: Precio USD | E2: Total mensual (USD)
B3: TOTAL | D3: TOTAL | E3: =SUM(E4,E25,E60,E81,E107,E123,E127,E131,E136) -> 804395.6544 | F3: =E3/$E$3 -> 1 | K3: 1043849.773 | L3: =(K3/E3)-1 -> 0.2976820142
B4: OPEX CENTRO DE DATOS Y CENTRO DE CONTROL | E4: =SUM(E5,E15) -> 127616.8926 | F4: =E4/$E$3 -> 0.1586494058 | K4: 277498.9638 | L4: =(K4/E4)-1 -> 1.174468898
B5: Centro de datos | E5: =SUM(E6,E7,E14) -> 124588.0891 | F5: 0.1548840902 | K5: 274704.6253 | L5: 1.204902791
B6: Energía (kWh) | C6: =HorasAlDia*DiasOperacionAlMes*TotalConsumoEnergia -> 26944.13477 | D6: =(15*0.078+9*0.062)/24 -> 0.072 | E6: =D6*C6 -> 1939.977703 | F6: 0.002411720765 | K6: 1745.979933 | L6: -0.1
B7: Mantenimiento | E7: =SUM(E8:E13) -> 121264.1114 | F7: 0.1507518231 | K7: 271574.6454 | L7: 1.239530247
B8: Servidores | C8: =MantenimientoTIC/MesesPorAño -> 0.005 | D8: =CostoServidores -> 68396.16 | E8: =D8*C8 -> 341.9808 | F8: 0.0004251400391 | K8: 341.9808 | L8: 0
B9: Equipos de almacenamiento | C9: =MantenimientoTIC/MesesPorAño -> 0.005 | D9: =CostoEquiposAlmacenamiento -> 50764.392 | E9: 253.82196 | F9: 0.0003155436738 | K9: 253.82196 | L9: 0
B10: Equipos de comunicación | C10: =MantenimientoTIC/MesesPorAño -> 0.005 | D10: =CostoRedesyComunicaciones -> 23096.64 | E10: 115.4832 | F10: 0.0001435651714 | K10: 115.4832 | L10: 0
B11: Infraestructura y Acondiciomaniento | C11: =MantenimientoInfraestructura/MesesPorAño -> 0.004166666667 | D11: =CostoInfraestructuraAcondicionamiento -> 1119046.104 | E11: 4662.692099 | F11: 0.005796515774 | K11: 4662.692099 | L11: 0
B12: Software | C12: =MantenimientoSoftwareDC/MesesPorAño -> 0.01833333333 | D12: =CostoSoftware -> 6321280 | E12: 115890.1333 | F12: 0.1440710584 | K12: 266200.6673 | L12: 1.297008897
B13: Costo subscripción SW Atención a usuarios | C13: =2*0 -> 0 | D13: =17005 -> 17005 | E13: 0 | F13: 0 | K13: 0
B14: Comunicaciones | C14: =NumCentrosControlCorredores+NumCentrosControlColectivos -> 1 | D14: =PlanDatosCentroDatos -> 1384 | E14: =C14*D14 -> 1384 | F14: 0.001720546341 | K14: 1384 | L14: 0
B15: Centro de Control | E15: =SUM(E18,E17,E16) -> 3028.80348 | F15: 0.003765315568 | K15: 2794.33848 | L15: -0.07741175733
B16: Comunicaciones | C16: =NumCentrosControlCorredores+NumCentrosControlColectivos -> 1 | D16: =PlanDatosOtros -> 52 | E16: =D16*C16 -> 52 | F16: 6.464480472e-05 | H16: =PorcRecRedExternaCorredores -> 0.3 | K16: 52 | L16: 0
B17: Arriendo oficinas Centro de Control | C17: =NumCentrosControlCorredores+NumCentrosControlColectivos -> 1 | D17: =ArriendoCentroControl -> 2422 | E17: =D17*C17 -> 2422 | F17: 0.003010956097 | K17: 2422 | L17: 0
B18: Mantenimiento | E18: =SUM(E19:E24) -> 554.80348 | F18: 0.0006897146659 | K18: 320.33848 | L18: -0.4226091012
B19: Modem | C19: =MantenimientoTIC/MesesPorAño -> 0.005 | D19: =CapexModemCC -> 36.456 | E19: =D19*C19 -> 0.18228 | F19: 2.266049039e-07 | K19: 0.18228 | L19: 0
B20: Switch | C20: =MantenimientoTIC/MesesPorAño -> 0.005 | D20: =CapexSwitchCC -> 470.4 | E20: 2.352 | F20: 2.923934244e-06 | K20: 2.352 | L20: 0
B21: Computador | C21: =MantenimientoTIC/MesesPorAño -> 0.005 | D21: =CapexComputadorCC -> 90552 | E21: 452.76 | F21: 0.0005628573421 | K21: 258.72 | L21: -0.4285714286
B22: Mesa | C22: =MantenimientoInfraestructura/MesesPorAño -> 0.004166666667 | D22: =CapexMesaCC -> 13582.8 | E22: 56.595 | F22: 7.035716776e-05 | K22: 32.34 | L22: -0.4285714286
B23: Silla | C23: =MantenimientoInfraestructura/MesesPorAño -> 0.004166666667 | D23: =CapexSillaCC -> 9055.2 | E23: 37.73 | F23: 4.69047785e-05 | K23: 21.56 | L23: -0.4285714286
B24: UPS | C24: =MantenimientoInfraestructura/MesesPorAño -> 0.004166666667 | D24: =CapexUPSCC -> 1244.208 | E24: 5.1842 | F24: 6.444838397e-06 | K24: 5.1842 | L24: 0
B25: OPEX EQUIPOS EN CAMPO - SIR - CORREDORES | E25: =SUM(E26,E30,E33,E43,E51,E53) -> 228637.6748 | F25: 0.2842353431 | K25: 265176.0616 | L25: =(K25/E25)-1 -> 0.159809125
B26: Buses Alimentadores | E26: =SUM(E27:E28) -> 21303.4752 | F26: 0.02648382681 | K26: 20683.7232 | L26: -0.02909159159
B27: Mantenimiento Cámaras Estereoscópicas | C27: =MantenimientoEquiposCampoyAbordo/MesesPorAño -> 0.006666666667 | D27: =CapexCamaraEstereosAlimentadores -> 2536984.8 | E27: =D27*C27*TRMUSDaUSD -> 16913.232 | F27: 0.02102601115 | K27: 13615.336 | L27: -0.1949891068
B28: Mantenimiento Validador | C28: =MantenimientoEquiposCampoyAbordo/MesesPorAño -> 0.006666666667 | D28: =CapexValidadorAlimentadores -> 658536.48 | E28: =D28*C28*TRMUSDaUSD -> 4390.2432 | F28: 0.005457815661 | K28: 7068.3872 | L28: 0.6100217865
B29: Mantenimiento Máquinas de Inspección | C29: =MantenimientoEquiposCampoyAbordo/MesesPorAño -> 0.006666666667 | D29: ='CAPEX (Tecnología)'!K80 -> 0 | E29: =D29*C29*TRMUSDaUSD -> 0 | F29: =E29/$E$3 -> 0 | K29: 0
B30: Puntos de recarga externa | E30: =SUM(E31:E32) -> 85659 | F30: 0.1064886409 | K30: 121607.208 | L30: 0.4196664449
B31: Red de Recarga Externa (inc. Comunicaciones) | C31: =ComisionRedExterna -> 0.03 | D31: =RecaudoDiarioCorredoresUF1*DiasOperacionAlMes*PorcRecRedExternaCorredores -> 2816100 | E31: =D31*C31 -> 84483 | F31: 0.1050266738 | K31: 118079.208 | L31: 0.3976682646
B32: Mantenimiento puntos de recarga externa | C32: =MantenimientoEquiposCampoyAbordo/MesesPorAño -> 0.006666666667 | D32: =CapexDispoRecargaCorredores -> 176400 | E32: =D32*C32 -> 1176 | F32: 0.001461967122 | K32: 3528 | L32: 2
B33: Puntos de personalización | E33: =SUM(E34,E42) -> 66.0168 | F33: 8.207006047e-05 | K33: 132.0336 | L33: 1
B34: Mantenimiento | E34: =SUM(E35:E41) -> 66.0168 | F34: 8.207006047e-05 | K34: 132.0336 | L34: 1
B35: Silla | C35: =MantenimientoInfraestructura/MesesPorAño -> 0.004166666667 | D35: =CapexSillaPPCorredores -> 240 | E35: =D35*C35 -> 1 | F35: 1.243169322e-06 | K35: 2 | L35: 1
B36: Escritorio | C36: =MantenimientoInfraestructura/MesesPorAño -> 0.004166666667 | D36: =CapexEscritorioPPCorredores -> 480 | E36: =D36*C36 -> 2 | F36: 2.486338643e-06 | K36: 4 | L36: 1
B37: Computador | C37: =MantenimientoTIC/MesesPorAño -> 0.005 | D37: =CapexComputadorPPCorredores -> 6300 | E37: 31.5 | F37: 3.915983363e-05 | K37: 63 | L37: 1
B38: Impresora de tarjetas | C38: =MantenimientoEquiposCampoyAbordo/MesesPorAño -> 0.006666666667 | D38: =CapexImpresoraPPCorredores -> 4092.48 | E38: 27.2832 | F38: 3.391763724e-05 | K38: 54.5664 | L38: 1
B39: Lector de tarjetas | C39: =MantenimientoEquiposCampoyAbordo/MesesPorAño -> 0.006666666667 | D39: =CapexLectorTarjetasPPCorredores -> 423.36 | E39: 2.8224 | F39: 3.508721093e-06 | K39: 5.6448 | L39: 1
B40: Dispositivo de recarga | C40: =MantenimientoEquiposCampoyAbordo/MesesPorAño -> 0.006666666667 | D40: =CapexDispositivoRecargaPPCorredores -> 0 | E40: 0 | F40: 0 | K40: 0
B41: Cámara web | C41: =MantenimientoEquiposCampoyAbordo/MesesPorAño -> 0.006666666667 | D41: =CapexCamaraWebPPCorredores -> 211.68 | E41: 1.4112 | F41: 1.754360547e-06 | K41: 2.8224 | L41: 1
B42: Costos de alquiler de fibra óptica | C42: =NumModulosPersonalizacionCorredores*0 -> 0 | D42: =CostoAlquilerFibraPunto -> 15 | E42: =C42*D42 -> 0 | F42: 0 | H42: =18634580/52 -> 358357.3077 | K42: 0
B43: Paradas | E43: =SUM(E44:E50) -> 74616.15133 | F43: 0.09276051023 | H43: =28413467/52 -> 546412.8269 | K43: 68664.252 | L43: -0.07976690337
B44: Máquinas VRM | C44: =MantenimientoEquiposCampoyAbordo/MesesPorAño -> 0.006666666667 | D44: =CapexVRMCorredores -> 5304348 | E44: =D44*C44 -> 35362.32 | F44: 0.04396135137 | H44: =27885925/52 -> 536267.7885 | K44: 25472.16 | L44: -0.2796807449
B45: Torniquetes dicapacitados | C45: =MantenimientoEquiposCampoyAbordo/MesesPorAño -> 0.006666666667 | D45: =CapexTorniqueteDiscaParadasCorredores -> 917561.4 | E45: 6117.076 | F45: 0.007604561221 | H45: =25390231/52 -> 488273.6731 | K45: 6792.996 | L45: 0.1104972376
B46: Torniquetes + Validador | C46: =MantenimientoEquiposCampoyAbordo/MesesPorAño -> 0.006666666667 | D46: =CapexTorniqueteParadasCorredores -> 4180744.7 | E46: 27871.63133 | F46: 0.03464915702 | K46: 31454.588 | L46: 0.1285520974
B47: Máquina CIM | C47: =MantenimientoEquiposCampoyAbordo/MesesPorAño -> 0.006666666667 | D47: =CapexMaquinaCIMCorredores -> 0 | E47: 0 | F47: 0 | K47: 0
B48: Handhelds de recarga e Inspeccion | C48: =MantenimientoEquiposCampoyAbordo/MesesPorAño -> 0.006666666667 | D48: =CapexHHParadasCorredores -> 112896 | E48: 752.64 | F48: 0.0009356589582 | K48: 87.024 | L48: -0.884375
B49: Costos de alquiler de fibra óptica | C49: =NumParadaCorredoresUF1 -> 143 | D49: =CostoAlquilerFibraPunto -> 15 | E49: 2145 | F49: 0.002666598195 | K49: 2490 | L49: 0.1608391608
B50: Camaras de conteo | C50: =MantenimientoEquiposCampoyAbordo/MesesPorAño -> 0.006666666667 | D50: =CapexCamarasParadasCorredores -> 355122.6 | E50: =D50*C50 -> 2367.484 | F50: 0.002943183478 | K50: 2367.484 | L50: 0
B51: Costos de distribución de tarjetas en red de recarga externa | E51: =E52 -> 0 | F51: 0 | K51: 0
B52: Costos de distribución | C52: ='Red de recarga externa'!D33 -> 0 | D52: =PuntosRedRecargaExternaCorredores -> 500 | E52: =D52*C52 -> 0 | F52: 0 | K52: 0
B53: Transporte de valores | E53: =SUM(E54:E59) -> 46993.0315 | F53: 0.05842029509 | K53: 54088.8448 | L53: 0.1509971388
B54: Costo de conteo por mes | C54: =CostoConteo -> 0.0008 | D54: =RecaudoDiarioCorredoresUF1*DiasOperacionAlMes -> 9387000 | E54: =D54*C54 -> 7509.6 | F54: 0.009335704338 | H54: 8617.35 | I54: =E54-H54 -> -1107.75 | K54: 7871.9472 | L54: 0.04825119847
B55: Costo total de recolección por mes | C55: =NumParadaCorredoresUF1*RecoleccionesDía*DíasAlMesRecoleccion -> 3861 | D55: =CostoRecoleccio -> 6 | E55: =D55*C55 -> 23166 | F55: 0.0287992605 | H55: 26892 | I55: -3726 | K55: 26892 | L55: 0.1608391608
B56: Costo total de preparación por mes | C56: =(NumMaqVRMCorredoresUF1+NumModulosPersonalizacionCorredores)*PreparacionesDía*DíasAlMesRecoleccion -> 8017.65 | D56: =CostoPreparación -> 0.31 | E56: =C56*D56 -> 2485.4715 | F56: 0.003089861919 | H56: 2816.505 | I56: -331.0335 | K56: 2956.284 | L56: 0.1894258293
B57: Costo total de turros por mes | C57: =(NumMaqVRMCorredoresUF1+NumModulosPersonalizacionCorredores)*TurrosPuntoDía*DíasAlMesRecoleccion -> 240529.5 | D57: =CostoTurro -> 0.02 | E57: =D57*C57 -> 4810.59 | F57: 0.005980377907 | H57: 5451.3 | I57: -640.71 | K57: 5721.84 | L57: 0.1894258293
B58: Costo total de cambio por mes | C58: =CostoMensualDeCambio -> 0.0004 | D58: =(RecaudoDiarioCorredoresUF1)*DíasAlMesRecoleccion -> 8448300 | E58: =D58*C58 -> 3379.32 | F58: 0.004201066952 | H58: 3877.8075 | I58: -498.4875 | K58: 3935.9736 | L58: 0.1647235539
B59: Costo total de insumos por mes | C59: =NumMaqVRMCorredoresUF1+NumModulosPersonalizacionCorredores -> 296.95 | D59: =CostoInsumosPuntoMes -> 19 | E59: =C59*D59 -> 5642.05 | F59: 0.007014023471 | H59: 6393.5 | I59: -751.45 | K59: 6710.8 | L59: 0.1894258293
B60: OPEX EQUIPOS EN CAMPO - SIR - COLECTIVOS | E60: =SUM(E61,E66,E69,E79) -> 397458.4894 | F60: =E60/$E$3 -> 0.4941082006 | K60: 476053.1924 | L60: 0.1977431734
B61: Buses Colectivos | E61: =SUM(E62:E64) -> 39092.592 | F61: 0.04859871108 | K61: 45348.52 | L61: 0.160028478
B62: Mantenimiento torniquete | C62: =MantenimientoEquiposCampoyAbordo/MesesPorAño -> 0.006666666667 | D62: =CapexCamaraEstereosColectivos -> 4175799.6 | E62: =D62*C62*TRMUSDaUSD -> 27838.664 | F62: 0.03460817304 | K62: 25075.064 | L62: -0.09927200529
B63: Mantenimiento Validador | C63: =MantenimientoEquiposCampoyAbordo/MesesPorAño -> 0.006666666667 | D63: =CapexValidadorColectivos -> 1688089.2 | E63: =D63*C63*TRMUSDaUSD -> 11253.928 | F63: 0.01399053804 | K63: 20273.456 | L63: 0.8014559894
B64: Router 3G WIFI | C64: =MantenimientoEquiposCampoyAbordo/MesesPorAño -> 0.006666666667 | D64: =CapexRouter3GWIFIColectivos -> 0 | E64: =D64*C64*TRMUSDaUSD -> 0 | F64: 0 | K64: 0
B65: Mantenimiento máquinas de Inspección | C65: =MantenimientoEquiposCampoyAbordo/MesesPorAño -> 0.006666666667 | D65: ='CAPEX (Tecnología)'!K125 -> 0 | E65: =D65*C65*TRMUSDaUSD -> 0 | F65: 0 | K65: 0
B66: Puntos de recarga externa | E66: =SUM(E67:E68) -> 358165.875 | F66: 0.4452608278 | K66: 430504.65 | L66: =(K66/E66)-1 -> 0.2019700369
B67: Red de Recarga Externa (inc. Comunicaciones) | C67: =ComisionRedExterna -> 0.03 | D67: =RecaudoDiarioColectivos*DiasOperacionAlMes -> 11860462.5 | E67: =D67*C67 -> 355813.875 | F67: 0.4423368936 | K67: 426976.65 | L67: 0.2
B68: Mantenimiento puntos de recarga externa | C68: =MantenimientoEquiposCampoyAbordo/MesesPorAño -> 0.006666666667 | D68: =CapexDispoRecargaColectivos -> 352800 | E68: =D68*C68*Fase2 -> 2352 | F68: 0.002923934244 | K68: 3528 | L68: =(K68/E68)-1 -> 0.5
B69: Puntos de personalización (portatiles) | E69: =SUM(E70,E78) -> 200.0224 | F69: 0.0002486617113 | K69: 200.0224 | L69: 0
B70: Mantenimiento | E70: =SUM(E71:E77) -> 88.0224 | F70: 0.0001094267473 | K70: 88.0224 | L70: 0
B71: Silla | C71: =MantenimientoInfraestructura/MesesPorAño -> 0.004166666667 | D71: =CapexSillaPPColectivos -> 320 | E71: =D71*C71 -> 1.333333333 | F71: 1.657559095e-06 | K71: 1.333333333 | L71: 0
B72: Escritorio | C72: =MantenimientoInfraestructura/MesesPorAño -> 0.004166666667 | D72: =CapexEscritorioPPColectivos -> 640 | E72: =D72*C72 -> 2.666666667 | F72: =E72/$E$3 -> 3.315118191e-06 | K72: 2.666666667 | L72: 0
B73: Computador | C73: =MantenimientoTIC/MesesPorAño -> 0.005 | D73: =CapexComputadorPPColectivos -> 8400 | E73: 42 | F73: 5.221311151e-05 | K73: 42 | L73: 0
B74: Impresora de tarjetas | C74: =MantenimientoEquiposCampoyAbordo/MesesPorAño -> 0.006666666667 | D74: =CapexImpresoraPPColectivos -> 5456.64 | E74: 36.3776 | F74: 4.522351631e-05 | K74: 36.3776 | L74: 0
B75: Lector de tarjetas | C75: =MantenimientoEquiposCampoyAbordo/MesesPorAño -> 0.006666666667 | D75: =CapexLectorTarjetasPPColectivos -> 564.48 | E75: 3.7632 | F75: 4.678294791e-06 | K75: 3.7632 | L75: 0
B76: Dispositivo de recarga | C76: =MantenimientoEquiposCampoyAbordo/MesesPorAño -> 0.006666666667 | D76: =CapexDispositivoRecargaPPColectivos -> 0 | E76: 0 | F76: 0 | K76: 0
B77: Cámara web | C77: =MantenimientoEquiposCampoyAbordo/MesesPorAño -> 0.006666666667 | D77: =CapexCamaraWebPPColectivos -> 282.24 | E77: 1.8816 | F77: 2.339147396e-06 | K77: 1.8816 | L77: 0
B78: Comunicaciones (es portatil) | C78: =NumModulosAtencionColectivos -> 8 | D78: =PlanDatosCampo -> 14 | E78: =C78*D78 -> 112 | F78: 0.000139234964 | K78: 112 | L78: 0
B79: Costos de distribución de tarjetas en red de recarga externa | E79: =E80 -> 0 | F79: 0 | K79: 0
B80: Costos de distribución | C80: ='Red de recarga externa'!D33 -> 0 | D80: =RedRecargaExternaColectivos -> 1000 | E80: =D80*C80 -> 0 | F80: 0 | K80: 0
B81: OPEX EQUIPOS EN CAMPO - SIR - METRO | E81: =SUM(E82,E92,E100) -> 14717.6028 | F81: 0.01829647229 | K81: 0 | L81: -1
B82: Puntos de personalización | E82: =SUM(E83,E91) -> 26.0028 | F82: 3.232588324e-05 | K82: 0 | L82: -1
B83: Mantenimiento | E83: =SUM(E84:E90) -> 11.0028 | F83: 1.367834341e-05 | K83: 0 | L83: -1
B84: Silla | C84: =MantenimientoInfraestructura/MesesPorAño -> 0.004166666667 | D84: =CapexSillaPPMetro -> 40 | E84: =D84*C84 -> 0.1666666667 | F84: 2.071948869e-07 | K84: 0 | L84: -1
B85: Escritorio | C85: =MantenimientoInfraestructura/MesesPorAño -> 0.004166666667 | D85: =CapexEscritorioPPMetro -> 80 | E85: =D85*C85 -> 0.3333333333 | F85: 4.143897739e-07 | K85: 0 | L85: -1
B86: Computador | C86: =MantenimientoTIC/MesesPorAño -> 0.005 | D86: =CapexComputadorPPMetro -> 1050 | E86: 5.25 | F86: 6.526638938e-06 | K86: 0 | L86: -1
B87: Impresora de tarjetas | C87: =MantenimientoEquiposCampoyAbordo/MesesPorAño -> 0.006666666667 | D87: =CapexImpresoraPPMetro -> 682.08 | E87: 4.5472 | F87: 5.652939539e-06 | K87: 0 | L87: -1
B88: Lector de tarjetas | C88: =MantenimientoEquiposCampoyAbordo/MesesPorAño -> 0.006666666667 | D88: =CapexLectorTarjetasPPMetro -> 70.56 | E88: 0.4704 | F88: 5.847868489e-07 | K88: 0 | L88: -1
B89: Dispositivo de recarga | C89: =MantenimientoEquiposCampoyAbordo/MesesPorAño -> 0.006666666667 | D89: =CapexDispositivoRecargaPPMetro -> 0 | E89: 0 | F89: 0 | K89: 0
B90: Cámara web | C90: =MantenimientoEquiposCampoyAbordo/MesesPorAño -> 0.006666666667 | D90: =CapexCamaraWebPPMetro -> 35.28 | E90: 0.2352 | F90: 2.923934244e-07 | K90: 0 | L90: -1
B91: Costos alquiler fibra óptica | C91: =NumModulosAtencionMetro -> 1 | D91: =CostoAlquilerFibraPunto -> 15 | E91: =C91*D91 -> 15 | F91: 1.864753982e-05 | K91: 0 | L91: -1
B92: Paradas | E92: =SUM(E93:E99) -> 9170.65 | F92: 0.01140067074 | K92: 4458.97 | L92: -0.5137781946
B93: Máquinas VRM | C93: =MantenimientoEquiposCampoyAbordo/MesesPorAño -> 0.006666666667 | D93: =CapexVRMMetro -> 619752 | E93: =D93*C93 -> 4131.68 | F93: 0.005136377823 | K93: 1117.2 | L93: -0.729601518
B94: Torniquetes dicapacitados | C94: =MantenimientoEquiposCampoyAbordo/MesesPorAño -> 0.006666666667 | D94: =CapexTorniqueteDiscaParadasMetro -> 76041 | E94: 506.94 | F94: 0.0006302122559 | K94: 0 | L94: -1
B95: Torniquetes + Validador | C95: =MantenimientoEquiposCampoyAbordo/MesesPorAño -> 0.006666666667 | D95: =CapexTorniqueteParadasMetro -> 594016.5 | E95: 3960.11 | F95: 0.004923087262 | K95: 2828.65 | L95: -0.2857142857
B96: Máquina CIM | C96: =MantenimientoEquiposCampoyAbordo/MesesPorAño -> 0.006666666667 | D96: =CapexMaquinaCIMMetro -> 0 | E96: 0 | F96: 0 | K96: 0
B97: Handhelds de recarga e Inspeccion | C97: =MantenimientoEquiposCampoyAbordo/MesesPorAño -> 0.006666666667 | D97: =CapexHHParadasMetro -> 10584 | E97: 70.56 | F97: 8.771802733e-05 | K97: 11.76 | L97: -0.8333333333
B98: Costos alquiler fibra óptica | C98: =NumParadasMetro -> 15 | D98: =CostoAlquilerFibraPunto -> 15 | E98: 225 | F98: 0.0002797130974 | K98: 225 | L98: 0
B99: Camaras de conteo | C99: =MantenimientoEquiposCampoyAbordo/MesesPorAño -> 0.006666666667 | D99: =CapexCamarasParadasMetro -> 41454 | E99: =D99*C99 -> 276.36 | K99: 276.36 | L99: 0
B100: Transporte de valores | E100: =SUM(E101:E106) -> 5520.95 | F100: 0.006863475666 | K100: 3083.55 | L100: -0.4414819913
B101: Costo de conteo por mes | C101: =CostoConteo -> 0.0008 | D101: =RecaudoDiarioMetro*DiasOperacionAlMes -> 1350000 | E101: =D101*C101 -> 1080 | F101: 0.001342622867 | K101: 0 | L101: -1
B102: Costo total de recolección por mes | C102: =NumParadasMetro*RecoleccionesDía*DíasAlMesRecoleccion -> 405 | D102: =CostoRecoleccio -> 6 | E102: =D102*C102 -> 2430 | F102: 0.003020901452 | K102: 2430 | L102: 0
B103: Costo total de preparación por mes | C103: =(NumMaqVRMMetro+NumModulosAtencionMetro)*PreparacionesDía*DíasAlMesRecoleccion -> 945 | D103: =CostoPreparación -> 0.31 | E103: =C103*D103 -> 292.95 | F103: 0.0003641864528 | K103: 125.55 | L103: -0.5714285714
B104: Costo total de turros por mes | C104: =(NumMaqVRMMetro+NumModulosAtencionMetro)*TurrosPuntoDía*DíasAlMesRecoleccion -> 28350 | D104: =CostoTurro -> 0.02 | E104: =D104*C104 -> 567 | F104: 0.0007048770054 | K104: 243 | L104: -0.5714285714
B105: Costo total de cambio por mes | C105: =CostoMensualDeCambio -> 0.0004 | D105: =(RecaudoDiarioMetro)*DíasAlMesRecoleccion -> 1215000 | E105: =D105*C105 -> 486 | F105: 0.0006041802903 | K105: 0 | L105: -1
B106: Costo total de insumos por mes | C106: =NumMaqVRMMetro+NumModulosAtencionMetro -> 35 | D106: =CostoInsumosPuntoMes -> 19 | E106: =C106*D106 -> 665 | F106: 0.0008267075989 | K106: 285 | L106: -0.5714285714
B107: OPEX EQUIPOS EN CAMPO - SIR - CABLE | E107: =SUM(E108,E116) -> 7586.782 | F107: 0.009431654632 | K107: 0 | L107: -1
B108: Paradas | E108: =SUM(E109:E115) -> 2065.832 | F108: 0.002568178966 | K108: 3373.357333 | L108: 0.6329291701
B109: Máquinas VRM | C109: =MantenimientoEquiposCampoyAbordo/MesesPorAño -> 0.006666666667 | D109: =CapexVRMCable -> 109368 | E109: =D109*C109 -> 729.12 | F109: 0.0009064196158 | K109: 968.24 | L109: 0.3279569892
B110: Torniquetes dicapacitados | C110: =MantenimientoEquiposCampoyAbordo/MesesPorAño -> 0.006666666667 | D110: =CapexTorniqueteDiscaParadasCable -> 30416.4 | E110: 202.776 | F110: 0.0002520849024 | K110: 0 | L110: -1
B111: Torniquetes + Validador | C111: =MantenimientoEquiposCampoyAbordo/MesesPorAño -> 0.006666666667 | D111: =CapexTorniqueteParadasCable -> 135775.2 | E111: 905.168 | F111: 0.001125277089 | K111: 1961.197333 | L111: 1.166666667
B112: Máquina CIM | C112: =MantenimientoEquiposCampoyAbordo/MesesPorAño -> 0.006666666667 | D112: =CapexMaquinaCIMCable -> 0 | E112: 0 | F112: 0 | K112: 0
B113: Handhelds de recarga e Inspeccion | C113: =MantenimientoEquiposCampoyAbordo/MesesPorAño -> 0.006666666667 | D113: =CapexHHParadasCable -> 4233.6 | E113: 28.224 | F113: 3.508721093e-05 | K113: 9.408 | L113: -0.6666666667
B114: Costos alquiler fibra óptica | C114: =NumParadasCable -> 6 | D114: =CostoAlquilerFibraPunto -> 15 | E114: 90 | F114: 0.0001118852389 | K114: 195 | L114: 1.166666667
B115: Camaras de conteo | C115: =MantenimientoEquiposCampoyAbordo/MesesPorAño -> 0.006666666667 | D115: =CapexCamarasParadasCable -> 16581.6 | E115: =D115*C115 -> 110.544 | K115: 239.512 | L115: 1.166666667
B116: Transporte de valores | E116: =SUM(E117:E122) -> 5520.95 | F116: 0.006863475666 | K116: 3083.55 | L116: -0.4414819913
B117: Costo de conteo por mes | C117: =CostoConteo -> 0.0008 | D117: =RecaudoDiarioMetro*DiasOperacionAlMes -> 1350000 | E117: =D117*C117 -> 1080 | F117: 0.001342622867 | K117: 0 | L117: -1
B118: Costo total de recolección por mes | C118: =NumParadasMetro*RecoleccionesDía*DíasAlMesRecoleccion -> 405 | D118: =CostoRecoleccio -> 6 | E118: =D118*C118 -> 2430 | F118: 0.003020901452 | K118: 2430 | L118: 0
B119: Costo total de preparación por mes | C119: =(NumMaqVRMMetro+NumModulosAtencionMetro)*PreparacionesDía*DíasAlMesRecoleccion -> 945 | D119: =CostoPreparación -> 0.31 | E119: =C119*D119 -> 292.95 | F119: 0.0003641864528 | K119: 125.55 | L119: -0.5714285714
B120: Costo total de turros por mes | C120: =(NumMaqVRMMetro+NumModulosAtencionMetro)*TurrosPuntoDía*DíasAlMesRecoleccion -> 28350 | D120: =CostoTurro -> 0.02 | E120: =D120*C120 -> 567 | F120: 0.0007048770054 | K120: 243 | L120: -0.5714285714
B121: Costo total de cambio por mes | C121: =CostoMensualDeCambio -> 0.0004 | D121: =(RecaudoDiarioMetro)*DíasAlMesRecoleccion -> 1215000 | E121: =D121*C121 -> 486 | F121: 0.0006041802903 | K121: 0 | L121: -1
B122: Costo total de insumos por mes | C122: =NumMaqVRMMetro+NumModulosAtencionMetro -> 35 | D122: =CostoInsumosPuntoMes -> 19 | E122: =C122*D122 -> 665 | F122: 0.0008267075989 | K122: 285 | L122: -0.5714285714
B123: OPEX EQUIPOS EN CAMPO - SAE - CORREDORES | E123: =E124 -> 6183.408 | F123: =E124/$E$3 -> 0.007687023129 | K123: 5463.304 | L123: -0.1164574616
B124: Equipos a bordo | E124: =SUM(E125:E126) -> 6183.408 | F124: 0.007687023129 | K124: 5463.304 | L124: -0.1164574616
B125: Unidad a bordo y consola | C125: =MantenimientoEquiposCampoyAbordo/MesesPorAño -> 0.006666666667 | D125: =CapexUnidadABordoCorredores -> 927511.2 | E125: =D125*C125 -> 6183.408 | F125: 0 | K125: 5463.304 | L125: -0.1164574616
B126: Sensor de apertura de puertas | C126: =MantenimientoEquiposCampoyAbordo/MesesPorAño -> 0.006666666667 | D126: =CapexSensoresAperturaCorredores -> 0 | E126: =D126*C126 -> 0 | F126: 0.008099785179 | K126: 0
B127: OPEX EQUIPOS EN CAMPO - SAE - COLECTIVOS | E127: =E128 -> 6515.432 | F127: 0.008099785179 | K127: 5868.632 | L127: -0.09927200529
B128: Equipos a bordo | E128: =SUM(E129:E130) -> 6515.432 | F128: 0.008099785179 | K128: 5868.632 | L128: -0.09927200529
B129: Unidad a bordo y consola | C129: =MantenimientoEquiposCampoyAbordo/MesesPorAño -> 0.006666666667 | D129: =CapexUnidadABordoColectivos -> 977314.8 | E129: =D129*C129 -> 6515.432 | F129: 0 | K129: 5868.632 | L129: -0.09927200529
B130: Sensor de apertura de puertas | C130: =MantenimientoEquiposCampoyAbordo/MesesPorAño -> 0.006666666667 | D130: =CapexSensoresAperturaColectivos -> 0 | E130: =D130*C130 -> 0 | F130: 0.009656000449 | K130: 0
B131: OPEX EQUIPOS EN CAMPO - SIU - CORREDORES | E131: =E132 -> 7767.2448 | F131: 0.009656000449 | K131: 6688.4608 | L131: -0.1388888889
B132: Equipos a bordo | E132: =SUM(E133:E135) -> 7767.2448 | F132: 0.008066939651 | K132: 6688.4608 | L132: =(K132/E132)-1 -> -0.1388888889
B133: Panel electrónico de información | C133: =MantenimientoEquiposCampoyAbordo/MesesPorAño -> 0.006666666667 | D133: =CapexSIUCorredoresVMSInternosAbordo -> 973351.68 | E133: =D133*C133 -> 6489.0112 | F133: 0 | K133: 5562.6368 | L133: -0.1427604871
B134: Monitor LCD 22'' | C134: =MantenimientoEquiposCampoyAbordo/MesesPorAño -> 0.006666666667 | D134: =CapexTVCorredores -> 0 | E134: =D134*C134 -> 0 | F134: 0.001589060797 | K134: 0
B135: Parlantes a bordo | C135: =MantenimientoEquiposCampoyAbordo/MesesPorAño -> 0.006666666667 | D135: =CapexParlantesCorredores -> 191735.04 | E135: =D135*C135 -> 1278.2336 | F135: 0.009836114798 | K135: 1125.824 | L135: -0.1192345437
B136: OPEX EQUIPOS EN CAMPO - SIU - COLECTIVOS | E136: =E137 -> 7912.128 | F136: 0.009836114798 | K136: 7101.1584 | L136: -0.1024970273
B137: Equipos a bordo | E137: =SUM(E138:E140) -> 7912.128 | F137: 0.008247054001 | K137: 7101.1584 | L137: -0.1024970273
B138: Panel electrónico de información | C138: =MantenimientoEquiposCampoyAbordo/MesesPorAño -> 0.006666666667 | D138: =CapexSIUColectivosVMSInternosAbordo -> 995084.16 | E138: =D138*C138 -> 6633.8944 | F138: 0 | K138: 5975.3344 | L138: -0.09927200529
B139: Monitor LCD 22'' | C139: =MantenimientoEquiposCampoyAbordo/MesesPorAño -> 0.006666666667 | D139: =CapexTVColectivos -> 0 | E139: =D139*C139 -> 0 | F139: 0.001589060797 | K139: 0
B140: Parlantes a bordo | C140: =MantenimientoEquiposCampoyAbordo/MesesPorAño -> 0.006666666667 | D140: =CapexParlantesCorredores -> 191735.04 | E140: =D140*C140 -> 1278.2336 | F140: 0 | K140: 1125.824 | L140: -0.1192345437

Sheet OPEX (Personal)
A1: OPEX PERSONAL SITI Q
B2: Item | C2: Cantidad | D2: Precio MX | E2: Total mensual (USD)
D3: TOTAL | E3: =SUM(E9,E4) -> 294032.2893 | F3: =E3/$E$3 -> 1 | H3: 84174.602
B4: OPEX Personal | E4: =+SUM(E5:E8) -> 287958.1393 | F4: =E4/$E$3 -> 0.9793418947 | H4: 129759.4909 | I4: =H4-H3 -> 45584.88887
B5: Corredores | E5: =+' Personal '!F4+' Personal '!F31 -> 154114.9733 | F5: 0.5241430242 | H5: 133220.1579 | I5: =H5-H4 -> 3460.667
B6: Colectivos | E6: =+' Personal '!F44 -> 90342.49308
B7: Metro | E7: =+' Personal '!F56 -> 27051.70697
B8: Cable | E8: =+' Personal '!F68 -> 16448.96593
B9: OTROS OPEX ADMINISTRATIVO | E9: =SUM(E10,E14,E18,E20,E24) -> 6074.15 | F9: 0.02065810532
B10: Servicios públicos | E10: =SUM(E11:E13) -> 329 | F10: 0.00111892473
B11: Luz | C11: 1 | D11: 156 | E11: =D11*C11 -> 156 | F11: 0.0005305539755
B12: Agua y aseo | C12: 1 | D12: 104 | E12: =D12*C12 -> 104 | F12: 0.0003537026503
B13: Teléfono | C13: 1 | D13: 69 | E13: =D13*C13 -> 69 | F13: 0.0002346681045
B14: Comunicaciones | E14: =SUM(E15:E17) -> 243.9 | F14: 0.0008295007347
B15: Celular | C15: =NumCelulares -> 1 | D15: 35 | E15: =D15*C15 -> 35 | F15: 0.0001190345458
B16: Radio | C16: =NumRadios -> 17.95 | D16: 2 | E16: =D16*C16 -> 35.9 | F16: 0.0001220954341
B17: Internet | C17: 1 | D17: 173 | E17: =D17*C17 -> 173 | F17: 0.0005883707548
B18: Software | E18: =SUM(E19) -> 173 | F18: 0.0005883707548
B19: Software de contabilidad | C19: =NumLicenciasContabilidad -> 1 | D19: 173 | E19: =D19*C19 -> 173 | F19: 0.0005883707548
B20: Oficina | E20: =SUM(E21:E23) -> 4913.25 | F20: 0.01670989949
B21: Alquiler | C21: 1 | D21: =AreaCentroControl*CostoM2CentroControl -> 3814 | E21: =C21*D21 -> 3814 | F21: 0.0129713645
B22: Mantenimiento | C22: =CostoMantemientoOficinas/MesesPorAño -> 0.008333333333 | D22: =CapexOficinas -> 123630 | E22: =C22*D22 -> 1030.25 | F22: 0.00350386688
B23: Administración | C23: 1 | D23: 69 | E23: =C23*D23 -> 69 | F23: 0.0002346681045
B24: Medios materiales | E24: =SUM(E25:E27) -> 415 | F24: 0.001411409614
B25: Papelería | C25: 1 | D25: 173 | E25: =D25*C25 -> 173 | F25: 0.0005883707548
B26: Cafetería | C26: 1 | D26: 173 | E26: =D26*C26 -> 173 | F26: 0.0005883707548
B27: Implementos de aseo | C27: 1 | D27: 69 | E27: =D27*C27 -> 69 | F27: 0.0002346681045

Sheet Canales de Información (hidden)
D7: Corredores | E7: Colectivos | F7: Cable | G7: Metro
C8: Paneles de información abordo | D8: si | E8: si | F8: no | G8: no
C9: TV abordo | D9: si | E9: si | F9: no | G9: no
C10: Parlantes abordo | D10: si | E10: si | F10: no | G10: no
C11: Paneles de informaicón estaciones | D11: si | E11: si | F11: no | G11: no
C12: Aplicación móvil | D12: si | E12: si | F12: si | G12: si
C13: WEB | D13: si | E13: si | F13: si | G13: si
C14: Call Center | D14: si | E14: si | F14: si | G14: si

Sheet Red de recarga externa (hidden)
B4: 2014 | C4: enero | D4: 39025
C5: febrero | D5: 54791
C6: marzo | D6: 50941
C7: abril | D7: 35256
C8: mayo | D8: 39202
C9: junio | D9: 34889
C10: julio | D10: 43942
C11: agosto | D11: 41774
C12: septiembre | D12: 41112
C13: octubre | D13: 61140
C14: noviembre | D14: 38130
C15: diciembre | D15: 32655
B16: 2015 | C16: enero | D16: 30858
C17: febrero | D17: 37024
C18: marzo | D18: 34591
C19: abril | D19: 35493
C20: mayo | D20: 35302
C21: junio | D21: 34078
C22: julio | D22: 36168
C23: agosto | D23: 32322
C24: septiembre | D24: 33528
C25: octubre | D25: 32645
C26: noviembre | D26: 22476
C27: diciembre
B29: Costo de distribución por tarjeta | D29: =150*0.000318 -> 0.0477
E30: =SUM(D4:D15) -> 512857
B31: Costo total | D31: =(SUM(D4:D15)/12)*D29 -> 2038.606575
B32: Número de puntos | D32: 3200
B33: Costo por punto | D33: =D31/D32*0 -> 0

Sheet Personal
A1: Personal
B2: Item | C2: Cantidad | D2: SMMLV | E2: Comentarios | F2: Equivalente en
B3: TOTAL | C3: =+C4+C31+C44+C56+C68 -> 115.75 | E3: Se estiman los salarios con base en los estudios de prefactibilidad de Metro y Cable. Detalle en archivo de excel Info personal. | F3: =+F4+F31+F44+F56+F68 -> 287958.1393
A4: Corredores | B4: PERSONAL ADMINISTRATIVO | F4: =SUM(F5,F8,F12,F14,F17,F19,F22,F27) -> 66861.55408
B5: Gerencia | F5: =SUM(F6:F7) -> 11130.3644
B6: Gerente general | C6: =NumGerentes -> 1 | D6: 20 | F6: =D6*SMMLV*(1+FactorPrestacional)*C6 -> 9119.512
B7: Asistente de gerencia | C7: =NumAsistenteGerencia -> 1 | D7: 4.41 | F7: =D7*SMMLV*(1+FactorPrestacional)*C7 -> 2010.852396 | I7: =SMMLV -> 354
B8: Tecnología | F8: =SUM(F9:F11) -> 13258.89541
B9: Director de tecnología | C9: =NumDirectoresTecnologia -> 1 | D9: 15 | F9: =D9*SMMLV*(1+FactorPrestacional)*C9 -> 6839.634 | I9: =340 -> 340
B10: Ingeniero de sistemas | C10: =NunIngenieroSistemas -> 1 | D10: 8.584195698 | F10: =D10*SMMLV*(1+FactorPrestacional)*C10 -> 3914.183784 | I10: =I9*11.15% -> 37.91
B11: Operario de emisión de tarjetas | C11: =NumOperariosEmisionTarjetas -> 1 | D11: 5.493885247 | F11: =D11*SMMLV*(1+FactorPrestacional)*C11 -> 2505.077622 | I11: =I9+I10 -> 377.91
B12: Comunicaciones | F12: =F13 -> 2818.212324
B13: Comunicador social | C13: =NumComunicadorSocial -> 1 | D13: 6.180620903 | F13: =D13*SMMLV*(1+FactorPrestacional)*C13 -> 2818.212324
B14: Área RRHH | F14: =SUM(F15:F16) -> 7984.934919
B15: Encargado de área | C15: =NumEncargadosAreaRRHH -> 1 | D15: 11.33113832 | F15: =D15*SMMLV*(1+FactorPrestacional)*C15 -> 5166.722595
B16: Analista | C16: =NumAnalistas -> 1 | D16: 6.180620903 | F16: =D16*SMMLV*(1+FactorPrestacional)*C16 -> 2818.212324
B17: Área comercial | F17: =F18 -> 1944.835377
B18: Comerciales | C18: =NumComerciales -> 1 | D18: 5.493885247 | F18: =D18*SMMLV*C18 -> 1944.835377
B19: Área jurídica | F19: =SUM(F20:F21) -> 6732.396108
B20: Abogado senior | C20: =NumAbogadosSenior -> 1 | D20: 8.584195698 | F20: =D20*SMMLV*(1+FactorPrestacional)*C20 -> 3914.183784
B21: Abogado junior | C21: =NumAbogadosJunior -> 1 | D21: 6.180620903 | F21: =D21*SMMLV*(1+FactorPrestacional)*C21 -> 2818.212324
B22: Área financiera | F22: =SUM(F23:F26) -> 15500.16778
B23: Director Financiero | C23: =NumFinancieros -> 1 | D23: 11.33113832 | F23: =D23*SMMLV*(1+FactorPrestacional)*C23 -> 5166.722595
B24: Contador | C24: =NumContadores -> 1 | D24: 8.584195698 | F24: =D24*SMMLV*(1+FactorPrestacional)*C24 -> 3914.183784
B25: Revisor fiscal | C25: =NumAuxiliaresContables -> 1 | D25: 8.584195698 | F25: =D25*SMMLV*(1+FactorPrestacional)*C25 -> 3914.183784
B26: Auxiliar contable | C26: =NumRevisoresFiscales -> 1 | D26: 5.493885247 | F26: =D26*SMMLV*(1+FactorPrestacional)*C26 -> 2505.077622
B27: Área de apoyo | F27: =SUM(F28:F30) -> 7491.747762
B28: Recepción | C28: =NumMensajeros -> 1 | D28: 4.412276589 | F28: =D28*SMMLV*(1+FactorPrestacional)*C28 -> 2011.890465
B29: Mensajería | C29: =NumRecepcionistas -> 2 | D29: 2.403574795 | F29: =D29*SMMLV*(1+FactorPrestacional)*C29 -> 2191.942919
B30: Personal de aseo | C30: =NumPersonalAseo -> 3 | D30: 2.403574795 | F30: =D30*SMMLV*(1+FactorPrestacional)*C30 -> 3287.914378
A31: Corredores | B31: PERSONAL OPERATIVO CORREDORES | C31: =+SUM(C32:C43) -> 43 | F31: =F36+F32+F33+F39+F41 -> 87253.41924
B32: Director de operaciones | C32: =NumDirectoresOperaciones -> 1 | D32: 12.70460963 | F32: =D32*SMMLV*(1+FactorPrestacional)*C32 -> 5792.992
B33: Personal de distribución | F33: =SUM(F34:F35) -> 7358.665514
B34: Encargados de área | C34: =NumEncargadosAreaTarjetas -> 1 | D34: 11.33113832 | F34: =D34*SMMLV*(1+FactorPrestacional)*C34 -> 5166.722595
B35: Personal de distribución | C35: =NumPersonalDistribucion -> 2 | D35: 2.403574795 | F35: =D35*SMMLV*(1+FactorPrestacional)*C35 -> 2191.942919
B36: Puntos de personalización | F36: =SUM(F37:F38) -> 23719.95373
B37: Jefe de turnos | C37: =CEILING(((HorasOperacionJefeTurnos*DiasPorSemana)/(MaxHorasLaboralesPorSemana))*NumJefeTurnos,0.5)*VarPersonalizacion -> 1.5 | D37: 8.584195698 | F37: =D37*SMMLV*(1+FactorPrestacional)*C37 -> 5871.275676
B38: Operario módulos de atención | C38: =CEILING((HorasAtencionModulosPersonalizados*DiasPorSemana*NumModulosPersonalizacionCorredores)/(MaxHorasLaboralesPorSemana),0.5) -> 9.5 | D38: 4.120413935 | F38: =D38*SMMLV*(1+FactorPrestacional)*C38 -> 17848.67805
B39: Personal del Help Desk | F39: =F40 -> 13842.11953
B40: Personal del help desk | C40: =CEILING((HorasDeOperacion*DiasPorSemana*(PersonalHelpDesk))/MaxHorasLaboralesPorSemana,0.5) -> 10.5 | D40: 2.891157111 | F40: =D40*SMMLV*(1+FactorPrestacional)*C40 -> 13842.11953
B41: Personal control | F41: =SUM(F42:F43) -> 36539.68846
B42: Supervisores | C42: =CEILING((HorasDeOperacion*DiasPorSemana*(NumSupervisoresCCCorredores))/MaxHorasLaboralesPorSemana,0.5) -> 3.5 | D42: 11.33113832 | F42: =D42*SMMLV*(1+FactorPrestacional)*C42 -> 18083.52908
B43: Operarios (incluye personal Call Center) | C43: =CEILING((HorasDeOperacion*DiasPorSemana*(NumOperariosCCCorredoresSIR))/MaxHorasLaboralesPorSemana,0.5) -> 14 | D43: 2.891157111 | F43: =D43*SMMLV*(1+FactorPrestacional)*C43 -> 18456.15938
A44: Colectivos | B44: PERSONAL OPERATIVO COLECTIVOS | C44: =+SUM(C45:C55) -> 50 | F44: =F48+F45+F51+F53 -> 90342.49308
B45: Personal de distribución | F45: =SUM(F46:F47) -> 1095.971459
B46: Encargados de área | F46: =D46*SMMLV*(1+FactorPrestacional)*C46 -> 0
B47: Personal de distribución | C47: =NumPersonalDistribucion/2 -> 1 | D47: 2.403574795 | F47: =D47*SMMLV*(1+FactorPrestacional)*C47 -> 1095.971459
B48: Puntos de personalización | F48: =SUM(F49:F50) -> 30295.78249
B49: Jefe de turnos | C49: =CEILING(((HorasOperacionJefeTurnos*DiasPorSemana)/(MaxHorasLaboralesPorSemana))*NumJefeTurnos,0.5)*VarPersonalizacion -> 1.5 | D49: 8.584195698 | F49: =D49*SMMLV*(1+FactorPrestacional)*C49 -> 5871.275676
B50: Operario módulos de atención | C50: =CEILING((HorasAtencionModulosPersonalizados*DiasPorSemana*NumModulosAtencionColectivos)/(MaxHorasLaboralesPorSemana),0.5) -> 13 | D50: 4.120413935 | F50: =D50*SMMLV*(1+FactorPrestacional)*C50 -> 24424.50681
B51: Personal del Help Desk | F51: =F52 -> 8568.93114
B52: Personal del help desk | C52: =CEILING((HorasDeOperacion*DiasPorSemana*(PersonalHelpDesk)*60%)/MaxHorasLaboralesPorSemana,0.5) -> 6.5 | D52: 2.891157111 | F52: =D52*SMMLV*(1+FactorPrestacional)*C52 -> 8568.93114
B53: Personal control | F53: =SUM(F54:F55) -> 50381.80799
B54: Supervisores | C54: =CEILING((HorasDeOperacion*DiasPorSemana*(NumSupervisoresCCColectivos))/MaxHorasLaboralesPorSemana,0.5) -> 3.5 | D54: 11.33113832 | F54: =D54*SMMLV*(1+FactorPrestacional)*C54 -> 18083.52908
B55: Operarios (incluye personal Call Center) | C55: =CEILING((HorasDeOperacion*DiasPorSemana*(NumOperariosCCColectivosSIR))/MaxHorasLaboralesPorSemana,0.5) -> 24.5 | D55: 2.891157111 | F55: =D55*SMMLV*(1+FactorPrestacional)*C55 -> 32298.27891
A56: Metro | B56: PERSONAL OPERATIVO METRO | C56: =+SUM(C57:C67) -> 14 | F56: =F60+F57+F63+F65 -> 27051.70697
B57: Personal de distribución | F57: =SUM(F58:F59) -> 1095.971459
B58: Encargados de área | D58: 11.33113832 | F58: =D58*SMMLV*(1+FactorPrestacional)*C58 -> 0
B59: Personal de distribución | C59: 1 | D59: 2.403574795 | F59: =D59*SMMLV*(1+FactorPrestacional)*C59 -> 1095.971459
B60: Puntos de personalización | F60: =SUM(F61:F62) -> 3757.616433
B61: Jefe de turnos | D61: 8.584195698 | F61: =D61*SMMLV*(1+FactorPrestacional)*C61 -> 0
B62: Operario módulos de atención | C62: =CEILING((HorasAtencionModulosPersonalizados*DiasPorSemana*NumModulosAtencionMetro)/(MaxHorasLaboralesPorSemana),0.5) -> 2 | D62: 4.120413935 | F62: =D62*SMMLV*(1+FactorPrestacional)*C62 -> 3757.616433
B63: Personal del Help Desk | F63: =F64 -> 2636.594197
B64: Personal del help desk | C64: =CEILING((HorasDeOperacion*DiasPorSemana*(0.5))/MaxHorasLaboralesPorSemana,0.5) -> 2 | D64: 2.891157111 | F64: =D64*SMMLV*(1+FactorPrestacional)*C64 -> 2636.594197
B65: Personal control | F65: =SUM(F66:F67) -> 19561.52488
B66: Supervisores | C66: =CEILING((HorasDeOperacion*DiasPorSemana*(0.5))/MaxHorasLaboralesPorSemana,0.5) -> 2 | D66: 11.33113832 | F66: =D66*SMMLV*(1+FactorPrestacional)*C66 -> 10333.44519
B67: Operarios (incluye personal Call Center) | C67: =CEILING((HorasDeOperacion*DiasPorSemana*2)/MaxHorasLaboralesPorSemana,0.5) -> 7 | D67: 2.891157111 | F67: =D67*SMMLV*(1+FactorPrestacional)*C67 -> 9228.079689
A68: Cable | B68: PERSONAL OPERATIVO CABLE | C68: =+SUM(C69:C79) -> 8.75 | F68: =F72+F69+F75+F77 -> 16448.96593
B69: Personal de distribución | F69: =SUM(F70:F71) -> 273.9928649
B70: Encargados de área | D70: 11.33113832 | F70: =D70*SMMLV*(1+FactorPrestacional)*C70 -> 0
B71: Personal de distribución | C71: 0.25 | D71: 2.403574795 | F71: =D71*SMMLV*(1+FactorPrestacional)*C71 -> 273.9928649
B72: Puntos de personalización | F72: =SUM(F73:F74) -> 3757.616433
B73: Jefe de turnos | D73: 8.584195698 | F73: =D73*SMMLV*(1+FactorPrestacional)*C73 -> 0
B74: Operario módulos de atención | C74: =CEILING((HorasAtencionModulosPersonalizados*DiasPorSemana*'Supuestos y Entradas'!AC37)/(MaxHorasLaboralesPorSemana),0.5) -> 2 | D74: 4.120413935 | F74: =D74*SMMLV*(1+FactorPrestacional)*C74 -> 3757.616433
B75: Personal del Help Desk | F75: =F76 -> 2636.594197
B76: Personal del help desk | C76: =CEILING((HorasDeOperacion*DiasPorSemana*0.5)/MaxHorasLaboralesPorSemana,0.5) -> 2 | D76: 2.891157111 | F76: =D76*SMMLV*(1+FactorPrestacional)*C76 -> 2636.594197
B77: Personal control | F77: =SUM(F78:F79) -> 9780.762439
B78: Supervisores | C78: =CEILING((HorasDeOperacion*DiasPorSemana*0.25)/MaxHorasLaboralesPorSemana,0.5) -> 1 | D78: 11.33113832 | F78: =D78*SMMLV*(1+FactorPrestacional)*C78 -> 5166.722595
B79: Operarios (incluye personal Call Center) | C79: =CEILING((HorasDeOperacion*DiasPorSemana*1)/MaxHorasLaboralesPorSemana,0.5) -> 3.5 | D79: 2.891157111 | F79: =D79*SMMLV*(1+FactorPrestacional)*C79 -> 4614.039844

Sheet PR1 Corredores
A1: Proyecciones
D2: 0 | E2: 1 | F2: 2 | G2: 3 | H2: 4 | I2: 5 | J2: 6 | K2: 7 | L2: 8 | M2: 9 | N2: 10
A3: SUPUESTOS | B3: Inflación | E3: ='Supuestos y Entradas'!AI5 -> 0.04081 | F3: ='Supuestos y Entradas'!AJ5 -> 0.02941 | G3: ='Supuestos y Entradas'!AK5 -> 0.02043 | H3: ='Supuestos y Entradas'!AL5 -> 0.01782 | I3: ='Supuestos y Entradas'!AM5 -> 0.016 | J3: ='Supuestos y Entradas'!AN5 -> 0.015 | K3: ='Supuestos y Entradas'!AO5 -> 0.015 | L3: ='Supuestos y Entradas'!AP5 -> 0.015 | M3: ='Supuestos y Entradas'!AQ5 -> 0.015 | N3: ='Supuestos y Entradas'!AR5 -> 0.015
B4: Factor Spot de Inflación | E4: =1+E3 -> 1.04081 | F4: =E4*(1+F3) -> 1.071420222 | G4: =F4*(1+G3) -> 1.093309337 | H4: =G4*(1+H3) -> 1.11279211 | I4: 1.130596783 | J4: 1.147555735 | K4: 1.164769071 | L4: 1.182240607 | M4: 1.199974216 | N4: 1.21797383
B5: Demanda (% Crecimiento) | E5: ='Supuestos y Entradas'!AJ13 -> 0.015 | F5: ='Supuestos y Entradas'!AK13 -> 0.015 | G5: ='Supuestos y Entradas'!AL13 -> 0.015 | H5: ='Supuestos y Entradas'!AM13 -> 0.015 | I5: ='Supuestos y Entradas'!AN13 -> 0.015 | J5: ='Supuestos y Entradas'!AO13 -> 0.015 | K5: ='Supuestos y Entradas'!AP13 -> 0.015 | L5: ='Supuestos y Entradas'!AQ13 -> 0.015 | M5: ='Supuestos y Entradas'!AR13 -> 0.015 | N5: ='Supuestos y Entradas'!AS13 -> 0.015
B6: Demanda (No. Pasajeros) | E6: ='Supuestos y Entradas'!AJ14 -> 420000000 | F6: ='Supuestos y Entradas'!AK14 -> 426300000 | G6: ='Supuestos y Entradas'!AL14 -> 432694500 | H6: ='Supuestos y Entradas'!AM14 -> 439184917.5 | I6: ='Supuestos y Entradas'!AN14 -> 445772691.3 | J6: ='Supuestos y Entradas'!AO14 -> 452459281.6 | K6: ='Supuestos y Entradas'!AP14 -> 459246170.9 | L6: ='Supuestos y Entradas'!AQ14 -> 466134863.4 | M6: ='Supuestos y Entradas'!AR14 -> 473126886.4 | N6: ='Supuestos y Entradas'!AS14 -> 480223789.7
B7: Ingresos necesarios por pasajero | E7: =IngresoPasajeroF1 -> 0.03631783107 | F7: 0.03631783107 | G7: 0.03631783107 | H7: 0.03631783107 | I7: 0.03631783107 | J7: 0.03631783107 | K7: 0.03631783107 | L7: 0.03631783107 | M7: 0.03631783107 | N7: 0.03631783107
A8: PROYECCIONES | E8: 1 | F8: 2 | G8: 3 | H8: 4 | I8: 5 | J8: 6 | K8: 7 | L8: 8 | M8: 9 | N8: 10
B9: Ingresos Operacionales del sistema | E9: ='Supuestos y Entradas'!AJ14*E7 -> 15253489.05 | F9: ='Supuestos y Entradas'!AK14*F7 -> 15482291.39 | G9: ='Supuestos y Entradas'!AL14*G7 -> 15714525.76 | H9: ='Supuestos y Entradas'!AM14*H7 -> 15950243.64 | I9: ='Supuestos y Entradas'!AN14*I7 -> 16189497.3 | J9: ='Supuestos y Entradas'!AO14*J7 -> 16432339.76 | K9: ='Supuestos y Entradas'!AP14*K7 -> 16678824.85 | L9: ='Supuestos y Entradas'!AQ14*L7 -> 16929007.23 | M9: ='Supuestos y Entradas'!AR14*M7 -> 17182942.34 | N9: ='Supuestos y Entradas'!AS14*N7 -> 17440686.47
B10: Opex (tecnología) | E10: =(OpexSistemaCentral+OpexSIRCorredores+OpexSAECorredores+OpexSIUCorredores)*MesesPorAño*E4 -> 4623759.543 | F10: =(OpexSistemaCentral+OpexSIRCorredores+OpexSAECorredores+OpexSIUCorredores)*MesesPorAño*F4 -> 4759744.311 | G10: 4856985.887 | H10: 4943537.376 | I10: 5022633.974 | J10: 5097973.484 | K10: 5174443.086 | L10: 5252059.732 | M10: 5330840.628 | N10: 5410803.237
B11: Opex (Personal) | E11: =(OpexPersonalCorredores+OpexOtros)*MesesPorAño*E4 -> 2000717.297 | F11: 2059558.393 | G11: 2101635.171 | H11: 2139086.31 | I11: 2173311.691 | J11: 2205911.366 | K11: 2239000.036 | L11: 2272585.037 | M11: 2306673.813 | N11: 2341273.92
B12: Capex (Tecnología) | C12: TR | D12: FASE | E12: =SUM(E13,E15,E16,E17,E47,E55) -> 36559077.98 | F12: 0 | G12: 0 | H12: 0 | I12: 10298353.62 | J12: 0 | K12: 0 | L12: 0 | M12: 0 | N12: 0
B13: Capex Centro de Datos | C13: ='CAPEX (Tecnología)'!$M$5 -> 5 | D13: 1 | E13: =(CapexCentroDatos-'CAPEX (Tecnología)'!K30-SUM('CAPEX (Tecnología)'!K41:K43))*E$4 -> 7316173.211 | F13: =IF(F8=CEILING(F8,'CAPEX (Tecnología)'!$M$5),(CapexCentroDatos-'CAPEX (Tecnología)'!K30-SUM('CAPEX (Tecnología)'!K41:K43))*F4,0) -> 0 | G13: =IF(G8=CEILING(G8,'CAPEX (Tecnología)'!$M$5),(CapexCentroDatos-'CAPEX (Tecnología)'!L30-SUM('CAPEX (Tecnología)'!L41:L43))*G4,0) -> 0 | H13: =IF(H8=CEILING(H8,'CAPEX (Tecnología)'!$M$5),(CapexCentroDatos-'CAPEX (Tecnología)'!M30-SUM('CAPEX (Tecnología)'!M41:M43))*H4,0) -> 0 | I13: =IF(I8=CEILING(I8,'CAPEX (Tecnología)'!$M$5),(CapexCentroDatos-'CAPEX (Tecnología)'!N30-SUM('CAPEX (Tecnología)'!N41:N43))*I4,0) -> 8452009.356 | J13: =IF(J8=CEILING(J8,'CAPEX (Tecnología)'!$M$5),(CapexCentroDatos-'CAPEX (Tecnología)'!O30-SUM('CAPEX (Tecnología)'!O41:O43))*J4,0) -> 0 | K13: =IF(K8=CEILING(K8,'CAPEX (Tecnología)'!$M$5),(CapexCentroDatos-'CAPEX (Tecnología)'!P30-SUM('CAPEX (Tecnología)'!P41:P43))*K4,0) -> 0 | L13: =IF(L8=CEILING(L8,'CAPEX (Tecnología)'!$M$5),(CapexCentroDatos-'CAPEX (Tecnología)'!Q30-SUM('CAPEX (Tecnología)'!Q41:Q43))*L4,0) -> 0 | M13: =IF(M8=CEILING(M8,'CAPEX (Tecnología)'!$M$5),(CapexCentroDatos-'CAPEX (Tecnología)'!R30-SUM('CAPEX (Tecnología)'!R41:R43))*M4,0) -> 0 | N13: 0
B14: Software de Infraestructura y Sistema de Recaudo | E14: =CostoSoftware*E$4 -> 6579251.437 | F14: 0 | G14: 0 | H14: 0 | I14: =IF(I9=CEILING(I9,'CAPEX (Tecnología)'!$M$5),(CapexCentroDatos-CostoSoftware)*'CAPEX (Tecnología)'!$N$5*I5,0) -> 0 | J14: 0 | K14: 0 | L14: 0 | M14: 0 | N14: 0
B15: Capex Centro de Control | C15: ='CAPEX (Tecnología)'!$M$64 -> 5 | D15: 1 | E15: =CapexCentroControl*E4 -> 119631.8088 | F15: =IF(F8=CEILING(F8,'CAPEX (Tecnología)'!$M$64),CapexCentroControl*'CAPEX (Tecnología)'!$N$64*F4,0) -> 0 | G15: =IF(G8=CEILING(G8,'CAPEX (Tecnología)'!$M$64),CapexCentroControl*'CAPEX (Tecnología)'!$N$64*G4,0) -> 0 | H15: =IF(H8=CEILING(H8,'CAPEX (Tecnología)'!$M$64),CapexCentroControl*'CAPEX (Tecnología)'!$N$64*H4,0) -> 0 | I15: =IF(I8=CEILING(I8,'CAPEX (Tecnología)'!$M$64),CapexCentroControl*'CAPEX (Tecnología)'!$N$64*I4,0) -> 129951.9972 | J15: =IF(J8=CEILING(J8,'CAPEX (Tecnología)'!$M$64),CapexCentroControl*'CAPEX (Tecnología)'!$N$64*J4,0) -> 0 | K15: =IF(K8=CEILING(K8,'CAPEX (Tecnología)'!$M$64),CapexCentroControl*'CAPEX (Tecnología)'!$N$64*K4,0) -> 0 | L15: =IF(L8=CEILING(L8,'CAPEX (Tecnología)'!$M$64),CapexCentroControl*'CAPEX (Tecnología)'!$N$64*L4,0) -> 0 | M15: =IF(M8=CEILING(M8,'CAPEX (Tecnología)'!$M$64),CapexCentroControl*'CAPEX (Tecnología)'!$N$64*M4,0) -> 0 | N15: 0
B16: Capex Servicios Profesionales CD y CC | C16: ='CAPEX (Tecnología)'!$M$71 -> 5 | D16: 1 | E16: =CapexServiciosProfesionalesCDyCC*E4-'PR2 Colectivos'!F13*'CAPEX (Tecnología)'!D72 -> 1484428.13 | F16: =IF(F$8=CEILING(F$8,'CAPEX (Tecnología)'!$M$71),CapexServiciosProfesionalesCDyCC*'CAPEX (Tecnología)'!$N$71*F$4,0) -> 0 | G16: =IF(G8=CEILING(G8,'CAPEX (Tecnología)'!$M$71),CapexServiciosProfesionalesCDyCC*'CAPEX (Tecnología)'!$N$71*G4,0) -> 0 | H16: =IF(H8=CEILING(H8,'CAPEX (Tecnología)'!$M$71),CapexServiciosProfesionalesCDyCC*'CAPEX (Tecnología)'!$N$71*H4,0) -> 0 | I16: =IF(I8=CEILING(I8,'CAPEX (Tecnología)'!$M$71),CapexServiciosProfesionalesCDyCC*'CAPEX (Tecnología)'!$N$71*I4,0) -> 1716392.271 | J16: =IF(J8=CEILING(J8,'CAPEX (Tecnología)'!$M$71),CapexServiciosProfesionalesCDyCC*'CAPEX (Tecnología)'!$N$71*J4,0) -> 0 | K16: =IF(K8=CEILING(K8,'CAPEX (Tecnología)'!$M$71),CapexServiciosProfesionalesCDyCC*'CAPEX (Tecnología)'!$N$71*K4,0) -> 0 | L16: =IF(L8=CEILING(L8,'CAPEX (Tecnología)'!$M$71),CapexServiciosProfesionalesCDyCC*'CAPEX (Tecnología)'!$N$71*L4,0) -> 0 | M16: =IF(M8=CEILING(M8,'CAPEX (Tecnología)'!$M$71),CapexServiciosProfesionalesCDyCC*'CAPEX (Tecnología)'!$N$71*M4,0) -> 0 | N16: 0
B17: SIR-CORREDORES | E17: =SUM(E18:E20,E21,E24) -> 21951630.06 | F17: =SUM(F18:F20,F21,F24) -> 0 | G17: 0 | H17: 0 | I17: 0 | J17: 0 | K17: 0 | L17: 0 | M17: 0 | N17: 0
B18: Capex Medios de Pago | E18: =CapexMediosdePagoCorredores*E4 -> 1515993.121 | F18: 0 | G18: 0 | H18: 0 | I18: 0 | J18: 0 | K18: 0 | L18: 0 | M18: 0 | N18: 0
B19: Equipos 1 | C19: 10 | D19: 1 | E19: =(CapexSIRBusesAlimentadores+CapexRedRecargaCorredores+CapexPPCorredores+SUM('CAPEX (Tecnología)'!$K$97,'CAPEX (Tecnología)'!$K$102:$K$106)+CapexTorniqueteDiscaParadasCorredores+CapexCamarasParadasCorredores)*E4 -> 10772554.78 | F19: =IF(F8=CEILING(F8,$C$19),$E$19*(F4/$E$4),0) -> 0 | G19: =IF(G8=CEILING(G8,$C$19),$E$19*(G4/$E$4),0) -> 0 | H19: 0 | I19: 0 | J19: 0 | K19: 0 | L19: 0 | M19: 0 | N19: 0
B20: Equipos 2 | C20: 10 | D20: 1 | E20: =CapexTorniqueteParadasCorredores*E4 -> 4351360.891 | F20: =IF(F$8=CEILING(F$8,$C$20),$E$20*(F4/$E$4),0) -> 0 | G20: =IF(G$8=CEILING(G$8,$C$20),$E$20*(G4/$E$4),0) -> 0 | H20: 0 | I20: 0 | J20: 0 | K20: 0 | L20: 0 | M20: 0 | N20: 0
B21: Otros (Repuestos) | E21: =SUM(E22:E23)*E4 -> 774838.8824 | F21: =SUM(F22:F23) -> 0 | G21: 0 | H21: 0 | I21: 0 | J21: 0 | K21: 0 | L21: 0 | M21: 0 | N21: 0
B22: Repuestos 1 | C22: ='CAPEX (Tecnología)'!$M$109 -> 10 | D22: 1 | E22: =CapexSIRCorredoresRepuestos1*E4 -> 526889.5244 | F22: =IF(F$8=CEILING(F$8,'CAPEX (Tecnología)'!$M$109),CapexSIRCorredoresRepuestos1*F$4*'CAPEX (Tecnología)'!$N$109,0) -> 0 | G22: =IF(G$8=CEILING(G$8,'CAPEX (Tecnología)'!$M$109),CapexSIRCorredoresRepuestos1*G$4*'CAPEX (Tecnología)'!$N$109,0) -> 0 | H22: =IF(H$8=CEILING(H$8,'CAPEX (Tecnología)'!$M$109),CapexSIRCorredoresRepuestos1*H$4*'CAPEX (Tecnología)'!$N$109,0) -> 0 | I22: =IF(I$8=CEILING(I$8,'CAPEX (Tecnología)'!$M$109),CapexSIRCorredoresRepuestos1*I$4*'CAPEX (Tecnología)'!$N$109,0) -> 0 | J22: =IF(J$8=CEILING(J$8,'CAPEX (Tecnología)'!$M$109),CapexSIRCorredoresRepuestos1*J$4*'CAPEX (Tecnología)'!$N$109,0) -> 0 | K22: =IF(K$8=CEILING(K$8,'CAPEX (Tecnología)'!$M$109),CapexSIRCorredoresRepuestos1*K$4*'CAPEX (Tecnología)'!$N$109,0) -> 0 | L22: =IF(L$8=CEILING(L$8,'CAPEX (Tecnología)'!$M$109),CapexSIRCorredoresRepuestos1*L$4*'CAPEX (Tecnología)'!$N$109,0) -> 0 | M22: =IF(M$8=CEILING(M$8,'CAPEX (Tecnología)'!$M$109),CapexSIRCorredoresRepuestos1*M$4*'CAPEX (Tecnología)'!$N$109,0) -> 0 | N22: 0
B23: Repuestos 2 | C23: 10 | D23: 1 | E23: =CapexSIRCorredoresRepuestos2*E4 -> 217568.0446 | F23: =IF(F$8=CEILING(F$8,'CAPEX (Tecnología)'!$M$110),CapexSIRCorredoresRepuestos2*F$4*'CAPEX (Tecnología)'!$N$110,0) -> 0 | G23: =IF(G$8=CEILING(G$8,'CAPEX (Tecnología)'!$M$110),CapexSIRCorredoresRepuestos2*G$4*'CAPEX (Tecnología)'!$N$110,0) -> 0 | H23: =IF(H$8=CEILING(H$8,'CAPEX (Tecnología)'!$M$110),CapexSIRCorredoresRepuestos2*H$4*'CAPEX (Tecnología)'!$N$110,0) -> 0 | I23: =IF(I$8=CEILING(I$8,'CAPEX (Tecnología)'!$M$110),CapexSIRCorredoresRepuestos2*I$4*'CAPEX (Tecnología)'!$N$110,0) -> 0 | J23: =IF(J$8=CEILING(J$8,'CAPEX (Tecnología)'!$M$110),CapexSIRCorredoresRepuestos2*J$4*'CAPEX (Tecnología)'!$N$110,0) -> 0 | K23: =IF(K$8=CEILING(K$8,'CAPEX (Tecnología)'!$M$110),CapexSIRCorredoresRepuestos2*K$4*'CAPEX (Tecnología)'!$N$110,0) -> 0 | L23: =IF(L$8=CEILING(L$8,'CAPEX (Tecnología)'!$M$110),CapexSIRCorredoresRepuestos2*L$4*'CAPEX (Tecnología)'!$N$110,0) -> 0 | M23: =IF(M$8=CEILING(M$8,'CAPEX (Tecnología)'!$M$110),CapexSIRCorredoresRepuestos2*M$4*'CAPEX (Tecnología)'!$N$110,0) -> 0 | N23: 0
B24: Servicios profesionales equipos en campo | C24: ='CAPEX (Tecnología)'!M113 -> 10 | D24: 1 | E24: =CapexSIRCorredoresSP*E4 -> 4536882.392 | F24: =IF(F$8=CEILING(F$8,'CAPEX (Tecnología)'!$M$113),CapexSIRCorredoresSP*F$4*'CAPEX (Tecnología)'!$N$113,0) -> 0 | G24: =IF(G$8=CEILING(G$8,'CAPEX (Tecnología)'!$M$113),CapexSIRCorredoresSP*G$4*'CAPEX (Tecnología)'!$N$113,0) -> 0 | H24: =IF(H$8=CEILING(H$8,'CAPEX (Tecnología)'!$M$113),CapexSIRCorredoresSP*H$4*'CAPEX (Tecnología)'!$N$113,0) -> 0 | I24: =IF(I$8=CEILING(I$8,'CAPEX (Tecnología)'!$M$113),CapexSIRCorredoresSP*I$4*'CAPEX (Tecnología)'!$N$113,0) -> 0 | J24: =IF(J$8=CEILING(J$8,'CAPEX (Tecnología)'!$M$113),CapexSIRCorredoresSP*J$4*'CAPEX (Tecnología)'!$N$113,0) -> 0 | K24: =IF(K$8=CEILING(K$8,'CAPEX (Tecnología)'!$M$113),CapexSIRCorredoresSP*K$4*'CAPEX (Tecnología)'!$N$113,0) -> 0 | L24: =IF(L$8=CEILING(L$8,'CAPEX (Tecnología)'!$M$113),CapexSIRCorredoresSP*L$4*'CAPEX (Tecnología)'!$N$113,0) -> 0 | M24: =IF(M$8=CEILING(M$8,'CAPEX (Tecnología)'!$M$113),CapexSIRCorredoresSP*M$4*'CAPEX (Tecnología)'!$N$113,0) -> 0 | N24: 0
B25: SIR-COLECTIVOS | N25: 0
B26: Capex Medios de Pago | N26: 0
B27: Equipos 1 | N27: 0
B28: Otros (Repuestos) | N28: 0
B29: Repuestos 1 | N29: 0
B30: Servicios profesionales equipos en campo | N30: 0
B31: SIR-METRO | N31: 0
B32: Capex Medios de Pago | N32: 0
B33: Equipos 1 | N33: 0
B34: Equipos 2 | N34: 0
B35: Otros (Repuestos) | N35: 0
B36: Repuestos 1 | N36: 0
B37: Repuestos 2 | N37: 0
B38: Servicios profesionales equipos en campo | N38: 0
B39: SIR-CABLE | N39: 0
B40: Capex Medios de Pago | N40: 0
B41: Equipos 1 | N41: 0
B42: Equipos 2 | N42: 0
B43: Otros (Repuestos) | N43: 0
B44: Repuestos 1 | N44: 0
B45: Repuestos 2 | N45: 0
B46: Servicios profesionales equipos en campo | N46: 0
B47: SAE-CORREDORES | E47: =SUM(E48:E50) -> 3999162.562 | F47: =SUM(F48:F50) -> 0 | G47: 0 | H47: 0 | I47: 0 | J47: 0 | K47: 0 | L47: 0 | M47: 0 | N47: 0
B48: Equipos 1 | C48: ='CAPEX (Tecnología)'!M205 -> 10 | D48: 1 | E48: =CapexSAECorredoresEquiposAbordo*E4 -> 3185697.676 | F48: =IF(F$8=CEILING(F$8,'CAPEX (Tecnología)'!$M$205),CapexSAECorredoresEquiposAbordo*F$4*'CAPEX (Tecnología)'!$N$205,0) -> 0 | G48: =IF(G$8=CEILING(G$8,'CAPEX (Tecnología)'!$M$205),CapexSAECorredoresEquiposAbordo*G$4*'CAPEX (Tecnología)'!$N$205,0) -> 0 | H48: =IF(H$8=CEILING(H$8,'CAPEX (Tecnología)'!$M$205),CapexSAECorredoresEquiposAbordo*H$4*'CAPEX (Tecnología)'!$N$205,0) -> 0 | I48: =IF(I$8=CEILING(I$8,'CAPEX (Tecnología)'!$M$205),CapexSAECorredoresEquiposAbordo*I$4*'CAPEX (Tecnología)'!$N$205,0) -> 0 | J48: =IF(J$8=CEILING(J$8,'CAPEX (Tecnología)'!$M$205),CapexSAECorredoresEquiposAbordo*J$4*'CAPEX (Tecnología)'!$N$205,0) -> 0 | K48: =IF(K$8=CEILING(K$8,'CAPEX (Tecnología)'!$M$205),CapexSAECorredoresEquiposAbordo*K$4*'CAPEX (Tecnología)'!$N$205,0) -> 0 | L48: =IF(L$8=CEILING(L$8,'CAPEX (Tecnología)'!$M$205),CapexSAECorredoresEquiposAbordo*L$4*'CAPEX (Tecnología)'!$N$205,0) -> 0 | M48: =IF(M$8=CEILING(M$8,'CAPEX (Tecnología)'!$M$205),CapexSAECorredoresEquiposAbordo*M$4*'CAPEX (Tecnología)'!$N$205,0) -> 0 | N48: 0
B49: Otros (Repuestos) | C49: ='CAPEX (Tecnología)'!M211 -> 10 | D49: 1 | E49: =CapexSAECorredoresRespuestos1*E4 -> 48268.1466 | F49: =IF(F$8=CEILING(F$8,'CAPEX (Tecnología)'!$M$211),CapexSAECorredoresRespuestos1*F$4*'CAPEX (Tecnología)'!$N$211,0) -> 0 | G49: =IF(G$8=CEILING(G$8,'CAPEX (Tecnología)'!$M$211),CapexSAECorredoresRespuestos1*G$4*'CAPEX (Tecnología)'!$N$211,0) -> 0 | H49: =IF(H$8=CEILING(H$8,'CAPEX (Tecnología)'!$M$211),CapexSAECorredoresRespuestos1*H$4*'CAPEX (Tecnología)'!$N$211,0) -> 0 | I49: =IF(I$8=CEILING(I$8,'CAPEX (Tecnología)'!$M$211),CapexSAECorredoresRespuestos1*I$4*'CAPEX (Tecnología)'!$N$211,0) -> 0 | J49: =IF(J$8=CEILING(J$8,'CAPEX (Tecnología)'!$M$211),CapexSAECorredoresRespuestos1*J$4*'CAPEX (Tecnología)'!$N$211,0) -> 0 | K49: =IF(K$8=CEILING(K$8,'CAPEX (Tecnología)'!$M$211),CapexSAECorredoresRespuestos1*K$4*'CAPEX (Tecnología)'!$N$211,0) -> 0 | L49: =IF(L$8=CEILING(L$8,'CAPEX (Tecnología)'!$M$211),CapexSAECorredoresRespuestos1*L$4*'CAPEX (Tecnología)'!$N$211,0) -> 0 | M49: =IF(M$8=CEILING(M$8,'CAPEX (Tecnología)'!$M$211),CapexSAECorredoresRespuestos1*M$4*'CAPEX (Tecnología)'!$N$211,0) -> 0 | N49: 0
B50: Servicios profesionales equipos en campo | C50: ='CAPEX (Tecnología)'!M215 -> 10 | D50: 1 | E50: =CapexSAECorredoresSP -> 765196.74 | F50: =IF(F$8=CEILING(F$8,'CAPEX (Tecnología)'!$M$215),CapexSAECorredoresSP*F$4*'CAPEX (Tecnología)'!$N$215,0) -> 0 | G50: =IF(G$8=CEILING(G$8,'CAPEX (Tecnología)'!$M$215),CapexSAECorredoresSP*G$4*'CAPEX (Tecnología)'!$N$215,0) -> 0 | H50: =IF(H$8=CEILING(H$8,'CAPEX (Tecnología)'!$M$215),CapexSAECorredoresSP*H$4*'CAPEX (Tecnología)'!$N$215,0) -> 0 | I50: =IF(I$8=CEILING(I$8,'CAPEX (Tecnología)'!$M$215),CapexSAECorredoresSP*I$4*'CAPEX (Tecnología)'!$N$215,0) -> 0 | J50: =IF(J$8=CEILING(J$8,'CAPEX (Tecnología)'!$M$215),CapexSAECorredoresSP*J$4*'CAPEX (Tecnología)'!$N$215,0) -> 0 | K50: =IF(K$8=CEILING(K$8,'CAPEX (Tecnología)'!$M$215),CapexSAECorredoresSP*K$4*'CAPEX (Tecnología)'!$N$215,0) -> 0 | L50: =IF(L$8=CEILING(L$8,'CAPEX (Tecnología)'!$M$215),CapexSAECorredoresSP*L$4*'CAPEX (Tecnología)'!$N$215,0) -> 0 | M50: =IF(M$8=CEILING(M$8,'CAPEX (Tecnología)'!$M$215),CapexSAECorredoresSP*M$4*'CAPEX (Tecnología)'!$N$215,0) -> 0 | N50: 0
B51: SAE-COLECTIVOS | N51: 0
B52: Equipos a bordo | N52: 0
B53: Otros (Repuestos) | N53: 0
B54: Servicios profesionales equipos en campo | N54: 0
B55: SIU-CORREDORES | E55: =SUM(E56,E57,E58,E61) -> 1688052.203 | F55: 0 | G55: 0 | H55: 0 | I55: 0 | J55: 0 | K55: 0 | L55: 0 | M55: 0 | N55: 0
B56: Equipos 1 | C56: 10 | D56: 1 | E56: =CapexSIUCorredoresVMSInternosAbordo*E4+CapexSIUCorredoresVMSExternosAbordo*E4+CapexParlantesCorredores*E4+CapexSIUCorredoresVMSParadas*E4+CapexSIUCorredoresParlantesParadas*E4 -> 1301936.406 | F56: =IF(F$8=CEILING(F$8,$C$56),$E$56*(F4/$E$4),0) -> 0 | G56: 0 | H56: 0 | I56: 0 | J56: 0 | K56: 0 | L56: 0 | M56: 0 | N56: 0
B57: Equipos 2 | C57: 10 | D57: 1 | E57: =CapexTVCorredores*E4+CapexSIUCorredoresLCDParadas*E4 -> 0 | F57: =IF(F$8=CEILING(F$8,$C$57),$E$57*(F4/$E$4),0) -> 0 | G57: 0 | H57: 0 | I57: 0 | J57: 0 | K57: 0 | L57: 0 | M57: 0 | N57: 0
B58: Otros (Repuestos) | E58: =SUM(E59:E60) -> 60631.69545 | F58: =SUM(F59:F60) -> 0 | G58: 0 | H58: 0 | I58: 0 | J58: 0 | K58: 0 | L58: 0 | M58: 0 | N58: 0
B59: Repuestos 1 | C59: ='CAPEX (Tecnología)'!M241 -> 10 | D59: 1 | E59: ='CAPEX (Tecnología)'!K241*E4 -> 60631.69545 | F59: =IF(F$8=CEILING(F$8,'CAPEX (Tecnología)'!$M$241),'CAPEX (Tecnología)'!$K$241*F$4*'CAPEX (Tecnología)'!$N$241,0) -> 0 | G59: =IF(G$8=CEILING(G$8,'CAPEX (Tecnología)'!$M$241),'CAPEX (Tecnología)'!$K$241*G$4*'CAPEX (Tecnología)'!$N$241,0) -> 0 | H59: =IF(H$8=CEILING(H$8,'CAPEX (Tecnología)'!$M$241),'CAPEX (Tecnología)'!$K$241*H$4*'CAPEX (Tecnología)'!$N$241,0) -> 0 | I59: =IF(I$8=CEILING(I$8,'CAPEX (Tecnología)'!$M$241),'CAPEX (Tecnología)'!$K$241*I$4*'CAPEX (Tecnología)'!$N$241,0) -> 0 | J59: =IF(J$8=CEILING(J$8,'CAPEX (Tecnología)'!$M$241),'CAPEX (Tecnología)'!$K$241*J$4*'CAPEX (Tecnología)'!$N$241,0) -> 0 | K59: =IF(K$8=CEILING(K$8,'CAPEX (Tecnología)'!$M$241),'CAPEX (Tecnología)'!$K$241*K$4*'CAPEX (Tecnología)'!$N$241,0) -> 0 | L59: =IF(L$8=CEILING(L$8,'CAPEX (Tecnología)'!$M$241),'CAPEX (Tecnología)'!$K$241*L$4*'CAPEX (Tecnología)'!$N$241,0) -> 0 | M59: =IF(M$8=CEILING(M$8,'CAPEX (Tecnología)'!$M$241),'CAPEX (Tecnología)'!$K$241*M$4*'CAPEX (Tecnología)'!$N$241,0) -> 0 | N59: 0
B60: Repuestos 2 | C60: ='CAPEX (Tecnología)'!M242 -> 10 | D60: 1 | E60: ='CAPEX (Tecnología)'!K242*E4 -> 0 | F60: =IF(F$8=CEILING(F$8,'CAPEX (Tecnología)'!$M$242),'CAPEX (Tecnología)'!$K$242*F$4*'CAPEX (Tecnología)'!$N$242,0) -> 0 | G60: =IF(G$8=CEILING(G$8,'CAPEX (Tecnología)'!$M$242),'CAPEX (Tecnología)'!$K$242*G$4*'CAPEX (Tecnología)'!$N$242,0) -> 0 | H60: =IF(H$8=CEILING(H$8,'CAPEX (Tecnología)'!$M$242),'CAPEX (Tecnología)'!$K$242*H$4*'CAPEX (Tecnología)'!$N$242,0) -> 0 | I60: =IF(I$8=CEILING(I$8,'CAPEX (Tecnología)'!$M$242),'CAPEX (Tecnología)'!$K$242*I$4*'CAPEX (Tecnología)'!$N$242,0) -> 0 | J60: =IF(J$8=CEILING(J$8,'CAPEX (Tecnología)'!$M$242),'CAPEX (Tecnología)'!$K$242*J$4*'CAPEX (Tecnología)'!$N$242,0) -> 0 | K60: =IF(K$8=CEILING(K$8,'CAPEX (Tecnología)'!$M$242),'CAPEX (Tecnología)'!$K$242*K$4*'CAPEX (Tecnología)'!$N$242,0) -> 0 | L60: =IF(L$8=CEILING(L$8,'CAPEX (Tecnología)'!$M$242),'CAPEX (Tecnología)'!$K$242*L$4*'CAPEX (Tecnología)'!$N$242,0) -> 0 | M60: =IF(M$8=CEILING(M$8,'CAPEX (Tecnología)'!$M$242),'CAPEX (Tecnología)'!$K$242*M$4*'CAPEX (Tecnología)'!$N$242,0) -> 0 | N60: 0
B61: Servicios profesionales equipos en campo | C61: ='CAPEX (Tecnología)'!M243 -> 10 | D61: 1 | E61: ='CAPEX (Tecnología)'!K243*E4 -> 325484.1016 | F61: =IF(F$8=CEILING(F$8,'CAPEX (Tecnología)'!$M$243),'CAPEX (Tecnología)'!$K$243*F$4*'CAPEX (Tecnología)'!$N$243,0) -> 0 | G61: =IF(G$8=CEILING(G$8,'CAPEX (Tecnología)'!$M$243),'CAPEX (Tecnología)'!$K$243*G$4*'CAPEX (Tecnología)'!$N$243,0) -> 0 | H61: =IF(H$8=CEILING(H$8,'CAPEX (Tecnología)'!$M$243),'CAPEX (Tecnología)'!$K$243*H$4*'CAPEX (Tecnología)'!$N$243,0) -> 0 | I61: =IF(I$8=CEILING(I$8,'CAPEX (Tecnología)'!$M$243),'CAPEX (Tecnología)'!$K$243*I$4*'CAPEX (Tecnología)'!$N$243,0) -> 0 | J61: =IF(J$8=CEILING(J$8,'CAPEX (Tecnología)'!$M$243),'CAPEX (Tecnología)'!$K$243*J$4*'CAPEX (Tecnología)'!$N$243,0) -> 0 | K61: =IF(K$8=CEILING(K$8,'CAPEX (Tecnología)'!$M$243),'CAPEX (Tecnología)'!$K$243*K$4*'CAPEX (Tecnología)'!$N$243,0) -> 0 | L61: =IF(L$8=CEILING(L$8,'CAPEX (Tecnología)'!$M$243),'CAPEX (Tecnología)'!$K$243*L$4*'CAPEX (Tecnología)'!$N$243,0) -> 0 | M61: =IF(M$8=CEILING(M$8,'CAPEX (Tecnología)'!$M$243),'CAPEX (Tecnología)'!$K$243*M$4*'CAPEX (Tecnología)'!$N$243,0) -> 0 | N61: 0
B62: SIU-COLECTIVOS | N62: 0
B63: Equipos 1 | N63: 0
B64: Equipos 2 | N64: 0
B65: Otros (Repuestos) | N65: 0
B66: Repuestos 1 | N66: 0
B67: Repuestos 2 | N67: 0
B68: Servicios profesionales equipos en campo | N68: 0
B69: Capex (Personal) | C69: 10 | E69: =CapexAdministrativo*E4 -> 142546.3193 | F69: =IF(F8=CEILING(F8,$C$69),CapexAdministrativo*F4,0) -> 0 | G69: 0 | H69: 0 | I69: 0 | J69: 0 | K69: 0 | L69: 0 | M69: 0 | N69: 0
B70: Depreciaciones | C70: VU | E70: =SUM(E72,E74,E76) -> 4393293.669 | F70: =SUM(F72,F74,F76) -> 4393293.669 | G70: 4393293.669 | H70: 4393293.669 | I70: 6452964.394 | J70: 4668917.764 | K70: 4668917.764 | L70: 4668917.764 | M70: 4668917.764 | N70: 2609247.039
B71: Capex depreciado a 5 años | C71: 5 | E71: =SUMIFS(E13:E61,$C$13:$C$61,$C$71) -> 8920233.149 | F71: 0 | G71: 0 | H71: 0 | I71: 10298353.62 | J71: 0 | K71: 0 | L71: 0 | M71: 0 | N71: 0
B72: Depraciación a 5 años | C72: 5 | E72: =SUM(E71)/$C$72 -> 1784046.63 | F72: =SUM($E71:F71)/$C$72 -> 1784046.63 | G72: =SUM($E71:G71)/$C$72 -> 1784046.63 | H72: =SUM($E71:H71)/$C$72 -> 1784046.63 | I72: =SUM(E71:I71)/$C$72 -> 3843717.355 | J72: 2059670.725 | K72: 2059670.725 | L72: 2059670.725 | M72: 2059670.725 | N72: 0
B73: Capex depreciado a 5 años | C73: 7 | E73: =SUMIFS(E13:E61,$C$13:$C$61,$C$73) -> 0 | F73: 0 | G73: 0 | H73: 0 | I73: 0 | J73: 0 | K73: 0 | L73: 0 | M73: 0 | N73: 0
B74: Depraciación a 5 años | C74: 7 | E74: =SUM(E73)/$C$73 -> 0 | F74: =SUM(E73:F73)/$C$73 -> 0 | G74: =SUM(E73:G73)/$C$73 -> 0 | H74: =SUM(E73:H73)/$C$73 -> 0 | I74: =SUM(E73:I73)/$C$73 -> 0 | J74: =SUM(E73:J73)/$C$73 -> 0 | K74: =SUM(E73:K73)/$C$73 -> 0 | L74: =SUM(F73:L73)/$C$73 -> 0 | M74: =SUM(G73:M73)/$C$73 -> 0 | N74: =SUM(H73:N73)/$C$73 -> 0
B75: Capex depreciado a 10 años | C75: 10 | E75: =SUMIFS(E13:E61,$C$13:$C$61,$C$75) -> 26092470.39 | F75: 0 | G75: 0 | H75: 0 | I75: 0 | J75: 0 | K75: 0 | L75: 0 | M75: 0 | N75: 0
B76: Depreciación a 10 años | C76: 10 | E76: =SUM($E75:E75)/$C$76 -> 2609247.039 | F76: =SUM($E75:F75)/$C$76 -> 2609247.039 | G76: =SUM($E75:G75)/$C$76 -> 2609247.039 | H76: =SUM($E75:H75)/$C$76 -> 2609247.039 | I76: =SUM($E75:I75)/$C$76 -> 2609247.039 | J76: =SUM($E75:J75)/$C$76 -> 2609247.039 | K76: =SUM($E75:K75)/$C$76 -> 2609247.039 | L76: =SUM($E75:L75)/$C$76 -> 2609247.039 | M76: =SUM($E75:M75)/$C$76 -> 2609247.039 | N76: =SUM($E75:N75)/$C$76 -> 2609247.039
H94: =G94 -> 0
H95: =G95+H100 -> 0
H96: =G96+H98 -> 0
H97: =G97+H96 -> 0
H98: =G98+H94 -> 0
H99: =G99+H97 -> 0
H100: =G100+H97 -> 0
H101: =G101+H95 -> 0
H103: =G103+H101 -> 0
H104: =G104+H103 -> 0
H105: =G105+H104 -> 0
H106: =G106+H105 -> 0
H107: =G107+H106 -> 0
H115: =G115 -> 0
H116: =G116+H115 -> 0
H117: =G117+H116 -> 0
H118: =G118+H117 -> 0
H119: =G119+H118 -> 0
H120: =G120+H118 -> 0
H121: 0
H122: 0
H123: 0
H124: 0
H125: 0
H126: =G126+H125 -> 0
B152: Activos Fijos
B153: Capex depreciado a 5 años | C153: 5 | E153: =SUMIFS(E13:E61,$C$13:$C$61,$C$71)-E16 -> 7435805.02 | F153: =SUMIFS(F13:F61,$C$13:$C$61,$C$71)-F16 -> 0 | G153: 0 | H153: 0 | I153: 8581961.353 | J153: 0 | K153: 0 | L153: 0 | M153: 0 | N153: 0
B154: Depreciación | E154: =SUM(E153)/$C$72 -> 1487161.004 | F154: =SUM($E153:F153)/$C$72 -> 1487161.004 | G154: =SUM($E153:G153)/$C$72 -> 1487161.004 | H154: =SUM($E153:H153)/$C$72 -> 1487161.004 | I154: =SUM(E153:I153)/$C$72 -> 3203553.275 | J154: 1716392.271 | K154: 1716392.271 | L154: 1716392.271 | M154: 1716392.271 | N154: 0
B155: Capex depreciado a 10 años | C155: 10 | E155: =SUMIFS(E13:E61,$C$13:$C$61,$C$75)-E24-E50-E61 -> 20464907.16 | F155: =SUMIFS(F13:F61,$C$13:$C$61,$C$75)-F24-F50-F61 -> 0 | G155: 0 | H155: 0 | I155: 0 | J155: 0 | K155: 0 | L155: 0 | M155: 0 | N155: 0
B156: Depreciación a 10 años | C156: 10 | E156: =SUM($E155:E155)/$C$76 -> 2046490.716 | F156: =SUM($E155:F155)/$C$76 -> 2046490.716 | G156: =SUM($E155:G155)/$C$76 -> 2046490.716 | H156: =SUM($E155:H155)/$C$76 -> 2046490.716 | I156: =SUM($E155:I155)/$C$76 -> 2046490.716 | J156: =SUM($E155:J155)/$C$76 -> 2046490.716 | K156: =SUM($E155:K155)/$C$76 -> 2046490.716 | L156: =SUM($E155:L155)/$C$76 -> 2046490.716 | M156: =SUM($E155:M155)/$C$76 -> 2046490.716 | N156: =SUM($E155:N155)/$C$76 -> 2046490.716
B158: Activos Fijos | E158: =+E153+E155-E154-E156 -> 24367060.46 | F158: =+E158+F153+F155-F154-F156 -> 20833408.74 | G158: =+F158+G153+G155-G154-G156 -> 17299757.02 | H158: 13766105.3 | I158: 17098022.66 | J158: 13335139.68 | K158: 9572256.689 | L158: 5809373.703 | M158: 2046490.716 | N158: -5.587935448e-09
B159: Seguros | E159: =+E158*Seguros -> 974682.4184 | F159: 833336.3496 | G159: 691990.2808 | H159: 550644.212 | I159: 683920.9065 | J159: 533405.587 | K159: 382890.2676 | L159: 232374.9481 | M159: 81859.62864 | N159: -2.235174179e-10
B163: % Capex Centro de Datos | E163: =(E13+E15+E16)/E$12 -> 0.2439950251
B164: % Capex SIR | E164: =E17/E$12 -> 0.6004426609
B165: % Capex SAE | E165: =E47/E$12 -> 0.1093890433
B166: % Capex SIU | E166: =E55/E$12 -> 0.04617327068

Sheet Tabla Capex F1 (hidden)
A1: Proyecciones
D2: 0 | E2: 1 | G2: 2 | H2: 3 | I2: 4 | J2: 5 | K2: 6 | L2: 7 | M2: 8 | N2: 9 | O2: 10
A3: SUPUESTOS | B3: Inflación | E3: ='Supuestos y Entradas'!AI5 -> 0.04081 | G3: ='Supuestos y Entradas'!AJ5 -> 0.02941 | H3: ='Supuestos y Entradas'!AK5 -> 0.02043 | I3: ='Supuestos y Entradas'!AL5 -> 0.01782 | J3: ='Supuestos y Entradas'!AM5 -> 0.016 | K3: ='Supuestos y Entradas'!AN5 -> 0.015 | L3: ='Supuestos y Entradas'!AO5 -> 0.015 | M3: ='Supuestos y Entradas'!AP5 -> 0.015 | N3: ='Supuestos y Entradas'!AQ5 -> 0.015 | O3: ='Supuestos y Entradas'!AR5 -> 0.015
B4: Factor Spot de Inflación | E4: =1+E3 -> 1.04081 | G4: =E4*(1+G3) -> 1.071420222 | H4: =G4*(1+H3) -> 1.093309337 | I4: =H4*(1+I3) -> 1.11279211 | J4: 1.130596783 | K4: 1.147555735 | L4: 1.164769071 | M4: 1.182240607 | N4: 1.199974216 | O4: 1.21797383
B5: Demanda (% Crecimiento) | E5: ='Supuestos y Entradas'!AJ13 -> 0.015 | G5: ='Supuestos y Entradas'!AK13 -> 0.015 | H5: ='Supuestos y Entradas'!AL13 -> 0.015 | I5: ='Supuestos y Entradas'!AM13 -> 0.015 | J5: ='Supuestos y Entradas'!AN13 -> 0.015 | K5: ='Supuestos y Entradas'!AO13 -> 0.015 | L5: ='Supuestos y Entradas'!AP13 -> 0.015 | M5: ='Supuestos y Entradas'!AQ13 -> 0.015 | N5: ='Supuestos y Entradas'!AR13 -> 0.015 | O5: ='Supuestos y Entradas'!AS13 -> 0.015
B6: Demanda (No. Pasajeros) | E6: =IF(Fase=1,'Supuestos y Entradas'!AJ14,0)+IF(Fase=2,'Supuestos y Entradas'!AJ15,0)+IF(Fase=3,'Supuestos y Entradas'!AJ16,0) ->  | G6: 251343.5358 | H6: 257819.2225 | I6: 264802.4403 | J6: 272324.7211 | K6: 280420.546 | L6: 289127.6039 | M6: 298487.0775 | N6: 308543.96 | O6: 319347.4064
B7: Ingresos necesarios por pasajero | E7: =IngresoPasajeroF1 -> 0.03631783107 | G7: 0.03631783107 | H7: 0.03631783107 | I7: 0.03631783107 | J7: 0.03631783107 | K7: 0.03631783107 | L7: 0.03631783107 | M7: 0.03631783107 | N7: 0.03631783107 | O7: 0.03631783107
A8: PROYECCIONES | E8: 1 | G8: 2 | H8: 3 | I8: 4 | J8: 5 | K8: 6 | L8: 7 | M8: 8 | N8: 9 | O8: 10
B9: Ingresos Operacionales del sistema | E9: ='Supuestos y Entradas'!AJ14*E7 -> 15253489.05 | G9: ='Supuestos y Entradas'!AK14*G7 -> 15482291.39 | H9: ='Supuestos y Entradas'!AL14*H7 -> 15714525.76 | I9: ='Supuestos y Entradas'!AM14*I7 -> 15950243.64 | J9: ='Supuestos y Entradas'!AN14*J7 -> 16189497.3 | K9: ='Supuestos y Entradas'!AO14*K7 -> 16432339.76 | L9: ='Supuestos y Entradas'!AP14*L7 -> 16678824.85 | M9: ='Supuestos y Entradas'!AQ14*M7 -> 16929007.23 | N9: ='Supuestos y Entradas'!AR14*N7 -> 17182942.34 | O9: ='Supuestos y Entradas'!AS14*O7 -> 17440686.47
B10: Opex (tecnología) | E10: =(OpexSistemaCentral+OpexSIRCorredores+OpexSAECorredores+OpexSIUCorredores)*MesesPorAño*E4 -> 4623759.543 | G10: =(OpexSistemaCentral+OpexSIRCorredores+OpexSAECorredores+OpexSIUCorredores)*MesesPorAño*G4 -> 4759744.311 | H10: 4856985.887 | I10: 4943537.376 | J10: 5022633.974 | K10: 5097973.484 | L10: 5174443.086 | M10: 5252059.732 | N10: 5330840.628 | O10: 5410803.237
B11: Opex (Personal) | E11: =OpexAdminitrativo*MesesPorAño*E4 -> 3672380.964 | G11: 3780385.688 | H11: 3857618.968 | I11: 3926361.738 | J11: 3989183.526 | K11: 4049021.279 | L11: 4109756.598 | M11: 4171402.947 | N11: 4233973.991 | O11: 4297483.601
B12: Capex (Tecnología) | C12: TR | D12: FASE | E12: =SUM(E13,E15,E16,E17,E47,E55) -> 37119350.69 | F12: =E12/$E$12 -> 1 | G12: =SUM(G13,G15,G16,G17,G47,G55) -> 0 | H12: 0 | I12: 0 | J12: 3151534.789 | K12: 0 | L12: 0 | M12: 0 | N12: 0 | O12: 33965500.48
B13: Capex Centro de Datos | C13: ='CAPEX (Tecnología)'!$M$5 -> 5 | D13: 1 | E13: =CapexCentroDatos*E$4 -> 7780789.745 | F13: =E13/$E$12 -> 0.2096154593 | G13: =IF(G8=CEILING(G8,'CAPEX (Tecnología)'!$M$5),(CapexCentroDatos-CostoSoftware)*'CAPEX (Tecnología)'!$N$5*G4,0) -> 0 | H13: =IF(H8=CEILING(H8,'CAPEX (Tecnología)'!$M$5),(CapexCentroDatos-CostoSoftware)*'CAPEX (Tecnología)'!$N$5*H4,0) -> 0 | I13: =IF(I8=CEILING(I8,'CAPEX (Tecnología)'!$M$5),(CapexCentroDatos-CostoSoftware)*'CAPEX (Tecnología)'!$N$5*I4,0) -> 0 | J13: =IF(J8=CEILING(J8,'CAPEX (Tecnología)'!$M$5),(CapexCentroDatos-CostoSoftware)*'CAPEX (Tecnología)'!$N$5*J4,0) -> 1305190.521 | K13: =IF(K8=CEILING(K8,'CAPEX (Tecnología)'!$M$5),(CapexCentroDatos-CostoSoftware)*'CAPEX (Tecnología)'!$N$5*K4,0) -> 0 | L13: =IF(L8=CEILING(L8,'CAPEX (Tecnología)'!$M$5),(CapexCentroDatos-CostoSoftware)*'CAPEX (Tecnología)'!$N$5*L4,0) -> 0 | M13: =IF(M8=CEILING(M8,'CAPEX (Tecnología)'!$M$5),(CapexCentroDatos-CostoSoftware)*'CAPEX (Tecnología)'!$N$5*M4,0) -> 0 | N13: =IF(N8=CEILING(N8,'CAPEX (Tecnología)'!$M$5),(CapexCentroDatos-CostoSoftware)*'CAPEX (Tecnología)'!$N$5*N4,0) -> 0 | O13: =IF(O8=CEILING(O8,'CAPEX (Tecnología)'!$M$5),(CapexCentroDatos-CostoSoftware)*'CAPEX (Tecnología)'!$N$5*O4,0) -> 1406060.87 | R13: 41 | S13: =SUM(F13,F15,F16) -> 0.2554060264
B14: Software de Infraestructura y Sistema de Recaudo | E14: =CostoSoftware*E$4 -> 6579251.437 | F14: 0.1772458654 | G14: 0 | H14: 0 | I14: 0 | J14: 0 | K14: 0 | L14: 0 | M14: 0 | N14: 0 | O14: 0
B15: Capex Centro de Control | C15: ='CAPEX (Tecnología)'!$M$64 -> 5 | D15: 1 | E15: =CapexCentroControl*E4 -> 119631.8088 | F15: 0.003222896053 | G15: =IF(G8=CEILING(G8,'CAPEX (Tecnología)'!$M$64),CapexCentroControl*'CAPEX (Tecnología)'!$N$64*G4,0) -> 0 | H15: =IF(H8=CEILING(H8,'CAPEX (Tecnología)'!$M$64),CapexCentroControl*'CAPEX (Tecnología)'!$N$64*H4,0) -> 0 | I15: =IF(I8=CEILING(I8,'CAPEX (Tecnología)'!$M$64),CapexCentroControl*'CAPEX (Tecnología)'!$N$64*I4,0) -> 0 | J15: =IF(J8=CEILING(J8,'CAPEX (Tecnología)'!$M$64),CapexCentroControl*'CAPEX (Tecnología)'!$N$64*J4,0) -> 129951.9972 | K15: =IF(K8=CEILING(K8,'CAPEX (Tecnología)'!$M$64),CapexCentroControl*'CAPEX (Tecnología)'!$N$64*K4,0) -> 0 | L15: =IF(L8=CEILING(L8,'CAPEX (Tecnología)'!$M$64),CapexCentroControl*'CAPEX (Tecnología)'!$N$64*L4,0) -> 0 | M15: =IF(M8=CEILING(M8,'CAPEX (Tecnología)'!$M$64),CapexCentroControl*'CAPEX (Tecnología)'!$N$64*M4,0) -> 0 | N15: =IF(N8=CEILING(N8,'CAPEX (Tecnología)'!$M$64),CapexCentroControl*'CAPEX (Tecnología)'!$N$64*N4,0) -> 0 | O15: =IF(O8=CEILING(O8,'CAPEX (Tecnología)'!$M$64),CapexCentroControl*'CAPEX (Tecnología)'!$N$64*O4,0) -> 139995.2079 | R15: 52
B16: Capex Servicios Profesionales CD y CC | C16: ='CAPEX (Tecnología)'!$M$71 -> 5 | D16: 1 | E16: =CapexServiciosProfesionalesCDyCC*E4 -> 1580084.311 | F16: 0.04256767107 | G16: =IF(G$8=CEILING(G$8,'CAPEX (Tecnología)'!$M$71),CapexServiciosProfesionalesCDyCC*'CAPEX (Tecnología)'!$N$71*G$4,0) -> 0 | H16: =IF(H8=CEILING(H8,'CAPEX (Tecnología)'!$M$71),CapexServiciosProfesionalesCDyCC*'CAPEX (Tecnología)'!$N$71*H4,0) -> 0 | I16: =IF(I8=CEILING(I8,'CAPEX (Tecnología)'!$M$71),CapexServiciosProfesionalesCDyCC*'CAPEX (Tecnología)'!$N$71*I4,0) -> 0 | J16: =IF(J8=CEILING(J8,'CAPEX (Tecnología)'!$M$71),CapexServiciosProfesionalesCDyCC*'CAPEX (Tecnología)'!$N$71*J4,0) -> 1716392.271 | K16: =IF(K8=CEILING(K8,'CAPEX (Tecnología)'!$M$71),CapexServiciosProfesionalesCDyCC*'CAPEX (Tecnología)'!$N$71*K4,0) -> 0 | L16: =IF(L8=CEILING(L8,'CAPEX (Tecnología)'!$M$71),CapexServiciosProfesionalesCDyCC*'CAPEX (Tecnología)'!$N$71*L4,0) -> 0 | M16: =IF(M8=CEILING(M8,'CAPEX (Tecnología)'!$M$71),CapexServiciosProfesionalesCDyCC*'CAPEX (Tecnología)'!$N$71*M4,0) -> 0 | N16: =IF(N8=CEILING(N8,'CAPEX (Tecnología)'!$M$71),CapexServiciosProfesionalesCDyCC*'CAPEX (Tecnología)'!$N$71*N4,0) -> 0 | O16: =IF(O8=CEILING(O8,'CAPEX (Tecnología)'!$M$71),CapexServiciosProfesionalesCDyCC*'CAPEX (Tecnología)'!$N$71*O4,0) -> 1849041.938 | R16: 3
B17: SIR-CORREDORES | E17: =SUM(E18:E20,E21,E24) -> 21951630.06 | F17: 0.5913796888 | G17: =SUM(G18:G20,G21,G24) -> 0 | H17: 0 | I17: 0 | J17: 0 | K17: 0 | L17: 0 | M17: 0 | N17: 0 | O17: 23878582.39 | R17: 4
B18: Capex Medios de Pago | E18: =CapexMediosdePagoCorredores*E4 -> 1515993.121 | F18: 0.04084104632 | G18: 0 | H18: 0 | I18: 0 | J18: 0 | K18: 0 | L18: 0 | M18: 0 | N18: 0 | O18: 0 | R18: =SUM(R13:R17) -> 100
B19: Equipos 1 | C19: 10 | D19: 1 | E19: =(CapexSIRBusesAlimentadores+CapexRedRecargaCorredores+CapexPPCorredores+SUM('CAPEX (Tecnología)'!$K$97,'CAPEX (Tecnología)'!$K$102:$K$106)+CapexTorniqueteDiscaParadasCorredores+CapexCamarasParadasCorredores)*E4 -> 10772554.78 | F19: 0.2902139874 | G19: =IF(G8=CEILING(G8,$C$19),$E$19*(G4/$E$4),0) -> 0 | H19: =IF(H8=CEILING(H8,$C$19),$E$19*(H4/$E$4),0) -> 0 | I19: 0 | J19: 0 | K19: 0 | L19: 0 | M19: 0 | N19: 0 | O19: 12606229.57
B20: Equipos 2 | C20: 10 | D20: 1 | E20: =CapexTorniqueteParadasCorredores*E4 -> 4351360.891 | F20: 0.1172262125 | G20: =IF(G$8=CEILING(G$8,$C$20),$E$20*(G4/$E$4),0) -> 0 | H20: =IF(H$8=CEILING(H$8,$C$20),$E$20*(H4/$E$4),0) -> 0 | I20: 0 | J20: 0 | K20: 0 | L20: 0 | M20: 0 | N20: 0 | O20: 5092037.633
B21: Otros (Repuestos) | E21: =SUM(E22:E23)*E4 -> 774838.8824 | F21: 0.02087425744 | G21: =SUM(G22:G23) -> 0 | H21: 0 | I21: 0 | J21: 0 | K21: 0 | L21: 0 | M21: 0 | N21: 0 | O21: 871177.0988
B22: Repuestos 1 | C22: ='CAPEX (Tecnología)'!$M$109 -> 10 | D22: 1 | E22: =CapexSIRCorredoresRepuestos1*E4 -> 526889.5244 | F22: 0.01419447039 | G22: =IF(G$8=CEILING(G$8,'CAPEX (Tecnología)'!$M$109),CapexSIRCorredoresRepuestos1*G$4*'CAPEX (Tecnología)'!$N$109,0) -> 0 | H22: =IF(H$8=CEILING(H$8,'CAPEX (Tecnología)'!$M$109),CapexSIRCorredoresRepuestos1*H$4*'CAPEX (Tecnología)'!$N$109,0) -> 0 | I22: =IF(I$8=CEILING(I$8,'CAPEX (Tecnología)'!$M$109),CapexSIRCorredoresRepuestos1*I$4*'CAPEX (Tecnología)'!$N$109,0) -> 0 | J22: =IF(J$8=CEILING(J$8,'CAPEX (Tecnología)'!$M$109),CapexSIRCorredoresRepuestos1*J$4*'CAPEX (Tecnología)'!$N$109,0) -> 0 | K22: =IF(K$8=CEILING(K$8,'CAPEX (Tecnología)'!$M$109),CapexSIRCorredoresRepuestos1*K$4*'CAPEX (Tecnología)'!$N$109,0) -> 0 | L22: =IF(L$8=CEILING(L$8,'CAPEX (Tecnología)'!$M$109),CapexSIRCorredoresRepuestos1*L$4*'CAPEX (Tecnología)'!$N$109,0) -> 0 | M22: =IF(M$8=CEILING(M$8,'CAPEX (Tecnología)'!$M$109),CapexSIRCorredoresRepuestos1*M$4*'CAPEX (Tecnología)'!$N$109,0) -> 0 | N22: =IF(N$8=CEILING(N$8,'CAPEX (Tecnología)'!$M$109),CapexSIRCorredoresRepuestos1*N$4*'CAPEX (Tecnología)'!$N$109,0) -> 0 | O22: =IF(O$8=CEILING(O$8,'CAPEX (Tecnología)'!$M$109),CapexSIRCorredoresRepuestos1*O$4*'CAPEX (Tecnología)'!$N$109,0) -> 616575.2172
B23: Repuestos 2 | C23: ='CAPEX (Tecnología)'!$M$110 -> 10 | D23: 1 | E23: =CapexSIRCorredoresRepuestos2*E4 -> 217568.0446 | F23: 0.005861310624 | G23: =IF(G$8=CEILING(G$8,'CAPEX (Tecnología)'!$M$110),CapexSIRCorredoresRepuestos2*G$4*'CAPEX (Tecnología)'!$N$110,0) -> 0 | H23: =IF(H$8=CEILING(H$8,'CAPEX (Tecnología)'!$M$110),CapexSIRCorredoresRepuestos2*H$4*'CAPEX (Tecnología)'!$N$110,0) -> 0 | I23: =IF(I$8=CEILING(I$8,'CAPEX (Tecnología)'!$M$110),CapexSIRCorredoresRepuestos2*I$4*'CAPEX (Tecnología)'!$N$110,0) -> 0 | J23: =IF(J$8=CEILING(J$8,'CAPEX (Tecnología)'!$M$110),CapexSIRCorredoresRepuestos2*J$4*'CAPEX (Tecnología)'!$N$110,0) -> 0 | K23: =IF(K$8=CEILING(K$8,'CAPEX (Tecnología)'!$M$110),CapexSIRCorredoresRepuestos2*K$4*'CAPEX (Tecnología)'!$N$110,0) -> 0 | L23: =IF(L$8=CEILING(L$8,'CAPEX (Tecnología)'!$M$110),CapexSIRCorredoresRepuestos2*L$4*'CAPEX (Tecnología)'!$N$110,0) -> 0 | M23: =IF(M$8=CEILING(M$8,'CAPEX (Tecnología)'!$M$110),CapexSIRCorredoresRepuestos2*M$4*'CAPEX (Tecnología)'!$N$110,0) -> 0 | N23: =IF(N$8=CEILING(N$8,'CAPEX (Tecnología)'!$M$110),CapexSIRCorredoresRepuestos2*N$4*'CAPEX (Tecnología)'!$N$110,0) -> 0 | O23: =IF(O$8=CEILING(O$8,'CAPEX (Tecnología)'!$M$110),CapexSIRCorredoresRepuestos2*O$4*'CAPEX (Tecnología)'!$N$110,0) -> 254601.8816
B24: Servicios profesionales equipos en campo | C24: ='CAPEX (Tecnología)'!M113 -> 10 | D24: 1 | E24: =CapexSIRCorredoresSP*E4 -> 4536882.392 | F24: 0.1222241852 | G24: =IF(G$8=CEILING(G$8,'CAPEX (Tecnología)'!$M$113),CapexSIRCorredoresSP*G$4*'CAPEX (Tecnología)'!$N$113,0) -> 0 | H24: =IF(H$8=CEILING(H$8,'CAPEX (Tecnología)'!$M$113),CapexSIRCorredoresSP*H$4*'CAPEX (Tecnología)'!$N$113,0) -> 0 | I24: =IF(I$8=CEILING(I$8,'CAPEX (Tecnología)'!$M$113),CapexSIRCorredoresSP*I$4*'CAPEX (Tecnología)'!$N$113,0) -> 0 | J24: =IF(J$8=CEILING(J$8,'CAPEX (Tecnología)'!$M$113),CapexSIRCorredoresSP*J$4*'CAPEX (Tecnología)'!$N$113,0) -> 0 | K24: =IF(K$8=CEILING(K$8,'CAPEX (Tecnología)'!$M$113),CapexSIRCorredoresSP*K$4*'CAPEX (Tecnología)'!$N$113,0) -> 0 | L24: =IF(L$8=CEILING(L$8,'CAPEX (Tecnología)'!$M$113),CapexSIRCorredoresSP*L$4*'CAPEX (Tecnología)'!$N$113,0) -> 0 | M24: =IF(M$8=CEILING(M$8,'CAPEX (Tecnología)'!$M$113),CapexSIRCorredoresSP*M$4*'CAPEX (Tecnología)'!$N$113,0) -> 0 | N24: =IF(N$8=CEILING(N$8,'CAPEX (Tecnología)'!$M$113),CapexSIRCorredoresSP*N$4*'CAPEX (Tecnología)'!$N$113,0) -> 0 | O24: =IF(O$8=CEILING(O$8,'CAPEX (Tecnología)'!$M$113),CapexSIRCorredoresSP*O$4*'CAPEX (Tecnología)'!$N$113,0) -> 5309138.095
B25: SIR-COLECTIVOS | F25: 0
B26: Capex Medios de Pago | F26: 0
B27: Equipos 1 | F27: 0
B28: Otros (Repuestos) | F28: 0
B29: Repuestos 1 | F29: 0
B30: Servicios profesionales equipos en campo | F30: 0
B31: SIR-METRO | F31: 0
B32: Capex Medios de Pago | F32: 0
B33: Equipos 1 | F33: 0
B34: Equipos 2 | F34: 0
B35: Otros (Repuestos) | F35: 0
B36: Repuestos 1 | F36: 0
B37: Repuestos 2 | F37: 0
B38: Servicios profesionales equipos en campo | F38: 0
B39: SIR-CABLE | F39: 0
B40: Capex Medios de Pago | F40: 0
B41: Equipos 1 | F41: 0
B42: Equipos 2 | F42: 0
B43: Otros (Repuestos) | F43: 0
B44: Repuestos 1 | F44: 0
B45: Repuestos 2 | F45: 0
B46: Servicios profesionales equipos en campo | F46: 0
B47: SAE-CORREDORES | E47: =SUM(E48:E50) -> 3999162.562 | F47: 0.107737945 | G47: =SUM(G48:G50) -> 0 | H47: 0 | I47: 0 | J47: 0 | K47: 0 | L47: 0 | M47: 0 | N47: 0 | O47: 4716432.237
B48: Equipos 1 | C48: ='CAPEX (Tecnología)'!M205 -> 10 | D48: 1 | E48: =CapexSAECorredoresEquiposAbordo*E4 -> 3185697.676 | F48: 0.0858230981 | G48: =IF(G$8=CEILING(G$8,'CAPEX (Tecnología)'!$M$205),CapexSAECorredoresEquiposAbordo*G$4*'CAPEX (Tecnología)'!$N$205,0) -> 0 | H48: =IF(H$8=CEILING(H$8,'CAPEX (Tecnología)'!$M$205),CapexSAECorredoresEquiposAbordo*H$4*'CAPEX (Tecnología)'!$N$205,0) -> 0 | I48: =IF(I$8=CEILING(I$8,'CAPEX (Tecnología)'!$M$205),CapexSAECorredoresEquiposAbordo*I$4*'CAPEX (Tecnología)'!$N$205,0) -> 0 | J48: =IF(J$8=CEILING(J$8,'CAPEX (Tecnología)'!$M$205),CapexSAECorredoresEquiposAbordo*J$4*'CAPEX (Tecnología)'!$N$205,0) -> 0 | K48: =IF(K$8=CEILING(K$8,'CAPEX (Tecnología)'!$M$205),CapexSAECorredoresEquiposAbordo*K$4*'CAPEX (Tecnología)'!$N$205,0) -> 0 | L48: =IF(L$8=CEILING(L$8,'CAPEX (Tecnología)'!$M$205),CapexSAECorredoresEquiposAbordo*L$4*'CAPEX (Tecnología)'!$N$205,0) -> 0 | M48: =IF(M$8=CEILING(M$8,'CAPEX (Tecnología)'!$M$205),CapexSAECorredoresEquiposAbordo*M$4*'CAPEX (Tecnología)'!$N$205,0) -> 0 | N48: =IF(N$8=CEILING(N$8,'CAPEX (Tecnología)'!$M$205),CapexSAECorredoresEquiposAbordo*N$4*'CAPEX (Tecnología)'!$N$205,0) -> 0 | O48: =IF(O$8=CEILING(O$8,'CAPEX (Tecnología)'!$M$205),CapexSAECorredoresEquiposAbordo*O$4*'CAPEX (Tecnología)'!$N$205,0) -> 3727958.415
B49: Otros (Repuestos) | C49: ='CAPEX (Tecnología)'!M211 -> 10 | D49: 1 | E49: =CapexSAECorredoresRespuestos1*E4 -> 48268.1466 | F49: 0.001300349971 | G49: =IF(G$8=CEILING(G$8,'CAPEX (Tecnología)'!$M$211),CapexSAECorredoresRespuestos1*G$4*'CAPEX (Tecnología)'!$N$211,0) -> 0 | H49: =IF(H$8=CEILING(H$8,'CAPEX (Tecnología)'!$M$211),CapexSAECorredoresRespuestos1*H$4*'CAPEX (Tecnología)'!$N$211,0) -> 0 | I49: =IF(I$8=CEILING(I$8,'CAPEX (Tecnología)'!$M$211),CapexSAECorredoresRespuestos1*I$4*'CAPEX (Tecnología)'!$N$211,0) -> 0 | J49: =IF(J$8=CEILING(J$8,'CAPEX (Tecnología)'!$M$211),CapexSAECorredoresRespuestos1*J$4*'CAPEX (Tecnología)'!$N$211,0) -> 0 | K49: =IF(K$8=CEILING(K$8,'CAPEX (Tecnología)'!$M$211),CapexSAECorredoresRespuestos1*K$4*'CAPEX (Tecnología)'!$N$211,0) -> 0 | L49: =IF(L$8=CEILING(L$8,'CAPEX (Tecnología)'!$M$211),CapexSAECorredoresRespuestos1*L$4*'CAPEX (Tecnología)'!$N$211,0) -> 0 | M49: =IF(M$8=CEILING(M$8,'CAPEX (Tecnología)'!$M$211),CapexSAECorredoresRespuestos1*M$4*'CAPEX (Tecnología)'!$N$211,0) -> 0 | N49: =IF(N$8=CEILING(N$8,'CAPEX (Tecnología)'!$M$211),CapexSAECorredoresRespuestos1*N$4*'CAPEX (Tecnología)'!$N$211,0) -> 0 | O49: =IF(O$8=CEILING(O$8,'CAPEX (Tecnología)'!$M$211),CapexSAECorredoresRespuestos1*O$4*'CAPEX (Tecnología)'!$N$211,0) -> 56484.21841
B50: Servicios profesionales equipos en campo | C50: ='CAPEX (Tecnología)'!M215 -> 10 | D50: 1 | E50: =CapexSAECorredoresSP -> 765196.74 | F50: 0.02061449691 | G50: =IF(G$8=CEILING(G$8,'CAPEX (Tecnología)'!$M$215),CapexSAECorredoresSP*G$4*'CAPEX (Tecnología)'!$N$215,0) -> 0 | H50: =IF(H$8=CEILING(H$8,'CAPEX (Tecnología)'!$M$215),CapexSAECorredoresSP*H$4*'CAPEX (Tecnología)'!$N$215,0) -> 0 | I50: =IF(I$8=CEILING(I$8,'CAPEX (Tecnología)'!$M$215),CapexSAECorredoresSP*I$4*'CAPEX (Tecnología)'!$N$215,0) -> 0 | J50: =IF(J$8=CEILING(J$8,'CAPEX (Tecnología)'!$M$215),CapexSAECorredoresSP*J$4*'CAPEX (Tecnología)'!$N$215,0) -> 0 | K50: =IF(K$8=CEILING(K$8,'CAPEX (Tecnología)'!$M$215),CapexSAECorredoresSP*K$4*'CAPEX (Tecnología)'!$N$215,0) -> 0 | L50: =IF(L$8=CEILING(L$8,'CAPEX (Tecnología)'!$M$215),CapexSAECorredoresSP*L$4*'CAPEX (Tecnología)'!$N$215,0) -> 0 | M50: =IF(M$8=CEILING(M$8,'CAPEX (Tecnología)'!$M$215),CapexSAECorredoresSP*M$4*'CAPEX (Tecnología)'!$N$215,0) -> 0 | N50: =IF(N$8=CEILING(N$8,'CAPEX (Tecnología)'!$M$215),CapexSAECorredoresSP*N$4*'CAPEX (Tecnología)'!$N$215,0) -> 0 | O50: =IF(O$8=CEILING(O$8,'CAPEX (Tecnología)'!$M$215),CapexSAECorredoresSP*O$4*'CAPEX (Tecnología)'!$N$215,0) -> 931989.6038
B51: SAE-COLECTIVOS | F51: 0
B52: Equipos a bordo | F52: 0
B53: Otros (Repuestos) | F53: 0
B54: Servicios profesionales equipos en campo | F54: 0
B55: SIU-CORREDORES | E55: =SUM(E56,E57,E58,E61) -> 1688052.203 | F55: 0.04547633975 | G55: 0 | H55: 0 | I55: 0 | J55: 0 | K55: 0 | L55: 0 | M55: 0 | N55: 0 | O55: 1975387.829
B56: Equipos 1 | C56: 10 | D56: 1 | E56: =CapexSIUCorredoresVMSInternosAbordo*E4+CapexSIUCorredoresVMSExternosAbordo*E4+CapexParlantesCorredores*E4+CapexSIUCorredoresVMSParadas*E4+CapexSIUCorredoresParlantesParadas*E4 -> 1301936.406 | F56: 0.03507433136 | G56: =IF(G$8=CEILING(G$8,$C$56),$E$56*(G4/$E$4),0) -> 0 | H56: 0 | I56: 0 | J56: 0 | K56: 0 | L56: 0 | M56: 0 | N56: 0 | O56: 1523548.458
B57: Equipos 2 | C57: 10 | D57: 1 | E57: =CapexTVCorredores*E4+CapexSIUCorredoresLCDParadas*E4 -> 0 | F57: 0 | G57: =IF(G$8=CEILING(G$8,$C$57),$E$57*(G4/$E$4),0) -> 0 | H57: 0 | I57: 0 | J57: 0 | K57: 0 | L57: 0 | M57: 0 | N57: 0 | O57: 0
B58: Otros (Repuestos) | E58: =SUM(E59:E60) -> 60631.69545 | F58: 0.00163342554 | G58: =SUM(G59:G60) -> 0 | H58: 0 | I58: 0 | J58: 0 | K58: 0 | L58: 0 | M58: 0 | N58: 0 | O58: 70952.25671
B59: Repuestos 1 | C59: ='CAPEX (Tecnología)'!M241 -> 10 | D59: 1 | E59: ='CAPEX (Tecnología)'!K241*E4 -> 60631.69545 | F59: 0.00163342554 | G59: =IF(G$8=CEILING(G$8,'CAPEX (Tecnología)'!$M$241),'CAPEX (Tecnología)'!$K$241*G$4*'CAPEX (Tecnología)'!$N$241,0) -> 0 | H59: =IF(H$8=CEILING(H$8,'CAPEX (Tecnología)'!$M$241),'CAPEX (Tecnología)'!$K$241*H$4*'CAPEX (Tecnología)'!$N$241,0) -> 0 | I59: =IF(I$8=CEILING(I$8,'CAPEX (Tecnología)'!$M$241),'CAPEX (Tecnología)'!$K$241*I$4*'CAPEX (Tecnología)'!$N$241,0) -> 0 | J59: =IF(J$8=CEILING(J$8,'CAPEX (Tecnología)'!$M$241),'CAPEX (Tecnología)'!$K$241*J$4*'CAPEX (Tecnología)'!$N$241,0) -> 0 | K59: =IF(K$8=CEILING(K$8,'CAPEX (Tecnología)'!$M$241),'CAPEX (Tecnología)'!$K$241*K$4*'CAPEX (Tecnología)'!$N$241,0) -> 0 | L59: =IF(L$8=CEILING(L$8,'CAPEX (Tecnología)'!$M$241),'CAPEX (Tecnología)'!$K$241*L$4*'CAPEX (Tecnología)'!$N$241,0) -> 0 | M59: =IF(M$8=CEILING(M$8,'CAPEX (Tecnología)'!$M$241),'CAPEX (Tecnología)'!$K$241*M$4*'CAPEX (Tecnología)'!$N$241,0) -> 0 | N59: =IF(N$8=CEILING(N$8,'CAPEX (Tecnología)'!$M$241),'CAPEX (Tecnología)'!$K$241*N$4*'CAPEX (Tecnología)'!$N$241,0) -> 0 | O59: =IF(O$8=CEILING(O$8,'CAPEX (Tecnología)'!$M$241),'CAPEX (Tecnología)'!$K$241*O$4*'CAPEX (Tecnología)'!$N$241,0) -> 70952.25671
B60: Repuestos 2 | C60: ='CAPEX (Tecnología)'!M242 -> 10 | D60: 1 | E60: ='CAPEX (Tecnología)'!K242*E4 -> 0 | F60: 0 | G60: =IF(G$8=CEILING(G$8,'CAPEX (Tecnología)'!$M$242),'CAPEX (Tecnología)'!$K$242*G$4*'CAPEX (Tecnología)'!$N$242,0) -> 0 | H60: =IF(H$8=CEILING(H$8,'CAPEX (Tecnología)'!$M$242),'CAPEX (Tecnología)'!$K$242*H$4*'CAPEX (Tecnología)'!$N$242,0) -> 0 | I60: =IF(I$8=CEILING(I$8,'CAPEX (Tecnología)'!$M$242),'CAPEX (Tecnología)'!$K$242*I$4*'CAPEX (Tecnología)'!$N$242,0) -> 0 | J60: =IF(J$8=CEILING(J$8,'CAPEX (Tecnología)'!$M$242),'CAPEX (Tecnología)'!$K$242*J$4*'CAPEX (Tecnología)'!$N$242,0) -> 0 | K60: =IF(K$8=CEILING(K$8,'CAPEX (Tecnología)'!$M$242),'CAPEX (Tecnología)'!$K$242*K$4*'CAPEX (Tecnología)'!$N$242,0) -> 0 | L60: =IF(L$8=CEILING(L$8,'CAPEX (Tecnología)'!$M$242),'CAPEX (Tecnología)'!$K$242*L$4*'CAPEX (Tecnología)'!$N$242,0) -> 0 | M60: =IF(M$8=CEILING(M$8,'CAPEX (Tecnología)'!$M$242),'CAPEX (Tecnología)'!$K$242*M$4*'CAPEX (Tecnología)'!$N$242,0) -> 0 | N60: =IF(N$8=CEILING(N$8,'CAPEX (Tecnología)'!$M$242),'CAPEX (Tecnología)'!$K$242*N$4*'CAPEX (Tecnología)'!$N$242,0) -> 0 | O60: =IF(O$8=CEILING(O$8,'CAPEX (Tecnología)'!$M$242),'CAPEX (Tecnología)'!$K$242*O$4*'CAPEX (Tecnología)'!$N$242,0) -> 0
B61: Servicios profesionales equipos en campo | C61: ='CAPEX (Tecnología)'!M243 -> 10 | D61: 1 | E61: ='CAPEX (Tecnología)'!K243*E4 -> 325484.1016 | F61: 0.008768582841 | G61: =IF(G$8=CEILING(G$8,'CAPEX (Tecnología)'!$M$243),'CAPEX (Tecnología)'!$K$243*G$4*'CAPEX (Tecnología)'!$N$243,0) -> 0 | H61: =IF(H$8=CEILING(H$8,'CAPEX (Tecnología)'!$M$243),'CAPEX (Tecnología)'!$K$243*H$4*'CAPEX (Tecnología)'!$N$243,0) -> 0 | I61: =IF(I$8=CEILING(I$8,'CAPEX (Tecnología)'!$M$243),'CAPEX (Tecnología)'!$K$243*I$4*'CAPEX (Tecnología)'!$N$243,0) -> 0 | J61: =IF(J$8=CEILING(J$8,'CAPEX (Tecnología)'!$M$243),'CAPEX (Tecnología)'!$K$243*J$4*'CAPEX (Tecnología)'!$N$243,0) -> 0 | K61: =IF(K$8=CEILING(K$8,'CAPEX (Tecnología)'!$M$243),'CAPEX (Tecnología)'!$K$243*K$4*'CAPEX (Tecnología)'!$N$243,0) -> 0 | L61: =IF(L$8=CEILING(L$8,'CAPEX (Tecnología)'!$M$243),'CAPEX (Tecnología)'!$K$243*L$4*'CAPEX (Tecnología)'!$N$243,0) -> 0 | M61: =IF(M$8=CEILING(M$8,'CAPEX (Tecnología)'!$M$243),'CAPEX (Tecnología)'!$K$243*M$4*'CAPEX (Tecnología)'!$N$243,0) -> 0 | N61: =IF(N$8=CEILING(N$8,'CAPEX (Tecnología)'!$M$243),'CAPEX (Tecnología)'!$K$243*N$4*'CAPEX (Tecnología)'!$N$243,0) -> 0 | O61: =IF(O$8=CEILING(O$8,'CAPEX (Tecnología)'!$M$243),'CAPEX (Tecnología)'!$K$243*O$4*'CAPEX (Tecnología)'!$N$243,0) -> 380887.1145
B62: SIU-COLECTIVOS | F62: 0
B63: Equipos 1 | F63: 0
B64: Equipos 2 | F64: 0
B65: Otros (Repuestos) | F65: 0
B66: Repuestos 1 | F66: 0
B67: Repuestos 2 | F67: 0
B68: Servicios profesionales equipos en campo | F68: 0
B69: Capex (Personal) | C69: 10 | E69: =CapexAdministrativo*E4 -> 142546.3193 | F69: 0.00384021586 | G69: =IF(G8=CEILING(G8,$C$69),CapexAdministrativo*G4,0) -> 0 | H69: 0 | I69: 0 | J69: 0 | K69: 0 | L69: 0 | M69: 0 | N69: 0 | O69: 166810.1636
B70: Depreciaciones | C70: VU | E70: =SUM(E72,E74,E76,E78) -> 4505348.212 | G70: =SUM(G72,G74,G76,G78) -> 4505348.212 | H70: 4505348.212 | I70: 4505348.212 | J70: 5135655.17 | K70: 3239553.997 | L70: 3239553.997 | M70: 3239553.997 | N70: 3239553.997 | O70: 6345306.888
B71: Capex depreciado a 5 años | C71: 5 | E71: =SUMIFS(E13:E61,$C$13:$C$61,$C$71) -> 9480505.864 | G71: 0 | H71: 0 | I71: 0 | J71: 3151534.789 | K71: 0 | L71: 0 | M71: 0 | N71: 0 | O71: 3395098.016
B72: Depraciación a 5 años | C72: 5 | E72: =SUM(E71)/$C$72 -> 1896101.173 | G72: =SUM($E71:G71)/$C$72 -> 1896101.173 | H72: =SUM($E71:H71)/$C$72 -> 1896101.173 | I72: =SUM($E71:I71)/$C$72 -> 1896101.173 | J72: =SUM(E71:J71)/$C$72 -> 2526408.131 | K72: =SUM(G71:K71)/$C$72 -> 630306.9578 | L72: =SUM(H71:L71)/$C$72 -> 630306.9578 | M72: =SUM(I71:M71)/$C$72 -> 630306.9578 | N72: =SUM(J71:N71)/$C$72 -> 630306.9578 | O72: =SUM(K71:O71)/$C$72 -> 679019.6032
B73: Capex depreciado a 5 años | C73: 7 | E73: =SUMIFS(E13:E61,$C$13:$C$61,$C$73) -> 0 | G73: 0 | H73: 0 | I73: 0 | J73: 0 | K73: 0 | L73: 0 | M73: 0 | N73: 0 | O73: 0
B74: Depraciación a 5 años | C74: 7 | E74: =SUM(E73)/$C$73 -> 0 | G74: =SUM(E73:G73)/$C$73 -> 0 | H74: =SUM(E73:H73)/$C$73 -> 0 | I74: =SUM(E73:I73)/$C$73 -> 0 | J74: =SUM(E73:J73)/$C$73 -> 0 | K74: =SUM(E73:K73)/$C$73 -> 0 | L74: =SUM(E73:L73)/$C$73 -> 0 | M74: =SUM(G73:M73)/$C$73 -> 0 | N74: =SUM(H73:N73)/$C$73 -> 0 | O74: =SUM(I73:O73)/$C$73 -> 0
B75: Capex depreciado a 10 años | C75: 10 | E75: =SUMIFS(E13:E61,$C$13:$C$61,$C$75) -> 26092470.39 | G75: 0 | H75: 0 | I75: 0 | J75: 0 | K75: 0 | L75: 0 | M75: 0 | N75: 0 | O75: 30570402.46
B76: Depreciación a 10 años | C76: 10 | E76: =SUM($E75:E75)/$C$76 -> 2609247.039 | G76: =SUM($E75:G75)/$C$76 -> 2609247.039 | H76: =SUM($E75:H75)/$C$76 -> 2609247.039 | I76: =SUM($E75:I75)/$C$76 -> 2609247.039 | J76: =SUM($E75:J75)/$C$76 -> 2609247.039 | K76: =SUM($E75:K75)/$C$76 -> 2609247.039 | L76: =SUM($E75:L75)/$C$76 -> 2609247.039 | M76: =SUM($E75:M75)/$C$76 -> 2609247.039 | N76: =SUM($E75:N75)/$C$76 -> 2609247.039 | O76: =SUM($E75:O75)/$C$76 -> 5666287.285
B77: Capex depreciado a 15 años | C77: 15 | E77: =SUMIFS(E13:E61,$C$13:$C$61,$C$77) -> 0 | G77: 0 | H77: 0 | I77: 0 | J77: 0 | K77: 0 | L77: 0 | M77: 0 | N77: 0 | O77: 0
B78: Depreciación a 15 años | C78: 15 | E78: =SUM(E77)/$C$77 -> 0 | G78: =SUM($E77:G77)/$C$77 -> 0 | H78: =SUM($E77:H77)/$C$77 -> 0 | I78: =SUM($E77:I77)/$C$77 -> 0 | J78: =SUM($E77:J77)/$C$77 -> 0 | K78: =SUM($E77:K77)/$C$77 -> 0 | L78: =SUM($E77:L77)/$C$77 -> 0 | M78: =SUM($E77:M77)/$C$77 -> 0 | N78: =SUM($E77:N77)/$C$77 -> 0 | O78: =SUM($E77:O77)/$C$77 -> 0
F82: =SUM(F55,F47,F17,F16,F15,F13) -> 1
I96: =H96 -> 0
I97: =H97+I102 -> 0
I98: =H98+I100 -> 0
I99: =H99+I98 -> 0
I100: =H100+I96 -> 0
I101: =H101+I99 -> 0
I102: =H102+I99 -> 0
I103: =H103+I97 -> 0
I105: =H105+I103 -> 0
I106: =H106+I105 -> 0
I107: =H107+I106 -> 0
I108: =H108+I107 -> 0
I109: =H109+I108 -> 0
I117: =H117 -> 0
I118: =H118+I117 -> 0
I119: =H119+I118 -> 0
I120: =H120+I119 -> 0
I121: =H121+I120 -> 0
I122: =H122+I120 -> 0
I123: 0
I124: 0
I125: 0
I126: 0
I127: 0
I128: =H128+I127 -> 0

Sheet Tabla Opex F1 (hidden)
A1: OPEX SITI Q
B2: Item | E2: Total mensual (USD) | F2: Porcentaje
D3: TOTAL | E3: =SUM(E4,E25,E60,E81,E107,E123,E127,E131,E136) ->  | F3: =E3/$E$3 ->  | K3: 1043849.773 | L3: =(K3/E3)-1 -> 
B4: OPEX CENTRO DE DATOS Y CENTRO DE CONTROL | E4: =SUM(E5,E15) -> 127616.8926 | F4: =E4/$E$3 ->  | K4: 277498.9638 | L4: =(K4/E4)-1 -> 1.174468898
B5: Centro de datos | E5: =SUM(E6,E7,E14) -> 124588.0891 | K5: 274704.6253 | L5: 1.204902791
B6: Energía (kWh) | C6: =HorasAlDia*DiasOperacionAlMes*TotalConsumoEnergia -> 26944.13477 | D6: =(15*0.078+9*0.062)/24 -> 0.072 | E6: =D6*C6 -> 1939.977703 | K6: 1745.979933 | L6: -0.1
B7: Mantenimiento | E7: =SUM(E8:E13) -> 121264.1114 | K7: 271574.6454 | L7: 1.239530247
B8: Servidores | C8: =MantenimientoTIC/MesesPorAño -> 0.005 | D8: =CostoServidores -> 68396.16 | E8: =D8*C8 -> 341.9808 | K8: 341.9808 | L8: 0
B9: Equipos de almacenamiento | C9: =MantenimientoTIC/MesesPorAño -> 0.005 | D9: =CostoEquiposAlmacenamiento -> 50764.392 | E9: 253.82196 | K9: 253.82196 | L9: 0
B10: Equipos de comunicación | C10: =MantenimientoTIC/MesesPorAño -> 0.005 | D10: =CostoRedesyComunicaciones -> 23096.64 | E10: 115.4832 | K10: 115.4832 | L10: 0
B11: Infraestructura y Acondiciomaniento | C11: =MantenimientoInfraestructura/MesesPorAño -> 0.004166666667 | D11: =CostoInfraestructuraAcondicionamiento -> 1119046.104 | E11: 4662.692099 | K11: 4662.692099 | L11: 0
B12: Software | C12: =MantenimientoSoftwareDC/MesesPorAño -> 0.01833333333 | D12: =CostoSoftware -> 6321280 | E12: 115890.1333 | K12: 266200.6673 | L12: 1.297008897
B13: Costo subscripción SW Atención a usuarios | C13: =2*0 -> 0 | D13: =17005 -> 17005 | E13: 0 | K13: 0
B14: Comunicaciones | C14: =NumCentrosControlCorredores+NumCentrosControlColectivos -> 1 | D14: =PlanDatosCentroDatos -> 1384 | E14: =C14*D14 -> 1384 | K14: 1384 | L14: 0
B15: Centro de Control | E15: =SUM(E18,E17,E16) -> 3028.80348 | K15: 2794.33848 | L15: -0.07741175733
B16: Comunicaciones | C16: =NumCentrosControlCorredores+NumCentrosControlColectivos -> 1 | D16: =PlanDatosOtros -> 52 | E16: =D16*C16 -> 52 | H16: =PorcRecRedExternaCorredores -> 0.3 | K16: 52 | L16: 0
B17: Arriendo oficinas Centro de Control | C17: =NumCentrosControlCorredores+NumCentrosControlColectivos -> 1 | D17: =ArriendoCentroControl -> 2422 | E17: =D17*C17 -> 2422 | K17: 2422 | L17: 0
B18: Mantenimiento | E18: =SUM(E19:E24) -> 554.80348 | K18: 320.33848 | L18: -0.4226091012
B19: Modem | C19: =MantenimientoTIC/MesesPorAño -> 0.005 | D19: =CapexModemCC -> 36.456 | E19: =D19*C19 -> 0.18228 | K19: 0.18228 | L19: 0
B20: Switch | C20: =MantenimientoTIC/MesesPorAño -> 0.005 | D20: =CapexSwitchCC -> 470.4 | E20: 2.352 | K20: 2.352 | L20: 0
B21: Computador | C21: =MantenimientoTIC/MesesPorAño -> 0.005 | D21: =CapexComputadorCC -> 90552 | E21: 452.76 | K21: 258.72 | L21: -0.4285714286
B22: Mesa | C22: =MantenimientoInfraestructura/MesesPorAño -> 0.004166666667 | D22: =CapexMesaCC -> 13582.8 | E22: 56.595 | K22: 32.34 | L22: -0.4285714286
B23: Silla | C23: =MantenimientoInfraestructura/MesesPorAño -> 0.004166666667 | D23: =CapexSillaCC -> 9055.2 | E23: 37.73 | K23: 21.56 | L23: -0.4285714286
B24: UPS | C24: =MantenimientoInfraestructura/MesesPorAño -> 0.004166666667 | D24: =CapexUPSCC -> 1244.208 | E24: 5.1842 | K24: 5.1842 | L24: 0
B25: OPEX EQUIPOS EN CAMPO - SIR - CORREDORES | E25: =SUM(E26,E30,E33,E43,E51,E53) -> 228637.6748 | K25: 265176.0616 | L25: =(K25/E25)-1 -> 0.159809125
B26: Buses Alimentadores | E26: =SUM(E27:E28) -> 21303.4752 | K26: 20683.7232 | L26: -0.02909159159
B27: Mantenimiento Cámaras Estereoscópicas | C27: =MantenimientoEquiposCampoyAbordo/MesesPorAño -> 0.006666666667 | D27: =CapexCamaraEstereosAlimentadores -> 2536984.8 | E27: =D27*C27*TRMUSDaUSD -> 16913.232 | K27: 13615.336 | L27: -0.1949891068
B28: Mantenimiento Validador | C28: =MantenimientoEquiposCampoyAbordo/MesesPorAño -> 0.006666666667 | D28: =CapexValidadorAlimentadores -> 658536.48 | E28: =D28*C28*TRMUSDaUSD -> 4390.2432 | K28: 7068.3872 | L28: 0.6100217865
B29: Mantenimiento Máquinas de Inspección | C29: =MantenimientoEquiposCampoyAbordo/MesesPorAño -> 0.006666666667 | D29: ='CAPEX (Tecnología)'!K80 -> 0 | E29: =D29*C29*TRMUSDaUSD -> 0 | F29: =E29/$E$3 ->  | K29: 0
B30: Puntos de recarga externa | E30: =SUM(E31:E32) -> 85659 | K30: 121607.208 | L30: 0.4196664449
B31: Red de Recarga Externa (inc. Comunicaciones) | C31: =ComisionRedExterna -> 0.03 | D31: =RecaudoDiarioCorredoresUF1*DiasOperacionAlMes*PorcRecRedExternaCorredores -> 2816100 | E31: =D31*C31 -> 84483 | K31: 118079.208 | L31: 0.3976682646
B32: Mantenimiento puntos de recarga externa | C32: =MantenimientoEquiposCampoyAbordo/MesesPorAño -> 0.006666666667 | D32: =CapexDispoRecargaCorredores -> 176400 | E32: =D32*C32 -> 1176 | K32: 3528 | L32: 2
B33: Puntos de personalización | E33: =SUM(E34,E42) -> 66.0168 | K33: 132.0336 | L33: 1
B34: Mantenimiento | E34: =SUM(E35:E41) -> 66.0168 | K34: 132.0336 | L34: 1
B35: Silla | C35: =MantenimientoInfraestructura/MesesPorAño -> 0.004166666667 | D35: =CapexSillaPPCorredores -> 240 | E35: =D35*C35 -> 1 | K35: 2 | L35: 1
B36: Escritorio | C36: =MantenimientoInfraestructura/MesesPorAño -> 0.004166666667 | D36: =CapexEscritorioPPCorredores -> 480 | E36: =D36*C36 -> 2 | K36: 4 | L36: 1
B37: Computador | C37: =MantenimientoTIC/MesesPorAño -> 0.005 | D37: =CapexComputadorPPCorredores -> 6300 | E37: 31.5 | K37: 63 | L37: 1
B38: Impresora de tarjetas | C38: =MantenimientoEquiposCampoyAbordo/MesesPorAño -> 0.006666666667 | D38: =CapexImpresoraPPCorredores -> 4092.48 | E38: 27.2832 | K38: 54.5664 | L38: 1
B39: Lector de tarjetas | C39: =MantenimientoEquiposCampoyAbordo/MesesPorAño -> 0.006666666667 | D39: =CapexLectorTarjetasPPCorredores -> 423.36 | E39: 2.8224 | K39: 5.6448 | L39: 1
B40: Dispositivo de recarga | C40: =MantenimientoEquiposCampoyAbordo/MesesPorAño -> 0.006666666667 | D40: =CapexDispositivoRecargaPPCorredores -> 0 | E40: 0 | K40: 0
B41: Cámara web | C41: =MantenimientoEquiposCampoyAbordo/MesesPorAño -> 0.006666666667 | D41: =CapexCamaraWebPPCorredores -> 211.68 | E41: 1.4112 | K41: 2.8224 | L41: 1
B42: Costos de alquiler de fibra óptica | C42: =NumModulosPersonalizacionCorredores*0 -> 0 | D42: =CostoAlquilerFibraPunto -> 15 | E42: =C42*D42 -> 0 | H42: =18634580/52 -> 358357.3077 | K42: 0
B43: Paradas | E43: =SUM(E44:E50) -> 74616.15133 | H43: =28413467/52 -> 546412.8269 | K43: 68664.252 | L43: -0.07976690337
B44: Máquinas VRM | C44: =MantenimientoEquiposCampoyAbordo/MesesPorAño -> 0.006666666667 | D44: =CapexVRMCorredores -> 5304348 | E44: =D44*C44 -> 35362.32 | H44: =27885925/52 -> 536267.7885 | K44: 25472.16 | L44: -0.2796807449
B45: Torniquetes dicapacitados | C45: =MantenimientoEquiposCampoyAbordo/MesesPorAño -> 0.006666666667 | D45: =CapexTorniqueteDiscaParadasCorredores -> 917561.4 | E45: 6117.076 | H45: =25390231/52 -> 488273.6731 | K45: 6792.996 | L45: 0.1104972376
B46: Torniquetes + Validador | C46: =MantenimientoEquiposCampoyAbordo/MesesPorAño -> 0.006666666667 | D46: =CapexTorniqueteParadasCorredores -> 4180744.7 | E46: 27871.63133 | K46: 31454.588 | L46: 0.1285520974
B47: Máquina CIM | C47: =MantenimientoEquiposCampoyAbordo/MesesPorAño -> 0.006666666667 | D47: =CapexMaquinaCIMCorredores -> 0 | E47: 0 | K47: 0
B48: Handhelds de recarga e Inspeccion | C48: =MantenimientoEquiposCampoyAbordo/MesesPorAño -> 0.006666666667 | D48: =CapexHHParadasCorredores -> 112896 | E48: 752.64 | K48: 87.024 | L48: -0.884375
B49: Costos de alquiler de fibra óptica | C49: =NumParadaCorredoresUF1 -> 143 | D49: =CostoAlquilerFibraPunto -> 15 | E49: 2145 | K49: 2490 | L49: 0.1608391608
B50: Camaras de conteo | C50: =MantenimientoEquiposCampoyAbordo/MesesPorAño -> 0.006666666667 | D50: =CapexCamarasParadasCorredores -> 355122.6 | E50: =D50*C50 -> 2367.484 | K50: 2367.484 | L50: 0
B51: Costos de distribución de tarjetas en red de recarga externa | E51: =E52 -> 0 | K51: 0
B52: Costos de distribución | C52: ='Red de recarga externa'!D33 -> 0 | D52: =PuntosRedRecargaExternaCorredores -> 500 | E52: =D52*C52 -> 0 | K52: 0
B53: Transporte de valores | E53: =SUM(E54:E59) -> 46993.0315 | K53: 54088.8448 | L53: 0.1509971388
B54: Costo de conteo por mes | C54: =CostoConteo -> 0.0008 | D54: =RecaudoDiarioCorredoresUF1*DiasOperacionAlMes -> 9387000 | E54: =D54*C54 -> 7509.6 | K54: 7871.9472 | L54: 0.04825119847
B55: Costo total de recolección por mes | C55: =NumParadaCorredoresUF1*RecoleccionesDía*DíasAlMesRecoleccion -> 3861 | D55: =CostoRecoleccio -> 6 | E55: =D55*C55 -> 23166 | K55: 26892 | L55: 0.1608391608
B56: Costo total de preparación por mes | C56: =(NumMaqVRMCorredoresUF1+NumModulosPersonalizacionCorredores)*PreparacionesDía*DíasAlMesRecoleccion -> 8017.65 | D56: =CostoPreparación -> 0.31 | E56: =C56*D56 -> 2485.4715 | K56: 2956.284 | L56: 0.1894258293
B57: Costo total de turros por mes | C57: =(NumMaqVRMCorredoresUF1+NumModulosPersonalizacionCorredores)*TurrosPuntoDía*DíasAlMesRecoleccion -> 240529.5 | D57: =CostoTurro -> 0.02 | E57: =D57*C57 -> 4810.59 | K57: 5721.84 | L57: 0.1894258293
B58: Costo total de cambio por mes | C58: =CostoMensualDeCambio -> 0.0004 | D58: =(RecaudoDiarioCorredoresUF1)*DíasAlMesRecoleccion -> 8448300 | E58: =D58*C58 -> 3379.32 | K58: 3935.9736 | L58: 0.1647235539
B59: Costo total de insumos por mes | C59: =NumMaqVRMCorredoresUF1+NumModulosPersonalizacionCorredores -> 296.95 | D59: =CostoInsumosPuntoMes -> 19 | E59: =C59*D59 -> 5642.05 | K59: 6710.8 | L59: 0.1894258293
B60: OPEX EQUIPOS EN CAMPO - SIR - COLECTIVOS | E60: =IF(Fase<>1,SUM(E61,E66,E69,E79),0) ->  | K60: 476053.1924
B61: Buses Colectivos | E61: =SUM(E62:E64) -> 39092.592 | K61: 45348.52 | L61: 0.160028478
B62: Mantenimiento torniquete | C62: =MantenimientoEquiposCampoyAbordo/MesesPorAño -> 0.006666666667 | D62: =CapexCamaraEstereosColectivos -> 4175799.6 | E62: =D62*C62*TRMUSDaUSD -> 27838.664 | K62: 25075.064 | L62: -0.09927200529
B63: Mantenimiento Validador | C63: =MantenimientoEquiposCampoyAbordo/MesesPorAño -> 0.006666666667 | D63: =CapexValidadorColectivos -> 1688089.2 | E63: =D63*C63*TRMUSDaUSD -> 11253.928 | K63: 20273.456 | L63: 0.8014559894
B64: Router 3G WIFI | C64: =MantenimientoEquiposCampoyAbordo/MesesPorAño -> 0.006666666667 | D64: =CapexRouter3GWIFIColectivos -> 0 | E64: =D64*C64*TRMUSDaUSD -> 0 | K64: 0
B65: Mantenimiento máquinas de Inspección | C65: =MantenimientoEquiposCampoyAbordo/MesesPorAño -> 0.006666666667 | D65: ='CAPEX (Tecnología)'!K125 -> 0 | E65: =D65*C65*TRMUSDaUSD -> 0 | K65: 0
B66: Puntos de recarga externa | E66: =SUM(E67:E68) -> 358165.875 | K66: 430504.65 | L66: =(K66/E66)-1 -> 0.2019700369
B67: Red de Recarga Externa (inc. Comunicaciones) | C67: =ComisionRedExterna -> 0.03 | D67: =RecaudoDiarioColectivos*DiasOperacionAlMes -> 11860462.5 | E67: =D67*C67 -> 355813.875 | K67: 426976.65 | L67: 0.2
B68: Mantenimiento puntos de recarga externa | C68: =MantenimientoEquiposCampoyAbordo/MesesPorAño -> 0.006666666667 | D68: =CapexDispoRecargaColectivos -> 352800 | E68: =D68*C68*Fase2 -> 2352 | K68: 3528 | L68: =(K68/E68)-1 -> 0.5
B69: Puntos de personalización (portatiles) | E69: =SUM(E70,E78) -> 200.0224 | K69: 200.0224 | L69: 0
B70: Mantenimiento | E70: =SUM(E71:E77) -> 88.0224 | K70: 88.0224 | L70: 0
B71: Silla | C71: =MantenimientoInfraestructura/MesesPorAño -> 0.004166666667 | D71: =CapexSillaPPColectivos -> 320 | E71: =D71*C71 -> 1.333333333 | K71: 1.333333333 | L71: 0
B72: Escritorio | C72: =MantenimientoInfraestructura/MesesPorAño -> 0.004166666667 | D72: =CapexEscritorioPPColectivos -> 640 | E72: =D72*C72 -> 2.666666667 | F72: =E72/$E$3 ->  | K72: 2.666666667 | L72: 0
B73: Computador | C73: =MantenimientoTIC/MesesPorAño -> 0.005 | D73: =CapexComputadorPPColectivos -> 8400 | E73: 42 | K73: 42 | L73: 0
B74: Impresora de tarjetas | C74: =MantenimientoEquiposCampoyAbordo/MesesPorAño -> 0.006666666667 | D74: =CapexImpresoraPPColectivos -> 5456.64 | E74: 36.3776 | K74: 36.3776 | L74: 0
B75: Lector de tarjetas | C75: =MantenimientoEquiposCampoyAbordo/MesesPorAño -> 0.006666666667 | D75: =CapexLectorTarjetasPPColectivos -> 564.48 | E75: 3.7632 | K75: 3.7632 | L75: 0
B76: Dispositivo de recarga | C76: =MantenimientoEquiposCampoyAbordo/MesesPorAño -> 0.006666666667 | D76: =CapexDispositivoRecargaPPColectivos -> 0 | E76: 0 | K76: 0
B77: Cámara web | C77: =MantenimientoEquiposCampoyAbordo/MesesPorAño -> 0.006666666667 | D77: =CapexCamaraWebPPColectivos -> 282.24 | E77: 1.8816 | K77: 1.8816 | L77: 0
B78: Comunicaciones (es portatil) | C78: =NumModulosAtencionColectivos -> 8 | D78: =PlanDatosCampo -> 14 | E78: =C78*D78 -> 112 | K78: 112 | L78: 0
B79: Costos de distribución de tarjetas en red de recarga externa | E79: =E80 -> 0 | K79: 0
B80: Costos de distribución | C80: ='Red de recarga externa'!D33 -> 0 | D80: =RedRecargaExternaColectivos -> 1000 | E80: =D80*C80 -> 0 | K80: 0
B81: OPEX EQUIPOS EN CAMPO - SIR - METRO | E81: =IF(Fase=3,SUM(E82,E92,E100),0) ->  | K81: 0
B82: Puntos de personalización | E82: =SUM(E83,E91) -> 26.0028 | K82: 0 | L82: -1
B83: Mantenimiento | E83: =SUM(E84:E90) -> 11.0028 | K83: 0 | L83: -1
B84: Silla | C84: =MantenimientoInfraestructura/MesesPorAño -> 0.004166666667 | D84: =CapexSillaPPMetro -> 40 | E84: =D84*C84 -> 0.1666666667 | K84: 0 | L84: -1
B85: Escritorio | C85: =MantenimientoInfraestructura/MesesPorAño -> 0.004166666667 | D85: =CapexEscritorioPPMetro -> 80 | E85: =D85*C85 -> 0.3333333333 | K85: 0 | L85: -1
B86: Computador | C86: =MantenimientoTIC/MesesPorAño -> 0.005 | D86: =CapexComputadorPPMetro -> 1050 | E86: 5.25 | K86: 0 | L86: -1
B87: Impresora de tarjetas | C87: =MantenimientoEquiposCampoyAbordo/MesesPorAño -> 0.006666666667 | D87: =CapexImpresoraPPMetro -> 682.08 | E87: 4.5472 | K87: 0 | L87: -1
B88: Lector de tarjetas | C88: =MantenimientoEquiposCampoyAbordo/MesesPorAño -> 0.006666666667 | D88: =CapexLectorTarjetasPPMetro -> 70.56 | E88: 0.4704 | K88: 0 | L88: -1
B89: Dispositivo de recarga | C89: =MantenimientoEquiposCampoyAbordo/MesesPorAño -> 0.006666666667 | D89: =CapexDispositivoRecargaPPMetro -> 0 | E89: 0 | K89: 0
B90: Cámara web | C90: =MantenimientoEquiposCampoyAbordo/MesesPorAño -> 0.006666666667 | D90: =CapexCamaraWebPPMetro -> 35.28 | E90: 0.2352 | K90: 0 | L90: -1
B91: Costos alquiler fibra óptica | C91: =NumModulosAtencionMetro -> 1 | D91: =CostoAlquilerFibraPunto -> 15 | E91: =C91*D91 -> 15 | K91: 0 | L91: -1
B92: Paradas | E92: =SUM(E93:E99) -> 9170.65 | K92: 4458.97 | L92: -0.5137781946
B93: Máquinas VRM | C93: =MantenimientoEquiposCampoyAbordo/MesesPorAño -> 0.006666666667 | D93: =CapexVRMMetro -> 619752 | E93: =D93*C93 -> 4131.68 | K93: 1117.2 | L93: -0.729601518
B94: Torniquetes dicapacitados | C94: =MantenimientoEquiposCampoyAbordo/MesesPorAño -> 0.006666666667 | D94: =CapexTorniqueteDiscaParadasMetro -> 76041 | E94: 506.94 | K94: 0 | L94: -1
B95: Torniquetes + Validador | C95: =MantenimientoEquiposCampoyAbordo/MesesPorAño -> 0.006666666667 | D95: =CapexTorniqueteParadasMetro -> 594016.5 | E95: 3960.11 | K95: 2828.65 | L95: -0.2857142857
B96: Máquina CIM | C96: =MantenimientoEquiposCampoyAbordo/MesesPorAño -> 0.006666666667 | D96: =CapexMaquinaCIMMetro -> 0 | E96: 0 | K96: 0
B97: Handhelds de recarga e Inspeccion | C97: =MantenimientoEquiposCampoyAbordo/MesesPorAño -> 0.006666666667 | D97: =CapexHHParadasMetro -> 10584 | E97: 70.56 | K97: 11.76 | L97: -0.8333333333
B98: Costos alquiler fibra óptica | C98: =NumParadasMetro -> 15 | D98: =CostoAlquilerFibraPunto -> 15 | E98: 225 | K98: 225 | L98: 0
B99: Camaras de conteo | C99: =MantenimientoEquiposCampoyAbordo/MesesPorAño -> 0.006666666667 | D99: =CapexCamarasParadasMetro -> 41454 | E99: =D99*C99 -> 276.36 | K99: 276.36 | L99: 0
B100: Transporte de valores | E100: =SUM(E101:E106) -> 5520.95 | K100: 3083.55 | L100: -0.4414819913
B101: Costo de conteo por mes | C101: =CostoConteo -> 0.0008 | D101: =RecaudoDiarioMetro*DiasOperacionAlMes -> 1350000 | E101: =D101*C101 -> 1080 | K101: 0 | L101: -1
B102: Costo total de recolección por mes | C102: =NumParadasMetro*RecoleccionesDía*DíasAlMesRecoleccion -> 405 | D102: =CostoRecoleccio -> 6 | E102: =D102*C102 -> 2430 | K102: 2430 | L102: 0
B103: Costo total de preparación por mes | C103: =(NumMaqVRMMetro+NumModulosAtencionMetro)*PreparacionesDía*DíasAlMesRecoleccion -> 945 | D103: =CostoPreparación -> 0.31 | E103: =C103*D103 -> 292.95 | K103: 125.55 | L103: -0.5714285714
B104: Costo total de turros por mes | C104: =(NumMaqVRMMetro+NumModulosAtencionMetro)*TurrosPuntoDía*DíasAlMesRecoleccion -> 28350 | D104: =CostoTurro -> 0.02 | E104: =D104*C104 -> 567 | K104: 243 | L104: -0.5714285714
B105: Costo total de cambio por mes | C105: =CostoMensualDeCambio -> 0.0004 | D105: =(RecaudoDiarioMetro)*DíasAlMesRecoleccion -> 1215000 | E105: =D105*C105 -> 486 | K105: 0 | L105: -1
B106: Costo total de insumos por mes | C106: =NumMaqVRMMetro+NumModulosAtencionMetro -> 35 | D106: =CostoInsumosPuntoMes -> 19 | E106: =C106*D106 -> 665 | K106: 285 | L106: -0.5714285714
B107: OPEX EQUIPOS EN CAMPO - SIR - CABLE | E107: =IF(Fase=3,SUM(E108,E116),0) ->  | K107: 0
B108: Paradas | E108: =SUM(E109:E115) -> 2065.832 | K108: 3373.357333 | L108: 0.6329291701
B109: Máquinas VRM | C109: =MantenimientoEquiposCampoyAbordo/MesesPorAño -> 0.006666666667 | D109: =CapexVRMCable -> 109368 | E109: =D109*C109 -> 729.12 | K109: 968.24 | L109: 0.3279569892
B110: Torniquetes dicapacitados | C110: =MantenimientoEquiposCampoyAbordo/MesesPorAño -> 0.006666666667 | D110: =CapexTorniqueteDiscaParadasCable -> 30416.4 | E110: 202.776 | K110: 0 | L110: -1
B111: Torniquetes + Validador | C111: =MantenimientoEquiposCampoyAbordo/MesesPorAño -> 0.006666666667 | D111: =CapexTorniqueteParadasCable -> 135775.2 | E111: 905.168 | K111: 1961.197333 | L111: 1.166666667
B112: Máquina CIM | C112: =MantenimientoEquiposCampoyAbordo/MesesPorAño -> 0.006666666667 | D112: =CapexMaquinaCIMCable -> 0 | E112: 0 | K112: 0
B113: Handhelds de recarga e Inspeccion | C113: =MantenimientoEquiposCampoyAbordo/MesesPorAño -> 0.006666666667 | D113: =CapexHHParadasCable -> 4233.6 | E113: 28.224 | K113: 9.408 | L113: -0.6666666667
B114: Costos alquiler fibra óptica | C114: =NumParadasCable -> 6 | D114: =CostoAlquilerFibraPunto -> 15 | E114: 90 | K114: 195 | L114: 1.166666667
B115: Camaras de conteo | C115: =MantenimientoEquiposCampoyAbordo/MesesPorAño -> 0.006666666667 | D115: =CapexCamarasParadasCable -> 16581.6 | E115: =D115*C115 -> 110.544 | K115: 239.512 | L115: 1.166666667
B116: Transporte de valores | E116: =SUM(E117:E122) -> 5520.95 | K116: 3083.55 | L116: -0.4414819913
B117: Costo de conteo por mes | C117: =CostoConteo -> 0.0008 | D117: =RecaudoDiarioMetro*DiasOperacionAlMes -> 1350000 | E117: =D117*C117 -> 1080 | K117: 0 | L117: -1
B118: Costo total de recolección por mes | C118: =NumParadasMetro*RecoleccionesDía*DíasAlMesRecoleccion -> 405 | D118: =CostoRecoleccio -> 6 | E118: =D118*C118 -> 2430 | K118: 2430 | L118: 0
B119: Costo total de preparación por mes | C119: =(NumMaqVRMMetro+NumModulosAtencionMetro)*PreparacionesDía*DíasAlMesRecoleccion -> 945 | D119: =CostoPreparación -> 0.31 | E119: =C119*D119 -> 292.95 | K119: 125.55 | L119: -0.5714285714
B120: Costo total de turros por mes | C120: =(NumMaqVRMMetro+NumModulosAtencionMetro)*TurrosPuntoDía*DíasAlMesRecoleccion -> 28350 | D120: =CostoTurro -> 0.02 | E120: =D120*C120 -> 567 | K120: 243 | L120: -0.5714285714
B121: Costo total de cambio por mes | C121: =CostoMensualDeCambio -> 0.0004 | D121: =(RecaudoDiarioMetro)*DíasAlMesRecoleccion -> 1215000 | E121: =D121*C121 -> 486 | K121: 0 | L121: -1
B122: Costo total de insumos por mes | C122: =NumMaqVRMMetro+NumModulosAtencionMetro -> 35 | D122: =CostoInsumosPuntoMes -> 19 | E122: =C122*D122 -> 665 | K122: 285 | L122: -0.5714285714
B123: OPEX EQUIPOS EN CAMPO - SAE - CORREDORES | E123: =E124 -> 6183.408 | F123: =E124/$E$3 ->  | K123: 5463.304 | L123: -0.1164574616
B124: Equipos a bordo | E124: =SUM(E125:E126) -> 6183.408 | K124: 5463.304 | L124: -0.1164574616
B125: Unidad a bordo y consola | C125: =MantenimientoEquiposCampoyAbordo/MesesPorAño -> 0.006666666667 | D125: =CapexUnidadABordoCorredores -> 927511.2 | E125: =D125*C125 -> 6183.408 | K125: 5463.304 | L125: -0.1164574616
B126: Sensor de apertura de puertas | C126: =MantenimientoEquiposCampoyAbordo/MesesPorAño -> 0.006666666667 | D126: =CapexSensoresAperturaCorredores -> 0 | E126: =D126*C126 -> 0 | K126: 0
B127: OPEX EQUIPOS EN CAMPO - SAE - COLECTIVOS | E127: =IF(Fase<>1,E128,0) ->  | K127: 5868.632
B128: Equipos a bordo | E128: =SUM(E129:E130) -> 6515.432 | K128: 5868.632 | L128: -0.09927200529
B129: Unidad a bordo y consola | C129: =MantenimientoEquiposCampoyAbordo/MesesPorAño -> 0.006666666667 | D129: =CapexUnidadABordoColectivos -> 977314.8 | E129: =D129*C129 -> 6515.432 | K129: 5868.632 | L129: -0.09927200529
B130: Sensor de apertura de puertas | C130: =MantenimientoEquiposCampoyAbordo/MesesPorAño -> 0.006666666667 | D130: =CapexSensoresAperturaColectivos -> 0 | E130: =D130*C130 -> 0 | K130: 0
B131: OPEX EQUIPOS EN CAMPO - SIU - CORREDORES | E131: =E132 -> 7767.2448 | K131: 6688.4608 | L131: -0.1388888889
